Workbook

Sheet 1. Information Sheet
M12: Version | N12: 2
E14: Utility Name | F14: Kitchener-Wilmot Hydro Inc.
E16: Service Territory | F16: (if applicable)
E18: Assigned EB Number | F18: EB-2013-0147
E20: Name of Contact and Title | F20: Margaret Nanninga, Vice-President Finance
E22: Phone Number | F22: 519-749-6177
E24: Email Address | F24: mnanninga@kwhydro.on.ca
B27: General Notes 1. Please ensure that your macros have been enabled. (Tools -> Macro -> Security) 2. Due to the time lag of deferral/variance account dispositions, this model assumes that all opening balances include previously disposed of amounts. Accordingly, all "Board Approved Dispositions" are deducted from the opening balance. 3. Please provide information in this model since the last time your balances were disposed. 4. For all Board-Approved dispositions, please ensure that the disposition amount has the same sign (e.g: debit balances are to have a positive figure and credit balance are to have a negative figure) as per the related Board decision.
B29: Notes
C31: Pale green cells represent input cells.
C33: Pale blue cells represent drop-down lists. The applicant should select the appropriate item from the drop-down list.
C35: White cells contain fixed values, automatically generated values or formulae.

Sheet 2. 2014 Continuity Schedule
E19: 2005 | O19: 2006 | Y19: 2007 | AI19: 2008 | AS19: 2009 | BC19: 2010 | BM19: 2011 | BV19: 2012 | CI19: 2013 | CM19: Projected Interest on Dec-31-12 Balances | CP19: 2.1.7 RRR
C20: Account Descriptions | D20: Account Number | E20: Opening Principal Amounts as of Jan-1-05 | F20: Transactions Debit / (Credit) during 2005 excluding interest and adjustments 3 | G20: Board-Approved Disposition during 2005 | H20: Adjustments during 2005 - other 2 | I20: Closing Principal Balance as of Dec-31-05 | J20: Opening Interest Amounts as of Jan-1-05 | K20: Interest Jan-1 to Dec-31-05 | L20: Board-Approved Disposition during 2005 | M20: Adjustments during 2005 - other 2 | N20: Closing Interest Amounts as of Dec-31-05 | O20: Opening Principal Amounts as of Jan-1-06 | P20: Transactions Debit / (Credit) during 2006 excluding interest and adjustments 3 | Q20: Board-Approved Disposition during 2006 1, 1A | R20: Adjustments during 2006 - other 2 | S20: Closing Principal Balance as of Dec-31-06 | T20: Opening Interest Amounts as of Jan-1-06 | U20: Interest Jan-1 to Dec-31-06 | V20: Board-Approved Disposition during 2006 1, 1A | W20: Adjustments during 2006 - other 2 | X20: Closing Interest Amounts as of Dec-31-06 | Y20: Opening Principal Amounts as of Jan-1-07 | Z20: Transactions Debit / (Credit) during 2007 excluding interest and adjustments 3 | AA20: Board-Approved Disposition during 2007 | AB20: Adjustments during 2007 - other 2 | AC20: Closing Principal Balance as of Dec-31-07 | AD20: Opening Interest Amounts as of Jan-1-07 | AE20: Interest Jan-1 to Dec-31-07 | AF20: Board-Approved Disposition during 2007 | AG20: Adjustments during 2007 - other 2 | AH20: Closing Interest Amounts as of Dec-31-07 | AI20: Opening Principal Amounts as of Jan-1-08 | AJ20: Transactions Debit / (Credit) during 2008 excluding interest and adjustments 3 | AK20: Board-Approved Disposition during 2008 | AL20: Adjustments during 2008 - other 2 | AM20: Closing Principal Balance as of Dec-31-08 | AN20: Opening Interest Amounts as of Jan-1-08 | AO20: Interest Jan-1 to Dec-31-08 | AP20: Board-Approved Disposition during 2008 | AQ20: Adjustments during 2008 - other 2 | AR20: Closing Interest Amounts as of Dec-31-08 | AS20: Opening Principal Amounts as of Jan-1-09 | AT20: Transactions Debit / (Credit) during 2009 excluding interest and adjustments 3 | AU20: Board-Approved Disposition during 2009 | AV20: Adjustments during 2009 - other 2 | AW20: Closing Principal Balance as of Dec-31-09 | AX20: Opening Interest Amounts as of Jan-1-09 | AY20: Interest Jan-1 to Dec-31-09 | AZ20: Board-Approved Disposition during 2009 | BA20: Adjustments during 2009 - other 2 | BB20: Closing Interest Amounts as of Dec-31-09 | BC20: Opening Principal Amounts as of Jan-1-10 | BD20: Transactions Debit / (Credit) during 2010 excluding interest and adjustments 3 | BE20: Board-Approved Disposition during 2010 | BF20: Adjustments during 2010 - other 2 | BG20: Closing Principal Balance as of Dec-31-10 | BH20: Opening Interest Amounts as of Jan-1-10 | BI20: Interest Jan-1 to Dec-31-10 | BJ20: Board-Approved Disposition during 2010 | BK20: Adjustments during 2010 - other 2 | BL20: Closing Interest Amounts as of Dec-31-10 | BM20: Opening Principal Amounts as of Jan-1-11 | BN20: Transactions Debit / (Credit) during 2011 excluding interest and adjustments 3 | BO20: Board-Approved Disposition during 2011 | BP20: Closing Principal Balance as of Dec-31-11 | BQ20: Opening Interest Amounts as of Jan-1-11 | BR20: Interest Jan-1 to Dec-31-11 | BS20: Board-Approved Disposition during 2011 | BT20: Adjustments during 2011 - other 2 | BU20: Closing Interest Amounts as of Dec-31-11 | BV20: Opening Principal Amounts as of Jan-1-12 | BW20: Transactions Debit / (Credit) during 2012 excluding interest and adjustments 3 | BX20: Board-Approved Disposition during 2012 | BY20: Other 2 Adjustments during Q1 2012 | BZ20: Other 2 Adjustments during Q2 2012 | CA20: Other 2 Adjustments during Q3 2012 | CB20: Other 2 Adjustments during Q4 2012 | CC20: Closing Principal Balances as of Dec 31-12 | CD20: Opening Interest Amounts as of Jan-1-12 | CE20: Interest Jan-1 to Dec-31-12 | CF20: Board-Approved Disposition during 2012 | CG20: Adjustments during 2012 - other 2 | CH20: Closing Interest Balances as of Dec 31-12 Adjusted for Dispositions during 2013 | CI20: Principal Disposition during 2013 - instructed by Board | CJ20: Interest Disposition during 2013 - instructed by Board | CK20: Closing Principal Balances as of Dec 31-12 Adjusted for Dispositions during 2013 | CL20: Closing Interest Balances as of Dec 31-11 Adjusted for Dispositions during 2012 | CM20: Projected Interest from Jan 1, 2013 to December 31, 2013 on Dec 31 -12 balance adjusted for disposition during 2013 6 | CN20: Projected Interest from January 1, 2014 to April 30, 2014 on Dec 31 -12 balance adjusted for disposition during 2013 6 | CO20: Total Claim | CP20: As of Dec 31-12 | CQ20: Variance RRR vs. 2012 Balance (Principal + Interest)
CO22: Claim before Forecasted Transactions
C23: Group 1 Accounts
A24: 1 | C24: LV Variance Account | D24: 1550 | I24: =E24+F24-G24+H24 -> 0 | N24: =J24+K24-L24+M24 -> 0 | O24: =I24 -> 0 | S24: =O24+P24-Q24+R24 -> 0 | T24: =N24 -> 0 | X24: =T24+U24-V24+W24 -> 0 | Y24: =S24 -> 0 | AC24: =Y24+Z24-AA24+AB24 -> 0 | AD24: =X24 -> 0 | AH24: =AD24+AE24-AF24+AG24 -> 0 | AI24: =AC24 -> 0 | AM24: =AI24+AJ24-AK24+AL24 -> 0 | AN24: =AH24 -> 0 | AR24: =AN24+AO24-AP24+AQ24 -> 0 | AS24: =AM24 -> 0 | AW24: =AS24+AT24-AU24+AV24 -> 0 | AX24: =AR24 -> 0 | BB24: =AX24+AY24-AZ24+BA24 -> 0 | BC24: =AW24 -> 0 | BG24: =BC24+BD24-BE24+BF24 -> 0 | BH24: =BB24 -> 0 | BL24: =BH24+BI24-BJ24+BK24 -> 0 | BM24: =BG24 -> 0 | BP24: =BM24+BN24-BO24 -> 0 | BQ24: =BL24 -> 0 | BU24: =BQ24+BR24-BS24+BT24 -> 0 | BV24: =BP24 -> 0 | CC24: =SUM(BV24:CB24) -> 0 | CD24: =BU24 -> 0 | CH24: =SUM(CD24:CG24) -> 0 | CK24: =CC24-CI24 -> 0 | CL24: =CH24-CJ24 -> 0 | CM24: =CK24*1.47% -> 0 | CO24: =SUM(CK24:CN24) -> 0 | CQ24: =CP24-SUM(CC24,CH24) -> 0
A25: 2 | C25: RSVA - Wholesale Market Service Charge | D25: 1580 | I25: =E25+F25-G25+H25 -> 0 | N25: =J25+K25-L25+M25 -> 0 | O25: =I25 -> 0 | S25: =O25+P25-Q25+R25 -> 0 | T25: =N25 -> 0 | X25: =T25+U25-V25+W25 -> 0 | Y25: =S25 -> 0 | AC25: =Y25+Z25-AA25+AB25 -> 0 | AD25: =X25 -> 0 | AH25: =AD25+AE25-AF25+AG25 -> 0 | AI25: =AC25 -> 0 | AM25: =AI25+AJ25-AK25+AL25 -> 0 | AN25: =AH25 -> 0 | AR25: =AN25+AO25-AP25+AQ25 -> 0 | AS25: -4915629.95 | AT25: -712371.61 | AW25: =AS25+AT25-AU25+AV25 -> -5628001.56 | AX25: -213016.09 | AY25: -58697.51 | BB25: =AX25+AY25-AZ25+BA25 -> -271713.6 | BC25: =AW25 -> -5628001.56 | BD25: =2827387.44+BE25 -> -2088242.51 | BE25: -4915629.95 | BG25: =BC25+BD25-BE25+SUM(BF25:BF25) -> -2800614.12 | BH25: =BB25 -> -271713.6 | BI25: =BJ25+222487.24 -> -26576.8 | BJ25: -249064.04 | BL25: =BH25+BI25-BJ25+BK25 -> -49226.36 | BM25: =BG25 -> -2800614.12 | BN25: -2036934.55 | BO25: -712371.61 | BP25: =BM25+BN25-BO25 -> -4125177.06 | BQ25: -49226.36 | BR25: -49432.4 | BS25: -65920.95813 | BU25: =BQ25+BR25-BS25+BT25 -> -32737.80187 | BV25: =BP25 -> -4125177.06 | BW25: -2473539.79 | CC25: =SUM(BV25:CB25) -> -6598716.85 | CD25: =BU25 -> -32737.80187 | CE25: =-111639.73-CD25 -> -78901.92813 | CH25: =SUM(CD25:CG25) -> -111639.73 | CK25: -6598716.85 | CL25: -111639.73 | CM25: =CK25*1.47% -> -97001.13769 | CO25: =SUM(CK25:CN25) -> -6807357.718 | CP25: -6710356.58 | CQ25: 0
A26: 3 | C26: RSVA - Retail Transmission Network Charge | D26: 1584 | I26: 0 | N26: 0 | O26: 0 | S26: 0 | T26: 0 | X26: 0 | Y26: 0 | AC26: 0 | AD26: 0 | AH26: 0 | AI26: 0 | AM26: 0 | AN26: 0 | AR26: 0 | AS26: -2529128.07 | AT26: 336447.79 | AW26: =AS26+AT26-AU26+AV26 -> -2192680.28 | AX26: -326927.13 | AY26: -27015.91 | BB26: -353943.04 | BC26: -2192680.28 | BD26: =1582258.99 -> 1582258.99 | BE26: -2529128.07 | BG26: 1918706.78 | BH26: -353943.04 | BI26: =BJ26+348818.13 -> 3344.06082 | BJ26: -345474.0692 | BL26: -5124.91 | BM26: 1918706.78 | BN26: 1556946.27 | BO26: 336447.79 | BP26: =BM26+BN26-BO26 -> 3139205.26 | BQ26: -5124.91 | BR26: 37388.39 | BS26: -23604.32941 | BU26: 55867.80941 | BV26: 3139205.26 | BW26: 846212.49 | CC26: 3985417.75 | CD26: 55867.80941 | CE26: 55765.65 | CH26: 111633.4594 | CK26: 3985417.75 | CL26: 111633.4594 | CM26: 58585.64092 | CO26: =SUM(CK26:CN26) -> 4155636.85 | CP26: 4097051.2 | CQ26: -0.009409399703
A27: 4 | C27: RSVA - Retail Transmission Connection Charge | D27: 1586 | I27: 0 | N27: 0 | O27: 0 | S27: 0 | T27: 0 | X27: 0 | Y27: 0 | AC27: 0 | AD27: 0 | AH27: 0 | AI27: 0 | AM27: 0 | AN27: 0 | AR27: 0 | AS27: -1770742.91 | AT27: -516046.87 | AW27: -2286789.78 | AX27: -174492.08 | AY27: -21228.72 | BB27: -195720.8 | BC27: -2286789.78 | BD27: 13305.76 | BE27: -1770742.91 | BG27: -502741.11 | BH27: -195720.8 | BI27: =BJ27+178672.98 -> -8804.548007 | BJ27: -187477.528 | BL27: -17047.82 | BM27: -502741.11 | BN27: 216576.7 | BO27: -516046.87 | BP27: 229882.46 | BQ27: -17047.82 | BR27: -1740.56 | BS27: -26461.43526 | BU27: 7673.055262 | BV27: 229882.46 | BW27: 49338.88 | CC27: 279221.34 | CD27: 7673.055262 | CE27: 4255.83 | CH27: 11928.88526 | CK27: 279221.34 | CL27: 11928.88526 | CM27: 4104.553698 | CO27: 295254.779 | CP27: 291150.23 | CQ27: 0.004738200048
A28: 5 | C28: RSVA - Power (excluding Global Adjustment) | D28: 1588 | I28: 0 | N28: 0 | O28: 0 | S28: 0 | T28: 0 | X28: 0 | Y28: 0 | AC28: 0 | AD28: 0 | AH28: 0 | AI28: 0 | AM28: 0 | AN28: 0 | AR28: 0 | AS28: 1076040.83 | AT28: -391863.26 | AW28: 684177.57 | AX28: =60684.53-AX29 -> -18793.82 | AY28: -76098.19 | BB28: -94892.01 | BC28: 684177.57 | BD28: 1280632.52 | BE28: 1076040.83 | BG28: 888769.26 | BH28: -94892.01 | BI28: =-10902.4+0.03 -> -10902.37 | BJ28: -10902.85 | BL28: -94891.53 | BM28: 888769.26 | BN28: -2178548.68 | BO28: -391863.26 | BP28: -897916.16 | BQ28: -94891.53 | BR28: -12007.69 | BS28: -80071.68346 | BU28: -26827.53654 | BV28: -897916.16 | BW28: =1457198.76-BV28 -> 2355114.92 | CC28: 1457198.76 | CD28: -26827.53654 | CE28: =-19826.59-CD28 -> 7000.946544 | CH28: -19826.59 | CK28: 1457198.76 | CL28: -19826.59 | CM28: 21420.82177 | CO28: 1458792.992 | CP28: 1437372.17 | CQ28: 0
A29: 6 | C29: RSVA - Power - Sub-account - Global Adjustment | D29: 1588 | I29: 0 | N29: 0 | O29: 0 | S29: 0 | T29: 0 | X29: 0 | Y29: 0 | AC29: 0 | AD29: 0 | AH29: 0 | AI29: 0 | AM29: 0 | AN29: 0 | AR29: 0 | AS29: 1956049.8 | AT29: 3663677.72 | AW29: 5619727.52 | AX29: 79478.35 | AY29: 113275.53 | BB29: 192753.88 | BC29: 5619727.52 | BD29: -1049622.37 | BE29: 1956049.8 | BG29: 2614055.35 | BH29: 192753.88 | BI29: 26927.51 | BJ29: 93822.74 | BL29: 125858.65 | BM29: 2614055.35 | BN29: 3073560.99 | BO29: 3663677.72 | BP29: 2023938.62 | BQ29: 125858.65 | BR29: 41961.09 | BS29: 150425.2221 | BU29: 17394.51792 | BV29: 2023938.62 | CA29: =-BV29 -> -2023938.62 | CC29: 0 | CD29: 17394.51792 | CG29: =-CD29 -> -17394.51792 | CH29: 0 | CK29: 0 | CL29: 0 | CM29: 0 | CO29: 0 | CQ29: 0
A30: 6 | C30: RSVA - Global Adjustment | D30: 1589 | I30: =E30+F30-G30+H30 -> 0 | N30: =J30+K30-L30+M30 -> 0 | O30: =I30 -> 0 | S30: =O30+P30-Q30+R30 -> 0 | T30: =N30 -> 0 | X30: =T30+U30-V30+W30 -> 0 | Y30: =S30 -> 0 | AC30: =Y30+Z30-AA30+AB30 -> 0 | AD30: =X30 -> 0 | AH30: =AD30+AE30-AF30+AG30 -> 0 | AI30: =AC30 -> 0 | AM30: =AI30+AJ30-AK30+AL30 -> 0 | AN30: =AH30 -> 0 | AR30: =AN30+AO30-AP30+AQ30 -> 0 | AS30: 0 | AT30: 0 | AW30: =AS30+AT30-AU30+AV30 -> 0 | AX30: 0 | AY30: 0 | BB30: =AX30+AY30-AZ30+BA30 -> 0 | BC30: =AW30 -> 0 | BD30: 0 | BE30: 0 | BG30: =BC30+BD30-BE30+SUM(BF30:BF30) -> 0 | BH30: =BB30 -> 0 | BI30: 0 | BJ30: 0 | BL30: =BH30+BI30-BJ30+BK30 -> 0 | BM30: =BG30 -> 0 | BN30: 0 | BO30: 0 | BP30: =BM30+BN30-BO30 -> 0 | BQ30: 0 | BR30: 0 | BS30: 0 | BU30: =BQ30+BR30-BS30+BT30 -> 0 | BV30: =BP30 -> 0 | BW30: =2847112.88-CA30 -> 823174.26 | CA30: =-CA29 -> 2023938.62 | CC30: =SUM(BV30:CB30) -> 2847112.88 | CD30: =BU30 -> 0 | CE30: =59450.16-CD29 -> 42055.64208 | CG30: =-CG29 -> 17394.51792 | CH30: =SUM(CD30:CG30) -> 59450.16 | CK30: 2847112.88 | CL30: 59450.16 | CM30: 41852.55934 | CO30: 2948415.599 | CP30: 2906563.04 | CQ30: 0
A31: 7 | C31: Recovery of Regulatory Asset Balances | D31: 1590 | I31: 0 | N31: 0 | O31: 0 | S31: 0 | T31: 0 | X31: 0 | Y31: 0 | AC31: 0 | AD31: 0 | AH31: 0 | AI31: 0 | AM31: 0 | AN31: 0 | AR31: 0 | AS31: -628662.11 | AW31: -628662.11 | AX31: 374384.48 | AY31: =367234.1-AX31 -> -7150.38 | BB31: 367234.1 | BC31: -628662.11 | BD31: 0 | BE31: -628662.11 | BG31: 0 | BH31: 367234.1 | BJ31: 369774.2912 | BK31: 2540.19 | BL31: -0.001193333303 | BM31: 0 | BP31: 0 | BQ31: -0.001193333303 | BU31: -0.001193333303 | BV31: 0 | CC31: 0 | CD31: -0.001193333303 | CH31: -0.001193333303 | CK31: 0 | CL31: -0.001193333303 | CM31: 0 | CO31: -0.001193333303 | CQ31: 0.001193333303
A32: 8 | C32: Disposition and Recovery/Refund of Regulatory Balances (2010)7 | D32: 1595 | I32: 0 | N32: 0 | O32: =I32 -> 0 | S32: 0 | T32: =N32 -> 0 | X32: 0 | Y32: =S32 -> 0 | AC32: 0 | AD32: =X32 -> 0 | AH32: 0 | AI32: =AC32 -> 0 | AM32: 0 | AN32: =AH32 -> 0 | AR32: 0 | AS32: =AM32 -> 0 | AW32: 0 | AX32: =AR32 -> 0 | BB32: 0 | BC32: =AW32 -> 0 | BD32: 1720040.46 | BE32: 5626275.37 | BG32: -3906234.91 | BH32: =BB32 -> 0 | BI32: -27377.9 | BJ32: 147327.23 | BL32: -174705.13 | BM32: =BG32 -> -3906234.91 | BN32: 3095484.46 | BP32: =BM32+BN32-BO32 -> -810750.45 | BQ32: -174705.13 | BR32: -35998.7 | BU32: -210703.83 | BV32: -810750.45 | BW32: 1382979.44 | CC32: 572228.99 | CD32: -210703.83 | CE32: 1434.05 | CH32: -209269.78 | CK32: 572228.99 | CL32: -209269.78 | CM32: 8411.766153 | CO32: 371370.9762 | CP32: 362959.21 | CQ32: 0
C34: Group 1 Sub-Total (including Account 1588 - Global Adjustment) | E34: =SUM(E24:E33) -> 0 | F34: =SUM(F24:F33) -> 0 | G34: 0 | H34: 0 | I34: 0 | J34: 0 | K34: 0 | L34: 0 | M34: 0 | N34: 0 | O34: 0 | P34: 0 | Q34: 0 | R34: 0 | S34: 0 | T34: 0 | U34: 0 | V34: 0 | W34: 0 | X34: 0 | Y34: 0 | Z34: 0 | AA34: 0 | AB34: 0 | AC34: 0 | AD34: 0 | AE34: 0 | AF34: 0 | AG34: 0 | AH34: 0 | AI34: 0 | AJ34: 0 | AK34: 0 | AL34: 0 | AM34: 0 | AN34: 0 | AO34: 0 | AP34: 0 | AQ34: 0 | AR34: 0 | AS34: =SUM(AS24:AS33) -> -6812072.41 | AT34: 2379843.77 | AU34: 0 | AV34: 0 | AW34: -4432228.64 | AX34: -279366.29 | AY34: -76915.18 | AZ34: 0 | BA34: 0 | BB34: -356281.47 | BC34: -4432228.64 | BD34: 1458372.85 | BE34: -1185797.04 | BF34: 0 | BG34: -1788058.75 | BH34: -356281.47 | BI34: -43390.04719 | BJ34: -181994.226 | BK34: 2540.19 | BL34: -215137.1012 | BM34: -1788058.75 | BN34: 3727085.19 | BO34: 2379843.77 | BP34: -440817.33 | BQ34: -215137.1012 | BR34: -19829.87 | BS34: -45633.18417 | BT34: 0 | BU34: -189333.787 | BV34: -440817.33 | BW34: 2983280.2 | BX34: 0 | BY34: =SUM(BY24:BY33) -> 0 | BZ34: 0 | CA34: 0 | CB34: 0 | CC34: 2542462.87 | CD34: -189333.787 | CE34: 31610.1905 | CF34: 0 | CG34: 0 | CH34: -157723.5965 | CI34: 0 | CJ34: 0 | CK34: 2542462.87 | CL34: -157723.5965 | CM34: 37374.20419 | CN34: 0 | CO34: 2422113.478 | CP34: 2384739.27 | CQ34: =CP34-SUM(CC34,CH34) -> -0.003477866296
C35: Group 1 Sub-Total (excluding Account 1589 - Global Adjustment) | E35: =E34-E36 -> 0 | F35: =F34-F36 -> 0 | G35: =G34-G36 -> 0 | H35: 0 | I35: 0 | J35: 0 | K35: 0 | L35: =L34-L36 -> 0 | M35: =M34-M36 -> 0 | N35: 0 | O35: 0 | P35: 0 | Q35: =Q34-Q36 -> 0 | R35: 0 | S35: 0 | T35: 0 | U35: 0 | V35: =V34-V36 -> 0 | W35: =W34-W36 -> 0 | X35: =X34-X36 -> 0 | Y35: 0 | Z35: 0 | AA35: 0 | AB35: 0 | AC35: 0 | AD35: 0 | AE35: 0 | AF35: =AF34-AF36 -> 0 | AG35: =AG34-AG36 -> 0 | AH35: =AH34-AH36 -> 0 | AI35: 0 | AJ35: 0 | AK35: 0 | AL35: 0 | AM35: 0 | AN35: 0 | AO35: 0 | AP35: =AP34-AP36 -> 0 | AQ35: =AQ34-AQ36 -> 0 | AR35: =AR34-AR36 -> 0 | AS35: -8768122.21 | AT35: -1283833.95 | AU35: 0 | AV35: 0 | AW35: -10051956.16 | AX35: -358844.64 | AY35: -190190.71 | AZ35: =AZ34-AZ36 -> 0 | BA35: =BA34-BA36 -> 0 | BB35: =BB34-BB36 -> -549035.35 | BC35: -10051956.16 | BD35: 2507995.22 | BE35: -3141846.84 | BF35: 0 | BG35: -4402114.1 | BH35: -549035.35 | BI35: -70317.55719 | BJ35: =BJ34-BJ36 -> -275816.966 | BK35: 2540.19 | BL35: -340995.7512 | BM35: -4402114.1 | BN35: 653524.2 | BO35: -1283833.95 | BP35: -2464755.95 | BQ35: -340995.7512 | BR35: -61790.96 | BS35: -196058.4063 | BT35: 0 | BU35: -206728.3049 | BV35: -2464755.95 | BW35: =BW34-BW36 -> 2160105.94 | BX35: 0 | BY35: =BY34-BY36 -> 0 | BZ35: 0 | CA35: -2023938.62 | CB35: 0 | CC35: -304650.01 | CD35: =CD34-CD36 -> -206728.3049 | CE35: -10445.45158 | CF35: 0 | CG35: -17394.51792 | CH35: -217173.7565 | CI35: =CI34-CI36 -> 0 | CJ35: 0 | CK35: -304650.01 | CL35: -217173.7565 | CM35: -4478.355147 | CN35: 0 | CO35: -526302.1217 | CP35: =CP34-CP36 -> -521823.77 | CQ35: =CP35-SUM(CC35,CH35) -> -0.003477866529
C36: =C29 -> RSVA - Power - Sub-account - Global Adjustment | D36: 1589 | E36: =E29 -> 0 | F36: 0 | G36: 0 | H36: 0 | I36: 0 | J36: 0 | K36: 0 | L36: 0 | M36: 0 | N36: 0 | O36: 0 | P36: 0 | Q36: 0 | R36: 0 | S36: 0 | T36: 0 | U36: 0 | V36: 0 | W36: 0 | X36: 0 | Y36: 0 | Z36: 0 | AA36: 0 | AB36: 0 | AC36: 0 | AD36: 0 | AE36: 0 | AF36: 0 | AG36: 0 | AH36: 0 | AI36: 0 | AJ36: 0 | AK36: =AK29 -> 0 | AL36: 0 | AM36: 0 | AN36: 0 | AO36: 0 | AP36: 0 | AQ36: 0 | AR36: 0 | AS36: 1956049.8 | AT36: 3663677.72 | AU36: 0 | AV36: 0 | AW36: 5619727.52 | AX36: 79478.35 | AY36: 113275.53 | AZ36: 0 | BA36: 0 | BB36: 192753.88 | BC36: 5619727.52 | BD36: -1049622.37 | BE36: 1956049.8 | BF36: 0 | BG36: 2614055.35 | BH36: 192753.88 | BI36: 26927.51 | BJ36: 93822.74 | BK36: 0 | BL36: 125858.65 | BM36: 2614055.35 | BN36: 3073560.99 | BO36: 3663677.72 | BP36: 2023938.62 | BQ36: =BQ29 -> 125858.65 | BR36: 41961.09 | BS36: 150425.2221 | BT36: 0 | BU36: 17394.51792 | BV36: 2023938.62 | BW36: =BW30 -> 823174.26 | BX36: 0 | BY36: 0 | BZ36: 0 | CA36: 2023938.62 | CB36: 0 | CC36: 2847112.88 | CD36: =CD29 -> 17394.51792 | CE36: =CE30 -> 42055.64208 | CF36: 0 | CG36: 17394.51792 | CH36: 59450.16 | CI36: 0 | CJ36: 0 | CK36: 2847112.88 | CL36: 59450.16 | CM36: 41852.55934 | CN36: 0 | CO36: 2948415.599 | CP36: 2906563.04 | CQ36: =CP36-SUM(CC36,CH36) -> 0
C38: Group 2 Accounts
A39: 10 | C39: Other Regulatory Assets - Sub-Account - OEB Cost Assessments | D39: 1508 | I39: =E39+F39-G39+H39 -> 0 | N39: =J39+K39-L39+M39 -> 0 | O39: =I39 -> 0 | S39: =O39+P39-Q39+R39 -> 0 | T39: =N39 -> 0 | X39: =T39+U39-V39+W39 -> 0 | Y39: =S39 -> 0 | AC39: =Y39+Z39-AA39+AB39 -> 0 | AD39: =X39 -> 0 | AH39: =AD39+AE39-AF39+AG39 -> 0 | AI39: =AC39 -> 0 | AM39: =AI39+AJ39-AK39+AL39 -> 0 | AN39: =AH39 -> 0 | AR39: =AN39+AO39-AP39+AQ39 -> 0 | AS39: 187866 | AW39: =AS39+AT39-AU39+AV39 -> 187866 | AX39: 27024.88 | AY39: 2124.21 | BB39: =AX39+AY39-AZ39+BA39 -> 29149.09 | BC39: =AW39 -> 187866 | BE39: 187866 | BG39: =BC39+BD39-BE39+SUM(BF39:BF39) -> 0 | BH39: =BB39 -> 29149.09 | BJ39: 28402.564 | BK39: -746.526 | BL39: =BH39+BI39-BJ39+BK39 -> 0 | BM39: =BG39 -> 0 | BP39: =BM39+BN39-BO39 -> 0 | BQ39: =BL39 -> 0 | BU39: =BQ39+BR39-BS39+BT39 -> 0 | BV39: =BP39 -> 0 | CC39: =SUM(BV39:CB39) -> 0 | CD39: =BU39 -> 0 | CH39: =SUM(CD39:CG39) -> 0 | CK39: =CC39-CI39 -> 0 | CL39: =CH39-CJ39 -> 0 | CM39: =CK39*1.47% -> 0 | CO39: =SUM(CK39:CN39) -> 0 | CQ39: =CP39-SUM(CC39,CH39) -> 0
A40: 11 | C40: Other Regulatory Assets - Sub-Account - Pension Contributions | D40: 1508 | I40: 0 | N40: 0 | O40: 0 | S40: 0 | T40: 0 | X40: 0 | Y40: 0 | AC40: 0 | AD40: 0 | AH40: 0 | AI40: 0 | AM40: 0 | AN40: 0 | AR40: 0 | AS40: 925984.04 | AW40: 925984.04 | AX40: 130393.5 | AY40: 10470.15 | BB40: 140863.65 | BC40: =AW40 -> 925984.04 | BE40: 925984.04 | BG40: 0 | BH40: 140863.65 | BJ40: 137184.0496 | BK40: -3679.600373 | BL40: 0 | BM40: 0 | BP40: 0 | BQ40: 0 | BU40: 0 | BV40: 0 | CC40: 0 | CD40: 0 | CH40: 0 | CK40: 0 | CL40: 0 | CM40: 0 | CO40: 0 | CQ40: 0
A41: 12 | C41: Other Regulatory Assets - Sub-Account - Deferred IFRS Transition Costs | D41: 1508 | I41: 0 | N41: 0 | O41: 0 | S41: 0 | T41: 0 | X41: 0 | Y41: 0 | AC41: 0 | AD41: 0 | AH41: 0 | AI41: 0 | AM41: 0 | AN41: 0 | AR41: 0 | AS41: =AM41 -> 0 | AT41: 22710.23 | AW41: 22710.23 | AX41: 0 | AY41: 21.6 | BB41: 21.6 | BC41: 22710.23 | BD41: 32071.33 | BG41: 54781.56 | BH41: 21.6 | BI41: =248.11-BH41 -> 226.51 | BL41: 248.11 | BM41: 54781.56 | BN41: 93154.53 | BP41: 147936.09 | BQ41: 248.11 | BR41: =1303.75-BQ41 -> 1055.64 | BU41: 1303.75 | BV41: 147936.09 | BW41: 43329.48 | CC41: 191265.57 | CD41: 1303.75 | CE41: 2265.16 | CH41: 3568.91 | CK41: 191265.57 | CL41: 3568.91 | CM41: 2811.603879 | CO41: 197646.0839 | CP41: 194834.48 | CQ41: 0
A42: 13 | C42: Other Regulatory Assets - Sub-Account - Incremental Capital Charges | D42: 1508 | AS42: =AM42 -> 0 | AW42: =AS42+AT42-AU42+AV42 -> 0 | AX42: 0 | BB42: =AX42+AY42-AZ42+BA42 -> 0 | BC42: =AW42 -> 0 | BG42: 0 | BH42: 0 | BL42: =BH42+BI42-BJ42+BK42 -> 0 | BM42: 0 | BP42: 0 | BQ42: 0 | BU42: 0 | BV42: 0 | CC42: 0 | CD42: 0 | CH42: 0 | CK42: 0 | CL42: 0 | CM42: 0 | CO42: 0 | CQ42: 0
A43: 14 | C43: Other Regulatory Assets - Sub-Account - Financial Assistance Payment and Recovery Variance - Ontario Clean Energy Benefit Act8 | D43: 1508 | AW43: =AS43+AT43-AU43+AV43 -> 0 | AX43: =AR43 -> 0 | BB43: =AX43+AY43-AZ43+BA43 -> 0 | BC43: =AW43 -> 0 | BG43: 0 | BH43: 0 | BL43: =BH43+BI43-BJ43+BK43 -> 0 | BM43: 0 | BP43: 0 | BQ43: 0 | BU43: 0 | BV43: 0 | CC43: 0 | CD43: 0 | CH43: 0 | CK43: 0 | CL43: 0 | CM43: 0 | CO43: 0 | CQ43: 0
A44: 15 | C44: Other Regulatory Assets - Sub-Account - Financial Assistance Payment and Recovery Carrying Charges | D44: 1508 | AW44: =AS44+AT44-AU44+AV44 -> 0 | AX44: =AR44 -> 0 | BB44: =AX44+AY44-AZ44+BA44 -> 0 | BC44: =AW44 -> 0 | BG44: 0 | BH44: 0 | BL44: =BH44+BI44-BJ44+BK44 -> 0 | BM44: 0 | BP44: 0 | BQ44: 0 | BU44: 0 | BV44: 0 | CC44: 0 | CD44: 0 | CH44: 0 | CK44: 0 | CL44: 0 | CM44: 0 | CO44: 0 | CQ44: 0
A45: 16 | C45: Other Regulatory Assets - Sub-Account - Other 4 | D45: 1508 | I45: 0 | N45: 0 | O45: 0 | S45: 0 | T45: 0 | X45: 0 | Y45: 0 | AC45: 0 | AD45: 0 | AH45: 0 | AI45: 0 | AM45: 0 | AN45: 0 | AR45: 0 | AS45: =AM45 -> 0 | AW45: 0 | AX45: =AR45 -> 0 | BB45: 0 | BC45: 0 | BG45: 0 | BH45: 0 | BL45: 0 | BM45: =BG45 -> 0 | BP45: 0 | BQ45: 0 | BU45: =BQ45+BR45-BS45+BT45 -> 0 | BV45: 0 | CC45: 0 | CD45: 0 | CH45: 0 | CK45: 0 | CL45: 0 | CM45: 0 | CO45: 0 | CQ45: 0
A46: 17 | C46: Retail Cost Variance Account - Retail | D46: 1518 | I46: 0 | N46: 0 | O46: 0 | S46: 0 | T46: 0 | X46: 0 | Y46: 0 | AC46: 0 | AD46: 0 | AH46: 0 | AI46: 0 | AM46: 0 | AN46: 0 | AR46: 0 | AS46: -100944.51 | AT46: =-139466.55-AS46 -> -38522.04 | AW46: -139466.55 | AX46: -7140.42 | AY46: =-8427.34-AX46 -> -1286.92 | BB46: -8427.34 | BC46: -139466.55 | BD46: -26830.8 | BE46: -100944.51 | BG46: -65352.84 | BH46: -8427.34 | BI46: -660.65 | BJ46: -7880.67974 | BL46: -1207.31026 | BM46: -65352.84 | BN46: -8127.35 | BP46: -73480.19 | BQ46: -1207.31026 | BR46: =-2260.12-BQ46 -> -1052.80974 | BU46: -2260.12 | BV46: -73480.19 | BW46: 6405.39 | CC46: -67074.8 | CD46: -2260.12 | CE46: -1085.78 | CH46: -3345.9 | CK46: -67074.8 | CL46: -3345.9 | CM46: -985.99956 | CO46: -71406.69956 | CP46: -70420.7 | CQ46: 0
A47: 18 | C47: Misc. Deferred Debits | D47: 1525 | I47: 0 | N47: 0 | O47: 0 | S47: 0 | T47: 0 | X47: 0 | Y47: 0 | AC47: 0 | AD47: 0 | AH47: 0 | AI47: 0 | AM47: 0 | AN47: 0 | AR47: 0 | AS47: 14492.97 | AW47: 14492.97 | AX47: 0 | BB47: 0 | BC47: 14492.97 | BE47: 14492.97 | BG47: 0 | BH47: 0 | BL47: 0 | BM47: 0 | BP47: 0 | BQ47: 0 | BU47: 0 | BV47: 0 | CC47: 0 | CD47: 0 | CH47: 0 | CK47: 0 | CL47: 0 | CM47: 0 | CO47: 0 | CQ47: 0
A48: 20 | C48: Renewable Generation Connection OM&A Deferral Account | D48: 1532 | I48: 0 | N48: 0 | S48: 0 | T48: 0 | X48: 0 | AC48: 0 | AH48: 0 | AM48: 0 | AR48: 0 | AS48: 0 | AW48: 0 | AX48: =AR48 -> 0 | BB48: 0 | BC48: 0 | BG48: 0 | BH48: 0 | BL48: 0 | BM48: 0 | BP48: 0 | BQ48: 0 | BU48: 0 | BV48: 0 | BW48: =36409.64 -> 36409.64 | CC48: 36409.64 | CD48: 0 | CE48: 459.87 | CH48: 459.87 | CK48: 36409.64 | CL48: 459.87 | CM48: 535.221708 | CO48: 37404.73171 | CP48: 36869.51 | CQ48: 0
A49: 21 | C49: Renewable Generation Connection Funding Adder Deferral Account | D49: 1533 | I49: 0 | N49: 0 | S49: 0 | T49: 0 | X49: 0 | AC49: 0 | AH49: 0 | AM49: 0 | AR49: 0 | AS49: 0 | AW49: 0 | AX49: 0 | BB49: 0 | BC49: 0 | BG49: 0 | BH49: 0 | BL49: 0 | BM49: 0 | BP49: 0 | BQ49: 0 | BU49: 0 | BV49: 0 | CC49: 0 | CD49: 0 | CH49: 0 | CK49: 0 | CL49: 0 | CM49: 0 | CO49: 0 | CQ49: 0
A50: 22 | C50: Smart Grid Capital Deferral Account | D50: 1534 | I50: 0 | N50: 0 | S50: 0 | T50: 0 | X50: 0 | AC50: 0 | AH50: 0 | AM50: 0 | AR50: 0 | AS50: 0 | AW50: 0 | AX50: 0 | BB50: 0 | BC50: 0 | BG50: 0 | BH50: 0 | BL50: 0 | BM50: 0 | BP50: 0 | BQ50: 0 | BU50: 0 | BV50: 0 | CC50: 0 | CD50: 0 | CH50: 0 | CK50: 0 | CL50: 0 | CM50: 0 | CO50: 0 | CQ50: 0
A51: 24 | C51: Smart Grid Funding Adder Deferral Account | D51: 1536 | I51: 0 | N51: 0 | S51: 0 | T51: 0 | X51: 0 | AC51: 0 | AH51: 0 | AM51: 0 | AR51: 0 | AS51: 0 | AW51: 0 | AX51: 0 | BB51: 0 | BC51: 0 | BG51: 0 | BH51: 0 | BL51: 0 | BM51: 0 | BP51: 0 | BQ51: 0 | BU51: 0 | BV51: 0 | CC51: 0 | CD51: 0 | CH51: 0 | CK51: 0 | CL51: 0 | CM51: 0 | CO51: 0 | CQ51: 0
A52: 25 | C52: Retail Cost Variance Account - STR | D52: 1548 | I52: 0 | N52: 0 | O52: =I52 -> 0 | S52: 0 | T52: 0 | X52: 0 | Y52: =S52 -> 0 | AC52: 0 | AD52: =X52 -> 0 | AH52: 0 | AI52: =AC52 -> 0 | AM52: 0 | AN52: =AH52 -> 0 | AR52: 0 | AS52: 51062.76 | AT52: 12226.58 | AW52: 63289.34 | AX52: 5090.33 | AY52: 605.3 | BB52: 5695.63 | BC52: 63289.34 | BD52: 9710.6 | BE52: 51062.76 | BG52: 21937.18 | BH52: 5695.63 | BI52: 200.9 | BJ52: 5464.79024 | BL52: 431.73976 | BM52: 21937.18 | BN52: 9294.45 | BP52: 31231.63 | BQ52: 431.73976 | BR52: 403.79 | BU52: 835.52976 | BV52: 31231.63 | BW52: 6917.7 | CC52: 38149.33 | CD52: 835.52976 | CE52: 506.1 | CH52: 1341.62976 | CK52: 38149.33 | CL52: 1341.62976 | CM52: 560.795151 | CO52: 40051.75491 | CP52: 39490.96 | CQ52: 0.0002400000012
A53: 26 | C53: CDM Expenditures & Recoveries | D53: 1565 | AS53: 0 | AW53: =AS53+AT53-AU53+AV53 -> 0 | AX53: 269.13 | BB53: =AX53+AY53-AZ53+BA53 -> 269.13 | BC53: =AW53 -> 0 | BG53: =BC53+BD53-BE53+SUM(BF53:BF53) -> 0 | BH53: =BB53 -> 269.13 | BJ53: 269.13 | BL53: =BH53+BI53-BJ53+BK53 -> 0 | BM53: =BG53 -> 0 | BP53: 0 | BQ53: 0 | BU53: =BQ53+BR53-BS53+BT53 -> 0 | BV53: 0 | CC53: 0 | CD53: 0 | CH53: 0 | CK53: 0 | CL53: 0 | CM53: 0 | CO53: 0 | CP53: 0 | CQ53: 0
A54: 26 | C54: Board-Approved CDM Variance Account | D54: 1567 | AS54: 0 | AW54: 0 | BB54: 0 | BC54: 0 | BG54: 0 | BH54: 0 | BL54: =BH54+BI54-BJ54+BK54 -> 0 | BM54: 0 | BP54: 0 | BQ54: 0 | BU54: 0 | BV54: 0 | CC54: 0 | CD54: 0 | CH54: 0 | CK54: 0 | CL54: 0 | CM54: 0 | CO54: 0 | CQ54: 0
A55: 27 | C55: LRAM Variance Account | D55: 1568 | I55: =E55+F55-G55+H55 -> 0 | N55: =J55+K55-L55+M55 -> 0 | O55: =I55 -> 0 | S55: =O55+P55-Q55+R55 -> 0 | T55: =N55 -> 0 | X55: =T55+U55-V55+W55 -> 0 | Y55: =S55 -> 0 | AC55: =Y55+Z55-AA55+AB55 -> 0 | AD55: =X55 -> 0 | AH55: =AD55+AE55-AF55+AG55 -> 0 | AI55: =AC55 -> 0 | AM55: =AI55+AJ55-AK55+AL55 -> 0 | AN55: =AH55 -> 0 | AR55: =AN55+AO55-AP55+AQ55 -> 0 | AS55: 0 | AW55: =AS55+AT55-AU55+AV55 -> 0 | AX55: =AR55 -> 0 | BB55: =AX55+AY55-AZ55+BA55 -> 0 | BC55: =AW55 -> 0 | BG55: =BC55+BD55-BE55+SUM(BF55:BF55) -> 0 | BH55: =BB55 -> 0 | BL55: =BH55+BI55-BJ55+BK55 -> 0 | BM55: =BG55 -> 0 | BP55: =BM55+BN55-BO55 -> 0 | BQ55: =BL55 -> 0 | BU55: =BQ55+BR55-BS55+BT55 -> 0 | BV55: =BP55 -> 0 | CB55: 405584.83 | CC55: =SUM(BV55:CB55) -> 405584.83 | CD55: =BU55 -> 0 | CE55: =3867.13-CG55 -> 2931.51 | CG55: 935.62 | CH55: =SUM(CD55:CG55) -> 3867.13 | CK55: =CC55-CI55 -> 405584.83 | CL55: =CH55-CJ55 -> 3867.13 | CM55: 4898.16 | CO55: =SUM(CK55:CN55) -> 414350.12 | CQ55: =CP55-SUM(CC55,CH55) -> -409451.96
A56: 27 | C56: Extra-Ordinary Event Costs | D56: 1572 | I56: 0 | N56: 0 | O56: 0 | S56: 0 | T56: 0 | X56: 0 | Y56: =S56 -> 0 | AC56: 0 | AD56: =X56 -> 0 | AH56: 0 | AI56: =AC56 -> 0 | AM56: 0 | AN56: =AH56 -> 0 | AR56: 0 | AS56: 0 | AW56: 0 | AX56: =AR56 -> 0 | BB56: 0 | BC56: =AW56 -> 0 | BG56: 0 | BH56: 0 | BL56: 0 | BM56: =BG56 -> 0 | BP56: 0 | BQ56: 0 | BU56: 0 | BV56: 0 | CC56: 0 | CD56: 0 | CH56: 0 | CK56: 0 | CL56: 0 | CM56: 0 | CO56: 0 | CQ56: 0
A57: 28 | C57: Deferred Rate Impact Amounts | D57: 1574 | I57: 0 | N57: 0 | O57: 0 | S57: 0 | T57: 0 | X57: 0 | Y57: =S57 -> 0 | AC57: 0 | AD57: =X57 -> 0 | AH57: 0 | AI57: =AC57 -> 0 | AM57: 0 | AN57: =AH57 -> 0 | AR57: 0 | AS57: 0 | AW57: 0 | AX57: =AR57 -> 0 | BB57: 0 | BC57: =AW57 -> 0 | BG57: 0 | BH57: 0 | BL57: 0 | BM57: =BG57 -> 0 | BP57: 0 | BQ57: 0 | BU57: 0 | BV57: 0 | CC57: 0 | CD57: 0 | CH57: 0 | CK57: 0 | CL57: 0 | CM57: 0 | CO57: 0 | CQ57: 0
A58: 29 | C58: RSVA - One-time | D58: 1582 | I58: 0 | N58: 0 | O58: 0 | S58: 0 | T58: 0 | X58: 0 | Y58: =S58 -> 0 | AC58: 0 | AD58: =X58 -> 0 | AH58: 0 | AI58: =AC58 -> 0 | AM58: 0 | AN58: =AH58 -> 0 | AR58: 0 | AS58: 107335.78 | AW58: 107335.78 | AX58: 17767.25 | AY58: =18980.88-AX58 -> 1213.63 | BB58: 18980.88 | BC58: =AW58 -> 107335.78 | BE58: 107335.78 | BG58: 0 | BH58: 18980.88 | BJ58: 18554.37905 | BK58: -426.5 | BL58: 0.0009466666634 | BM58: =BG58 -> 0 | BP58: 0 | BQ58: 0.0009466666634 | BU58: 0.0009466666634 | BV58: 0 | CC58: 0 | CD58: 0.0009466666634 | CH58: 0.0009466666634 | CK58: 0 | CL58: 0.0009466666634 | CM58: 0 | CO58: 0.0009466666634 | CQ58: -0.0009466666634
A59: 30 | C59: Other Deferred Credits | D59: 2425 | I59: 0 | N59: 0 | O59: 0 | S59: 0 | T59: 0 | X59: 0 | Y59: =S59 -> 0 | AC59: 0 | AD59: =X59 -> 0 | AH59: 0 | AI59: =AC59 -> 0 | AM59: 0 | AN59: =AH59 -> 0 | AR59: 0 | AS59: -50779.08 | AW59: -50779.08 | AX59: 0 | BB59: 0 | BC59: =AW59 -> -50779.08 | BG59: -50779.08 | BH59: 0 | BL59: 0 | BM59: =BG59 -> -50779.08 | BN59: 50779 | BP59: -0.08 | BQ59: 0 | BU59: 0 | BV59: -0.08 | BW59: 0 | CC59: -0.08 | CD59: 0 | CH59: 0 | CK59: -0.08 | CL59: 0 | CM59: -0.001176 | CO59: -0.081176 | CQ59: 0.08
C61: Group 2 Sub-Total | E61: =SUM(E39:E59) -> 0 | F61: 0 | G61: 0 | H61: 0 | I61: 0 | J61: 0 | K61: 0 | L61: 0 | M61: 0 | N61: 0 | O61: 0 | P61: 0 | Q61: 0 | R61: 0 | S61: 0 | T61: 0 | U61: 0 | V61: 0 | W61: 0 | X61: 0 | Y61: 0 | Z61: 0 | AA61: 0 | AB61: 0 | AC61: 0 | AD61: 0 | AE61: 0 | AF61: 0 | AG61: 0 | AH61: 0 | AI61: 0 | AJ61: 0 | AK61: =SUM(AK39:AK59) -> 0 | AL61: 0 | AM61: 0 | AN61: 0 | AO61: 0 | AP61: 0 | AQ61: 0 | AR61: 0 | AS61: 1135017.96 | AT61: -3585.23 | AU61: 0 | AV61: 0 | AW61: 1131432.73 | AX61: 173404.67 | AY61: 13147.97 | AZ61: 0 | BA61: 0 | BB61: 186552.64 | BC61: 1131432.73 | BD61: 14951.13 | BE61: 1185797.04 | BF61: 0 | BG61: -39413.18 | BH61: 186552.64 | BI61: -233.24 | BJ61: 181994.2332 | BK61: -4852.626373 | BL61: -527.4595533 | BM61: -39413.18 | BN61: 145100.63 | BO61: 0 | BP61: 105687.45 | BQ61: =SUM(BQ39:BQ59) -> -527.4595533 | BR61: 406.62026 | BS61: 0 | BT61: 0 | BU61: -120.8392933 | BV61: 105687.45 | BW61: 93062.21 | BX61: 0 | BY61: 0 | BZ61: 0 | CA61: 0 | CB61: 405584.83 | CC61: 604334.49 | CD61: -120.8392933 | CE61: 5076.86 | CF61: 0 | CG61: 935.62 | CH61: 5891.640707 | CI61: 0 | CJ61: 0 | CK61: 604334.49 | CL61: 5891.640707 | CM61: 7819.780002 | CN61: 0 | CO61: =SUM(CO39:CO60) -> 618045.9107 | CP61: =SUM(CP39:CP59) -> 200774.25 | CQ61: =CP61-SUM(CC61,CH61) -> -409451.8807
A63: 31 | C63: Deferred Payments in Lieu of Taxes | D63: 1562 | I63: =E63+F63-G63+H63 -> 0 | N63: =J63+K63-L63+M63 -> 0 | O63: =I63 -> 0 | S63: =O63+P63-Q63+R63 -> 0 | T63: =N63 -> 0 | X63: =T63+U63-V63+W63 -> 0 | Y63: =S63 -> 0 | AC63: =Y63+Z63-AA63+AB63 -> 0 | AD63: =X63 -> 0 | AH63: =AD63+AE63-AF63+AG63 -> 0 | AI63: =AC63 -> 0 | AM63: =AI63+AJ63-AK63+AL63 -> 0 | AN63: =AH63 -> 0 | AR63: =AN63+AO63-AP63+AQ63 -> 0 | AS63: -2085920.51 | AW63: =AS63+AT63-AU63+AV63 -> -2085920.51 | AX63: 22182.84 | AY63: -23585.19 | BB63: =AX63+AY63-AZ63+BA63 -> -1402.35 | BC63: =AW63 -> -2085920.51 | BG63: =BC63+BD63-BE63+SUM(BF63:BF63) -> -2085920.51 | BH63: =BB63 -> -1402.35 | BI63: -16709.08 | BL63: =BH63+BI63-BJ63+BK63 -> -18111.43 | BM63: =BG63 -> -2085920.51 | BN63: =662304.1+390827.13+376150.02+227646.79+50682.12+9441.98 -> 1717052.14 | BP63: =BM63+BN63-BO63 -> -368868.37 | BQ63: =BL63 -> -18111.43 | BR63: 204632.5 | BU63: =BQ63+BR63-BS63+BT63 -> 186521.07 | BV63: =BP63 -> -368868.37 | BX63: =570898.8-88584.56+95650.55-37630.45-22392.42+3331.87 -> 521273.79 | BY63: =-152405.42 -> -152405.42 | CC63: =SUM(BV63:CB63) -> 0 | CD63: =BU63 -> 186521.07 | CE63: -629.81 | CF63: -151591.18 | CG63: -34300.08 | CH63: =SUM(CD63:CG63) -> 0 | CK63: =CC63-CI63 -> 0 | CL63: =CH63-CJ63 -> 0 | CM63: =CK63*1.47% -> 0 | CO63: =SUM(CK63:CN63) -> 0 | CP63: 0 | CQ63: =CP63-SUM(CC63,CH63) -> 0
A64: 32 | C64: PILs and Tax Variance for 2006 and Subsequent Years (excludes sub-account and contra account below) | D64: 1592 | I64: =E64+F64-G64+H64 -> 0 | N64: =J64+K64-L64+M64 -> 0 | O64: =I64 -> 0 | S64: =O64+P64-Q64+R64 -> 0 | T64: =N64 -> 0 | X64: =T64+U64-V64+W64 -> 0 | Y64: =S64 -> 0 | AC64: =Y64+Z64-AA64+AB64 -> 0 | AD64: =X64 -> 0 | AH64: =AD64+AE64-AF64+AG64 -> 0 | AI64: =AC64 -> 0 | AM64: =AI64+AJ64-AK64+AL64 -> 0 | AN64: =AH64 -> 0 | AR64: =AN64+AO64-AP64+AQ64 -> 0 | AS64: -219331.22 | AW64: =AS64+AT64-AU64+AV64 -> -219331.22 | AX64: -11821.72 | AY64: -2191.49 | BB64: =AX64+AY64-AZ64+BA64 -> -14013.21 | BC64: =AW64 -> -219331.22 | BG64: =BC64+BD64-BE64+SUM(BF64:BF64) -> -219331.22 | BH64: =BB64 -> -14013.21 | BI64: -1753.62 | BL64: =BH64+BI64-BJ64+BK64 -> -15766.83 | BM64: =BG64 -> -219331.22 | BP64: -219331.22 | BQ64: =BL64 -> -15766.83 | BR64: -2950.31 | BU64: =BQ64+BR64-BS64+BT64 -> -18717.14 | BV64: -219331.22 | CC64: -219331.22 | CD64: -18717.14 | CE64: -3506.81 | CH64: -22223.95 | CK64: =CC64-CI64 -> -219331.22 | CL64: =CH64-CJ64 -> -22223.95 | CM64: -3224.168934 | CO64: -244779.3389 | CP64: -241555.17 | CQ64: =CP64-SUM(CC64,CH64) -> 0
A65: 33 | C65: PILs and Tax Variance for 2006 and Subsequent Years - Sub-Account HST/OVAT Input Tax Credits (ITCs) | D65: 1592 | I65: =E65+F65-G65+H65 -> 0 | N65: =J65+K65-L65+M65 -> 0 | O65: =I65 -> 0 | S65: =O65+P65-Q65+R65 -> 0 | T65: =N65 -> 0 | X65: =T65+U65-V65+W65 -> 0 | Y65: =S65 -> 0 | AC65: =Y65+Z65-AA65+AB65 -> 0 | AD65: =X65 -> 0 | AH65: =AD65+AE65-AF65+AG65 -> 0 | AI65: =AC65 -> 0 | AM65: =AI65+AJ65-AK65+AL65 -> 0 | AN65: =AH65 -> 0 | AR65: =AN65+AO65-AP65+AQ65 -> 0 | AS65: 0 | AW65: =AS65+AT65-AU65+AV65 -> 0 | AX65: =AR65 -> 0 | BB65: =AX65+AY65-AZ65+BA65 -> 0 | BC65: =AW65 -> 0 | BD65: -451954.92 | BG65: =BC65+BD65-BE65+SUM(BF65:BF65) -> -451954.92 | BH65: =BB65 -> 0 | BL65: =BH65+BI65-BJ65+BK65 -> 0 | BM65: =BG65 -> -451954.92 | BN65: -758017.97 | BP65: -1209972.89 | BQ65: =BL65 -> 0 | BR65: -13480.53 | BU65: =BQ65+BR65-BS65+BT65 -> -13480.53 | BV65: -1209972.89 | BW65: 925115.59 | CB65: =142428.65 -> 142428.65 | CC65: -142428.65 | CD65: -13480.53 | CE65: -21879.19 | CG65: 17679.86 | CH65: -17679.86 | CK65: =CC65-CI65 -> -142428.65 | CL65: =CH65-CJ65 -> -17679.86 | CM65: -2093.701155 | CO65: -162202.2112 | CP65: =-284857.3-35359.72 -> -320217.02 | CQ65: =CP65-SUM(CC65,CH65) -> -160108.51
CQ66: =CP66-SUM(BP66,BU66) -> 0
C67: Total of Group 1 and Group 2 Accounts (including 1562 and 1592) | E67: =+E61+E34+E63+E64+E65 -> 0 | F67: 0 | G67: 0 | H67: 0 | I67: 0 | J67: 0 | K67: 0 | L67: 0 | M67: 0 | N67: 0 | O67: 0 | P67: 0 | Q67: 0 | R67: 0 | S67: 0 | T67: 0 | U67: 0 | V67: 0 | W67: 0 | X67: 0 | Y67: 0 | Z67: 0 | AA67: 0 | AB67: 0 | AC67: 0 | AD67: 0 | AE67: 0 | AF67: 0 | AG67: 0 | AH67: 0 | AI67: 0 | AJ67: 0 | AK67: =+AK61+AK34+AK63+AK64+AK65 -> 0 | AL67: 0 | AM67: 0 | AN67: 0 | AO67: 0 | AP67: 0 | AQ67: 0 | AR67: 0 | AS67: -7982306.18 | AT67: 2376258.54 | AU67: 0 | AV67: 0 | AW67: -5606047.64 | AX67: -95600.5 | AY67: -89543.89 | AZ67: 0 | BA67: 0 | BB67: -185144.39 | BC67: -5606047.64 | BD67: 1021369.06 | BE67: 0 | BF67: 0 | BG67: -4584678.58 | BH67: -185144.39 | BI67: -62085.98719 | BJ67: 0.00718666648 | BK67: -2312.436373 | BL67: -249542.8207 | BM67: -4584678.58 | BN67: 4831219.99 | BO67: 2379843.77 | BP67: -2133302.36 | BQ67: =+BQ61+BQ34+BQ63+BQ64+BQ65 -> -249542.8207 | BR67: 168778.4103 | BS67: -45633.18417 | BT67: 0 | BU67: -35131.22631 | BV67: -2133302.36 | BW67: 4001458 | BX67: 521273.79 | BY67: -152405.42 | BZ67: 0 | CA67: 0 | CB67: 548013.48 | CC67: 2785037.49 | CD67: -35131.22631 | CE67: 10671.2405 | CF67: -151591.18 | CG67: -15684.6 | CH67: -191735.7658 | CI67: 0 | CJ67: 0 | CK67: 2785037.49 | CL67: -191735.7658 | CM67: 39876.1141 | CN67: 0 | CO67: 2633177.838 | CP67: 2023741.33 | CQ67: -569560.3942
A70: 34 | C70: Special Purpose Charge Assessment Variance Account9 | D70: 1521 | BD70: =722215-393340.57 -> 328874.43 | BG70: =BC70+BD70-BE70+SUM(BF70:BF70) -> 328874.43 | BI70: 3000.96 | BL70: =BH70+BI70-BJ70+BK70 -> 3000.96 | BM70: =BG70 -> 328874.43 | BN70: -316340.3 | BP70: =BM70+BN70-BO70 -> 12534.13 | BQ70: =BL70 -> 3000.96 | BR70: 1380.11 | BU70: =BQ70+BR70-BS70+BT70 -> 4381.07 | BV70: =BP70 -> 12534.13 | BX70: =-722215+709680.87 -> -12534.13 | CC70: =SUM(BV70:CB70) -> 0 | CD70: =BU70 -> 4381.07 | CE70: 61.08 | CF70: -4442.15 | CH70: =SUM(CD70:CG70) -> 0 | CK70: =CC70-CI70 -> 0 | CL70: =CH70-CJ70 -> 0 | CM70: =CK70*1.47% -> 0 | CO70: =SUM(CK70:CN70) -> 0 | CP70: 0 | CQ70: =CP70-SUM(CC70,CH70) -> 0
BP71: 0 | CQ71: =CP71-SUM(BP71,BU71) -> 0
C72: LRAM Variance Account | D72: 1568 | BG72: =BC72+BD72-BE72+SUM(BF72:BF72) -> 0 | BL72: =BH72+BI72-BJ72+BK72 -> 0 | BM72: =BG72 -> 0 | BP72: 0 | BQ72: =BL72 -> 0 | BU72: =BQ72+BR72-BS72+BT72 -> 0 | BV72: =BP72 -> 0 | CC72: =SUM(BV72:CB72) -> 0 | CD72: =BU72 -> 0 | CH72: =SUM(CD72:CG72) -> 0 | CK72: =CC72-CI72 -> 0 | CL72: =CH72-CJ72 -> 0 | CM72: =CK72*1.47% -> 0 | CO72: =SUM(CK72:CN72) -> 0 | CQ72: =CP72-SUM(CC72,CH72) -> 0
C75: Total including Account 1521 and Account 1568 | E75: =E70+E67+E72 -> 0 | F75: =F70+F67+F72 -> 0 | G75: 0 | H75: 0 | I75: 0 | J75: 0 | K75: 0 | L75: 0 | M75: 0 | N75: 0 | O75: 0 | P75: 0 | Q75: 0 | R75: 0 | S75: 0 | T75: 0 | U75: 0 | V75: 0 | W75: 0 | X75: 0 | Y75: 0 | Z75: 0 | AA75: 0 | AB75: 0 | AC75: 0 | AD75: 0 | AE75: 0 | AF75: 0 | AG75: 0 | AH75: 0 | AI75: 0 | AJ75: 0 | AK75: 0 | AL75: 0 | AM75: 0 | AN75: 0 | AO75: 0 | AP75: 0 | AQ75: 0 | AR75: 0 | AS75: -7982306.18 | AT75: 2376258.54 | AU75: 0 | AV75: 0 | AW75: -5606047.64 | AX75: -95600.5 | AY75: -89543.89 | AZ75: 0 | BA75: 0 | BB75: -185144.39 | BC75: -5606047.64 | BD75: 1350243.49 | BE75: 0 | BF75: 0 | BG75: -4255804.15 | BH75: -185144.39 | BI75: -59085.02719 | BJ75: 0.00718666648 | BK75: -2312.436373 | BL75: -246541.8607 | BM75: -4255804.15 | BN75: 4514879.69 | BO75: 2379843.77 | BP75: =BP70+BP67+BP72 -> -2120768.23 | BQ75: -246541.8607 | BR75: 170158.5203 | BS75: -45633.18417 | BT75: 0 | BU75: -30750.15631 | BV75: -2120768.23 | BW75: 4001458 | BX75: 508739.66 | BY75: -152405.42 | BZ75: 0 | CA75: =CA70+CA67+CA72 -> 0 | CB75: 548013.48 | CC75: 2785037.49 | CD75: =CD70+CD67+CD72 -> -30750.15631 | CE75: 10732.3205 | CF75: -156033.33 | CG75: -15684.6 | CH75: -191735.7658 | CI75: =CI70+CI67+CI72 -> 0 | CJ75: 0 | CK75: 2785037.49 | CL75: -191735.7658 | CM75: 39876.1141 | CN75: 0 | CO75: 2633177.838 | CP75: 2023741.33 | CQ75: -569560.3942
A77: 35 | C77: Smart Meter Capital and Recovery Offset Variance - Sub-Account - Capital11 | D77: 1555 | I77: =E77+F77-G77+H77 -> 0 | N77: =J77+K77-L77+M77 -> 0 | O77: =I77 -> 0 | S77: =O77+P77-Q77+R77 -> 0 | T77: =N77 -> 0 | X77: =T77+U77-V77+W77 -> 0 | Y77: =S77 -> 0 | AC77: =Y77+Z77-AA77+AB77 -> 0 | AD77: =X77 -> 0 | AH77: =AD77+AE77-AF77+AG77 -> 0 | AI77: =AC77 -> 0 | AM77: =AI77+AJ77-AK77+AL77 -> 0 | AN77: =AH77 -> 0 | AR77: =AN77+AO77-AP77+AQ77 -> 0 | AS77: =231045.71+98926.32-15403.01 -> 314569.02 | AT77: =6274698.19+221260.7+187999.35+502618.79+3727.83-197166.37 -> 6993138.49 | AW77: =AS77+AT77-AU77+AV77 -> 7307707.51 | AX77: =-36446.9-AX78 -> -34446.13 | AY77: =-26422.87-AX77-BB78 -> 10552.89 | BB77: =AX77+AY77-AZ77+BA77 -> -23893.24 | BC77: =AW77 -> 7307707.51 | BD77: =4550622.55+58622.72+54490.99-824434.86 -> 3839301.4 | BG77: =BC77+BD77-BE77+SUM(BF77:BF77) -> 11147008.91 | BH77: =BB77 -> -23893.24 | BI77: =255839.76-BI78 -> 258339.55 | BL77: =BH77+BI77-BJ77+BK77 -> 234446.31 | BM77: =BG77 -> 11147008.91 | BN77: =1021022.05+172468.38+6014.26-1028276.91 -> 171227.78 | BP77: =BM77+BN77-BO77 -> 11318236.69 | BQ77: =BL77 -> 234446.31 | BR77: =348851.35-BR78 -> 355080.52 | BU77: =BQ77+BR77-BS77+BT77 -> 589526.83 | BV77: =BP77 -> 11318236.69 | BW77: -1070911.31 | BX77: =-11943758.24-221260.7-518016.77-696106.61-3727.83+3135544.77 -> -10247325.38 | CC77: =SUM(BV77:CB77) -> 0 | CD77: =BU77 -> 589526.83 | CE77: =161523.69-CE78 -> 164411.29 | CF77: =-739791.93-CF78 -> -753938.12 | CH77: =SUM(CD77:CG77) -> 0 | CK77: =CC77-CI77 -> 0 | CL77: =CH77-CJ77 -> 0 | CM77: =CK77*1.47% -> 0 | CO77: =SUM(CK77:CN77) -> 0 | CQ77: =CP77-SUM(CC77,CH77) -> 0
A78: 36 | C78: Smart Meter Capital and Recovery Offset Variance - Sub-Account - Recoveries11 | D78: 1555 | I78: =E78+F78-G78+H78 -> 0 | N78: =J78+K78-L78+M78 -> 0 | O78: =I78 -> 0 | S78: =O78+P78-Q78+R78 -> 0 | T78: =N78 -> 0 | X78: =T78+U78-V78+W78 -> 0 | Y78: =S78 -> 0 | AC78: =Y78+Z78-AA78+AB78 -> 0 | AD78: =X78 -> 0 | AH78: =AD78+AE78-AF78+AG78 -> 0 | AI78: =AC78 -> 0 | AM78: =AI78+AJ78-AK78+AL78 -> 0 | AN78: =AH78 -> 0 | AR78: =AN78+AO78-AP78+AQ78 -> 0 | AS78: -704908.16 | AT78: -757127.53 | AW78: =AS78+AT78-AU78+AV78 -> -1462035.69 | AX78: -2000.77 | AY78: -528.86 | BB78: =AX78+AY78-AZ78+BA78 -> -2529.63 | BC78: =AW78 -> -1462035.69 | BD78: -1027312.71 | BG78: =BC78+BD78-BE78+SUM(BF78:BF78) -> -2489348.4 | BH78: =BB78 -> -2529.63 | BI78: -2499.79 | BL78: =BH78+BI78-BJ78+BK78 -> -5029.42 | BM78: =BG78 -> -2489348.4 | BN78: -1639407.68 | BP78: -4128756.08 | BQ78: =BL78 -> -5029.42 | BR78: -6229.17 | BU78: =BQ78+BR78-BS78+BT78 -> -11258.59 | BV78: -4128756.08 | BW78: -1022122.16 | BX78: 5150878.24 | CC78: 0 | CD78: -11258.59 | CE78: -2887.6 | CF78: 14146.19 | CH78: 0 | CK78: =CC78-CI78 -> 0 | CL78: =CH78-CJ78 -> 0 | CM78: 0 | CO78: 0 | CQ78: =CP78-SUM(CC78,CH78) -> 0
A79: 37 | C79: Smart Meter Capital and Recovery Offset Variance - Sub-Account - Stranded Meter Costs11 | D79: 1555 | I79: =E79+F79-G79+H79 -> 0 | N79: =J79+K79-L79+M79 -> 0 | O79: =I79 -> 0 | S79: =O79+P79-Q79+R79 -> 0 | T79: =N79 -> 0 | X79: =T79+U79-V79+W79 -> 0 | Y79: =S79 -> 0 | AC79: =Y79+Z79-AA79+AB79 -> 0 | AD79: =X79 -> 0 | AH79: =AD79+AE79-AF79+AG79 -> 0 | AI79: =AC79 -> 0 | AM79: =AI79+AJ79-AK79+AL79 -> 0 | AN79: =AH79 -> 0 | AR79: =AN79+AO79-AP79+AQ79 -> 0 | AS79: =AM79 -> 0 | AT79: 2734492.99 | AW79: =AS79+AT79-AU79+AV79 -> 2734492.99 | AX79: =AR79 -> 0 | BB79: =AX79+AY79-AZ79+BA79 -> 0 | BC79: =AW79 -> 2734492.99 | BD79: 1355263.14 | BG79: =BC79+BD79-BE79+SUM(BF79:BF79) -> 4089756.13 | BH79: =BB79 -> 0 | BL79: =BH79+BI79-BJ79+BK79 -> 0 | BM79: =BG79 -> 4089756.13 | BN79: 58276.76 | BP79: 4148032.89 | BQ79: =BL79 -> 0 | BU79: =BQ79+BR79-BS79+BT79 -> 0 | BV79: 4148032.89 | BW79: 0 | CB79: =3185102-BV79 -> -962930.89 | CC79: 3185102 | CD79: 0 | CH79: 0 | CK79: =CC79-CI79 -> 3185102 | CL79: =CH79-CJ79 -> 0 | CM79: 0 | CO79: 3185102 | CP79: 3185102 | CQ79: =CP79-SUM(CC79,CH79) -> 0
A80: 38 | C80: Smart Meter OM&A Variance11 | D80: 1556 | I80: =E80+F80-G80+H80 -> 0 | N80: =J80+K80-L80+M80 -> 0 | O80: =I80 -> 0 | S80: =O80+P80-Q80+R80 -> 0 | T80: =N80 -> 0 | X80: =T80+U80-V80+W80 -> 0 | Y80: =S80 -> 0 | AC80: =Y80+Z80-AA80+AB80 -> 0 | AD80: =X80 -> 0 | AH80: =AD80+AE80-AF80+AG80 -> 0 | AI80: =AC80 -> 0 | AM80: =AI80+AJ80-AK80+AL80 -> 0 | AN80: =AH80 -> 0 | AR80: =AN80+AO80-AP80+AQ80 -> 0 | AS80: 15403.01 | AT80: =162630.81+197166.37 -> 359797.18 | AW80: =AS80+AT80-AU80+AV80 -> 375200.19 | AX80: 0 | AY80: 610.44 | BB80: =AX80+AY80-AZ80+BA80 -> 610.44 | BC80: =AW80 -> 375200.19 | BD80: =161962.64+824434.86 -> 986397.5 | BG80: =BC80+BD80-BE80+SUM(BF80:BF80) -> 1361597.69 | BH80: =BB80 -> 610.44 | BI80: 26969.2 | BL80: =BH80+BI80-BJ80+BK80 -> 27579.64 | BM80: =BG80 -> 1361597.69 | BN80: =406732.22+1028276.91 -> 1435009.13 | BP80: 2796606.82 | BQ80: =BL80 -> 27579.64 | BR80: =84533.62 -> 84533.62 | BU80: =BQ80+BR80-BS80+BT80 -> 112113.26 | BV80: 2796606.82 | BW80: =1070263.62+263638.95 -> 1333902.57 | BX80: =-3135544.77-1084462.87 -> -4220007.64 | CC80: -89498.25 | CD80: 112113.26 | CE80: 96686.33 | CF80: -208799.59 | CH80: 0 | CK80: =CC80-CI80 -> -89498.25 | CL80: =CH80-CJ80 -> 0 | CM80: 0 | CO80: -89498.25 | CP80: -0.0001786913201 | CQ80: =CP80-SUM(CC80,CH80) -> 89498.24982
CP81: -0.0001133317222
C82: The following is not included in the total claim but are included on a memo basis: | CP82: -0.0354619317
A83: 19 | C83: Renewable Generation Connection Capital Deferral Account | D83: 1531 | I83: =E83+F83-G83+H83 -> 0 | N83: =J83+K83-L83+M83 -> 0 | S83: =O83+P83-Q83+R83 -> 0 | T83: =N83 -> 0 | X83: =T83+U83-V83+W83 -> 0 | AC83: =Y83+Z83-AA83+AB83 -> 0 | AH83: =AD83+AE83-AF83+AG83 -> 0 | AM83: =AI83+AJ83-AK83+AL83 -> 0 | AR83: =AN83+AO83-AP83+AQ83 -> 0 | AS83: 0 | AT83: 15663.02 | AW83: =AS83+AT83-AU83+AV83 -> 15663.02 | AX83: =AR83 -> 0 | AY83: 5.94 | BB83: =AX83+AY83-AZ83+BA83 -> 5.94 | BC83: =AW83 -> 15663.02 | BD83: =25427.82-BC83 -> 9764.8 | BG83: =BC83+BD83-BE83+SUM(BF83:BF83) -> 25427.82 | BH83: =BB83 -> 5.94 | BI83: =191.73-BH83 -> 185.79 | BL83: =BH83+BI83-BJ83+BK83 -> 191.73 | BM83: =BG83 -> 25427.82 | BN83: 63710.59 | BP83: =BM83+BN83-BO83 -> 89138.41 | BQ83: =BL83 -> 191.73 | BR83: =646.23-BQ83 -> 454.5 | BU83: =BQ83+BR83-BS83+BT83 -> 646.23 | BV83: =BP83 -> 89138.41 | BW83: =-9909.31+126706.08-91461.76 -> 25335.01 | CC83: =SUM(BV83:CB83) -> 114473.42 | CD83: =BU83 -> 646.23 | CE83: 1183.64 | CH83: =SUM(CD83:CG83) -> 1829.87 | CK83: =CC83-CI83 -> 114473.42 | CL83: =CH83-CJ83 -> 1829.87 | CM83: =CK83*1.47% -> 1682.759274 | CO83: =SUM(CK83:CN83) -> 117986.0493 | CP83: -0.0002714561377 | CQ83: =CP83-SUM(CC83,CH83) -> -116303.2903
A84: 23 | C84: Smart Grid OM&A Deferral Account | D84: 1535 | I84: 0 | N84: 0 | S84: 0 | T84: 0 | X84: 0 | AC84: 0 | AH84: 0 | AM84: 0 | AR84: 0 | AS84: 0 | AW84: 0 | AX84: =AR84 -> 0 | BB84: 0 | BC84: 0 | BG84: 0 | BH84: 0 | BL84: 0 | BM84: 0 | BN84: 10000 | BP84: =BM84+BN84-BO84 -> 10000 | BQ84: 0 | BR84: 61.6 | BU84: 61.6 | BV84: =BP84 -> 10000 | BW84: 10000 | CC84: =SUM(BV84:CB84) -> 20000 | CD84: =BU84 -> 61.6 | CE84: 171.93 | CH84: =SUM(CD84:CG84) -> 233.53 | CK84: 20000 | CL84: 233.53 | CM84: 0 | CO84: =SUM(CK84:CN84) -> 20233.53 | CP84: -0.04587129268 | CQ84: -20233.57587
A85: 39 | C85: Deferred PILs Contra Account 5 | D85: 1563 | I85: 0 | N85: 0 | O85: =I85 -> 0 | S85: 0 | T85: 0 | X85: 0 | Y85: =S85 -> 0 | AC85: 0 | AD85: =X85 -> 0 | AH85: 0 | AI85: =AC85 -> 0 | AM85: 0 | AN85: =AH85 -> 0 | AR85: 0 | AS85: =2085920.51+219331.22 -> 2305251.73 | AW85: 2305251.73 | AX85: =-22182.84+11821.72 -> -10361.12 | AY85: =23585.19+2191.49 -> 25776.68 | BB85: 15415.56 | BC85: 2305251.73 | BG85: 2305251.73 | BH85: 15415.56 | BI85: =16709.08+1753.62 -> 18462.7 | BL85: 33878.26 | BM85: 2305251.73 | BN85: -1717052.14 | BP85: =BM85+BN85-BO85 -> 588199.59 | BQ85: 33878.26 | BR85: =-204632.5+3224.14 -> -201408.36 | BU85: -167530.1 | BV85: =BP85 -> 588199.59 | BW85: -198879.86 | BX85: 152405.42 | CC85: =SUM(BV85:CB85) -> 541725.15 | CD85: =BU85 -> -167530.1 | CE85: =629.81+3232.98 -> 3862.79 | CF85: 34300.08 | CH85: =SUM(CD85:CG85) -> -129367.23 | CK85: 541725.15 | CL85: -129367.23 | CM85: 5734.969359 | CO85: =SUM(CK85:CN85) -> 418092.8894 | CP85: -0.05691270972 | CQ85: -412357.9769
A86: 40 | C86: IFRS-CGAAP Transition PP&E Amounts10 | D86: 1576 | I86: 0 | N86: 0 | O86: =I86 -> 0 | S86: 0 | T86: 0 | X86: 0 | Y86: =S86 -> 0 | AC86: 0 | AD86: =X86 -> 0 | AH86: 0 | AI86: =AC86 -> 0 | AM86: 0 | AN86: =AH86 -> 0 | AR86: 0 | AS86: 0 | AW86: 0 | AX86: =AR86 -> 0 | BB86: 0 | BC86: 0 | BG86: 0 | BH86: 0 | BL86: 0 | BM86: 0 | BP86: 0 | BQ86: 0 | BU86: 0 | BV86: 0 | BW86: -2265213 | CC86: -2265213 | CD86: 0 | CH86: 0 | CK86: -2265213 | CL86: 0 | CM86: 0 | CO86: -2265213 | CP86: -0.04136170884 | CQ86: 2265212.959
A87: 9 | C87: Disposition and Recovery/Refund of Regulatory Balances (2011)7 | D87: 1595 | I87: 0 | N87: 0 | O87: =I87 -> 0 | S87: 0 | T87: 0 | X87: 0 | Y87: =S87 -> 0 | AC87: 0 | AD87: =X87 -> 0 | AH87: 0 | AI87: =AC87 -> 0 | AM87: 0 | AN87: =AH87 -> 0 | AR87: 0 | AS87: =AM87 -> 0 | AW87: 0 | AX87: =AR87 -> 0 | BB87: 0 | BC87: 0 | BG87: 0 | BH87: 0 | BL87: 0 | BM87: 0 | BN87: -721004.59 | BO87: -2379843.77 | BP87: =BM87+BN87-BO87 -> 1658839.18 | BQ87: 0 | BR87: 17693.69 | BS87: 45633.18 | BU87: -27939.49 | BV87: =BP87 -> 1658839.18 | BW87: -1133583.25 | CC87: =SUM(BV87:CB87) -> 525255.93 | CD87: =BU87 -> -27939.49 | CE87: 15370.23 | CH87: =SUM(CD87:CG87) -> -12569.26 | CK87: 525255.93 | CL87: -12569.26 | CM87: =CK87*1.47% -> 7721.262171 | CO87: =SUM(CK87:CN87) -> 520407.9322 | CP87: 512686.67 | CQ87: 0
A88: 9 | C88: Disposition and Recovery/Refund of Regulatory Balances (2012)7 | D88: 1595 | I88: 0 | N88: 0 | O88: =I88 -> 0 | S88: 0 | T88: 0 | X88: 0 | Y88: =S88 -> 0 | AC88: 0 | AD88: =X88 -> 0 | AH88: 0 | AI88: =AC88 -> 0 | AM88: 0 | AN88: =AH88 -> 0 | AR88: 0 | AS88: =AM88 -> 0 | AW88: 0 | AX88: =AR88 -> 0 | BB88: 0 | BC88: 0 | BG88: 0 | BH88: 0 | BL88: 0 | BM88: 0 | BP88: =BM88+BN88-BO88 -> 0 | BQ88: 0 | BU88: 0 | BV88: =BP88 -> 0 | BW88: 193648.19 | BX88: =-508739.66 -> -508739.66 | CC88: =SUM(BV88:CB88) -> -315091.47 | CD88: =BU88 -> 0 | CE88: 5117.19 | CF88: =-CF70-CF63 -> 156033.33 | CH88: =SUM(CD88:CG88) -> 161150.52 | CK88: -315091.47 | CL88: 161150.52 | CM88: =CK88*1.47% -> -4631.844609 | CO88: =SUM(CK88:CN88) -> -158572.7946 | CP88: -153940.95 | CQ88: 0
A89: 41 | C89: PILs and Tax Variance for 2006 and Subsequent Years - Sub-Account HST/OVAT Contra Account | D89: 1592 | I89: 0 | N89: 0 | O89: =I89 -> 0 | S89: 0 | T89: 0 | X89: 0 | Y89: =S89 -> 0 | AC89: 0 | AD89: =X89 -> 0 | AH89: 0 | AI89: =AC89 -> 0 | AM89: 0 | AN89: =AH89 -> 0 | AR89: 0 | AS89: 0 | AW89: 0 | AX89: =AR89 -> 0 | BB89: 0 | BC89: 0 | BD89: =-BD65 -> 451954.92 | BE89: =-BE65 -> 0 | BF89: 0 | BG89: 451954.92 | BH89: 0 | BI89: =-BI65 -> 0 | BJ89: 0 | BK89: 0 | BL89: 0 | BM89: 451954.92 | BN89: =-BN65 -> 758017.97 | BO89: 0 | BP89: 1209972.89 | BQ89: 0 | BR89: =-BR65 -> 13480.53 | BS89: 0 | BT89: 0 | BU89: 13480.53 | BV89: 1209972.89 | BW89: =-BW65 -> -925115.59 | BX89: 0 | BY89: 0 | BZ89: 0 | CA89: 0 | CB89: -142428.65 | CC89: 142428.65 | CD89: 13480.53 | CE89: =-CE65 -> 21879.19 | CF89: 0 | CG89: -17679.86 | CH89: 17679.86 | CK89: 142428.65 | CL89: 17679.86 | CM89: 5317.870089 | CO89: 165426.3801 | CP89: 320217.02 | CQ89: 160108.51
C92: For all Board-Approved dispositions, please ensure that the disposition amount has the same sign (e.g: debit balances are to have a positive figure and credit balance are to have a negative figure) as per the related Board decision. | AW92: =SUM(AW75:AW89)+SUM(BB75:BB89) -> 5474696.79 | BG92: =SUM(BG75:BG89)+SUM(BL75:BL89) -> 12680369.31 | BP92: =SUM(BP75:BP89)+SUM(BU75:BU89) -> 16047852.27 | CC92: =CC34+CC61+CC64+CC65+SUM(CC77:CC89) -> 4644219.92 | CH92: =CH34+CH61+CH64+CH65+SUM(CH77:CH89) -> -152778.4758
B93: 1 | C93: Provide supporting statement indicating whether due to denial of costs in 2006 EDR by the Board, 10% transition costs write-off, etc.
B94: 1A | C94: Adjustments Instructed by the Board include deferral/variance account balances moved to Account 1590 as a result of the 2006 EDR and account 1595 during the 2008 EDR and subsequent years as ordered by the Board. | CH94: =CH92+CC92 -> 4491441.444
B95: 2 | C95: Please provide explanations for the nature of the adjustments. If the adjustment relates to previously Board Approved disposed balances, please provide amounts for adjustments and include supporting documentations. | CA95: Balanced! | CD95: =5044920.45 -> 5044920.45 | CE95: -4148032.89 | CF95: =CC79 -> 3185102 | CG95: =CD95+CE95+CF95 -> 4081989.56
B96: 3 | C96: For RSVA accounts only, report the net variance to the account during the year. For all other accounts, record the transactions during the year. | CH96: =CH94-CG95 -> 409451.8842
B97: 4 | C97: Please describe "other" components of 1508 and add more component lines if necessary.
B98: 5 | C98: 1563 is a contra-account and is not included in the total but is shown on a memo basis. Account 1562 establishes the obligation to the ratepayer.
B99: 6 | C99: If the LDC’s 2013 rate year begins January 1, 2013, the projected interest is recorded from January 1, 2012 to December 31, 2012 on the December 31, 2011 balance adjusted for the disposed balances approved by the Board in the 2012 rate decision. If the LDC’s 2013 rate year begins May 1, 2013 the projected interest is recorded from January 1, 2012 to April 30, 2013 on the December 31, 2011 balance adjusted for the disposed balances approved by the Board in the 2012 rate decision.
B102: 7 | C102: Include Account 1595 as part of Group 1 accounts (lines 31, 32 and 33) for review and disposition if the recovery (or refund) period has been completed. If the recovery (or refund) period has not been completed, include the
C103: balances in Account 1595 on a memo basis only (line 85).
B104: 8 | C104: As per the January 6, 2011 Letter from the Board, regarding the implementation of the Ontario Clean Energy Benefit:
C105: "By way of exception... The Board does acticipate that licensed distributors that cannot adapt their invoices as of January 1, 2011 will require a variance account for OCEB purposes... The Board expects that any principal
C106: balances in "Sub account Financial Assistance Payment and Recovery Variance - Ontario Clean Energy Benefit Act" will be addressed through the monthly settlement process with the IESO or the host distributor, as applicable.
B107: 9 | C107: The Board expected that requests for disposition of the balances in Account 1521 were to be addressed as part of the proceedings to set rates for the 2012 rate year, except in cases where this approach would have resulted in
C108: non-compliance with the timeline set out in section 8 of the SPC regulation.
B109: 10 | C109: Account 1575 shall not be cleared through the distributor's deferral and variance account rate rider. Account 1575 shall be cleared as an adjustment to the distributor's revenue requirement.
B110: 11 | C110: Deferral accounts related to Smart Meter deployment are not to be recovered/refunded through the Deferral and Variance Account rate rider. For details on how to dispose of balances in Smart Meter accounts see the Board's
C111: Guideline: Smart Meter Disposition and Cost Recovery (G-2011-0001)

Sheet 3. Appendix A
B16: Accounts that produced a variance on the 2013 continuity schedule are listed below. Please provide a detailed explanation for each variance below.
C20: Account Descriptions | D20: Account Number | E20: Variance RRR vs. 2011 Balance (Principal + Interest) | F20: Explanation
C23: Group 1 Accounts
A24: 1 | C24: LV Variance Account | D24: 1550 | E24: =IF(ISERROR(VLOOKUP($A24, '2. 2014 Continuity Schedule'!$A$20:$CQ$91, MATCH('3. Appendix A'!$E$20, '2. 2014 Continuity Schedule'!$A$20:$CQ$20,0),FALSE)), 0, VLOOKUP($A24, '2. 2014 Continuity Schedule'!$A$20:$CQ$91, MATCH('3. Appendix A'!$E$20, '2. 2014 Continuity Schedule'!$A$20:$CQ$20,0),FALSE)) -> 0
A25: 2 | C25: RSVA - Wholesale Market Service Charge | D25: 1580 | E25: =IF(ISERROR(VLOOKUP($A25, '2. 2014 Continuity Schedule'!$A$20:$CQ$91, MATCH('3. Appendix A'!$E$20, '2. 2014 Continuity Schedule'!$A$20:$CQ$20,0),FALSE)), 0, VLOOKUP($A25, '2. 2014 Continuity Schedule'!$A$20:$CQ$91, MATCH('3. Appendix A'!$E$20, '2. 2014 Continuity Schedule'!$A$20:$CQ$20,0),FALSE)) -> 0
A26: 3 | C26: RSVA - Retail Transmission Network Charge | D26: 1584 | E26: =IF(ISERROR(VLOOKUP($A26, '2. 2014 Continuity Schedule'!$A$20:$CQ$91, MATCH('3. Appendix A'!$E$20, '2. 2014 Continuity Schedule'!$A$20:$CQ$20,0),FALSE)), 0, VLOOKUP($A26, '2. 2014 Continuity Schedule'!$A$20:$CQ$91, MATCH('3. Appendix A'!$E$20, '2. 2014 Continuity Schedule'!$A$20:$CQ$20,0),FALSE)) -> 0
A27: 4 | C27: RSVA - Retail Transmission Connection Charge | D27: 1586 | E27: =IF(ISERROR(VLOOKUP($A27, '2. 2014 Continuity Schedule'!$A$20:$CQ$91, MATCH('3. Appendix A'!$E$20, '2. 2014 Continuity Schedule'!$A$20:$CQ$20,0),FALSE)), 0, VLOOKUP($A27, '2. 2014 Continuity Schedule'!$A$20:$CQ$91, MATCH('3. Appendix A'!$E$20, '2. 2014 Continuity Schedule'!$A$20:$CQ$20,0),FALSE)) -> 0
A28: 5 | C28: RSVA - Power | D28: 1588 | E28: =IF(ISERROR(VLOOKUP($A28, '2. 2014 Continuity Schedule'!$A$20:$CQ$91, MATCH('3. Appendix A'!$E$20, '2. 2014 Continuity Schedule'!$A$20:$CQ$20,0),FALSE)), 0, VLOOKUP($A28, '2. 2014 Continuity Schedule'!$A$20:$CQ$91, MATCH('3. Appendix A'!$E$20, '2. 2014 Continuity Schedule'!$A$20:$CQ$20,0),FALSE)) -> 0
A29: 6 | C29: RSVA - Power - Sub-account - Global Adjustment | D29: 1588 | E29: =IF(ISERROR(VLOOKUP($A29, '2. 2014 Continuity Schedule'!$A$20:$CQ$91, MATCH('3. Appendix A'!$E$20, '2. 2014 Continuity Schedule'!$A$20:$CQ$20,0),FALSE)), 0, VLOOKUP($A29, '2. 2014 Continuity Schedule'!$A$20:$CQ$91, MATCH('3. Appendix A'!$E$20, '2. 2014 Continuity Schedule'!$A$20:$CQ$20,0),FALSE)) -> 0
A30: 7 | C30: Recovery of Regulatory Asset Balances | D30: 1590 | E30: =IF(ISERROR(VLOOKUP($A30, '2. 2014 Continuity Schedule'!$A$20:$CQ$91, MATCH('3. Appendix A'!$E$20, '2. 2014 Continuity Schedule'!$A$20:$CQ$20,0),FALSE)), 0, VLOOKUP($A30, '2. 2014 Continuity Schedule'!$A$20:$CQ$91, MATCH('3. Appendix A'!$E$20, '2. 2014 Continuity Schedule'!$A$20:$CQ$20,0),FALSE)) -> 0
A31: 8 | C31: Disposition and Recovery/Refund of Regulatory Balances (2008)7 | D31: 1595 | E31: =IF(ISERROR(VLOOKUP($A31, '2. 2014 Continuity Schedule'!$A$20:$CQ$91, MATCH('3. Appendix A'!$E$20, '2. 2014 Continuity Schedule'!$A$20:$CQ$20,0),FALSE)), 0, VLOOKUP($A31, '2. 2014 Continuity Schedule'!$A$20:$CQ$91, MATCH('3. Appendix A'!$E$20, '2. 2014 Continuity Schedule'!$A$20:$CQ$20,0),FALSE)) -> 0
A32: 9 | C32: Disposition and Recovery/Refund of Regulatory Balances (2009)7 | D32: 1595 | E32: =IF(ISERROR(VLOOKUP($A32, '2. 2014 Continuity Schedule'!$A$20:$CQ$91, MATCH('3. Appendix A'!$E$20, '2. 2014 Continuity Schedule'!$A$20:$CQ$20,0),FALSE)), 0, VLOOKUP($A32, '2. 2014 Continuity Schedule'!$A$20:$CQ$91, MATCH('3. Appendix A'!$E$20, '2. 2014 Continuity Schedule'!$A$20:$CQ$20,0),FALSE)) -> 0
A33: 9 | C33: Disposition and Recovery/Refund of Regulatory Balances (2010)7 | D33: 1595 | E33: =IF(ISERROR(VLOOKUP($A33, '2. 2014 Continuity Schedule'!$A$20:$CQ$91, MATCH('3. Appendix A'!$E$20, '2. 2014 Continuity Schedule'!$A$20:$CQ$20,0),FALSE)), 0, VLOOKUP($A33, '2. 2014 Continuity Schedule'!$A$20:$CQ$91, MATCH('3. Appendix A'!$E$20, '2. 2014 Continuity Schedule'!$A$20:$CQ$20,0),FALSE)) -> 0
C34: Group 2 Accounts
A35: 10 | C35: Other Regulatory Assets - Sub-Account - OEB Cost Assessments | D35: 1508 | E35: =IF(ISERROR(VLOOKUP($A35, '2. 2014 Continuity Schedule'!$A$20:$CQ$91, MATCH('3. Appendix A'!$E$20, '2. 2014 Continuity Schedule'!$A$20:$CQ$20,0),FALSE)), 0, VLOOKUP($A35, '2. 2014 Continuity Schedule'!$A$20:$CQ$91, MATCH('3. Appendix A'!$E$20, '2. 2014 Continuity Schedule'!$A$20:$CQ$20,0),FALSE)) -> 0
A36: 11 | C36: Other Regulatory Assets - Sub-Account - Pension Contributions | D36: 1508 | E36: =IF(ISERROR(VLOOKUP($A36, '2. 2014 Continuity Schedule'!$A$20:$CQ$91, MATCH('3. Appendix A'!$E$20, '2. 2014 Continuity Schedule'!$A$20:$CQ$20,0),FALSE)), 0, VLOOKUP($A36, '2. 2014 Continuity Schedule'!$A$20:$CQ$91, MATCH('3. Appendix A'!$E$20, '2. 2014 Continuity Schedule'!$A$20:$CQ$20,0),FALSE)) -> 0
A37: 12 | C37: Other Regulatory Assets - Sub-Account - Deferred IFRS Transition Costs | D37: 1508 | E37: =IF(ISERROR(VLOOKUP($A37, '2. 2014 Continuity Schedule'!$A$20:$CQ$91, MATCH('3. Appendix A'!$E$20, '2. 2014 Continuity Schedule'!$A$20:$CQ$20,0),FALSE)), 0, VLOOKUP($A37, '2. 2014 Continuity Schedule'!$A$20:$CQ$91, MATCH('3. Appendix A'!$E$20, '2. 2014 Continuity Schedule'!$A$20:$CQ$20,0),FALSE)) -> 0
A38: 13 | C38: Other Regulatory Assets - Sub-Account - Incremental Capital Charges | D38: 1508 | E38: =IF(ISERROR(VLOOKUP($A38, '2. 2014 Continuity Schedule'!$A$20:$CQ$91, MATCH('3. Appendix A'!$E$20, '2. 2014 Continuity Schedule'!$A$20:$CQ$20,0),FALSE)), 0, VLOOKUP($A38, '2. 2014 Continuity Schedule'!$A$20:$CQ$91, MATCH('3. Appendix A'!$E$20, '2. 2014 Continuity Schedule'!$A$20:$CQ$20,0),FALSE)) -> 0
A39: 14 | C39: Other Regulatory Assets - Sub-Account - Financial Assistance Payment and Recovery Variance - Ontario Clean Energy Benefit Act8 | D39: 1508 | E39: =IF(ISERROR(VLOOKUP($A39, '2. 2014 Continuity Schedule'!$A$20:$CQ$91, MATCH('3. Appendix A'!$E$20, '2. 2014 Continuity Schedule'!$A$20:$CQ$20,0),FALSE)), 0, VLOOKUP($A39, '2. 2014 Continuity Schedule'!$A$20:$CQ$91, MATCH('3. Appendix A'!$E$20, '2. 2014 Continuity Schedule'!$A$20:$CQ$20,0),FALSE)) -> 0
A40: 15 | C40: Other Regulatory Assets - Sub-Account - Financial Assistance Payment and Recovery Carrying Charges | D40: 1508 | E40: =IF(ISERROR(VLOOKUP($A40, '2. 2014 Continuity Schedule'!$A$20:$CQ$91, MATCH('3. Appendix A'!$E$20, '2. 2014 Continuity Schedule'!$A$20:$CQ$20,0),FALSE)), 0, VLOOKUP($A40, '2. 2014 Continuity Schedule'!$A$20:$CQ$91, MATCH('3. Appendix A'!$E$20, '2. 2014 Continuity Schedule'!$A$20:$CQ$20,0),FALSE)) -> 0
A41: 16 | C41: Other Regulatory Assets - Sub-Account - Other 4 | D41: 1508 | E41: =IF(ISERROR(VLOOKUP($A41, '2. 2014 Continuity Schedule'!$A$20:$CQ$91, MATCH('3. Appendix A'!$E$20, '2. 2014 Continuity Schedule'!$A$20:$CQ$20,0),FALSE)), 0, VLOOKUP($A41, '2. 2014 Continuity Schedule'!$A$20:$CQ$91, MATCH('3. Appendix A'!$E$20, '2. 2014 Continuity Schedule'!$A$20:$CQ$20,0),FALSE)) -> 0
A42: 17 | C42: Retail Cost Variance Account - Retail | D42: 1518 | E42: =IF(ISERROR(VLOOKUP($A42, '2. 2014 Continuity Schedule'!$A$20:$CQ$91, MATCH('3. Appendix A'!$E$20, '2. 2014 Continuity Schedule'!$A$20:$CQ$20,0),FALSE)), 0, VLOOKUP($A42, '2. 2014 Continuity Schedule'!$A$20:$CQ$91, MATCH('3. Appendix A'!$E$20, '2. 2014 Continuity Schedule'!$A$20:$CQ$20,0),FALSE)) -> 0
A43: 18 | C43: Misc. Deferred Debits | D43: 1525 | E43: =IF(ISERROR(VLOOKUP($A43, '2. 2014 Continuity Schedule'!$A$20:$CQ$91, MATCH('3. Appendix A'!$E$20, '2. 2014 Continuity Schedule'!$A$20:$CQ$20,0),FALSE)), 0, VLOOKUP($A43, '2. 2014 Continuity Schedule'!$A$20:$CQ$91, MATCH('3. Appendix A'!$E$20, '2. 2014 Continuity Schedule'!$A$20:$CQ$20,0),FALSE)) -> 0
A44: 19 | C44: Renewable Generation Connection Capital Deferral Account | D44: 1531 | E44: =IF(ISERROR(VLOOKUP($A44, '2. 2014 Continuity Schedule'!$A$20:$CQ$91, MATCH('3. Appendix A'!$E$20, '2. 2014 Continuity Schedule'!$A$20:$CQ$20,0),FALSE)), 0, VLOOKUP($A44, '2. 2014 Continuity Schedule'!$A$20:$CQ$91, MATCH('3. Appendix A'!$E$20, '2. 2014 Continuity Schedule'!$A$20:$CQ$20,0),FALSE)) -> 0
A45: 20 | C45: Renewable Generation Connection OM&A Deferral Account | D45: 1532 | E45: =IF(ISERROR(VLOOKUP($A45, '2. 2014 Continuity Schedule'!$A$20:$CQ$91, MATCH('3. Appendix A'!$E$20, '2. 2014 Continuity Schedule'!$A$20:$CQ$20,0),FALSE)), 0, VLOOKUP($A45, '2. 2014 Continuity Schedule'!$A$20:$CQ$91, MATCH('3. Appendix A'!$E$20, '2. 2014 Continuity Schedule'!$A$20:$CQ$20,0),FALSE)) -> 0
A46: 21 | C46: Renewable Generation Connection Funding Adder Deferral Account | D46: 1533 | E46: =IF(ISERROR(VLOOKUP($A46, '2. 2014 Continuity Schedule'!$A$20:$CQ$91, MATCH('3. Appendix A'!$E$20, '2. 2014 Continuity Schedule'!$A$20:$CQ$20,0),FALSE)), 0, VLOOKUP($A46, '2. 2014 Continuity Schedule'!$A$20:$CQ$91, MATCH('3. Appendix A'!$E$20, '2. 2014 Continuity Schedule'!$A$20:$CQ$20,0),FALSE)) -> 0
A47: 22 | C47: Smart Grid Capital Deferral Account | D47: 1534 | E47: =IF(ISERROR(VLOOKUP($A47, '2. 2014 Continuity Schedule'!$A$20:$CQ$91, MATCH('3. Appendix A'!$E$20, '2. 2014 Continuity Schedule'!$A$20:$CQ$20,0),FALSE)), 0, VLOOKUP($A47, '2. 2014 Continuity Schedule'!$A$20:$CQ$91, MATCH('3. Appendix A'!$E$20, '2. 2014 Continuity Schedule'!$A$20:$CQ$20,0),FALSE)) -> 0
A48: 23 | C48: Smart Grid OM&A Deferral Account | D48: 1535 | E48: =IF(ISERROR(VLOOKUP($A48, '2. 2014 Continuity Schedule'!$A$20:$CQ$91, MATCH('3. Appendix A'!$E$20, '2. 2014 Continuity Schedule'!$A$20:$CQ$20,0),FALSE)), 0, VLOOKUP($A48, '2. 2014 Continuity Schedule'!$A$20:$CQ$91, MATCH('3. Appendix A'!$E$20, '2. 2014 Continuity Schedule'!$A$20:$CQ$20,0),FALSE)) -> 0
A49: 24 | C49: Smart Grid Funding Adder Deferral Account | D49: 1536 | E49: =IF(ISERROR(VLOOKUP($A49, '2. 2014 Continuity Schedule'!$A$20:$CQ$91, MATCH('3. Appendix A'!$E$20, '2. 2014 Continuity Schedule'!$A$20:$CQ$20,0),FALSE)), 0, VLOOKUP($A49, '2. 2014 Continuity Schedule'!$A$20:$CQ$91, MATCH('3. Appendix A'!$E$20, '2. 2014 Continuity Schedule'!$A$20:$CQ$20,0),FALSE)) -> 0
A50: 25 | C50: Retail Cost Variance Account - STR | D50: 1548 | E50: =IF(ISERROR(VLOOKUP($A50, '2. 2014 Continuity Schedule'!$A$20:$CQ$91, MATCH('3. Appendix A'!$E$20, '2. 2014 Continuity Schedule'!$A$20:$CQ$20,0),FALSE)), 0, VLOOKUP($A50, '2. 2014 Continuity Schedule'!$A$20:$CQ$91, MATCH('3. Appendix A'!$E$20, '2. 2014 Continuity Schedule'!$A$20:$CQ$20,0),FALSE)) -> 0
A51: 26 | C51: Board-Approved CDM Variance Account | D51: 1567 | E51: =IF(ISERROR(VLOOKUP($A51, '2. 2014 Continuity Schedule'!$A$20:$CQ$91, MATCH('3. Appendix A'!$E$20, '2. 2014 Continuity Schedule'!$A$20:$CQ$20,0),FALSE)), 0, VLOOKUP($A51, '2. 2014 Continuity Schedule'!$A$20:$CQ$91, MATCH('3. Appendix A'!$E$20, '2. 2014 Continuity Schedule'!$A$20:$CQ$20,0),FALSE)) -> 0
A52: 27 | C52: Extra-Ordinary Event Costs | D52: 1572 | E52: =IF(ISERROR(VLOOKUP($A52, '2. 2014 Continuity Schedule'!$A$20:$CQ$91, MATCH('3. Appendix A'!$E$20, '2. 2014 Continuity Schedule'!$A$20:$CQ$20,0),FALSE)), 0, VLOOKUP($A52, '2. 2014 Continuity Schedule'!$A$20:$CQ$91, MATCH('3. Appendix A'!$E$20, '2. 2014 Continuity Schedule'!$A$20:$CQ$20,0),FALSE)) -> 0
A53: 28 | C53: Deferred Rate Impact Amounts | D53: 1574 | E53: =IF(ISERROR(VLOOKUP($A53, '2. 2014 Continuity Schedule'!$A$20:$CQ$91, MATCH('3. Appendix A'!$E$20, '2. 2014 Continuity Schedule'!$A$20:$CQ$20,0),FALSE)), 0, VLOOKUP($A53, '2. 2014 Continuity Schedule'!$A$20:$CQ$91, MATCH('3. Appendix A'!$E$20, '2. 2014 Continuity Schedule'!$A$20:$CQ$20,0),FALSE)) -> 0
A54: 29 | C54: RSVA - One-time | D54: 1582 | E54: =IF(ISERROR(VLOOKUP($A54, '2. 2014 Continuity Schedule'!$A$20:$CQ$91, MATCH('3. Appendix A'!$E$20, '2. 2014 Continuity Schedule'!$A$20:$CQ$20,0),FALSE)), 0, VLOOKUP($A54, '2. 2014 Continuity Schedule'!$A$20:$CQ$91, MATCH('3. Appendix A'!$E$20, '2. 2014 Continuity Schedule'!$A$20:$CQ$20,0),FALSE)) -> 0
A55: 30 | C55: Other Deferred Credits | D55: 2425 | E55: =IF(ISERROR(VLOOKUP($A55, '2. 2014 Continuity Schedule'!$A$20:$CQ$91, MATCH('3. Appendix A'!$E$20, '2. 2014 Continuity Schedule'!$A$20:$CQ$20,0),FALSE)), 0, VLOOKUP($A55, '2. 2014 Continuity Schedule'!$A$20:$CQ$91, MATCH('3. Appendix A'!$E$20, '2. 2014 Continuity Schedule'!$A$20:$CQ$20,0),FALSE)) -> 0
A56: 31 | C56: Deferred Payments in Lieu of Taxes | D56: 1562 | E56: =IF(ISERROR(VLOOKUP($A56, '2. 2014 Continuity Schedule'!$A$20:$CQ$91, MATCH('3. Appendix A'!$E$20, '2. 2014 Continuity Schedule'!$A$20:$CQ$20,0),FALSE)), 0, VLOOKUP($A56, '2. 2014 Continuity Schedule'!$A$20:$CQ$91, MATCH('3. Appendix A'!$E$20, '2. 2014 Continuity Schedule'!$A$20:$CQ$20,0),FALSE)) -> 0
A57: 32 | C57: PILs and Tax Variance for 2006 and Subsequent Years (excludes sub-account and contra account below) | D57: 1592 | E57: =IF(ISERROR(VLOOKUP($A57, '2. 2014 Continuity Schedule'!$A$20:$CQ$91, MATCH('3. Appendix A'!$E$20, '2. 2014 Continuity Schedule'!$A$20:$CQ$20,0),FALSE)), 0, VLOOKUP($A57, '2. 2014 Continuity Schedule'!$A$20:$CQ$91, MATCH('3. Appendix A'!$E$20, '2. 2014 Continuity Schedule'!$A$20:$CQ$20,0),FALSE)) -> 0
A58: 33 | C58: PILs and Tax Variance for 2006 and Subsequent Years - Sub-Account HST/OVAT Input Tax Credits (ITCs) | D58: 1592 | E58: =IF(ISERROR(VLOOKUP($A58, '2. 2014 Continuity Schedule'!$A$20:$CQ$91, MATCH('3. Appendix A'!$E$20, '2. 2014 Continuity Schedule'!$A$20:$CQ$20,0),FALSE)), 0, VLOOKUP($A58, '2. 2014 Continuity Schedule'!$A$20:$CQ$91, MATCH('3. Appendix A'!$E$20, '2. 2014 Continuity Schedule'!$A$20:$CQ$20,0),FALSE)) -> 0
A59: 34 | C59: Special Purpose Charge Assessment Variance Account9 | D59: 1521 | E59: =IF(ISERROR(VLOOKUP($A59, '2. 2014 Continuity Schedule'!$A$20:$CQ$91, MATCH('3. Appendix A'!$E$20, '2. 2014 Continuity Schedule'!$A$20:$CQ$20,0),FALSE)), 0, VLOOKUP($A59, '2. 2014 Continuity Schedule'!$A$20:$CQ$91, MATCH('3. Appendix A'!$E$20, '2. 2014 Continuity Schedule'!$A$20:$CQ$20,0),FALSE)) -> 0
A60: 35 | C60: Smart Meter Capital and Recovery Offset Variance - Sub-Account - Capital11 | D60: 1555 | E60: =IF(ISERROR(VLOOKUP($A60, '2. 2014 Continuity Schedule'!$A$20:$CQ$91, MATCH('3. Appendix A'!$E$20, '2. 2014 Continuity Schedule'!$A$20:$CQ$20,0),FALSE)), 0, VLOOKUP($A60, '2. 2014 Continuity Schedule'!$A$20:$CQ$91, MATCH('3. Appendix A'!$E$20, '2. 2014 Continuity Schedule'!$A$20:$CQ$20,0),FALSE)) -> 0
A61: 36 | C61: Smart Meter Capital and Recovery Offset Variance - Sub-Account - Recoveries11 | D61: 1555 | E61: =IF(ISERROR(VLOOKUP($A61, '2. 2014 Continuity Schedule'!$A$20:$CQ$91, MATCH('3. Appendix A'!$E$20, '2. 2014 Continuity Schedule'!$A$20:$CQ$20,0),FALSE)), 0, VLOOKUP($A61, '2. 2014 Continuity Schedule'!$A$20:$CQ$91, MATCH('3. Appendix A'!$E$20, '2. 2014 Continuity Schedule'!$A$20:$CQ$20,0),FALSE)) -> 0
A62: 37 | C62: Smart Meter Capital and Recovery Offset Variance - Sub-Account - Stranded Meter Costs11 | D62: 1555 | E62: =IF(ISERROR(VLOOKUP($A62, '2. 2014 Continuity Schedule'!$A$20:$CQ$91, MATCH('3. Appendix A'!$E$20, '2. 2014 Continuity Schedule'!$A$20:$CQ$20,0),FALSE)), 0, VLOOKUP($A62, '2. 2014 Continuity Schedule'!$A$20:$CQ$91, MATCH('3. Appendix A'!$E$20, '2. 2014 Continuity Schedule'!$A$20:$CQ$20,0),FALSE)) -> 0
A63: 38 | C63: Smart Meter OM&A Variance11 | D63: 1556 | E63: =IF(ISERROR(VLOOKUP($A63, '2. 2014 Continuity Schedule'!$A$20:$CQ$91, MATCH('3. Appendix A'!$E$20, '2. 2014 Continuity Schedule'!$A$20:$CQ$20,0),FALSE)), 0, VLOOKUP($A63, '2. 2014 Continuity Schedule'!$A$20:$CQ$91, MATCH('3. Appendix A'!$E$20, '2. 2014 Continuity Schedule'!$A$20:$CQ$20,0),FALSE)) -> 0
A64: 39 | C64: Deferred PILs Contra Account 5 | D64: 1563 | E64: =IF(ISERROR(VLOOKUP($A64, '2. 2014 Continuity Schedule'!$A$20:$CQ$91, MATCH('3. Appendix A'!$E$20, '2. 2014 Continuity Schedule'!$A$20:$CQ$20,0),FALSE)), 0, VLOOKUP($A64, '2. 2014 Continuity Schedule'!$A$20:$CQ$91, MATCH('3. Appendix A'!$E$20, '2. 2014 Continuity Schedule'!$A$20:$CQ$20,0),FALSE)) -> 0
A65: 40 | C65: IFRS-CGAAP Transition PP&E Amounts10 | D65: 1575 | E65: =IF(ISERROR(VLOOKUP($A65, '2. 2014 Continuity Schedule'!$A$20:$CQ$91, MATCH('3. Appendix A'!$E$20, '2. 2014 Continuity Schedule'!$A$20:$CQ$20,0),FALSE)), 0, VLOOKUP($A65, '2. 2014 Continuity Schedule'!$A$20:$CQ$91, MATCH('3. Appendix A'!$E$20, '2. 2014 Continuity Schedule'!$A$20:$CQ$20,0),FALSE)) -> 0
A66: 41 | C66: PILs and Tax Variance for 2006 and Subsequent Years - Sub-Account HST/OVAT Contra Account | D66: 1592 | E66: =IF(ISERROR(VLOOKUP($A66, '2. 2014 Continuity Schedule'!$A$20:$CQ$91, MATCH('3. Appendix A'!$E$20, '2. 2014 Continuity Schedule'!$A$20:$CQ$20,0),FALSE)), 0, VLOOKUP($A66, '2. 2014 Continuity Schedule'!$A$20:$CQ$91, MATCH('3. Appendix A'!$E$20, '2. 2014 Continuity Schedule'!$A$20:$CQ$20,0),FALSE)) -> 0
A67: 42 | C67: Disposition and Recovery of Regulatory Balances7 | D67: 1595 | E67: =IF(ISERROR(VLOOKUP($A67, '2. 2014 Continuity Schedule'!$A$20:$CQ$91, MATCH('3. Appendix A'!$E$20, '2. 2014 Continuity Schedule'!$A$20:$CQ$20,0),FALSE)), 0, VLOOKUP($A67, '2. 2014 Continuity Schedule'!$A$20:$CQ$91, MATCH('3. Appendix A'!$E$20, '2. 2014 Continuity Schedule'!$A$20:$CQ$20,0),FALSE)) -> 0

Sheet 4. Billing Determinants
B16: In the green shaded cells, enter the most recent Board Approved volumetric forecast. If there is a material difference between the latest Board-approved volumetric forecast and the most recent 12-month actual volumetric data, use the most recent 12-month actual data. Do not enter data for the MicroFit class.
B19: Rate Class (Enter Rate Classes in cells below) | C19: Units | D19: # of Customers | E19: Metered kWh | F19: Metered kW | G19: Billed kWh for Non-RPP Customers | H19: Estimated kW for Non-RPP Customers | I19: NEED TO UPDATE THESE AMOUNTS Distribution Revenue 1 | J19: 1590 Recovery Share Proportion | K19: 1595 Recovery Share Proportion (2008) 2 | L19: 1595 Recovery Share Proportion (2009) 2 | M19: 1595 Recovery Share Proportion (2010) 2 | N19: 1568 LRAM Variance Account Class Allocation ($ amounts)
B21: Residential | C21: kWh | D21: 82577 | E21: 651926619.7 | G21: 620714612.6 | H21: 0 | I21: 20199550.85 | M21: 0.3939401649
B22: GS<50 kW | C22: kWh | D22: 7830 | E22: 241614911.5 | G22: 213729422.5 | H22: 0 | I22: 5452441.65 | M22: 0.1606691537
B23: GS>50 kW | C23: kW | D23: 945 | E23: 844886400.5 | F23: 2183247.987 | G23: 124754155.9 | H23: 322373.8238 | I23: 11720998.93 | M23: 0.4228500147
B24: USL | C24: kWh | D24: 890 | E24: 3417188.443 | G24: 5257338.777 | H24: 0 | I24: 148388.88 | M24: 0
B25: Large User | C25: kW | D25: 1 | E25: 31798990.29 | F25: 63001.71777 | G25: 0 | H25: 0 | I25: 534133.33 | M25: 0.01165146555
B26: Street Lighting | C26: kW | D26: 1592 | E26: 16128464.71 | F26: 45145.28656 | G26: 88475.4107 | H26: 247.6520761 | I26: 460545.52 | M26: 0.01088920102
B27: Embedded Distributor | C27: kW | D27: 1 | E27: 20328822.35 | F27: 44673.76727 | G27: 0 | H27: 0 | I27: 56328.78 | M27: 0
H28: =IF(ISERROR(F28/E28*G28), 0, F28/E28*G28) -> 0
H29: 0
H30: 0
H31: 0
H32: 0
H33: 0
H34: 0
H35: 0
H36: 0
H37: 0
H38: 0
H39: 0
H40: 0
B41: Total | D41: =SUM(D21:D40) -> 93836 | E41: =SUM(E21:E40) -> 1810101397 | F41: =SUM(F21:F40) -> 2336068.758 | G41: 964544005.2 | H41: 322621.4759 | I41: 38572387.94 | J41: 0 | K41: 0 | L41: 0 | M41: 1 | N41: 0
M42: Balance as per Sheet 2 | N42: ='2. 2014 Continuity Schedule'!CO72 -> 0
M43: Variance | N43: =N41-N42 -> 0
A45: 1 For Account 1562, the allocation to customer classes should be performed on the basis of the test year distribution revenue allocation to customer classes found in the Applicant’s Cost of Service application that was most recently approved at the time of disposition of the 1562 account balances
A47: 2 Residual Account balance to be allocated to rate classes in proportion to the recovery share as established when rate riders were implemented.

Sheet 5. Allocation of Balances
D4: Amounts from Sheet 2 | E4: Allocator | F4: =IF(LEN(TRIM('4. Billing Determinants'!$B21))=0, "", '4. Billing Determinants'!$B21) -> Residential | G4: =IF(LEN(TRIM('4. Billing Determinants'!$B22))=0, "", '4. Billing Determinants'!$B22) -> GS<50 kW | H4: =IF(LEN(TRIM('4. Billing Determinants'!$B23))=0, "", '4. Billing Determinants'!$B23) -> GS>50 kW | I4: =IF(LEN(TRIM('4. Billing Determinants'!$B24))=0, "", '4. Billing Determinants'!$B24) -> USL | J4: =IF(LEN(TRIM('4. Billing Determinants'!$B25))=0, "", '4. Billing Determinants'!$B25) -> Large User | K4: =IF(LEN(TRIM('4. Billing Determinants'!$B26))=0, "", '4. Billing Determinants'!$B26) -> Street Lighting | L4: =IF(LEN(TRIM('4. Billing Determinants'!$B27))=0, "", '4. Billing Determinants'!$B27) -> Embedded Distributor | M4: =IF(LEN(TRIM('4. Billing Determinants'!$B28))=0, "", '4. Billing Determinants'!$B28) ->  | N4: =IF(LEN(TRIM('4. Billing Determinants'!$B29))=0, "", '4. Billing Determinants'!$B29) ->  | O4: =IF(LEN(TRIM('4. Billing Determinants'!$B30))=0, "", '4. Billing Determinants'!$B30) ->  | P4: =IF(LEN(TRIM('4. Billing Determinants'!$B31))=0, "", '4. Billing Determinants'!$B31) ->  | Q4: =IF(LEN(TRIM('4. Billing Determinants'!$B32))=0, "", '4. Billing Determinants'!$B32) ->  | R4: =IF(LEN(TRIM('4. Billing Determinants'!$B33))=0, "", '4. Billing Determinants'!$B33) ->  | S4: =IF(LEN(TRIM('4. Billing Determinants'!$B34))=0, "", '4. Billing Determinants'!$B34) ->  | T4: =IF(LEN(TRIM('4. Billing Determinants'!$B35))=0, "", '4. Billing Determinants'!$B35) ->  | U4: =IF(LEN(TRIM('4. Billing Determinants'!$B36))=0, "", '4. Billing Determinants'!$B36) ->  | V4: =IF(LEN(TRIM('4. Billing Determinants'!$B37))=0, "", '4. Billing Determinants'!$B37) ->  | W4: =IF(LEN(TRIM('4. Billing Determinants'!$B38))=0, "", '4. Billing Determinants'!$B38) ->  | X4: =IF(LEN(TRIM('4. Billing Determinants'!$B39))=0, "", '4. Billing Determinants'!$B39) ->  | Y4: =IF(LEN(TRIM('4. Billing Determinants'!$B40))=0, "", '4. Billing Determinants'!$B40) -> 
B5: LV Variance Account | C5: 1550 | D5: 0 | E5: kWh | F5: 0 | G5: 0 | H5: 0 | I5: 0 | J5: 0 | K5: 0 | L5: 0 | M5: =IF(M$4="",0,IF($E5="kWh",VLOOKUP(M$4,'4. Billing Determinants'!$B$19:$N$41,4,0)/'4. Billing Determinants'!$E$41*$D5,IF($E5="kW",VLOOKUP(M$4,'4. Billing Determinants'!$B$19:$N$41,5,0)/'4. Billing Determinants'!$F$41*$D5,IF($E5="Non-RPP kWh",VLOOKUP(M$4,'4. Billing Determinants'!$B$19:$N$41,6,0)/'4. Billing Determinants'!$G$41*$D5,IF($E5="Distribution Rev.",VLOOKUP(M$4,'4. Billing Determinants'!$B$19:$N$41,8,0)/'4. Billing Determinants'!$I$41*$D5, VLOOKUP(M$4,'4. Billing Determinants'!$B$19:$N$41,3,0)/'4. Billing Determinants'!$D$41*$D5))))) -> 0 | N5: =IF(N$4="",0,IF($E5="kWh",VLOOKUP(N$4,'4. Billing Determinants'!$B$19:$N$41,4,0)/'4. Billing Determinants'!$E$41*$D5,IF($E5="kW",VLOOKUP(N$4,'4. Billing Determinants'!$B$19:$N$41,5,0)/'4. Billing Determinants'!$F$41*$D5,IF($E5="Non-RPP kWh",VLOOKUP(N$4,'4. Billing Determinants'!$B$19:$N$41,6,0)/'4. Billing Determinants'!$G$41*$D5,IF($E5="Distribution Rev.",VLOOKUP(N$4,'4. Billing Determinants'!$B$19:$N$41,8,0)/'4. Billing Determinants'!$I$41*$D5, VLOOKUP(N$4,'4. Billing Determinants'!$B$19:$N$41,3,0)/'4. Billing Determinants'!$D$41*$D5))))) -> 0 | O5: =IF(O$4="",0,IF($E5="kWh",VLOOKUP(O$4,'4. Billing Determinants'!$B$19:$N$41,4,0)/'4. Billing Determinants'!$E$41*$D5,IF($E5="kW",VLOOKUP(O$4,'4. Billing Determinants'!$B$19:$N$41,5,0)/'4. Billing Determinants'!$F$41*$D5,IF($E5="Non-RPP kWh",VLOOKUP(O$4,'4. Billing Determinants'!$B$19:$N$41,6,0)/'4. Billing Determinants'!$G$41*$D5,IF($E5="Distribution Rev.",VLOOKUP(O$4,'4. Billing Determinants'!$B$19:$N$41,8,0)/'4. Billing Determinants'!$I$41*$D5, VLOOKUP(O$4,'4. Billing Determinants'!$B$19:$N$41,3,0)/'4. Billing Determinants'!$D$41*$D5))))) -> 0 | P5: =IF(P$4="",0,IF($E5="kWh",VLOOKUP(P$4,'4. Billing Determinants'!$B$19:$N$41,4,0)/'4. Billing Determinants'!$E$41*$D5,IF($E5="kW",VLOOKUP(P$4,'4. Billing Determinants'!$B$19:$N$41,5,0)/'4. Billing Determinants'!$F$41*$D5,IF($E5="Non-RPP kWh",VLOOKUP(P$4,'4. Billing Determinants'!$B$19:$N$41,6,0)/'4. Billing Determinants'!$G$41*$D5,IF($E5="Distribution Rev.",VLOOKUP(P$4,'4. Billing Determinants'!$B$19:$N$41,8,0)/'4. Billing Determinants'!$I$41*$D5, VLOOKUP(P$4,'4. Billing Determinants'!$B$19:$N$41,3,0)/'4. Billing Determinants'!$D$41*$D5))))) -> 0 | Q5: =IF(Q$4="",0,IF($E5="kWh",VLOOKUP(Q$4,'4. Billing Determinants'!$B$19:$N$41,4,0)/'4. Billing Determinants'!$E$41*$D5,IF($E5="kW",VLOOKUP(Q$4,'4. Billing Determinants'!$B$19:$N$41,5,0)/'4. Billing Determinants'!$F$41*$D5,IF($E5="Non-RPP kWh",VLOOKUP(Q$4,'4. Billing Determinants'!$B$19:$N$41,6,0)/'4. Billing Determinants'!$G$41*$D5,IF($E5="Distribution Rev.",VLOOKUP(Q$4,'4. Billing Determinants'!$B$19:$N$41,8,0)/'4. Billing Determinants'!$I$41*$D5, VLOOKUP(Q$4,'4. Billing Determinants'!$B$19:$N$41,3,0)/'4. Billing Determinants'!$D$41*$D5))))) -> 0 | R5: =IF(R$4="",0,IF($E5="kWh",VLOOKUP(R$4,'4. Billing Determinants'!$B$19:$N$41,4,0)/'4. Billing Determinants'!$E$41*$D5,IF($E5="kW",VLOOKUP(R$4,'4. Billing Determinants'!$B$19:$N$41,5,0)/'4. Billing Determinants'!$F$41*$D5,IF($E5="Non-RPP kWh",VLOOKUP(R$4,'4. Billing Determinants'!$B$19:$N$41,6,0)/'4. Billing Determinants'!$G$41*$D5,IF($E5="Distribution Rev.",VLOOKUP(R$4,'4. Billing Determinants'!$B$19:$N$41,8,0)/'4. Billing Determinants'!$I$41*$D5, VLOOKUP(R$4,'4. Billing Determinants'!$B$19:$N$41,3,0)/'4. Billing Determinants'!$D$41*$D5))))) -> 0 | S5: =IF(S$4="",0,IF($E5="kWh",VLOOKUP(S$4,'4. Billing Determinants'!$B$19:$N$41,4,0)/'4. Billing Determinants'!$E$41*$D5,IF($E5="kW",VLOOKUP(S$4,'4. Billing Determinants'!$B$19:$N$41,5,0)/'4. Billing Determinants'!$F$41*$D5,IF($E5="Non-RPP kWh",VLOOKUP(S$4,'4. Billing Determinants'!$B$19:$N$41,6,0)/'4. Billing Determinants'!$G$41*$D5,IF($E5="Distribution Rev.",VLOOKUP(S$4,'4. Billing Determinants'!$B$19:$N$41,8,0)/'4. Billing Determinants'!$I$41*$D5, VLOOKUP(S$4,'4. Billing Determinants'!$B$19:$N$41,3,0)/'4. Billing Determinants'!$D$41*$D5))))) -> 0 | T5: =IF(T$4="",0,IF($E5="kWh",VLOOKUP(T$4,'4. Billing Determinants'!$B$19:$N$41,4,0)/'4. Billing Determinants'!$E$41*$D5,IF($E5="kW",VLOOKUP(T$4,'4. Billing Determinants'!$B$19:$N$41,5,0)/'4. Billing Determinants'!$F$41*$D5,IF($E5="Non-RPP kWh",VLOOKUP(T$4,'4. Billing Determinants'!$B$19:$N$41,6,0)/'4. Billing Determinants'!$G$41*$D5,IF($E5="Distribution Rev.",VLOOKUP(T$4,'4. Billing Determinants'!$B$19:$N$41,8,0)/'4. Billing Determinants'!$I$41*$D5, VLOOKUP(T$4,'4. Billing Determinants'!$B$19:$N$41,3,0)/'4. Billing Determinants'!$D$41*$D5))))) -> 0 | U5: =IF(U$4="",0,IF($E5="kWh",VLOOKUP(U$4,'4. Billing Determinants'!$B$19:$N$41,4,0)/'4. Billing Determinants'!$E$41*$D5,IF($E5="kW",VLOOKUP(U$4,'4. Billing Determinants'!$B$19:$N$41,5,0)/'4. Billing Determinants'!$F$41*$D5,IF($E5="Non-RPP kWh",VLOOKUP(U$4,'4. Billing Determinants'!$B$19:$N$41,6,0)/'4. Billing Determinants'!$G$41*$D5,IF($E5="Distribution Rev.",VLOOKUP(U$4,'4. Billing Determinants'!$B$19:$N$41,8,0)/'4. Billing Determinants'!$I$41*$D5, VLOOKUP(U$4,'4. Billing Determinants'!$B$19:$N$41,3,0)/'4. Billing Determinants'!$D$41*$D5))))) -> 0 | V5: =IF(V$4="",0,IF($E5="kWh",VLOOKUP(V$4,'4. Billing Determinants'!$B$19:$N$41,4,0)/'4. Billing Determinants'!$E$41*$D5,IF($E5="kW",VLOOKUP(V$4,'4. Billing Determinants'!$B$19:$N$41,5,0)/'4. Billing Determinants'!$F$41*$D5,IF($E5="Non-RPP kWh",VLOOKUP(V$4,'4. Billing Determinants'!$B$19:$N$41,6,0)/'4. Billing Determinants'!$G$41*$D5,IF($E5="Distribution Rev.",VLOOKUP(V$4,'4. Billing Determinants'!$B$19:$N$41,8,0)/'4. Billing Determinants'!$I$41*$D5, VLOOKUP(V$4,'4. Billing Determinants'!$B$19:$N$41,3,0)/'4. Billing Determinants'!$D$41*$D5))))) -> 0 | W5: =IF(W$4="",0,IF($E5="kWh",VLOOKUP(W$4,'4. Billing Determinants'!$B$19:$N$41,4,0)/'4. Billing Determinants'!$E$41*$D5,IF($E5="kW",VLOOKUP(W$4,'4. Billing Determinants'!$B$19:$N$41,5,0)/'4. Billing Determinants'!$F$41*$D5,IF($E5="Non-RPP kWh",VLOOKUP(W$4,'4. Billing Determinants'!$B$19:$N$41,6,0)/'4. Billing Determinants'!$G$41*$D5,IF($E5="Distribution Rev.",VLOOKUP(W$4,'4. Billing Determinants'!$B$19:$N$41,8,0)/'4. Billing Determinants'!$I$41*$D5, VLOOKUP(W$4,'4. Billing Determinants'!$B$19:$N$41,3,0)/'4. Billing Determinants'!$D$41*$D5))))) -> 0 | X5: =IF(X$4="",0,IF($E5="kWh",VLOOKUP(X$4,'4. Billing Determinants'!$B$19:$N$41,4,0)/'4. Billing Determinants'!$E$41*$D5,IF($E5="kW",VLOOKUP(X$4,'4. Billing Determinants'!$B$19:$N$41,5,0)/'4. Billing Determinants'!$F$41*$D5,IF($E5="Non-RPP kWh",VLOOKUP(X$4,'4. Billing Determinants'!$B$19:$N$41,6,0)/'4. Billing Determinants'!$G$41*$D5,IF($E5="Distribution Rev.",VLOOKUP(X$4,'4. Billing Determinants'!$B$19:$N$41,8,0)/'4. Billing Determinants'!$I$41*$D5, VLOOKUP(X$4,'4. Billing Determinants'!$B$19:$N$41,3,0)/'4. Billing Determinants'!$D$41*$D5))))) -> 0 | Y5: =IF(Y$4="",0,IF($E5="kWh",VLOOKUP(Y$4,'4. Billing Determinants'!$B$19:$N$41,4,0)/'4. Billing Determinants'!$E$41*$D5,IF($E5="kW",VLOOKUP(Y$4,'4. Billing Determinants'!$B$19:$N$41,5,0)/'4. Billing Determinants'!$F$41*$D5,IF($E5="Non-RPP kWh",VLOOKUP(Y$4,'4. Billing Determinants'!$B$19:$N$41,6,0)/'4. Billing Determinants'!$G$41*$D5,IF($E5="Distribution Rev.",VLOOKUP(Y$4,'4. Billing Determinants'!$B$19:$N$41,8,0)/'4. Billing Determinants'!$I$41*$D5, VLOOKUP(Y$4,'4. Billing Determinants'!$B$19:$N$41,3,0)/'4. Billing Determinants'!$D$41*$D5))))) -> 0
B6: RSVA - Wholesale Market Service Charge | C6: 1580 | D6: -6807357.718 | E6: kWh | F6: -2451739.837 | G6: -908655.7997 | H6: -3177415.346 | I6: -12851.22709 | J6: -119588.3845 | K6: -60655.29195 | L6: -76451.83078 | M6: =IF(M$4="",0,IF($E6="kWh",VLOOKUP(M$4,'4. Billing Determinants'!$B$19:$N$41,4,0)/'4. Billing Determinants'!$E$41*$D6,IF($E6="kW",VLOOKUP(M$4,'4. Billing Determinants'!$B$19:$N$41,5,0)/'4. Billing Determinants'!$F$41*$D6,IF($E6="Non-RPP kWh",VLOOKUP(M$4,'4. Billing Determinants'!$B$19:$N$41,6,0)/'4. Billing Determinants'!$G$41*$D6,IF($E6="Distribution Rev.",VLOOKUP(M$4,'4. Billing Determinants'!$B$19:$N$41,8,0)/'4. Billing Determinants'!$I$41*$D6, VLOOKUP(M$4,'4. Billing Determinants'!$B$19:$N$41,3,0)/'4. Billing Determinants'!$D$41*$D6))))) -> 0 | N6: =IF(N$4="",0,IF($E6="kWh",VLOOKUP(N$4,'4. Billing Determinants'!$B$19:$N$41,4,0)/'4. Billing Determinants'!$E$41*$D6,IF($E6="kW",VLOOKUP(N$4,'4. Billing Determinants'!$B$19:$N$41,5,0)/'4. Billing Determinants'!$F$41*$D6,IF($E6="Non-RPP kWh",VLOOKUP(N$4,'4. Billing Determinants'!$B$19:$N$41,6,0)/'4. Billing Determinants'!$G$41*$D6,IF($E6="Distribution Rev.",VLOOKUP(N$4,'4. Billing Determinants'!$B$19:$N$41,8,0)/'4. Billing Determinants'!$I$41*$D6, VLOOKUP(N$4,'4. Billing Determinants'!$B$19:$N$41,3,0)/'4. Billing Determinants'!$D$41*$D6))))) -> 0 | O6: =IF(O$4="",0,IF($E6="kWh",VLOOKUP(O$4,'4. Billing Determinants'!$B$19:$N$41,4,0)/'4. Billing Determinants'!$E$41*$D6,IF($E6="kW",VLOOKUP(O$4,'4. Billing Determinants'!$B$19:$N$41,5,0)/'4. Billing Determinants'!$F$41*$D6,IF($E6="Non-RPP kWh",VLOOKUP(O$4,'4. Billing Determinants'!$B$19:$N$41,6,0)/'4. Billing Determinants'!$G$41*$D6,IF($E6="Distribution Rev.",VLOOKUP(O$4,'4. Billing Determinants'!$B$19:$N$41,8,0)/'4. Billing Determinants'!$I$41*$D6, VLOOKUP(O$4,'4. Billing Determinants'!$B$19:$N$41,3,0)/'4. Billing Determinants'!$D$41*$D6))))) -> 0 | P6: =IF(P$4="",0,IF($E6="kWh",VLOOKUP(P$4,'4. Billing Determinants'!$B$19:$N$41,4,0)/'4. Billing Determinants'!$E$41*$D6,IF($E6="kW",VLOOKUP(P$4,'4. Billing Determinants'!$B$19:$N$41,5,0)/'4. Billing Determinants'!$F$41*$D6,IF($E6="Non-RPP kWh",VLOOKUP(P$4,'4. Billing Determinants'!$B$19:$N$41,6,0)/'4. Billing Determinants'!$G$41*$D6,IF($E6="Distribution Rev.",VLOOKUP(P$4,'4. Billing Determinants'!$B$19:$N$41,8,0)/'4. Billing Determinants'!$I$41*$D6, VLOOKUP(P$4,'4. Billing Determinants'!$B$19:$N$41,3,0)/'4. Billing Determinants'!$D$41*$D6))))) -> 0 | Q6: =IF(Q$4="",0,IF($E6="kWh",VLOOKUP(Q$4,'4. Billing Determinants'!$B$19:$N$41,4,0)/'4. Billing Determinants'!$E$41*$D6,IF($E6="kW",VLOOKUP(Q$4,'4. Billing Determinants'!$B$19:$N$41,5,0)/'4. Billing Determinants'!$F$41*$D6,IF($E6="Non-RPP kWh",VLOOKUP(Q$4,'4. Billing Determinants'!$B$19:$N$41,6,0)/'4. Billing Determinants'!$G$41*$D6,IF($E6="Distribution Rev.",VLOOKUP(Q$4,'4. Billing Determinants'!$B$19:$N$41,8,0)/'4. Billing Determinants'!$I$41*$D6, VLOOKUP(Q$4,'4. Billing Determinants'!$B$19:$N$41,3,0)/'4. Billing Determinants'!$D$41*$D6))))) -> 0 | R6: =IF(R$4="",0,IF($E6="kWh",VLOOKUP(R$4,'4. Billing Determinants'!$B$19:$N$41,4,0)/'4. Billing Determinants'!$E$41*$D6,IF($E6="kW",VLOOKUP(R$4,'4. Billing Determinants'!$B$19:$N$41,5,0)/'4. Billing Determinants'!$F$41*$D6,IF($E6="Non-RPP kWh",VLOOKUP(R$4,'4. Billing Determinants'!$B$19:$N$41,6,0)/'4. Billing Determinants'!$G$41*$D6,IF($E6="Distribution Rev.",VLOOKUP(R$4,'4. Billing Determinants'!$B$19:$N$41,8,0)/'4. Billing Determinants'!$I$41*$D6, VLOOKUP(R$4,'4. Billing Determinants'!$B$19:$N$41,3,0)/'4. Billing Determinants'!$D$41*$D6))))) -> 0 | S6: =IF(S$4="",0,IF($E6="kWh",VLOOKUP(S$4,'4. Billing Determinants'!$B$19:$N$41,4,0)/'4. Billing Determinants'!$E$41*$D6,IF($E6="kW",VLOOKUP(S$4,'4. Billing Determinants'!$B$19:$N$41,5,0)/'4. Billing Determinants'!$F$41*$D6,IF($E6="Non-RPP kWh",VLOOKUP(S$4,'4. Billing Determinants'!$B$19:$N$41,6,0)/'4. Billing Determinants'!$G$41*$D6,IF($E6="Distribution Rev.",VLOOKUP(S$4,'4. Billing Determinants'!$B$19:$N$41,8,0)/'4. Billing Determinants'!$I$41*$D6, VLOOKUP(S$4,'4. Billing Determinants'!$B$19:$N$41,3,0)/'4. Billing Determinants'!$D$41*$D6))))) -> 0 | T6: =IF(T$4="",0,IF($E6="kWh",VLOOKUP(T$4,'4. Billing Determinants'!$B$19:$N$41,4,0)/'4. Billing Determinants'!$E$41*$D6,IF($E6="kW",VLOOKUP(T$4,'4. Billing Determinants'!$B$19:$N$41,5,0)/'4. Billing Determinants'!$F$41*$D6,IF($E6="Non-RPP kWh",VLOOKUP(T$4,'4. Billing Determinants'!$B$19:$N$41,6,0)/'4. Billing Determinants'!$G$41*$D6,IF($E6="Distribution Rev.",VLOOKUP(T$4,'4. Billing Determinants'!$B$19:$N$41,8,0)/'4. Billing Determinants'!$I$41*$D6, VLOOKUP(T$4,'4. Billing Determinants'!$B$19:$N$41,3,0)/'4. Billing Determinants'!$D$41*$D6))))) -> 0 | U6: =IF(U$4="",0,IF($E6="kWh",VLOOKUP(U$4,'4. Billing Determinants'!$B$19:$N$41,4,0)/'4. Billing Determinants'!$E$41*$D6,IF($E6="kW",VLOOKUP(U$4,'4. Billing Determinants'!$B$19:$N$41,5,0)/'4. Billing Determinants'!$F$41*$D6,IF($E6="Non-RPP kWh",VLOOKUP(U$4,'4. Billing Determinants'!$B$19:$N$41,6,0)/'4. Billing Determinants'!$G$41*$D6,IF($E6="Distribution Rev.",VLOOKUP(U$4,'4. Billing Determinants'!$B$19:$N$41,8,0)/'4. Billing Determinants'!$I$41*$D6, VLOOKUP(U$4,'4. Billing Determinants'!$B$19:$N$41,3,0)/'4. Billing Determinants'!$D$41*$D6))))) -> 0 | V6: =IF(V$4="",0,IF($E6="kWh",VLOOKUP(V$4,'4. Billing Determinants'!$B$19:$N$41,4,0)/'4. Billing Determinants'!$E$41*$D6,IF($E6="kW",VLOOKUP(V$4,'4. Billing Determinants'!$B$19:$N$41,5,0)/'4. Billing Determinants'!$F$41*$D6,IF($E6="Non-RPP kWh",VLOOKUP(V$4,'4. Billing Determinants'!$B$19:$N$41,6,0)/'4. Billing Determinants'!$G$41*$D6,IF($E6="Distribution Rev.",VLOOKUP(V$4,'4. Billing Determinants'!$B$19:$N$41,8,0)/'4. Billing Determinants'!$I$41*$D6, VLOOKUP(V$4,'4. Billing Determinants'!$B$19:$N$41,3,0)/'4. Billing Determinants'!$D$41*$D6))))) -> 0 | W6: =IF(W$4="",0,IF($E6="kWh",VLOOKUP(W$4,'4. Billing Determinants'!$B$19:$N$41,4,0)/'4. Billing Determinants'!$E$41*$D6,IF($E6="kW",VLOOKUP(W$4,'4. Billing Determinants'!$B$19:$N$41,5,0)/'4. Billing Determinants'!$F$41*$D6,IF($E6="Non-RPP kWh",VLOOKUP(W$4,'4. Billing Determinants'!$B$19:$N$41,6,0)/'4. Billing Determinants'!$G$41*$D6,IF($E6="Distribution Rev.",VLOOKUP(W$4,'4. Billing Determinants'!$B$19:$N$41,8,0)/'4. Billing Determinants'!$I$41*$D6, VLOOKUP(W$4,'4. Billing Determinants'!$B$19:$N$41,3,0)/'4. Billing Determinants'!$D$41*$D6))))) -> 0 | X6: =IF(X$4="",0,IF($E6="kWh",VLOOKUP(X$4,'4. Billing Determinants'!$B$19:$N$41,4,0)/'4. Billing Determinants'!$E$41*$D6,IF($E6="kW",VLOOKUP(X$4,'4. Billing Determinants'!$B$19:$N$41,5,0)/'4. Billing Determinants'!$F$41*$D6,IF($E6="Non-RPP kWh",VLOOKUP(X$4,'4. Billing Determinants'!$B$19:$N$41,6,0)/'4. Billing Determinants'!$G$41*$D6,IF($E6="Distribution Rev.",VLOOKUP(X$4,'4. Billing Determinants'!$B$19:$N$41,8,0)/'4. Billing Determinants'!$I$41*$D6, VLOOKUP(X$4,'4. Billing Determinants'!$B$19:$N$41,3,0)/'4. Billing Determinants'!$D$41*$D6))))) -> 0 | Y6: =IF(Y$4="",0,IF($E6="kWh",VLOOKUP(Y$4,'4. Billing Determinants'!$B$19:$N$41,4,0)/'4. Billing Determinants'!$E$41*$D6,IF($E6="kW",VLOOKUP(Y$4,'4. Billing Determinants'!$B$19:$N$41,5,0)/'4. Billing Determinants'!$F$41*$D6,IF($E6="Non-RPP kWh",VLOOKUP(Y$4,'4. Billing Determinants'!$B$19:$N$41,6,0)/'4. Billing Determinants'!$G$41*$D6,IF($E6="Distribution Rev.",VLOOKUP(Y$4,'4. Billing Determinants'!$B$19:$N$41,8,0)/'4. Billing Determinants'!$I$41*$D6, VLOOKUP(Y$4,'4. Billing Determinants'!$B$19:$N$41,3,0)/'4. Billing Determinants'!$D$41*$D6))))) -> 0
B7: RSVA - Retail Transmission Network Charge | C7: 1584 | D7: 4155636.85 | E7: kWh | F7: 1496695.317 | G7: 554700.3231 | H7: 1939693.028 | I7: 7845.192672 | J7: 73004.22841 | K7: 37027.7833 | L7: 46670.97844 | M7: =IF(M$4="",0,IF($E7="kWh",VLOOKUP(M$4,'4. Billing Determinants'!$B$19:$N$41,4,0)/'4. Billing Determinants'!$E$41*$D7,IF($E7="kW",VLOOKUP(M$4,'4. Billing Determinants'!$B$19:$N$41,5,0)/'4. Billing Determinants'!$F$41*$D7,IF($E7="Non-RPP kWh",VLOOKUP(M$4,'4. Billing Determinants'!$B$19:$N$41,6,0)/'4. Billing Determinants'!$G$41*$D7,IF($E7="Distribution Rev.",VLOOKUP(M$4,'4. Billing Determinants'!$B$19:$N$41,8,0)/'4. Billing Determinants'!$I$41*$D7, VLOOKUP(M$4,'4. Billing Determinants'!$B$19:$N$41,3,0)/'4. Billing Determinants'!$D$41*$D7))))) -> 0 | N7: =IF(N$4="",0,IF($E7="kWh",VLOOKUP(N$4,'4. Billing Determinants'!$B$19:$N$41,4,0)/'4. Billing Determinants'!$E$41*$D7,IF($E7="kW",VLOOKUP(N$4,'4. Billing Determinants'!$B$19:$N$41,5,0)/'4. Billing Determinants'!$F$41*$D7,IF($E7="Non-RPP kWh",VLOOKUP(N$4,'4. Billing Determinants'!$B$19:$N$41,6,0)/'4. Billing Determinants'!$G$41*$D7,IF($E7="Distribution Rev.",VLOOKUP(N$4,'4. Billing Determinants'!$B$19:$N$41,8,0)/'4. Billing Determinants'!$I$41*$D7, VLOOKUP(N$4,'4. Billing Determinants'!$B$19:$N$41,3,0)/'4. Billing Determinants'!$D$41*$D7))))) -> 0 | O7: =IF(O$4="",0,IF($E7="kWh",VLOOKUP(O$4,'4. Billing Determinants'!$B$19:$N$41,4,0)/'4. Billing Determinants'!$E$41*$D7,IF($E7="kW",VLOOKUP(O$4,'4. Billing Determinants'!$B$19:$N$41,5,0)/'4. Billing Determinants'!$F$41*$D7,IF($E7="Non-RPP kWh",VLOOKUP(O$4,'4. Billing Determinants'!$B$19:$N$41,6,0)/'4. Billing Determinants'!$G$41*$D7,IF($E7="Distribution Rev.",VLOOKUP(O$4,'4. Billing Determinants'!$B$19:$N$41,8,0)/'4. Billing Determinants'!$I$41*$D7, VLOOKUP(O$4,'4. Billing Determinants'!$B$19:$N$41,3,0)/'4. Billing Determinants'!$D$41*$D7))))) -> 0 | P7: =IF(P$4="",0,IF($E7="kWh",VLOOKUP(P$4,'4. Billing Determinants'!$B$19:$N$41,4,0)/'4. Billing Determinants'!$E$41*$D7,IF($E7="kW",VLOOKUP(P$4,'4. Billing Determinants'!$B$19:$N$41,5,0)/'4. Billing Determinants'!$F$41*$D7,IF($E7="Non-RPP kWh",VLOOKUP(P$4,'4. Billing Determinants'!$B$19:$N$41,6,0)/'4. Billing Determinants'!$G$41*$D7,IF($E7="Distribution Rev.",VLOOKUP(P$4,'4. Billing Determinants'!$B$19:$N$41,8,0)/'4. Billing Determinants'!$I$41*$D7, VLOOKUP(P$4,'4. Billing Determinants'!$B$19:$N$41,3,0)/'4. Billing Determinants'!$D$41*$D7))))) -> 0 | Q7: =IF(Q$4="",0,IF($E7="kWh",VLOOKUP(Q$4,'4. Billing Determinants'!$B$19:$N$41,4,0)/'4. Billing Determinants'!$E$41*$D7,IF($E7="kW",VLOOKUP(Q$4,'4. Billing Determinants'!$B$19:$N$41,5,0)/'4. Billing Determinants'!$F$41*$D7,IF($E7="Non-RPP kWh",VLOOKUP(Q$4,'4. Billing Determinants'!$B$19:$N$41,6,0)/'4. Billing Determinants'!$G$41*$D7,IF($E7="Distribution Rev.",VLOOKUP(Q$4,'4. Billing Determinants'!$B$19:$N$41,8,0)/'4. Billing Determinants'!$I$41*$D7, VLOOKUP(Q$4,'4. Billing Determinants'!$B$19:$N$41,3,0)/'4. Billing Determinants'!$D$41*$D7))))) -> 0 | R7: =IF(R$4="",0,IF($E7="kWh",VLOOKUP(R$4,'4. Billing Determinants'!$B$19:$N$41,4,0)/'4. Billing Determinants'!$E$41*$D7,IF($E7="kW",VLOOKUP(R$4,'4. Billing Determinants'!$B$19:$N$41,5,0)/'4. Billing Determinants'!$F$41*$D7,IF($E7="Non-RPP kWh",VLOOKUP(R$4,'4. Billing Determinants'!$B$19:$N$41,6,0)/'4. Billing Determinants'!$G$41*$D7,IF($E7="Distribution Rev.",VLOOKUP(R$4,'4. Billing Determinants'!$B$19:$N$41,8,0)/'4. Billing Determinants'!$I$41*$D7, VLOOKUP(R$4,'4. Billing Determinants'!$B$19:$N$41,3,0)/'4. Billing Determinants'!$D$41*$D7))))) -> 0 | S7: =IF(S$4="",0,IF($E7="kWh",VLOOKUP(S$4,'4. Billing Determinants'!$B$19:$N$41,4,0)/'4. Billing Determinants'!$E$41*$D7,IF($E7="kW",VLOOKUP(S$4,'4. Billing Determinants'!$B$19:$N$41,5,0)/'4. Billing Determinants'!$F$41*$D7,IF($E7="Non-RPP kWh",VLOOKUP(S$4,'4. Billing Determinants'!$B$19:$N$41,6,0)/'4. Billing Determinants'!$G$41*$D7,IF($E7="Distribution Rev.",VLOOKUP(S$4,'4. Billing Determinants'!$B$19:$N$41,8,0)/'4. Billing Determinants'!$I$41*$D7, VLOOKUP(S$4,'4. Billing Determinants'!$B$19:$N$41,3,0)/'4. Billing Determinants'!$D$41*$D7))))) -> 0 | T7: =IF(T$4="",0,IF($E7="kWh",VLOOKUP(T$4,'4. Billing Determinants'!$B$19:$N$41,4,0)/'4. Billing Determinants'!$E$41*$D7,IF($E7="kW",VLOOKUP(T$4,'4. Billing Determinants'!$B$19:$N$41,5,0)/'4. Billing Determinants'!$F$41*$D7,IF($E7="Non-RPP kWh",VLOOKUP(T$4,'4. Billing Determinants'!$B$19:$N$41,6,0)/'4. Billing Determinants'!$G$41*$D7,IF($E7="Distribution Rev.",VLOOKUP(T$4,'4. Billing Determinants'!$B$19:$N$41,8,0)/'4. Billing Determinants'!$I$41*$D7, VLOOKUP(T$4,'4. Billing Determinants'!$B$19:$N$41,3,0)/'4. Billing Determinants'!$D$41*$D7))))) -> 0 | U7: =IF(U$4="",0,IF($E7="kWh",VLOOKUP(U$4,'4. Billing Determinants'!$B$19:$N$41,4,0)/'4. Billing Determinants'!$E$41*$D7,IF($E7="kW",VLOOKUP(U$4,'4. Billing Determinants'!$B$19:$N$41,5,0)/'4. Billing Determinants'!$F$41*$D7,IF($E7="Non-RPP kWh",VLOOKUP(U$4,'4. Billing Determinants'!$B$19:$N$41,6,0)/'4. Billing Determinants'!$G$41*$D7,IF($E7="Distribution Rev.",VLOOKUP(U$4,'4. Billing Determinants'!$B$19:$N$41,8,0)/'4. Billing Determinants'!$I$41*$D7, VLOOKUP(U$4,'4. Billing Determinants'!$B$19:$N$41,3,0)/'4. Billing Determinants'!$D$41*$D7))))) -> 0 | V7: =IF(V$4="",0,IF($E7="kWh",VLOOKUP(V$4,'4. Billing Determinants'!$B$19:$N$41,4,0)/'4. Billing Determinants'!$E$41*$D7,IF($E7="kW",VLOOKUP(V$4,'4. Billing Determinants'!$B$19:$N$41,5,0)/'4. Billing Determinants'!$F$41*$D7,IF($E7="Non-RPP kWh",VLOOKUP(V$4,'4. Billing Determinants'!$B$19:$N$41,6,0)/'4. Billing Determinants'!$G$41*$D7,IF($E7="Distribution Rev.",VLOOKUP(V$4,'4. Billing Determinants'!$B$19:$N$41,8,0)/'4. Billing Determinants'!$I$41*$D7, VLOOKUP(V$4,'4. Billing Determinants'!$B$19:$N$41,3,0)/'4. Billing Determinants'!$D$41*$D7))))) -> 0 | W7: =IF(W$4="",0,IF($E7="kWh",VLOOKUP(W$4,'4. Billing Determinants'!$B$19:$N$41,4,0)/'4. Billing Determinants'!$E$41*$D7,IF($E7="kW",VLOOKUP(W$4,'4. Billing Determinants'!$B$19:$N$41,5,0)/'4. Billing Determinants'!$F$41*$D7,IF($E7="Non-RPP kWh",VLOOKUP(W$4,'4. Billing Determinants'!$B$19:$N$41,6,0)/'4. Billing Determinants'!$G$41*$D7,IF($E7="Distribution Rev.",VLOOKUP(W$4,'4. Billing Determinants'!$B$19:$N$41,8,0)/'4. Billing Determinants'!$I$41*$D7, VLOOKUP(W$4,'4. Billing Determinants'!$B$19:$N$41,3,0)/'4. Billing Determinants'!$D$41*$D7))))) -> 0 | X7: =IF(X$4="",0,IF($E7="kWh",VLOOKUP(X$4,'4. Billing Determinants'!$B$19:$N$41,4,0)/'4. Billing Determinants'!$E$41*$D7,IF($E7="kW",VLOOKUP(X$4,'4. Billing Determinants'!$B$19:$N$41,5,0)/'4. Billing Determinants'!$F$41*$D7,IF($E7="Non-RPP kWh",VLOOKUP(X$4,'4. Billing Determinants'!$B$19:$N$41,6,0)/'4. Billing Determinants'!$G$41*$D7,IF($E7="Distribution Rev.",VLOOKUP(X$4,'4. Billing Determinants'!$B$19:$N$41,8,0)/'4. Billing Determinants'!$I$41*$D7, VLOOKUP(X$4,'4. Billing Determinants'!$B$19:$N$41,3,0)/'4. Billing Determinants'!$D$41*$D7))))) -> 0 | Y7: =IF(Y$4="",0,IF($E7="kWh",VLOOKUP(Y$4,'4. Billing Determinants'!$B$19:$N$41,4,0)/'4. Billing Determinants'!$E$41*$D7,IF($E7="kW",VLOOKUP(Y$4,'4. Billing Determinants'!$B$19:$N$41,5,0)/'4. Billing Determinants'!$F$41*$D7,IF($E7="Non-RPP kWh",VLOOKUP(Y$4,'4. Billing Determinants'!$B$19:$N$41,6,0)/'4. Billing Determinants'!$G$41*$D7,IF($E7="Distribution Rev.",VLOOKUP(Y$4,'4. Billing Determinants'!$B$19:$N$41,8,0)/'4. Billing Determinants'!$I$41*$D7, VLOOKUP(Y$4,'4. Billing Determinants'!$B$19:$N$41,3,0)/'4. Billing Determinants'!$D$41*$D7))))) -> 0
B8: RSVA - Retail Transmission Connection Charge | C8: 1586 | D8: 295254.779 | E8: kWh | F8: 106339.0428 | G8: 39411.02825 | H8: 137813.687 | I8: 557.3948619 | J8: 5186.893874 | K8: 2630.795319 | L8: 3315.936863 | M8: =IF(M$4="",0,IF($E8="kWh",VLOOKUP(M$4,'4. Billing Determinants'!$B$19:$N$41,4,0)/'4. Billing Determinants'!$E$41*$D8,IF($E8="kW",VLOOKUP(M$4,'4. Billing Determinants'!$B$19:$N$41,5,0)/'4. Billing Determinants'!$F$41*$D8,IF($E8="Non-RPP kWh",VLOOKUP(M$4,'4. Billing Determinants'!$B$19:$N$41,6,0)/'4. Billing Determinants'!$G$41*$D8,IF($E8="Distribution Rev.",VLOOKUP(M$4,'4. Billing Determinants'!$B$19:$N$41,8,0)/'4. Billing Determinants'!$I$41*$D8, VLOOKUP(M$4,'4. Billing Determinants'!$B$19:$N$41,3,0)/'4. Billing Determinants'!$D$41*$D8))))) -> 0 | N8: =IF(N$4="",0,IF($E8="kWh",VLOOKUP(N$4,'4. Billing Determinants'!$B$19:$N$41,4,0)/'4. Billing Determinants'!$E$41*$D8,IF($E8="kW",VLOOKUP(N$4,'4. Billing Determinants'!$B$19:$N$41,5,0)/'4. Billing Determinants'!$F$41*$D8,IF($E8="Non-RPP kWh",VLOOKUP(N$4,'4. Billing Determinants'!$B$19:$N$41,6,0)/'4. Billing Determinants'!$G$41*$D8,IF($E8="Distribution Rev.",VLOOKUP(N$4,'4. Billing Determinants'!$B$19:$N$41,8,0)/'4. Billing Determinants'!$I$41*$D8, VLOOKUP(N$4,'4. Billing Determinants'!$B$19:$N$41,3,0)/'4. Billing Determinants'!$D$41*$D8))))) -> 0 | O8: =IF(O$4="",0,IF($E8="kWh",VLOOKUP(O$4,'4. Billing Determinants'!$B$19:$N$41,4,0)/'4. Billing Determinants'!$E$41*$D8,IF($E8="kW",VLOOKUP(O$4,'4. Billing Determinants'!$B$19:$N$41,5,0)/'4. Billing Determinants'!$F$41*$D8,IF($E8="Non-RPP kWh",VLOOKUP(O$4,'4. Billing Determinants'!$B$19:$N$41,6,0)/'4. Billing Determinants'!$G$41*$D8,IF($E8="Distribution Rev.",VLOOKUP(O$4,'4. Billing Determinants'!$B$19:$N$41,8,0)/'4. Billing Determinants'!$I$41*$D8, VLOOKUP(O$4,'4. Billing Determinants'!$B$19:$N$41,3,0)/'4. Billing Determinants'!$D$41*$D8))))) -> 0 | P8: =IF(P$4="",0,IF($E8="kWh",VLOOKUP(P$4,'4. Billing Determinants'!$B$19:$N$41,4,0)/'4. Billing Determinants'!$E$41*$D8,IF($E8="kW",VLOOKUP(P$4,'4. Billing Determinants'!$B$19:$N$41,5,0)/'4. Billing Determinants'!$F$41*$D8,IF($E8="Non-RPP kWh",VLOOKUP(P$4,'4. Billing Determinants'!$B$19:$N$41,6,0)/'4. Billing Determinants'!$G$41*$D8,IF($E8="Distribution Rev.",VLOOKUP(P$4,'4. Billing Determinants'!$B$19:$N$41,8,0)/'4. Billing Determinants'!$I$41*$D8, VLOOKUP(P$4,'4. Billing Determinants'!$B$19:$N$41,3,0)/'4. Billing Determinants'!$D$41*$D8))))) -> 0 | Q8: =IF(Q$4="",0,IF($E8="kWh",VLOOKUP(Q$4,'4. Billing Determinants'!$B$19:$N$41,4,0)/'4. Billing Determinants'!$E$41*$D8,IF($E8="kW",VLOOKUP(Q$4,'4. Billing Determinants'!$B$19:$N$41,5,0)/'4. Billing Determinants'!$F$41*$D8,IF($E8="Non-RPP kWh",VLOOKUP(Q$4,'4. Billing Determinants'!$B$19:$N$41,6,0)/'4. Billing Determinants'!$G$41*$D8,IF($E8="Distribution Rev.",VLOOKUP(Q$4,'4. Billing Determinants'!$B$19:$N$41,8,0)/'4. Billing Determinants'!$I$41*$D8, VLOOKUP(Q$4,'4. Billing Determinants'!$B$19:$N$41,3,0)/'4. Billing Determinants'!$D$41*$D8))))) -> 0 | R8: =IF(R$4="",0,IF($E8="kWh",VLOOKUP(R$4,'4. Billing Determinants'!$B$19:$N$41,4,0)/'4. Billing Determinants'!$E$41*$D8,IF($E8="kW",VLOOKUP(R$4,'4. Billing Determinants'!$B$19:$N$41,5,0)/'4. Billing Determinants'!$F$41*$D8,IF($E8="Non-RPP kWh",VLOOKUP(R$4,'4. Billing Determinants'!$B$19:$N$41,6,0)/'4. Billing Determinants'!$G$41*$D8,IF($E8="Distribution Rev.",VLOOKUP(R$4,'4. Billing Determinants'!$B$19:$N$41,8,0)/'4. Billing Determinants'!$I$41*$D8, VLOOKUP(R$4,'4. Billing Determinants'!$B$19:$N$41,3,0)/'4. Billing Determinants'!$D$41*$D8))))) -> 0 | S8: =IF(S$4="",0,IF($E8="kWh",VLOOKUP(S$4,'4. Billing Determinants'!$B$19:$N$41,4,0)/'4. Billing Determinants'!$E$41*$D8,IF($E8="kW",VLOOKUP(S$4,'4. Billing Determinants'!$B$19:$N$41,5,0)/'4. Billing Determinants'!$F$41*$D8,IF($E8="Non-RPP kWh",VLOOKUP(S$4,'4. Billing Determinants'!$B$19:$N$41,6,0)/'4. Billing Determinants'!$G$41*$D8,IF($E8="Distribution Rev.",VLOOKUP(S$4,'4. Billing Determinants'!$B$19:$N$41,8,0)/'4. Billing Determinants'!$I$41*$D8, VLOOKUP(S$4,'4. Billing Determinants'!$B$19:$N$41,3,0)/'4. Billing Determinants'!$D$41*$D8))))) -> 0 | T8: =IF(T$4="",0,IF($E8="kWh",VLOOKUP(T$4,'4. Billing Determinants'!$B$19:$N$41,4,0)/'4. Billing Determinants'!$E$41*$D8,IF($E8="kW",VLOOKUP(T$4,'4. Billing Determinants'!$B$19:$N$41,5,0)/'4. Billing Determinants'!$F$41*$D8,IF($E8="Non-RPP kWh",VLOOKUP(T$4,'4. Billing Determinants'!$B$19:$N$41,6,0)/'4. Billing Determinants'!$G$41*$D8,IF($E8="Distribution Rev.",VLOOKUP(T$4,'4. Billing Determinants'!$B$19:$N$41,8,0)/'4. Billing Determinants'!$I$41*$D8, VLOOKUP(T$4,'4. Billing Determinants'!$B$19:$N$41,3,0)/'4. Billing Determinants'!$D$41*$D8))))) -> 0 | U8: =IF(U$4="",0,IF($E8="kWh",VLOOKUP(U$4,'4. Billing Determinants'!$B$19:$N$41,4,0)/'4. Billing Determinants'!$E$41*$D8,IF($E8="kW",VLOOKUP(U$4,'4. Billing Determinants'!$B$19:$N$41,5,0)/'4. Billing Determinants'!$F$41*$D8,IF($E8="Non-RPP kWh",VLOOKUP(U$4,'4. Billing Determinants'!$B$19:$N$41,6,0)/'4. Billing Determinants'!$G$41*$D8,IF($E8="Distribution Rev.",VLOOKUP(U$4,'4. Billing Determinants'!$B$19:$N$41,8,0)/'4. Billing Determinants'!$I$41*$D8, VLOOKUP(U$4,'4. Billing Determinants'!$B$19:$N$41,3,0)/'4. Billing Determinants'!$D$41*$D8))))) -> 0 | V8: =IF(V$4="",0,IF($E8="kWh",VLOOKUP(V$4,'4. Billing Determinants'!$B$19:$N$41,4,0)/'4. Billing Determinants'!$E$41*$D8,IF($E8="kW",VLOOKUP(V$4,'4. Billing Determinants'!$B$19:$N$41,5,0)/'4. Billing Determinants'!$F$41*$D8,IF($E8="Non-RPP kWh",VLOOKUP(V$4,'4. Billing Determinants'!$B$19:$N$41,6,0)/'4. Billing Determinants'!$G$41*$D8,IF($E8="Distribution Rev.",VLOOKUP(V$4,'4. Billing Determinants'!$B$19:$N$41,8,0)/'4. Billing Determinants'!$I$41*$D8, VLOOKUP(V$4,'4. Billing Determinants'!$B$19:$N$41,3,0)/'4. Billing Determinants'!$D$41*$D8))))) -> 0 | W8: =IF(W$4="",0,IF($E8="kWh",VLOOKUP(W$4,'4. Billing Determinants'!$B$19:$N$41,4,0)/'4. Billing Determinants'!$E$41*$D8,IF($E8="kW",VLOOKUP(W$4,'4. Billing Determinants'!$B$19:$N$41,5,0)/'4. Billing Determinants'!$F$41*$D8,IF($E8="Non-RPP kWh",VLOOKUP(W$4,'4. Billing Determinants'!$B$19:$N$41,6,0)/'4. Billing Determinants'!$G$41*$D8,IF($E8="Distribution Rev.",VLOOKUP(W$4,'4. Billing Determinants'!$B$19:$N$41,8,0)/'4. Billing Determinants'!$I$41*$D8, VLOOKUP(W$4,'4. Billing Determinants'!$B$19:$N$41,3,0)/'4. Billing Determinants'!$D$41*$D8))))) -> 0 | X8: =IF(X$4="",0,IF($E8="kWh",VLOOKUP(X$4,'4. Billing Determinants'!$B$19:$N$41,4,0)/'4. Billing Determinants'!$E$41*$D8,IF($E8="kW",VLOOKUP(X$4,'4. Billing Determinants'!$B$19:$N$41,5,0)/'4. Billing Determinants'!$F$41*$D8,IF($E8="Non-RPP kWh",VLOOKUP(X$4,'4. Billing Determinants'!$B$19:$N$41,6,0)/'4. Billing Determinants'!$G$41*$D8,IF($E8="Distribution Rev.",VLOOKUP(X$4,'4. Billing Determinants'!$B$19:$N$41,8,0)/'4. Billing Determinants'!$I$41*$D8, VLOOKUP(X$4,'4. Billing Determinants'!$B$19:$N$41,3,0)/'4. Billing Determinants'!$D$41*$D8))))) -> 0 | Y8: =IF(Y$4="",0,IF($E8="kWh",VLOOKUP(Y$4,'4. Billing Determinants'!$B$19:$N$41,4,0)/'4. Billing Determinants'!$E$41*$D8,IF($E8="kW",VLOOKUP(Y$4,'4. Billing Determinants'!$B$19:$N$41,5,0)/'4. Billing Determinants'!$F$41*$D8,IF($E8="Non-RPP kWh",VLOOKUP(Y$4,'4. Billing Determinants'!$B$19:$N$41,6,0)/'4. Billing Determinants'!$G$41*$D8,IF($E8="Distribution Rev.",VLOOKUP(Y$4,'4. Billing Determinants'!$B$19:$N$41,8,0)/'4. Billing Determinants'!$I$41*$D8, VLOOKUP(Y$4,'4. Billing Determinants'!$B$19:$N$41,3,0)/'4. Billing Determinants'!$D$41*$D8))))) -> 0
B9: RSVA - Power (excluding Global Adjustment) | C9: 1588 | D9: 1458792.992 | E9: kWh | F9: 525399.2871 | G9: 194721.7654 | H9: 680909.0151 | I9: 2753.973097 | J9: 25627.37328 | K9: 12998.21729 | L9: 16383.36041 | M9: =IF(M$4="",0,IF($E9="kWh",VLOOKUP(M$4,'4. Billing Determinants'!$B$19:$N$41,4,0)/'4. Billing Determinants'!$E$41*$D9,IF($E9="kW",VLOOKUP(M$4,'4. Billing Determinants'!$B$19:$N$41,5,0)/'4. Billing Determinants'!$F$41*$D9,IF($E9="Non-RPP kWh",VLOOKUP(M$4,'4. Billing Determinants'!$B$19:$N$41,6,0)/'4. Billing Determinants'!$G$41*$D9,IF($E9="Distribution Rev.",VLOOKUP(M$4,'4. Billing Determinants'!$B$19:$N$41,8,0)/'4. Billing Determinants'!$I$41*$D9, VLOOKUP(M$4,'4. Billing Determinants'!$B$19:$N$41,3,0)/'4. Billing Determinants'!$D$41*$D9))))) -> 0 | N9: =IF(N$4="",0,IF($E9="kWh",VLOOKUP(N$4,'4. Billing Determinants'!$B$19:$N$41,4,0)/'4. Billing Determinants'!$E$41*$D9,IF($E9="kW",VLOOKUP(N$4,'4. Billing Determinants'!$B$19:$N$41,5,0)/'4. Billing Determinants'!$F$41*$D9,IF($E9="Non-RPP kWh",VLOOKUP(N$4,'4. Billing Determinants'!$B$19:$N$41,6,0)/'4. Billing Determinants'!$G$41*$D9,IF($E9="Distribution Rev.",VLOOKUP(N$4,'4. Billing Determinants'!$B$19:$N$41,8,0)/'4. Billing Determinants'!$I$41*$D9, VLOOKUP(N$4,'4. Billing Determinants'!$B$19:$N$41,3,0)/'4. Billing Determinants'!$D$41*$D9))))) -> 0 | O9: =IF(O$4="",0,IF($E9="kWh",VLOOKUP(O$4,'4. Billing Determinants'!$B$19:$N$41,4,0)/'4. Billing Determinants'!$E$41*$D9,IF($E9="kW",VLOOKUP(O$4,'4. Billing Determinants'!$B$19:$N$41,5,0)/'4. Billing Determinants'!$F$41*$D9,IF($E9="Non-RPP kWh",VLOOKUP(O$4,'4. Billing Determinants'!$B$19:$N$41,6,0)/'4. Billing Determinants'!$G$41*$D9,IF($E9="Distribution Rev.",VLOOKUP(O$4,'4. Billing Determinants'!$B$19:$N$41,8,0)/'4. Billing Determinants'!$I$41*$D9, VLOOKUP(O$4,'4. Billing Determinants'!$B$19:$N$41,3,0)/'4. Billing Determinants'!$D$41*$D9))))) -> 0 | P9: =IF(P$4="",0,IF($E9="kWh",VLOOKUP(P$4,'4. Billing Determinants'!$B$19:$N$41,4,0)/'4. Billing Determinants'!$E$41*$D9,IF($E9="kW",VLOOKUP(P$4,'4. Billing Determinants'!$B$19:$N$41,5,0)/'4. Billing Determinants'!$F$41*$D9,IF($E9="Non-RPP kWh",VLOOKUP(P$4,'4. Billing Determinants'!$B$19:$N$41,6,0)/'4. Billing Determinants'!$G$41*$D9,IF($E9="Distribution Rev.",VLOOKUP(P$4,'4. Billing Determinants'!$B$19:$N$41,8,0)/'4. Billing Determinants'!$I$41*$D9, VLOOKUP(P$4,'4. Billing Determinants'!$B$19:$N$41,3,0)/'4. Billing Determinants'!$D$41*$D9))))) -> 0 | Q9: =IF(Q$4="",0,IF($E9="kWh",VLOOKUP(Q$4,'4. Billing Determinants'!$B$19:$N$41,4,0)/'4. Billing Determinants'!$E$41*$D9,IF($E9="kW",VLOOKUP(Q$4,'4. Billing Determinants'!$B$19:$N$41,5,0)/'4. Billing Determinants'!$F$41*$D9,IF($E9="Non-RPP kWh",VLOOKUP(Q$4,'4. Billing Determinants'!$B$19:$N$41,6,0)/'4. Billing Determinants'!$G$41*$D9,IF($E9="Distribution Rev.",VLOOKUP(Q$4,'4. Billing Determinants'!$B$19:$N$41,8,0)/'4. Billing Determinants'!$I$41*$D9, VLOOKUP(Q$4,'4. Billing Determinants'!$B$19:$N$41,3,0)/'4. Billing Determinants'!$D$41*$D9))))) -> 0 | R9: =IF(R$4="",0,IF($E9="kWh",VLOOKUP(R$4,'4. Billing Determinants'!$B$19:$N$41,4,0)/'4. Billing Determinants'!$E$41*$D9,IF($E9="kW",VLOOKUP(R$4,'4. Billing Determinants'!$B$19:$N$41,5,0)/'4. Billing Determinants'!$F$41*$D9,IF($E9="Non-RPP kWh",VLOOKUP(R$4,'4. Billing Determinants'!$B$19:$N$41,6,0)/'4. Billing Determinants'!$G$41*$D9,IF($E9="Distribution Rev.",VLOOKUP(R$4,'4. Billing Determinants'!$B$19:$N$41,8,0)/'4. Billing Determinants'!$I$41*$D9, VLOOKUP(R$4,'4. Billing Determinants'!$B$19:$N$41,3,0)/'4. Billing Determinants'!$D$41*$D9))))) -> 0 | S9: =IF(S$4="",0,IF($E9="kWh",VLOOKUP(S$4,'4. Billing Determinants'!$B$19:$N$41,4,0)/'4. Billing Determinants'!$E$41*$D9,IF($E9="kW",VLOOKUP(S$4,'4. Billing Determinants'!$B$19:$N$41,5,0)/'4. Billing Determinants'!$F$41*$D9,IF($E9="Non-RPP kWh",VLOOKUP(S$4,'4. Billing Determinants'!$B$19:$N$41,6,0)/'4. Billing Determinants'!$G$41*$D9,IF($E9="Distribution Rev.",VLOOKUP(S$4,'4. Billing Determinants'!$B$19:$N$41,8,0)/'4. Billing Determinants'!$I$41*$D9, VLOOKUP(S$4,'4. Billing Determinants'!$B$19:$N$41,3,0)/'4. Billing Determinants'!$D$41*$D9))))) -> 0 | T9: =IF(T$4="",0,IF($E9="kWh",VLOOKUP(T$4,'4. Billing Determinants'!$B$19:$N$41,4,0)/'4. Billing Determinants'!$E$41*$D9,IF($E9="kW",VLOOKUP(T$4,'4. Billing Determinants'!$B$19:$N$41,5,0)/'4. Billing Determinants'!$F$41*$D9,IF($E9="Non-RPP kWh",VLOOKUP(T$4,'4. Billing Determinants'!$B$19:$N$41,6,0)/'4. Billing Determinants'!$G$41*$D9,IF($E9="Distribution Rev.",VLOOKUP(T$4,'4. Billing Determinants'!$B$19:$N$41,8,0)/'4. Billing Determinants'!$I$41*$D9, VLOOKUP(T$4,'4. Billing Determinants'!$B$19:$N$41,3,0)/'4. Billing Determinants'!$D$41*$D9))))) -> 0 | U9: =IF(U$4="",0,IF($E9="kWh",VLOOKUP(U$4,'4. Billing Determinants'!$B$19:$N$41,4,0)/'4. Billing Determinants'!$E$41*$D9,IF($E9="kW",VLOOKUP(U$4,'4. Billing Determinants'!$B$19:$N$41,5,0)/'4. Billing Determinants'!$F$41*$D9,IF($E9="Non-RPP kWh",VLOOKUP(U$4,'4. Billing Determinants'!$B$19:$N$41,6,0)/'4. Billing Determinants'!$G$41*$D9,IF($E9="Distribution Rev.",VLOOKUP(U$4,'4. Billing Determinants'!$B$19:$N$41,8,0)/'4. Billing Determinants'!$I$41*$D9, VLOOKUP(U$4,'4. Billing Determinants'!$B$19:$N$41,3,0)/'4. Billing Determinants'!$D$41*$D9))))) -> 0 | V9: =IF(V$4="",0,IF($E9="kWh",VLOOKUP(V$4,'4. Billing Determinants'!$B$19:$N$41,4,0)/'4. Billing Determinants'!$E$41*$D9,IF($E9="kW",VLOOKUP(V$4,'4. Billing Determinants'!$B$19:$N$41,5,0)/'4. Billing Determinants'!$F$41*$D9,IF($E9="Non-RPP kWh",VLOOKUP(V$4,'4. Billing Determinants'!$B$19:$N$41,6,0)/'4. Billing Determinants'!$G$41*$D9,IF($E9="Distribution Rev.",VLOOKUP(V$4,'4. Billing Determinants'!$B$19:$N$41,8,0)/'4. Billing Determinants'!$I$41*$D9, VLOOKUP(V$4,'4. Billing Determinants'!$B$19:$N$41,3,0)/'4. Billing Determinants'!$D$41*$D9))))) -> 0 | W9: =IF(W$4="",0,IF($E9="kWh",VLOOKUP(W$4,'4. Billing Determinants'!$B$19:$N$41,4,0)/'4. Billing Determinants'!$E$41*$D9,IF($E9="kW",VLOOKUP(W$4,'4. Billing Determinants'!$B$19:$N$41,5,0)/'4. Billing Determinants'!$F$41*$D9,IF($E9="Non-RPP kWh",VLOOKUP(W$4,'4. Billing Determinants'!$B$19:$N$41,6,0)/'4. Billing Determinants'!$G$41*$D9,IF($E9="Distribution Rev.",VLOOKUP(W$4,'4. Billing Determinants'!$B$19:$N$41,8,0)/'4. Billing Determinants'!$I$41*$D9, VLOOKUP(W$4,'4. Billing Determinants'!$B$19:$N$41,3,0)/'4. Billing Determinants'!$D$41*$D9))))) -> 0 | X9: =IF(X$4="",0,IF($E9="kWh",VLOOKUP(X$4,'4. Billing Determinants'!$B$19:$N$41,4,0)/'4. Billing Determinants'!$E$41*$D9,IF($E9="kW",VLOOKUP(X$4,'4. Billing Determinants'!$B$19:$N$41,5,0)/'4. Billing Determinants'!$F$41*$D9,IF($E9="Non-RPP kWh",VLOOKUP(X$4,'4. Billing Determinants'!$B$19:$N$41,6,0)/'4. Billing Determinants'!$G$41*$D9,IF($E9="Distribution Rev.",VLOOKUP(X$4,'4. Billing Determinants'!$B$19:$N$41,8,0)/'4. Billing Determinants'!$I$41*$D9, VLOOKUP(X$4,'4. Billing Determinants'!$B$19:$N$41,3,0)/'4. Billing Determinants'!$D$41*$D9))))) -> 0 | Y9: =IF(Y$4="",0,IF($E9="kWh",VLOOKUP(Y$4,'4. Billing Determinants'!$B$19:$N$41,4,0)/'4. Billing Determinants'!$E$41*$D9,IF($E9="kW",VLOOKUP(Y$4,'4. Billing Determinants'!$B$19:$N$41,5,0)/'4. Billing Determinants'!$F$41*$D9,IF($E9="Non-RPP kWh",VLOOKUP(Y$4,'4. Billing Determinants'!$B$19:$N$41,6,0)/'4. Billing Determinants'!$G$41*$D9,IF($E9="Distribution Rev.",VLOOKUP(Y$4,'4. Billing Determinants'!$B$19:$N$41,8,0)/'4. Billing Determinants'!$I$41*$D9, VLOOKUP(Y$4,'4. Billing Determinants'!$B$19:$N$41,3,0)/'4. Billing Determinants'!$D$41*$D9))))) -> 0
B10: RSVA - Power - Sub-account - Global Adjustment | C10: 1588 | D10: 2948415.599 | E10: Non-RPP kWh | F10: 1897398.809 | G10: 653327.5412 | H10: 381348.1783 | I10: 16070.61946 | J10: 0 | K10: 270.4514047 | L10: 0 | M10: =IF(M$4="",0,IF($E10="kWh",VLOOKUP(M$4,'4. Billing Determinants'!$B$19:$N$41,4,0)/'4. Billing Determinants'!$E$41*$D10,IF($E10="kW",VLOOKUP(M$4,'4. Billing Determinants'!$B$19:$N$41,5,0)/'4. Billing Determinants'!$F$41*$D10,IF($E10="Non-RPP kWh",VLOOKUP(M$4,'4. Billing Determinants'!$B$19:$N$41,6,0)/'4. Billing Determinants'!$G$41*$D10,IF($E10="Distribution Rev.",VLOOKUP(M$4,'4. Billing Determinants'!$B$19:$N$41,8,0)/'4. Billing Determinants'!$I$41*$D10, VLOOKUP(M$4,'4. Billing Determinants'!$B$19:$N$41,3,0)/'4. Billing Determinants'!$D$41*$D10))))) -> 0 | N10: =IF(N$4="",0,IF($E10="kWh",VLOOKUP(N$4,'4. Billing Determinants'!$B$19:$N$41,4,0)/'4. Billing Determinants'!$E$41*$D10,IF($E10="kW",VLOOKUP(N$4,'4. Billing Determinants'!$B$19:$N$41,5,0)/'4. Billing Determinants'!$F$41*$D10,IF($E10="Non-RPP kWh",VLOOKUP(N$4,'4. Billing Determinants'!$B$19:$N$41,6,0)/'4. Billing Determinants'!$G$41*$D10,IF($E10="Distribution Rev.",VLOOKUP(N$4,'4. Billing Determinants'!$B$19:$N$41,8,0)/'4. Billing Determinants'!$I$41*$D10, VLOOKUP(N$4,'4. Billing Determinants'!$B$19:$N$41,3,0)/'4. Billing Determinants'!$D$41*$D10))))) -> 0 | O10: =IF(O$4="",0,IF($E10="kWh",VLOOKUP(O$4,'4. Billing Determinants'!$B$19:$N$41,4,0)/'4. Billing Determinants'!$E$41*$D10,IF($E10="kW",VLOOKUP(O$4,'4. Billing Determinants'!$B$19:$N$41,5,0)/'4. Billing Determinants'!$F$41*$D10,IF($E10="Non-RPP kWh",VLOOKUP(O$4,'4. Billing Determinants'!$B$19:$N$41,6,0)/'4. Billing Determinants'!$G$41*$D10,IF($E10="Distribution Rev.",VLOOKUP(O$4,'4. Billing Determinants'!$B$19:$N$41,8,0)/'4. Billing Determinants'!$I$41*$D10, VLOOKUP(O$4,'4. Billing Determinants'!$B$19:$N$41,3,0)/'4. Billing Determinants'!$D$41*$D10))))) -> 0 | P10: =IF(P$4="",0,IF($E10="kWh",VLOOKUP(P$4,'4. Billing Determinants'!$B$19:$N$41,4,0)/'4. Billing Determinants'!$E$41*$D10,IF($E10="kW",VLOOKUP(P$4,'4. Billing Determinants'!$B$19:$N$41,5,0)/'4. Billing Determinants'!$F$41*$D10,IF($E10="Non-RPP kWh",VLOOKUP(P$4,'4. Billing Determinants'!$B$19:$N$41,6,0)/'4. Billing Determinants'!$G$41*$D10,IF($E10="Distribution Rev.",VLOOKUP(P$4,'4. Billing Determinants'!$B$19:$N$41,8,0)/'4. Billing Determinants'!$I$41*$D10, VLOOKUP(P$4,'4. Billing Determinants'!$B$19:$N$41,3,0)/'4. Billing Determinants'!$D$41*$D10))))) -> 0 | Q10: =IF(Q$4="",0,IF($E10="kWh",VLOOKUP(Q$4,'4. Billing Determinants'!$B$19:$N$41,4,0)/'4. Billing Determinants'!$E$41*$D10,IF($E10="kW",VLOOKUP(Q$4,'4. Billing Determinants'!$B$19:$N$41,5,0)/'4. Billing Determinants'!$F$41*$D10,IF($E10="Non-RPP kWh",VLOOKUP(Q$4,'4. Billing Determinants'!$B$19:$N$41,6,0)/'4. Billing Determinants'!$G$41*$D10,IF($E10="Distribution Rev.",VLOOKUP(Q$4,'4. Billing Determinants'!$B$19:$N$41,8,0)/'4. Billing Determinants'!$I$41*$D10, VLOOKUP(Q$4,'4. Billing Determinants'!$B$19:$N$41,3,0)/'4. Billing Determinants'!$D$41*$D10))))) -> 0 | R10: =IF(R$4="",0,IF($E10="kWh",VLOOKUP(R$4,'4. Billing Determinants'!$B$19:$N$41,4,0)/'4. Billing Determinants'!$E$41*$D10,IF($E10="kW",VLOOKUP(R$4,'4. Billing Determinants'!$B$19:$N$41,5,0)/'4. Billing Determinants'!$F$41*$D10,IF($E10="Non-RPP kWh",VLOOKUP(R$4,'4. Billing Determinants'!$B$19:$N$41,6,0)/'4. Billing Determinants'!$G$41*$D10,IF($E10="Distribution Rev.",VLOOKUP(R$4,'4. Billing Determinants'!$B$19:$N$41,8,0)/'4. Billing Determinants'!$I$41*$D10, VLOOKUP(R$4,'4. Billing Determinants'!$B$19:$N$41,3,0)/'4. Billing Determinants'!$D$41*$D10))))) -> 0 | S10: =IF(S$4="",0,IF($E10="kWh",VLOOKUP(S$4,'4. Billing Determinants'!$B$19:$N$41,4,0)/'4. Billing Determinants'!$E$41*$D10,IF($E10="kW",VLOOKUP(S$4,'4. Billing Determinants'!$B$19:$N$41,5,0)/'4. Billing Determinants'!$F$41*$D10,IF($E10="Non-RPP kWh",VLOOKUP(S$4,'4. Billing Determinants'!$B$19:$N$41,6,0)/'4. Billing Determinants'!$G$41*$D10,IF($E10="Distribution Rev.",VLOOKUP(S$4,'4. Billing Determinants'!$B$19:$N$41,8,0)/'4. Billing Determinants'!$I$41*$D10, VLOOKUP(S$4,'4. Billing Determinants'!$B$19:$N$41,3,0)/'4. Billing Determinants'!$D$41*$D10))))) -> 0 | T10: =IF(T$4="",0,IF($E10="kWh",VLOOKUP(T$4,'4. Billing Determinants'!$B$19:$N$41,4,0)/'4. Billing Determinants'!$E$41*$D10,IF($E10="kW",VLOOKUP(T$4,'4. Billing Determinants'!$B$19:$N$41,5,0)/'4. Billing Determinants'!$F$41*$D10,IF($E10="Non-RPP kWh",VLOOKUP(T$4,'4. Billing Determinants'!$B$19:$N$41,6,0)/'4. Billing Determinants'!$G$41*$D10,IF($E10="Distribution Rev.",VLOOKUP(T$4,'4. Billing Determinants'!$B$19:$N$41,8,0)/'4. Billing Determinants'!$I$41*$D10, VLOOKUP(T$4,'4. Billing Determinants'!$B$19:$N$41,3,0)/'4. Billing Determinants'!$D$41*$D10))))) -> 0 | U10: =IF(U$4="",0,IF($E10="kWh",VLOOKUP(U$4,'4. Billing Determinants'!$B$19:$N$41,4,0)/'4. Billing Determinants'!$E$41*$D10,IF($E10="kW",VLOOKUP(U$4,'4. Billing Determinants'!$B$19:$N$41,5,0)/'4. Billing Determinants'!$F$41*$D10,IF($E10="Non-RPP kWh",VLOOKUP(U$4,'4. Billing Determinants'!$B$19:$N$41,6,0)/'4. Billing Determinants'!$G$41*$D10,IF($E10="Distribution Rev.",VLOOKUP(U$4,'4. Billing Determinants'!$B$19:$N$41,8,0)/'4. Billing Determinants'!$I$41*$D10, VLOOKUP(U$4,'4. Billing Determinants'!$B$19:$N$41,3,0)/'4. Billing Determinants'!$D$41*$D10))))) -> 0 | V10: =IF(V$4="",0,IF($E10="kWh",VLOOKUP(V$4,'4. Billing Determinants'!$B$19:$N$41,4,0)/'4. Billing Determinants'!$E$41*$D10,IF($E10="kW",VLOOKUP(V$4,'4. Billing Determinants'!$B$19:$N$41,5,0)/'4. Billing Determinants'!$F$41*$D10,IF($E10="Non-RPP kWh",VLOOKUP(V$4,'4. Billing Determinants'!$B$19:$N$41,6,0)/'4. Billing Determinants'!$G$41*$D10,IF($E10="Distribution Rev.",VLOOKUP(V$4,'4. Billing Determinants'!$B$19:$N$41,8,0)/'4. Billing Determinants'!$I$41*$D10, VLOOKUP(V$4,'4. Billing Determinants'!$B$19:$N$41,3,0)/'4. Billing Determinants'!$D$41*$D10))))) -> 0 | W10: =IF(W$4="",0,IF($E10="kWh",VLOOKUP(W$4,'4. Billing Determinants'!$B$19:$N$41,4,0)/'4. Billing Determinants'!$E$41*$D10,IF($E10="kW",VLOOKUP(W$4,'4. Billing Determinants'!$B$19:$N$41,5,0)/'4. Billing Determinants'!$F$41*$D10,IF($E10="Non-RPP kWh",VLOOKUP(W$4,'4. Billing Determinants'!$B$19:$N$41,6,0)/'4. Billing Determinants'!$G$41*$D10,IF($E10="Distribution Rev.",VLOOKUP(W$4,'4. Billing Determinants'!$B$19:$N$41,8,0)/'4. Billing Determinants'!$I$41*$D10, VLOOKUP(W$4,'4. Billing Determinants'!$B$19:$N$41,3,0)/'4. Billing Determinants'!$D$41*$D10))))) -> 0 | X10: =IF(X$4="",0,IF($E10="kWh",VLOOKUP(X$4,'4. Billing Determinants'!$B$19:$N$41,4,0)/'4. Billing Determinants'!$E$41*$D10,IF($E10="kW",VLOOKUP(X$4,'4. Billing Determinants'!$B$19:$N$41,5,0)/'4. Billing Determinants'!$F$41*$D10,IF($E10="Non-RPP kWh",VLOOKUP(X$4,'4. Billing Determinants'!$B$19:$N$41,6,0)/'4. Billing Determinants'!$G$41*$D10,IF($E10="Distribution Rev.",VLOOKUP(X$4,'4. Billing Determinants'!$B$19:$N$41,8,0)/'4. Billing Determinants'!$I$41*$D10, VLOOKUP(X$4,'4. Billing Determinants'!$B$19:$N$41,3,0)/'4. Billing Determinants'!$D$41*$D10))))) -> 0 | Y10: =IF(Y$4="",0,IF($E10="kWh",VLOOKUP(Y$4,'4. Billing Determinants'!$B$19:$N$41,4,0)/'4. Billing Determinants'!$E$41*$D10,IF($E10="kW",VLOOKUP(Y$4,'4. Billing Determinants'!$B$19:$N$41,5,0)/'4. Billing Determinants'!$F$41*$D10,IF($E10="Non-RPP kWh",VLOOKUP(Y$4,'4. Billing Determinants'!$B$19:$N$41,6,0)/'4. Billing Determinants'!$G$41*$D10,IF($E10="Distribution Rev.",VLOOKUP(Y$4,'4. Billing Determinants'!$B$19:$N$41,8,0)/'4. Billing Determinants'!$I$41*$D10, VLOOKUP(Y$4,'4. Billing Determinants'!$B$19:$N$41,3,0)/'4. Billing Determinants'!$D$41*$D10))))) -> 0
B11: Recovery of Regulatory Asset Balances | C11: 1590 | D11: -0.001193333303 | E11: kWh | F11: -0.0004297912523 | G11: -0.0001592878282 | H11: -0.0005570025416 | I11: -2.252826708e-06 | J11: -2.096390521e-05 | K11: -1.063290382e-05 | L11: -1.340204519e-05 | M11: =IF(M$4="",0,IF($E11="kWh",VLOOKUP(M$4,'4. Billing Determinants'!$B$19:$N$41,4,0)/'4. Billing Determinants'!$E$41*$D11,IF($E11="kW",VLOOKUP(M$4,'4. Billing Determinants'!$B$19:$N$41,5,0)/'4. Billing Determinants'!$F$41*$D11,IF($E11="Non-RPP kWh",VLOOKUP(M$4,'4. Billing Determinants'!$B$19:$N$41,6,0)/'4. Billing Determinants'!$G$41*$D11,IF($E11="Distribution Rev.",VLOOKUP(M$4,'4. Billing Determinants'!$B$19:$N$41,8,0)/'4. Billing Determinants'!$I$41*$D11, VLOOKUP(M$4,'4. Billing Determinants'!$B$19:$N$41,3,0)/'4. Billing Determinants'!$D$41*$D11))))) -> 0 | N11: =IF(N$4="",0,IF($E11="kWh",VLOOKUP(N$4,'4. Billing Determinants'!$B$19:$N$41,4,0)/'4. Billing Determinants'!$E$41*$D11,IF($E11="kW",VLOOKUP(N$4,'4. Billing Determinants'!$B$19:$N$41,5,0)/'4. Billing Determinants'!$F$41*$D11,IF($E11="Non-RPP kWh",VLOOKUP(N$4,'4. Billing Determinants'!$B$19:$N$41,6,0)/'4. Billing Determinants'!$G$41*$D11,IF($E11="Distribution Rev.",VLOOKUP(N$4,'4. Billing Determinants'!$B$19:$N$41,8,0)/'4. Billing Determinants'!$I$41*$D11, VLOOKUP(N$4,'4. Billing Determinants'!$B$19:$N$41,3,0)/'4. Billing Determinants'!$D$41*$D11))))) -> 0 | O11: =IF(O$4="",0,IF($E11="kWh",VLOOKUP(O$4,'4. Billing Determinants'!$B$19:$N$41,4,0)/'4. Billing Determinants'!$E$41*$D11,IF($E11="kW",VLOOKUP(O$4,'4. Billing Determinants'!$B$19:$N$41,5,0)/'4. Billing Determinants'!$F$41*$D11,IF($E11="Non-RPP kWh",VLOOKUP(O$4,'4. Billing Determinants'!$B$19:$N$41,6,0)/'4. Billing Determinants'!$G$41*$D11,IF($E11="Distribution Rev.",VLOOKUP(O$4,'4. Billing Determinants'!$B$19:$N$41,8,0)/'4. Billing Determinants'!$I$41*$D11, VLOOKUP(O$4,'4. Billing Determinants'!$B$19:$N$41,3,0)/'4. Billing Determinants'!$D$41*$D11))))) -> 0 | P11: =IF(P$4="",0,IF($E11="kWh",VLOOKUP(P$4,'4. Billing Determinants'!$B$19:$N$41,4,0)/'4. Billing Determinants'!$E$41*$D11,IF($E11="kW",VLOOKUP(P$4,'4. Billing Determinants'!$B$19:$N$41,5,0)/'4. Billing Determinants'!$F$41*$D11,IF($E11="Non-RPP kWh",VLOOKUP(P$4,'4. Billing Determinants'!$B$19:$N$41,6,0)/'4. Billing Determinants'!$G$41*$D11,IF($E11="Distribution Rev.",VLOOKUP(P$4,'4. Billing Determinants'!$B$19:$N$41,8,0)/'4. Billing Determinants'!$I$41*$D11, VLOOKUP(P$4,'4. Billing Determinants'!$B$19:$N$41,3,0)/'4. Billing Determinants'!$D$41*$D11))))) -> 0 | Q11: =IF(Q$4="",0,IF($E11="kWh",VLOOKUP(Q$4,'4. Billing Determinants'!$B$19:$N$41,4,0)/'4. Billing Determinants'!$E$41*$D11,IF($E11="kW",VLOOKUP(Q$4,'4. Billing Determinants'!$B$19:$N$41,5,0)/'4. Billing Determinants'!$F$41*$D11,IF($E11="Non-RPP kWh",VLOOKUP(Q$4,'4. Billing Determinants'!$B$19:$N$41,6,0)/'4. Billing Determinants'!$G$41*$D11,IF($E11="Distribution Rev.",VLOOKUP(Q$4,'4. Billing Determinants'!$B$19:$N$41,8,0)/'4. Billing Determinants'!$I$41*$D11, VLOOKUP(Q$4,'4. Billing Determinants'!$B$19:$N$41,3,0)/'4. Billing Determinants'!$D$41*$D11))))) -> 0 | R11: =IF(R$4="",0,IF($E11="kWh",VLOOKUP(R$4,'4. Billing Determinants'!$B$19:$N$41,4,0)/'4. Billing Determinants'!$E$41*$D11,IF($E11="kW",VLOOKUP(R$4,'4. Billing Determinants'!$B$19:$N$41,5,0)/'4. Billing Determinants'!$F$41*$D11,IF($E11="Non-RPP kWh",VLOOKUP(R$4,'4. Billing Determinants'!$B$19:$N$41,6,0)/'4. Billing Determinants'!$G$41*$D11,IF($E11="Distribution Rev.",VLOOKUP(R$4,'4. Billing Determinants'!$B$19:$N$41,8,0)/'4. Billing Determinants'!$I$41*$D11, VLOOKUP(R$4,'4. Billing Determinants'!$B$19:$N$41,3,0)/'4. Billing Determinants'!$D$41*$D11))))) -> 0 | S11: =IF(S$4="",0,IF($E11="kWh",VLOOKUP(S$4,'4. Billing Determinants'!$B$19:$N$41,4,0)/'4. Billing Determinants'!$E$41*$D11,IF($E11="kW",VLOOKUP(S$4,'4. Billing Determinants'!$B$19:$N$41,5,0)/'4. Billing Determinants'!$F$41*$D11,IF($E11="Non-RPP kWh",VLOOKUP(S$4,'4. Billing Determinants'!$B$19:$N$41,6,0)/'4. Billing Determinants'!$G$41*$D11,IF($E11="Distribution Rev.",VLOOKUP(S$4,'4. Billing Determinants'!$B$19:$N$41,8,0)/'4. Billing Determinants'!$I$41*$D11, VLOOKUP(S$4,'4. Billing Determinants'!$B$19:$N$41,3,0)/'4. Billing Determinants'!$D$41*$D11))))) -> 0 | T11: =IF(T$4="",0,IF($E11="kWh",VLOOKUP(T$4,'4. Billing Determinants'!$B$19:$N$41,4,0)/'4. Billing Determinants'!$E$41*$D11,IF($E11="kW",VLOOKUP(T$4,'4. Billing Determinants'!$B$19:$N$41,5,0)/'4. Billing Determinants'!$F$41*$D11,IF($E11="Non-RPP kWh",VLOOKUP(T$4,'4. Billing Determinants'!$B$19:$N$41,6,0)/'4. Billing Determinants'!$G$41*$D11,IF($E11="Distribution Rev.",VLOOKUP(T$4,'4. Billing Determinants'!$B$19:$N$41,8,0)/'4. Billing Determinants'!$I$41*$D11, VLOOKUP(T$4,'4. Billing Determinants'!$B$19:$N$41,3,0)/'4. Billing Determinants'!$D$41*$D11))))) -> 0 | U11: =IF(U$4="",0,IF($E11="kWh",VLOOKUP(U$4,'4. Billing Determinants'!$B$19:$N$41,4,0)/'4. Billing Determinants'!$E$41*$D11,IF($E11="kW",VLOOKUP(U$4,'4. Billing Determinants'!$B$19:$N$41,5,0)/'4. Billing Determinants'!$F$41*$D11,IF($E11="Non-RPP kWh",VLOOKUP(U$4,'4. Billing Determinants'!$B$19:$N$41,6,0)/'4. Billing Determinants'!$G$41*$D11,IF($E11="Distribution Rev.",VLOOKUP(U$4,'4. Billing Determinants'!$B$19:$N$41,8,0)/'4. Billing Determinants'!$I$41*$D11, VLOOKUP(U$4,'4. Billing Determinants'!$B$19:$N$41,3,0)/'4. Billing Determinants'!$D$41*$D11))))) -> 0 | V11: =IF(V$4="",0,IF($E11="kWh",VLOOKUP(V$4,'4. Billing Determinants'!$B$19:$N$41,4,0)/'4. Billing Determinants'!$E$41*$D11,IF($E11="kW",VLOOKUP(V$4,'4. Billing Determinants'!$B$19:$N$41,5,0)/'4. Billing Determinants'!$F$41*$D11,IF($E11="Non-RPP kWh",VLOOKUP(V$4,'4. Billing Determinants'!$B$19:$N$41,6,0)/'4. Billing Determinants'!$G$41*$D11,IF($E11="Distribution Rev.",VLOOKUP(V$4,'4. Billing Determinants'!$B$19:$N$41,8,0)/'4. Billing Determinants'!$I$41*$D11, VLOOKUP(V$4,'4. Billing Determinants'!$B$19:$N$41,3,0)/'4. Billing Determinants'!$D$41*$D11))))) -> 0 | W11: =IF(W$4="",0,IF($E11="kWh",VLOOKUP(W$4,'4. Billing Determinants'!$B$19:$N$41,4,0)/'4. Billing Determinants'!$E$41*$D11,IF($E11="kW",VLOOKUP(W$4,'4. Billing Determinants'!$B$19:$N$41,5,0)/'4. Billing Determinants'!$F$41*$D11,IF($E11="Non-RPP kWh",VLOOKUP(W$4,'4. Billing Determinants'!$B$19:$N$41,6,0)/'4. Billing Determinants'!$G$41*$D11,IF($E11="Distribution Rev.",VLOOKUP(W$4,'4. Billing Determinants'!$B$19:$N$41,8,0)/'4. Billing Determinants'!$I$41*$D11, VLOOKUP(W$4,'4. Billing Determinants'!$B$19:$N$41,3,0)/'4. Billing Determinants'!$D$41*$D11))))) -> 0 | X11: =IF(X$4="",0,IF($E11="kWh",VLOOKUP(X$4,'4. Billing Determinants'!$B$19:$N$41,4,0)/'4. Billing Determinants'!$E$41*$D11,IF($E11="kW",VLOOKUP(X$4,'4. Billing Determinants'!$B$19:$N$41,5,0)/'4. Billing Determinants'!$F$41*$D11,IF($E11="Non-RPP kWh",VLOOKUP(X$4,'4. Billing Determinants'!$B$19:$N$41,6,0)/'4. Billing Determinants'!$G$41*$D11,IF($E11="Distribution Rev.",VLOOKUP(X$4,'4. Billing Determinants'!$B$19:$N$41,8,0)/'4. Billing Determinants'!$I$41*$D11, VLOOKUP(X$4,'4. Billing Determinants'!$B$19:$N$41,3,0)/'4. Billing Determinants'!$D$41*$D11))))) -> 0 | Y11: =IF(Y$4="",0,IF($E11="kWh",VLOOKUP(Y$4,'4. Billing Determinants'!$B$19:$N$41,4,0)/'4. Billing Determinants'!$E$41*$D11,IF($E11="kW",VLOOKUP(Y$4,'4. Billing Determinants'!$B$19:$N$41,5,0)/'4. Billing Determinants'!$F$41*$D11,IF($E11="Non-RPP kWh",VLOOKUP(Y$4,'4. Billing Determinants'!$B$19:$N$41,6,0)/'4. Billing Determinants'!$G$41*$D11,IF($E11="Distribution Rev.",VLOOKUP(Y$4,'4. Billing Determinants'!$B$19:$N$41,8,0)/'4. Billing Determinants'!$I$41*$D11, VLOOKUP(Y$4,'4. Billing Determinants'!$B$19:$N$41,3,0)/'4. Billing Determinants'!$D$41*$D11))))) -> 0
B12: Disposition and Recovery/Refund of Regulatory Balances (2010) | C12: 1595 | D12: 371370.9762 | E12: kWh | F12: 133753.0734 | G12: 49571.12661 | H12: 173341.8292 | I12: 701.090342 | J12: 6524.066598 | K12: 3309.010032 | L12: 4170.779942 | M12: =IF(M$4="",0,IF($E12="kWh",VLOOKUP(M$4,'4. Billing Determinants'!$B$19:$N$41,4,0)/'4. Billing Determinants'!$E$41*$D12,IF($E12="kW",VLOOKUP(M$4,'4. Billing Determinants'!$B$19:$N$41,5,0)/'4. Billing Determinants'!$F$41*$D12,IF($E12="Non-RPP kWh",VLOOKUP(M$4,'4. Billing Determinants'!$B$19:$N$41,6,0)/'4. Billing Determinants'!$G$41*$D12,IF($E12="Distribution Rev.",VLOOKUP(M$4,'4. Billing Determinants'!$B$19:$N$41,8,0)/'4. Billing Determinants'!$I$41*$D12, VLOOKUP(M$4,'4. Billing Determinants'!$B$19:$N$41,3,0)/'4. Billing Determinants'!$D$41*$D12))))) -> 0 | N12: =IF(N$4="",0,IF($E12="kWh",VLOOKUP(N$4,'4. Billing Determinants'!$B$19:$N$41,4,0)/'4. Billing Determinants'!$E$41*$D12,IF($E12="kW",VLOOKUP(N$4,'4. Billing Determinants'!$B$19:$N$41,5,0)/'4. Billing Determinants'!$F$41*$D12,IF($E12="Non-RPP kWh",VLOOKUP(N$4,'4. Billing Determinants'!$B$19:$N$41,6,0)/'4. Billing Determinants'!$G$41*$D12,IF($E12="Distribution Rev.",VLOOKUP(N$4,'4. Billing Determinants'!$B$19:$N$41,8,0)/'4. Billing Determinants'!$I$41*$D12, VLOOKUP(N$4,'4. Billing Determinants'!$B$19:$N$41,3,0)/'4. Billing Determinants'!$D$41*$D12))))) -> 0 | O12: =IF(O$4="",0,IF($E12="kWh",VLOOKUP(O$4,'4. Billing Determinants'!$B$19:$N$41,4,0)/'4. Billing Determinants'!$E$41*$D12,IF($E12="kW",VLOOKUP(O$4,'4. Billing Determinants'!$B$19:$N$41,5,0)/'4. Billing Determinants'!$F$41*$D12,IF($E12="Non-RPP kWh",VLOOKUP(O$4,'4. Billing Determinants'!$B$19:$N$41,6,0)/'4. Billing Determinants'!$G$41*$D12,IF($E12="Distribution Rev.",VLOOKUP(O$4,'4. Billing Determinants'!$B$19:$N$41,8,0)/'4. Billing Determinants'!$I$41*$D12, VLOOKUP(O$4,'4. Billing Determinants'!$B$19:$N$41,3,0)/'4. Billing Determinants'!$D$41*$D12))))) -> 0 | P12: =IF(P$4="",0,IF($E12="kWh",VLOOKUP(P$4,'4. Billing Determinants'!$B$19:$N$41,4,0)/'4. Billing Determinants'!$E$41*$D12,IF($E12="kW",VLOOKUP(P$4,'4. Billing Determinants'!$B$19:$N$41,5,0)/'4. Billing Determinants'!$F$41*$D12,IF($E12="Non-RPP kWh",VLOOKUP(P$4,'4. Billing Determinants'!$B$19:$N$41,6,0)/'4. Billing Determinants'!$G$41*$D12,IF($E12="Distribution Rev.",VLOOKUP(P$4,'4. Billing Determinants'!$B$19:$N$41,8,0)/'4. Billing Determinants'!$I$41*$D12, VLOOKUP(P$4,'4. Billing Determinants'!$B$19:$N$41,3,0)/'4. Billing Determinants'!$D$41*$D12))))) -> 0 | Q12: =IF(Q$4="",0,IF($E12="kWh",VLOOKUP(Q$4,'4. Billing Determinants'!$B$19:$N$41,4,0)/'4. Billing Determinants'!$E$41*$D12,IF($E12="kW",VLOOKUP(Q$4,'4. Billing Determinants'!$B$19:$N$41,5,0)/'4. Billing Determinants'!$F$41*$D12,IF($E12="Non-RPP kWh",VLOOKUP(Q$4,'4. Billing Determinants'!$B$19:$N$41,6,0)/'4. Billing Determinants'!$G$41*$D12,IF($E12="Distribution Rev.",VLOOKUP(Q$4,'4. Billing Determinants'!$B$19:$N$41,8,0)/'4. Billing Determinants'!$I$41*$D12, VLOOKUP(Q$4,'4. Billing Determinants'!$B$19:$N$41,3,0)/'4. Billing Determinants'!$D$41*$D12))))) -> 0 | R12: =IF(R$4="",0,IF($E12="kWh",VLOOKUP(R$4,'4. Billing Determinants'!$B$19:$N$41,4,0)/'4. Billing Determinants'!$E$41*$D12,IF($E12="kW",VLOOKUP(R$4,'4. Billing Determinants'!$B$19:$N$41,5,0)/'4. Billing Determinants'!$F$41*$D12,IF($E12="Non-RPP kWh",VLOOKUP(R$4,'4. Billing Determinants'!$B$19:$N$41,6,0)/'4. Billing Determinants'!$G$41*$D12,IF($E12="Distribution Rev.",VLOOKUP(R$4,'4. Billing Determinants'!$B$19:$N$41,8,0)/'4. Billing Determinants'!$I$41*$D12, VLOOKUP(R$4,'4. Billing Determinants'!$B$19:$N$41,3,0)/'4. Billing Determinants'!$D$41*$D12))))) -> 0 | S12: =IF(S$4="",0,IF($E12="kWh",VLOOKUP(S$4,'4. Billing Determinants'!$B$19:$N$41,4,0)/'4. Billing Determinants'!$E$41*$D12,IF($E12="kW",VLOOKUP(S$4,'4. Billing Determinants'!$B$19:$N$41,5,0)/'4. Billing Determinants'!$F$41*$D12,IF($E12="Non-RPP kWh",VLOOKUP(S$4,'4. Billing Determinants'!$B$19:$N$41,6,0)/'4. Billing Determinants'!$G$41*$D12,IF($E12="Distribution Rev.",VLOOKUP(S$4,'4. Billing Determinants'!$B$19:$N$41,8,0)/'4. Billing Determinants'!$I$41*$D12, VLOOKUP(S$4,'4. Billing Determinants'!$B$19:$N$41,3,0)/'4. Billing Determinants'!$D$41*$D12))))) -> 0 | T12: =IF(T$4="",0,IF($E12="kWh",VLOOKUP(T$4,'4. Billing Determinants'!$B$19:$N$41,4,0)/'4. Billing Determinants'!$E$41*$D12,IF($E12="kW",VLOOKUP(T$4,'4. Billing Determinants'!$B$19:$N$41,5,0)/'4. Billing Determinants'!$F$41*$D12,IF($E12="Non-RPP kWh",VLOOKUP(T$4,'4. Billing Determinants'!$B$19:$N$41,6,0)/'4. Billing Determinants'!$G$41*$D12,IF($E12="Distribution Rev.",VLOOKUP(T$4,'4. Billing Determinants'!$B$19:$N$41,8,0)/'4. Billing Determinants'!$I$41*$D12, VLOOKUP(T$4,'4. Billing Determinants'!$B$19:$N$41,3,0)/'4. Billing Determinants'!$D$41*$D12))))) -> 0 | U12: =IF(U$4="",0,IF($E12="kWh",VLOOKUP(U$4,'4. Billing Determinants'!$B$19:$N$41,4,0)/'4. Billing Determinants'!$E$41*$D12,IF($E12="kW",VLOOKUP(U$4,'4. Billing Determinants'!$B$19:$N$41,5,0)/'4. Billing Determinants'!$F$41*$D12,IF($E12="Non-RPP kWh",VLOOKUP(U$4,'4. Billing Determinants'!$B$19:$N$41,6,0)/'4. Billing Determinants'!$G$41*$D12,IF($E12="Distribution Rev.",VLOOKUP(U$4,'4. Billing Determinants'!$B$19:$N$41,8,0)/'4. Billing Determinants'!$I$41*$D12, VLOOKUP(U$4,'4. Billing Determinants'!$B$19:$N$41,3,0)/'4. Billing Determinants'!$D$41*$D12))))) -> 0 | V12: =IF(V$4="",0,IF($E12="kWh",VLOOKUP(V$4,'4. Billing Determinants'!$B$19:$N$41,4,0)/'4. Billing Determinants'!$E$41*$D12,IF($E12="kW",VLOOKUP(V$4,'4. Billing Determinants'!$B$19:$N$41,5,0)/'4. Billing Determinants'!$F$41*$D12,IF($E12="Non-RPP kWh",VLOOKUP(V$4,'4. Billing Determinants'!$B$19:$N$41,6,0)/'4. Billing Determinants'!$G$41*$D12,IF($E12="Distribution Rev.",VLOOKUP(V$4,'4. Billing Determinants'!$B$19:$N$41,8,0)/'4. Billing Determinants'!$I$41*$D12, VLOOKUP(V$4,'4. Billing Determinants'!$B$19:$N$41,3,0)/'4. Billing Determinants'!$D$41*$D12))))) -> 0 | W12: =IF(W$4="",0,IF($E12="kWh",VLOOKUP(W$4,'4. Billing Determinants'!$B$19:$N$41,4,0)/'4. Billing Determinants'!$E$41*$D12,IF($E12="kW",VLOOKUP(W$4,'4. Billing Determinants'!$B$19:$N$41,5,0)/'4. Billing Determinants'!$F$41*$D12,IF($E12="Non-RPP kWh",VLOOKUP(W$4,'4. Billing Determinants'!$B$19:$N$41,6,0)/'4. Billing Determinants'!$G$41*$D12,IF($E12="Distribution Rev.",VLOOKUP(W$4,'4. Billing Determinants'!$B$19:$N$41,8,0)/'4. Billing Determinants'!$I$41*$D12, VLOOKUP(W$4,'4. Billing Determinants'!$B$19:$N$41,3,0)/'4. Billing Determinants'!$D$41*$D12))))) -> 0 | X12: =IF(X$4="",0,IF($E12="kWh",VLOOKUP(X$4,'4. Billing Determinants'!$B$19:$N$41,4,0)/'4. Billing Determinants'!$E$41*$D12,IF($E12="kW",VLOOKUP(X$4,'4. Billing Determinants'!$B$19:$N$41,5,0)/'4. Billing Determinants'!$F$41*$D12,IF($E12="Non-RPP kWh",VLOOKUP(X$4,'4. Billing Determinants'!$B$19:$N$41,6,0)/'4. Billing Determinants'!$G$41*$D12,IF($E12="Distribution Rev.",VLOOKUP(X$4,'4. Billing Determinants'!$B$19:$N$41,8,0)/'4. Billing Determinants'!$I$41*$D12, VLOOKUP(X$4,'4. Billing Determinants'!$B$19:$N$41,3,0)/'4. Billing Determinants'!$D$41*$D12))))) -> 0 | Y12: =IF(Y$4="",0,IF($E12="kWh",VLOOKUP(Y$4,'4. Billing Determinants'!$B$19:$N$41,4,0)/'4. Billing Determinants'!$E$41*$D12,IF($E12="kW",VLOOKUP(Y$4,'4. Billing Determinants'!$B$19:$N$41,5,0)/'4. Billing Determinants'!$F$41*$D12,IF($E12="Non-RPP kWh",VLOOKUP(Y$4,'4. Billing Determinants'!$B$19:$N$41,6,0)/'4. Billing Determinants'!$G$41*$D12,IF($E12="Distribution Rev.",VLOOKUP(Y$4,'4. Billing Determinants'!$B$19:$N$41,8,0)/'4. Billing Determinants'!$I$41*$D12, VLOOKUP(Y$4,'4. Billing Determinants'!$B$19:$N$41,3,0)/'4. Billing Determinants'!$D$41*$D12))))) -> 0
B13: Disposition and Recovery/Refund of Regulatory Balances (2011) | C13: 1595 | D13: 520407.9322 | E13: kWh | F13: 187430.2647 | G13: 69464.79168 | H13: 242906.6047 | I13: 982.4488142 | J13: 9142.276121 | K13: 4636.967289 | L13: 5844.578883 | M13: =IF(M$4="",0,IF($E13="kWh",VLOOKUP(M$4,'4. Billing Determinants'!$B$19:$N$41,4,0)/'4. Billing Determinants'!$E$41*$D13,IF($E13="kW",VLOOKUP(M$4,'4. Billing Determinants'!$B$19:$N$41,5,0)/'4. Billing Determinants'!$F$41*$D13,IF($E13="Non-RPP kWh",VLOOKUP(M$4,'4. Billing Determinants'!$B$19:$N$41,6,0)/'4. Billing Determinants'!$G$41*$D13,IF($E13="Distribution Rev.",VLOOKUP(M$4,'4. Billing Determinants'!$B$19:$N$41,8,0)/'4. Billing Determinants'!$I$41*$D13, VLOOKUP(M$4,'4. Billing Determinants'!$B$19:$N$41,3,0)/'4. Billing Determinants'!$D$41*$D13))))) -> 0 | N13: =IF(N$4="",0,IF($E13="kWh",VLOOKUP(N$4,'4. Billing Determinants'!$B$19:$N$41,4,0)/'4. Billing Determinants'!$E$41*$D13,IF($E13="kW",VLOOKUP(N$4,'4. Billing Determinants'!$B$19:$N$41,5,0)/'4. Billing Determinants'!$F$41*$D13,IF($E13="Non-RPP kWh",VLOOKUP(N$4,'4. Billing Determinants'!$B$19:$N$41,6,0)/'4. Billing Determinants'!$G$41*$D13,IF($E13="Distribution Rev.",VLOOKUP(N$4,'4. Billing Determinants'!$B$19:$N$41,8,0)/'4. Billing Determinants'!$I$41*$D13, VLOOKUP(N$4,'4. Billing Determinants'!$B$19:$N$41,3,0)/'4. Billing Determinants'!$D$41*$D13))))) -> 0 | O13: =IF(O$4="",0,IF($E13="kWh",VLOOKUP(O$4,'4. Billing Determinants'!$B$19:$N$41,4,0)/'4. Billing Determinants'!$E$41*$D13,IF($E13="kW",VLOOKUP(O$4,'4. Billing Determinants'!$B$19:$N$41,5,0)/'4. Billing Determinants'!$F$41*$D13,IF($E13="Non-RPP kWh",VLOOKUP(O$4,'4. Billing Determinants'!$B$19:$N$41,6,0)/'4. Billing Determinants'!$G$41*$D13,IF($E13="Distribution Rev.",VLOOKUP(O$4,'4. Billing Determinants'!$B$19:$N$41,8,0)/'4. Billing Determinants'!$I$41*$D13, VLOOKUP(O$4,'4. Billing Determinants'!$B$19:$N$41,3,0)/'4. Billing Determinants'!$D$41*$D13))))) -> 0 | P13: =IF(P$4="",0,IF($E13="kWh",VLOOKUP(P$4,'4. Billing Determinants'!$B$19:$N$41,4,0)/'4. Billing Determinants'!$E$41*$D13,IF($E13="kW",VLOOKUP(P$4,'4. Billing Determinants'!$B$19:$N$41,5,0)/'4. Billing Determinants'!$F$41*$D13,IF($E13="Non-RPP kWh",VLOOKUP(P$4,'4. Billing Determinants'!$B$19:$N$41,6,0)/'4. Billing Determinants'!$G$41*$D13,IF($E13="Distribution Rev.",VLOOKUP(P$4,'4. Billing Determinants'!$B$19:$N$41,8,0)/'4. Billing Determinants'!$I$41*$D13, VLOOKUP(P$4,'4. Billing Determinants'!$B$19:$N$41,3,0)/'4. Billing Determinants'!$D$41*$D13))))) -> 0 | Q13: =IF(Q$4="",0,IF($E13="kWh",VLOOKUP(Q$4,'4. Billing Determinants'!$B$19:$N$41,4,0)/'4. Billing Determinants'!$E$41*$D13,IF($E13="kW",VLOOKUP(Q$4,'4. Billing Determinants'!$B$19:$N$41,5,0)/'4. Billing Determinants'!$F$41*$D13,IF($E13="Non-RPP kWh",VLOOKUP(Q$4,'4. Billing Determinants'!$B$19:$N$41,6,0)/'4. Billing Determinants'!$G$41*$D13,IF($E13="Distribution Rev.",VLOOKUP(Q$4,'4. Billing Determinants'!$B$19:$N$41,8,0)/'4. Billing Determinants'!$I$41*$D13, VLOOKUP(Q$4,'4. Billing Determinants'!$B$19:$N$41,3,0)/'4. Billing Determinants'!$D$41*$D13))))) -> 0 | R13: =IF(R$4="",0,IF($E13="kWh",VLOOKUP(R$4,'4. Billing Determinants'!$B$19:$N$41,4,0)/'4. Billing Determinants'!$E$41*$D13,IF($E13="kW",VLOOKUP(R$4,'4. Billing Determinants'!$B$19:$N$41,5,0)/'4. Billing Determinants'!$F$41*$D13,IF($E13="Non-RPP kWh",VLOOKUP(R$4,'4. Billing Determinants'!$B$19:$N$41,6,0)/'4. Billing Determinants'!$G$41*$D13,IF($E13="Distribution Rev.",VLOOKUP(R$4,'4. Billing Determinants'!$B$19:$N$41,8,0)/'4. Billing Determinants'!$I$41*$D13, VLOOKUP(R$4,'4. Billing Determinants'!$B$19:$N$41,3,0)/'4. Billing Determinants'!$D$41*$D13))))) -> 0 | S13: =IF(S$4="",0,IF($E13="kWh",VLOOKUP(S$4,'4. Billing Determinants'!$B$19:$N$41,4,0)/'4. Billing Determinants'!$E$41*$D13,IF($E13="kW",VLOOKUP(S$4,'4. Billing Determinants'!$B$19:$N$41,5,0)/'4. Billing Determinants'!$F$41*$D13,IF($E13="Non-RPP kWh",VLOOKUP(S$4,'4. Billing Determinants'!$B$19:$N$41,6,0)/'4. Billing Determinants'!$G$41*$D13,IF($E13="Distribution Rev.",VLOOKUP(S$4,'4. Billing Determinants'!$B$19:$N$41,8,0)/'4. Billing Determinants'!$I$41*$D13, VLOOKUP(S$4,'4. Billing Determinants'!$B$19:$N$41,3,0)/'4. Billing Determinants'!$D$41*$D13))))) -> 0 | T13: =IF(T$4="",0,IF($E13="kWh",VLOOKUP(T$4,'4. Billing Determinants'!$B$19:$N$41,4,0)/'4. Billing Determinants'!$E$41*$D13,IF($E13="kW",VLOOKUP(T$4,'4. Billing Determinants'!$B$19:$N$41,5,0)/'4. Billing Determinants'!$F$41*$D13,IF($E13="Non-RPP kWh",VLOOKUP(T$4,'4. Billing Determinants'!$B$19:$N$41,6,0)/'4. Billing Determinants'!$G$41*$D13,IF($E13="Distribution Rev.",VLOOKUP(T$4,'4. Billing Determinants'!$B$19:$N$41,8,0)/'4. Billing Determinants'!$I$41*$D13, VLOOKUP(T$4,'4. Billing Determinants'!$B$19:$N$41,3,0)/'4. Billing Determinants'!$D$41*$D13))))) -> 0 | U13: =IF(U$4="",0,IF($E13="kWh",VLOOKUP(U$4,'4. Billing Determinants'!$B$19:$N$41,4,0)/'4. Billing Determinants'!$E$41*$D13,IF($E13="kW",VLOOKUP(U$4,'4. Billing Determinants'!$B$19:$N$41,5,0)/'4. Billing Determinants'!$F$41*$D13,IF($E13="Non-RPP kWh",VLOOKUP(U$4,'4. Billing Determinants'!$B$19:$N$41,6,0)/'4. Billing Determinants'!$G$41*$D13,IF($E13="Distribution Rev.",VLOOKUP(U$4,'4. Billing Determinants'!$B$19:$N$41,8,0)/'4. Billing Determinants'!$I$41*$D13, VLOOKUP(U$4,'4. Billing Determinants'!$B$19:$N$41,3,0)/'4. Billing Determinants'!$D$41*$D13))))) -> 0 | V13: =IF(V$4="",0,IF($E13="kWh",VLOOKUP(V$4,'4. Billing Determinants'!$B$19:$N$41,4,0)/'4. Billing Determinants'!$E$41*$D13,IF($E13="kW",VLOOKUP(V$4,'4. Billing Determinants'!$B$19:$N$41,5,0)/'4. Billing Determinants'!$F$41*$D13,IF($E13="Non-RPP kWh",VLOOKUP(V$4,'4. Billing Determinants'!$B$19:$N$41,6,0)/'4. Billing Determinants'!$G$41*$D13,IF($E13="Distribution Rev.",VLOOKUP(V$4,'4. Billing Determinants'!$B$19:$N$41,8,0)/'4. Billing Determinants'!$I$41*$D13, VLOOKUP(V$4,'4. Billing Determinants'!$B$19:$N$41,3,0)/'4. Billing Determinants'!$D$41*$D13))))) -> 0 | W13: =IF(W$4="",0,IF($E13="kWh",VLOOKUP(W$4,'4. Billing Determinants'!$B$19:$N$41,4,0)/'4. Billing Determinants'!$E$41*$D13,IF($E13="kW",VLOOKUP(W$4,'4. Billing Determinants'!$B$19:$N$41,5,0)/'4. Billing Determinants'!$F$41*$D13,IF($E13="Non-RPP kWh",VLOOKUP(W$4,'4. Billing Determinants'!$B$19:$N$41,6,0)/'4. Billing Determinants'!$G$41*$D13,IF($E13="Distribution Rev.",VLOOKUP(W$4,'4. Billing Determinants'!$B$19:$N$41,8,0)/'4. Billing Determinants'!$I$41*$D13, VLOOKUP(W$4,'4. Billing Determinants'!$B$19:$N$41,3,0)/'4. Billing Determinants'!$D$41*$D13))))) -> 0 | X13: =IF(X$4="",0,IF($E13="kWh",VLOOKUP(X$4,'4. Billing Determinants'!$B$19:$N$41,4,0)/'4. Billing Determinants'!$E$41*$D13,IF($E13="kW",VLOOKUP(X$4,'4. Billing Determinants'!$B$19:$N$41,5,0)/'4. Billing Determinants'!$F$41*$D13,IF($E13="Non-RPP kWh",VLOOKUP(X$4,'4. Billing Determinants'!$B$19:$N$41,6,0)/'4. Billing Determinants'!$G$41*$D13,IF($E13="Distribution Rev.",VLOOKUP(X$4,'4. Billing Determinants'!$B$19:$N$41,8,0)/'4. Billing Determinants'!$I$41*$D13, VLOOKUP(X$4,'4. Billing Determinants'!$B$19:$N$41,3,0)/'4. Billing Determinants'!$D$41*$D13))))) -> 0 | Y13: =IF(Y$4="",0,IF($E13="kWh",VLOOKUP(Y$4,'4. Billing Determinants'!$B$19:$N$41,4,0)/'4. Billing Determinants'!$E$41*$D13,IF($E13="kW",VLOOKUP(Y$4,'4. Billing Determinants'!$B$19:$N$41,5,0)/'4. Billing Determinants'!$F$41*$D13,IF($E13="Non-RPP kWh",VLOOKUP(Y$4,'4. Billing Determinants'!$B$19:$N$41,6,0)/'4. Billing Determinants'!$G$41*$D13,IF($E13="Distribution Rev.",VLOOKUP(Y$4,'4. Billing Determinants'!$B$19:$N$41,8,0)/'4. Billing Determinants'!$I$41*$D13, VLOOKUP(Y$4,'4. Billing Determinants'!$B$19:$N$41,3,0)/'4. Billing Determinants'!$D$41*$D13))))) -> 0
B14: Disposition and Recovery/Refund of Regulatory Balances (2012) | C14: 1595 | D14: -158572.7946 | E14: kWh | F14: -57111.62154 | G14: -21166.52238 | H14: -74015.74179 | I14: -299.3606446 | J14: -2785.730547 | K14: -1412.924008 | L14: -1780.893698 | M14: =IF(M$4="",0,IF($E14="kWh",VLOOKUP(M$4,'4. Billing Determinants'!$B$19:$N$41,4,0)/'4. Billing Determinants'!$E$41*$D14,IF($E14="kW",VLOOKUP(M$4,'4. Billing Determinants'!$B$19:$N$41,5,0)/'4. Billing Determinants'!$F$41*$D14,IF($E14="Non-RPP kWh",VLOOKUP(M$4,'4. Billing Determinants'!$B$19:$N$41,6,0)/'4. Billing Determinants'!$G$41*$D14,IF($E14="Distribution Rev.",VLOOKUP(M$4,'4. Billing Determinants'!$B$19:$N$41,8,0)/'4. Billing Determinants'!$I$41*$D14, VLOOKUP(M$4,'4. Billing Determinants'!$B$19:$N$41,3,0)/'4. Billing Determinants'!$D$41*$D14))))) -> 0 | N14: =IF(N$4="",0,IF($E14="kWh",VLOOKUP(N$4,'4. Billing Determinants'!$B$19:$N$41,4,0)/'4. Billing Determinants'!$E$41*$D14,IF($E14="kW",VLOOKUP(N$4,'4. Billing Determinants'!$B$19:$N$41,5,0)/'4. Billing Determinants'!$F$41*$D14,IF($E14="Non-RPP kWh",VLOOKUP(N$4,'4. Billing Determinants'!$B$19:$N$41,6,0)/'4. Billing Determinants'!$G$41*$D14,IF($E14="Distribution Rev.",VLOOKUP(N$4,'4. Billing Determinants'!$B$19:$N$41,8,0)/'4. Billing Determinants'!$I$41*$D14, VLOOKUP(N$4,'4. Billing Determinants'!$B$19:$N$41,3,0)/'4. Billing Determinants'!$D$41*$D14))))) -> 0 | O14: =IF(O$4="",0,IF($E14="kWh",VLOOKUP(O$4,'4. Billing Determinants'!$B$19:$N$41,4,0)/'4. Billing Determinants'!$E$41*$D14,IF($E14="kW",VLOOKUP(O$4,'4. Billing Determinants'!$B$19:$N$41,5,0)/'4. Billing Determinants'!$F$41*$D14,IF($E14="Non-RPP kWh",VLOOKUP(O$4,'4. Billing Determinants'!$B$19:$N$41,6,0)/'4. Billing Determinants'!$G$41*$D14,IF($E14="Distribution Rev.",VLOOKUP(O$4,'4. Billing Determinants'!$B$19:$N$41,8,0)/'4. Billing Determinants'!$I$41*$D14, VLOOKUP(O$4,'4. Billing Determinants'!$B$19:$N$41,3,0)/'4. Billing Determinants'!$D$41*$D14))))) -> 0 | P14: =IF(P$4="",0,IF($E14="kWh",VLOOKUP(P$4,'4. Billing Determinants'!$B$19:$N$41,4,0)/'4. Billing Determinants'!$E$41*$D14,IF($E14="kW",VLOOKUP(P$4,'4. Billing Determinants'!$B$19:$N$41,5,0)/'4. Billing Determinants'!$F$41*$D14,IF($E14="Non-RPP kWh",VLOOKUP(P$4,'4. Billing Determinants'!$B$19:$N$41,6,0)/'4. Billing Determinants'!$G$41*$D14,IF($E14="Distribution Rev.",VLOOKUP(P$4,'4. Billing Determinants'!$B$19:$N$41,8,0)/'4. Billing Determinants'!$I$41*$D14, VLOOKUP(P$4,'4. Billing Determinants'!$B$19:$N$41,3,0)/'4. Billing Determinants'!$D$41*$D14))))) -> 0 | Q14: =IF(Q$4="",0,IF($E14="kWh",VLOOKUP(Q$4,'4. Billing Determinants'!$B$19:$N$41,4,0)/'4. Billing Determinants'!$E$41*$D14,IF($E14="kW",VLOOKUP(Q$4,'4. Billing Determinants'!$B$19:$N$41,5,0)/'4. Billing Determinants'!$F$41*$D14,IF($E14="Non-RPP kWh",VLOOKUP(Q$4,'4. Billing Determinants'!$B$19:$N$41,6,0)/'4. Billing Determinants'!$G$41*$D14,IF($E14="Distribution Rev.",VLOOKUP(Q$4,'4. Billing Determinants'!$B$19:$N$41,8,0)/'4. Billing Determinants'!$I$41*$D14, VLOOKUP(Q$4,'4. Billing Determinants'!$B$19:$N$41,3,0)/'4. Billing Determinants'!$D$41*$D14))))) -> 0 | R14: =IF(R$4="",0,IF($E14="kWh",VLOOKUP(R$4,'4. Billing Determinants'!$B$19:$N$41,4,0)/'4. Billing Determinants'!$E$41*$D14,IF($E14="kW",VLOOKUP(R$4,'4. Billing Determinants'!$B$19:$N$41,5,0)/'4. Billing Determinants'!$F$41*$D14,IF($E14="Non-RPP kWh",VLOOKUP(R$4,'4. Billing Determinants'!$B$19:$N$41,6,0)/'4. Billing Determinants'!$G$41*$D14,IF($E14="Distribution Rev.",VLOOKUP(R$4,'4. Billing Determinants'!$B$19:$N$41,8,0)/'4. Billing Determinants'!$I$41*$D14, VLOOKUP(R$4,'4. Billing Determinants'!$B$19:$N$41,3,0)/'4. Billing Determinants'!$D$41*$D14))))) -> 0 | S14: =IF(S$4="",0,IF($E14="kWh",VLOOKUP(S$4,'4. Billing Determinants'!$B$19:$N$41,4,0)/'4. Billing Determinants'!$E$41*$D14,IF($E14="kW",VLOOKUP(S$4,'4. Billing Determinants'!$B$19:$N$41,5,0)/'4. Billing Determinants'!$F$41*$D14,IF($E14="Non-RPP kWh",VLOOKUP(S$4,'4. Billing Determinants'!$B$19:$N$41,6,0)/'4. Billing Determinants'!$G$41*$D14,IF($E14="Distribution Rev.",VLOOKUP(S$4,'4. Billing Determinants'!$B$19:$N$41,8,0)/'4. Billing Determinants'!$I$41*$D14, VLOOKUP(S$4,'4. Billing Determinants'!$B$19:$N$41,3,0)/'4. Billing Determinants'!$D$41*$D14))))) -> 0 | T14: =IF(T$4="",0,IF($E14="kWh",VLOOKUP(T$4,'4. Billing Determinants'!$B$19:$N$41,4,0)/'4. Billing Determinants'!$E$41*$D14,IF($E14="kW",VLOOKUP(T$4,'4. Billing Determinants'!$B$19:$N$41,5,0)/'4. Billing Determinants'!$F$41*$D14,IF($E14="Non-RPP kWh",VLOOKUP(T$4,'4. Billing Determinants'!$B$19:$N$41,6,0)/'4. Billing Determinants'!$G$41*$D14,IF($E14="Distribution Rev.",VLOOKUP(T$4,'4. Billing Determinants'!$B$19:$N$41,8,0)/'4. Billing Determinants'!$I$41*$D14, VLOOKUP(T$4,'4. Billing Determinants'!$B$19:$N$41,3,0)/'4. Billing Determinants'!$D$41*$D14))))) -> 0 | U14: =IF(U$4="",0,IF($E14="kWh",VLOOKUP(U$4,'4. Billing Determinants'!$B$19:$N$41,4,0)/'4. Billing Determinants'!$E$41*$D14,IF($E14="kW",VLOOKUP(U$4,'4. Billing Determinants'!$B$19:$N$41,5,0)/'4. Billing Determinants'!$F$41*$D14,IF($E14="Non-RPP kWh",VLOOKUP(U$4,'4. Billing Determinants'!$B$19:$N$41,6,0)/'4. Billing Determinants'!$G$41*$D14,IF($E14="Distribution Rev.",VLOOKUP(U$4,'4. Billing Determinants'!$B$19:$N$41,8,0)/'4. Billing Determinants'!$I$41*$D14, VLOOKUP(U$4,'4. Billing Determinants'!$B$19:$N$41,3,0)/'4. Billing Determinants'!$D$41*$D14))))) -> 0 | V14: =IF(V$4="",0,IF($E14="kWh",VLOOKUP(V$4,'4. Billing Determinants'!$B$19:$N$41,4,0)/'4. Billing Determinants'!$E$41*$D14,IF($E14="kW",VLOOKUP(V$4,'4. Billing Determinants'!$B$19:$N$41,5,0)/'4. Billing Determinants'!$F$41*$D14,IF($E14="Non-RPP kWh",VLOOKUP(V$4,'4. Billing Determinants'!$B$19:$N$41,6,0)/'4. Billing Determinants'!$G$41*$D14,IF($E14="Distribution Rev.",VLOOKUP(V$4,'4. Billing Determinants'!$B$19:$N$41,8,0)/'4. Billing Determinants'!$I$41*$D14, VLOOKUP(V$4,'4. Billing Determinants'!$B$19:$N$41,3,0)/'4. Billing Determinants'!$D$41*$D14))))) -> 0 | W14: =IF(W$4="",0,IF($E14="kWh",VLOOKUP(W$4,'4. Billing Determinants'!$B$19:$N$41,4,0)/'4. Billing Determinants'!$E$41*$D14,IF($E14="kW",VLOOKUP(W$4,'4. Billing Determinants'!$B$19:$N$41,5,0)/'4. Billing Determinants'!$F$41*$D14,IF($E14="Non-RPP kWh",VLOOKUP(W$4,'4. Billing Determinants'!$B$19:$N$41,6,0)/'4. Billing Determinants'!$G$41*$D14,IF($E14="Distribution Rev.",VLOOKUP(W$4,'4. Billing Determinants'!$B$19:$N$41,8,0)/'4. Billing Determinants'!$I$41*$D14, VLOOKUP(W$4,'4. Billing Determinants'!$B$19:$N$41,3,0)/'4. Billing Determinants'!$D$41*$D14))))) -> 0 | X14: =IF(X$4="",0,IF($E14="kWh",VLOOKUP(X$4,'4. Billing Determinants'!$B$19:$N$41,4,0)/'4. Billing Determinants'!$E$41*$D14,IF($E14="kW",VLOOKUP(X$4,'4. Billing Determinants'!$B$19:$N$41,5,0)/'4. Billing Determinants'!$F$41*$D14,IF($E14="Non-RPP kWh",VLOOKUP(X$4,'4. Billing Determinants'!$B$19:$N$41,6,0)/'4. Billing Determinants'!$G$41*$D14,IF($E14="Distribution Rev.",VLOOKUP(X$4,'4. Billing Determinants'!$B$19:$N$41,8,0)/'4. Billing Determinants'!$I$41*$D14, VLOOKUP(X$4,'4. Billing Determinants'!$B$19:$N$41,3,0)/'4. Billing Determinants'!$D$41*$D14))))) -> 0 | Y14: =IF(Y$4="",0,IF($E14="kWh",VLOOKUP(Y$4,'4. Billing Determinants'!$B$19:$N$41,4,0)/'4. Billing Determinants'!$E$41*$D14,IF($E14="kW",VLOOKUP(Y$4,'4. Billing Determinants'!$B$19:$N$41,5,0)/'4. Billing Determinants'!$F$41*$D14,IF($E14="Non-RPP kWh",VLOOKUP(Y$4,'4. Billing Determinants'!$B$19:$N$41,6,0)/'4. Billing Determinants'!$G$41*$D14,IF($E14="Distribution Rev.",VLOOKUP(Y$4,'4. Billing Determinants'!$B$19:$N$41,8,0)/'4. Billing Determinants'!$I$41*$D14, VLOOKUP(Y$4,'4. Billing Determinants'!$B$19:$N$41,3,0)/'4. Billing Determinants'!$D$41*$D14))))) -> 0
B15: Total of Group 1 Accounts (excluding 1589) | D15: =SUM(D5:D14)-D10 -> -164466.9841 | F15: =SUM(F5:F14)-F10 -> -59234.47446 | G15: =SUM(G5:G14)-G10 -> -21953.28719 | H15: -76766.92499 | I15: -310.4879528 | J15: -2889.276832 | K15: -1465.442739 | L15: -1847.089952 | M15: 0 | N15: 0 | O15: 0 | P15: 0 | Q15: 0 | R15: 0 | S15: 0 | T15: 0 | U15: 0 | V15: 0 | W15: 0 | X15: 0 | Y15: 0
B17: Other Regulatory Assets - Sub-Account - OEB Cost Assessments | C17: 1508 | D17: 0 | F17: 0 | G17: 0 | H17: 0 | I17: 0 | J17: 0 | K17: 0 | L17: 0 | M17: =IF(M$4="",0,IF($E17="kWh",VLOOKUP(M$4,'4. Billing Determinants'!$B$19:$N$41,4,0)/'4. Billing Determinants'!$E$41*$D17,IF($E17="kW",VLOOKUP(M$4,'4. Billing Determinants'!$B$19:$N$41,5,0)/'4. Billing Determinants'!$F$41*$D17,IF($E17="Non-RPP kWh",VLOOKUP(M$4,'4. Billing Determinants'!$B$19:$N$41,6,0)/'4. Billing Determinants'!$G$41*$D17,IF($E17="Distribution Rev.",VLOOKUP(M$4,'4. Billing Determinants'!$B$19:$N$41,8,0)/'4. Billing Determinants'!$I$41*$D17, VLOOKUP(M$4,'4. Billing Determinants'!$B$19:$N$41,3,0)/'4. Billing Determinants'!$D$41*$D17))))) -> 0 | N17: =IF(N$4="",0,IF($E17="kWh",VLOOKUP(N$4,'4. Billing Determinants'!$B$19:$N$41,4,0)/'4. Billing Determinants'!$E$41*$D17,IF($E17="kW",VLOOKUP(N$4,'4. Billing Determinants'!$B$19:$N$41,5,0)/'4. Billing Determinants'!$F$41*$D17,IF($E17="Non-RPP kWh",VLOOKUP(N$4,'4. Billing Determinants'!$B$19:$N$41,6,0)/'4. Billing Determinants'!$G$41*$D17,IF($E17="Distribution Rev.",VLOOKUP(N$4,'4. Billing Determinants'!$B$19:$N$41,8,0)/'4. Billing Determinants'!$I$41*$D17, VLOOKUP(N$4,'4. Billing Determinants'!$B$19:$N$41,3,0)/'4. Billing Determinants'!$D$41*$D17))))) -> 0 | O17: =IF(O$4="",0,IF($E17="kWh",VLOOKUP(O$4,'4. Billing Determinants'!$B$19:$N$41,4,0)/'4. Billing Determinants'!$E$41*$D17,IF($E17="kW",VLOOKUP(O$4,'4. Billing Determinants'!$B$19:$N$41,5,0)/'4. Billing Determinants'!$F$41*$D17,IF($E17="Non-RPP kWh",VLOOKUP(O$4,'4. Billing Determinants'!$B$19:$N$41,6,0)/'4. Billing Determinants'!$G$41*$D17,IF($E17="Distribution Rev.",VLOOKUP(O$4,'4. Billing Determinants'!$B$19:$N$41,8,0)/'4. Billing Determinants'!$I$41*$D17, VLOOKUP(O$4,'4. Billing Determinants'!$B$19:$N$41,3,0)/'4. Billing Determinants'!$D$41*$D17))))) -> 0 | P17: =IF(P$4="",0,IF($E17="kWh",VLOOKUP(P$4,'4. Billing Determinants'!$B$19:$N$41,4,0)/'4. Billing Determinants'!$E$41*$D17,IF($E17="kW",VLOOKUP(P$4,'4. Billing Determinants'!$B$19:$N$41,5,0)/'4. Billing Determinants'!$F$41*$D17,IF($E17="Non-RPP kWh",VLOOKUP(P$4,'4. Billing Determinants'!$B$19:$N$41,6,0)/'4. Billing Determinants'!$G$41*$D17,IF($E17="Distribution Rev.",VLOOKUP(P$4,'4. Billing Determinants'!$B$19:$N$41,8,0)/'4. Billing Determinants'!$I$41*$D17, VLOOKUP(P$4,'4. Billing Determinants'!$B$19:$N$41,3,0)/'4. Billing Determinants'!$D$41*$D17))))) -> 0 | Q17: =IF(Q$4="",0,IF($E17="kWh",VLOOKUP(Q$4,'4. Billing Determinants'!$B$19:$N$41,4,0)/'4. Billing Determinants'!$E$41*$D17,IF($E17="kW",VLOOKUP(Q$4,'4. Billing Determinants'!$B$19:$N$41,5,0)/'4. Billing Determinants'!$F$41*$D17,IF($E17="Non-RPP kWh",VLOOKUP(Q$4,'4. Billing Determinants'!$B$19:$N$41,6,0)/'4. Billing Determinants'!$G$41*$D17,IF($E17="Distribution Rev.",VLOOKUP(Q$4,'4. Billing Determinants'!$B$19:$N$41,8,0)/'4. Billing Determinants'!$I$41*$D17, VLOOKUP(Q$4,'4. Billing Determinants'!$B$19:$N$41,3,0)/'4. Billing Determinants'!$D$41*$D17))))) -> 0 | R17: =IF(R$4="",0,IF($E17="kWh",VLOOKUP(R$4,'4. Billing Determinants'!$B$19:$N$41,4,0)/'4. Billing Determinants'!$E$41*$D17,IF($E17="kW",VLOOKUP(R$4,'4. Billing Determinants'!$B$19:$N$41,5,0)/'4. Billing Determinants'!$F$41*$D17,IF($E17="Non-RPP kWh",VLOOKUP(R$4,'4. Billing Determinants'!$B$19:$N$41,6,0)/'4. Billing Determinants'!$G$41*$D17,IF($E17="Distribution Rev.",VLOOKUP(R$4,'4. Billing Determinants'!$B$19:$N$41,8,0)/'4. Billing Determinants'!$I$41*$D17, VLOOKUP(R$4,'4. Billing Determinants'!$B$19:$N$41,3,0)/'4. Billing Determinants'!$D$41*$D17))))) -> 0 | S17: =IF(S$4="",0,IF($E17="kWh",VLOOKUP(S$4,'4. Billing Determinants'!$B$19:$N$41,4,0)/'4. Billing Determinants'!$E$41*$D17,IF($E17="kW",VLOOKUP(S$4,'4. Billing Determinants'!$B$19:$N$41,5,0)/'4. Billing Determinants'!$F$41*$D17,IF($E17="Non-RPP kWh",VLOOKUP(S$4,'4. Billing Determinants'!$B$19:$N$41,6,0)/'4. Billing Determinants'!$G$41*$D17,IF($E17="Distribution Rev.",VLOOKUP(S$4,'4. Billing Determinants'!$B$19:$N$41,8,0)/'4. Billing Determinants'!$I$41*$D17, VLOOKUP(S$4,'4. Billing Determinants'!$B$19:$N$41,3,0)/'4. Billing Determinants'!$D$41*$D17))))) -> 0 | T17: =IF(T$4="",0,IF($E17="kWh",VLOOKUP(T$4,'4. Billing Determinants'!$B$19:$N$41,4,0)/'4. Billing Determinants'!$E$41*$D17,IF($E17="kW",VLOOKUP(T$4,'4. Billing Determinants'!$B$19:$N$41,5,0)/'4. Billing Determinants'!$F$41*$D17,IF($E17="Non-RPP kWh",VLOOKUP(T$4,'4. Billing Determinants'!$B$19:$N$41,6,0)/'4. Billing Determinants'!$G$41*$D17,IF($E17="Distribution Rev.",VLOOKUP(T$4,'4. Billing Determinants'!$B$19:$N$41,8,0)/'4. Billing Determinants'!$I$41*$D17, VLOOKUP(T$4,'4. Billing Determinants'!$B$19:$N$41,3,0)/'4. Billing Determinants'!$D$41*$D17))))) -> 0 | U17: =IF(U$4="",0,IF($E17="kWh",VLOOKUP(U$4,'4. Billing Determinants'!$B$19:$N$41,4,0)/'4. Billing Determinants'!$E$41*$D17,IF($E17="kW",VLOOKUP(U$4,'4. Billing Determinants'!$B$19:$N$41,5,0)/'4. Billing Determinants'!$F$41*$D17,IF($E17="Non-RPP kWh",VLOOKUP(U$4,'4. Billing Determinants'!$B$19:$N$41,6,0)/'4. Billing Determinants'!$G$41*$D17,IF($E17="Distribution Rev.",VLOOKUP(U$4,'4. Billing Determinants'!$B$19:$N$41,8,0)/'4. Billing Determinants'!$I$41*$D17, VLOOKUP(U$4,'4. Billing Determinants'!$B$19:$N$41,3,0)/'4. Billing Determinants'!$D$41*$D17))))) -> 0 | V17: =IF(V$4="",0,IF($E17="kWh",VLOOKUP(V$4,'4. Billing Determinants'!$B$19:$N$41,4,0)/'4. Billing Determinants'!$E$41*$D17,IF($E17="kW",VLOOKUP(V$4,'4. Billing Determinants'!$B$19:$N$41,5,0)/'4. Billing Determinants'!$F$41*$D17,IF($E17="Non-RPP kWh",VLOOKUP(V$4,'4. Billing Determinants'!$B$19:$N$41,6,0)/'4. Billing Determinants'!$G$41*$D17,IF($E17="Distribution Rev.",VLOOKUP(V$4,'4. Billing Determinants'!$B$19:$N$41,8,0)/'4. Billing Determinants'!$I$41*$D17, VLOOKUP(V$4,'4. Billing Determinants'!$B$19:$N$41,3,0)/'4. Billing Determinants'!$D$41*$D17))))) -> 0 | W17: =IF(W$4="",0,IF($E17="kWh",VLOOKUP(W$4,'4. Billing Determinants'!$B$19:$N$41,4,0)/'4. Billing Determinants'!$E$41*$D17,IF($E17="kW",VLOOKUP(W$4,'4. Billing Determinants'!$B$19:$N$41,5,0)/'4. Billing Determinants'!$F$41*$D17,IF($E17="Non-RPP kWh",VLOOKUP(W$4,'4. Billing Determinants'!$B$19:$N$41,6,0)/'4. Billing Determinants'!$G$41*$D17,IF($E17="Distribution Rev.",VLOOKUP(W$4,'4. Billing Determinants'!$B$19:$N$41,8,0)/'4. Billing Determinants'!$I$41*$D17, VLOOKUP(W$4,'4. Billing Determinants'!$B$19:$N$41,3,0)/'4. Billing Determinants'!$D$41*$D17))))) -> 0 | X17: =IF(X$4="",0,IF($E17="kWh",VLOOKUP(X$4,'4. Billing Determinants'!$B$19:$N$41,4,0)/'4. Billing Determinants'!$E$41*$D17,IF($E17="kW",VLOOKUP(X$4,'4. Billing Determinants'!$B$19:$N$41,5,0)/'4. Billing Determinants'!$F$41*$D17,IF($E17="Non-RPP kWh",VLOOKUP(X$4,'4. Billing Determinants'!$B$19:$N$41,6,0)/'4. Billing Determinants'!$G$41*$D17,IF($E17="Distribution Rev.",VLOOKUP(X$4,'4. Billing Determinants'!$B$19:$N$41,8,0)/'4. Billing Determinants'!$I$41*$D17, VLOOKUP(X$4,'4. Billing Determinants'!$B$19:$N$41,3,0)/'4. Billing Determinants'!$D$41*$D17))))) -> 0 | Y17: =IF(Y$4="",0,IF($E17="kWh",VLOOKUP(Y$4,'4. Billing Determinants'!$B$19:$N$41,4,0)/'4. Billing Determinants'!$E$41*$D17,IF($E17="kW",VLOOKUP(Y$4,'4. Billing Determinants'!$B$19:$N$41,5,0)/'4. Billing Determinants'!$F$41*$D17,IF($E17="Non-RPP kWh",VLOOKUP(Y$4,'4. Billing Determinants'!$B$19:$N$41,6,0)/'4. Billing Determinants'!$G$41*$D17,IF($E17="Distribution Rev.",VLOOKUP(Y$4,'4. Billing Determinants'!$B$19:$N$41,8,0)/'4. Billing Determinants'!$I$41*$D17, VLOOKUP(Y$4,'4. Billing Determinants'!$B$19:$N$41,3,0)/'4. Billing Determinants'!$D$41*$D17))))) -> 0
B18: Other Regulatory Assets - Sub-Account - Pension Contributions | C18: 1508 | D18: 0 | F18: 0 | G18: 0 | H18: 0 | I18: 0 | J18: 0 | K18: 0 | L18: 0 | M18: =IF(M$4="",0,IF($E18="kWh",VLOOKUP(M$4,'4. Billing Determinants'!$B$19:$N$41,4,0)/'4. Billing Determinants'!$E$41*$D18,IF($E18="kW",VLOOKUP(M$4,'4. Billing Determinants'!$B$19:$N$41,5,0)/'4. Billing Determinants'!$F$41*$D18,IF($E18="Non-RPP kWh",VLOOKUP(M$4,'4. Billing Determinants'!$B$19:$N$41,6,0)/'4. Billing Determinants'!$G$41*$D18,IF($E18="Distribution Rev.",VLOOKUP(M$4,'4. Billing Determinants'!$B$19:$N$41,8,0)/'4. Billing Determinants'!$I$41*$D18, VLOOKUP(M$4,'4. Billing Determinants'!$B$19:$N$41,3,0)/'4. Billing Determinants'!$D$41*$D18))))) -> 0 | N18: =IF(N$4="",0,IF($E18="kWh",VLOOKUP(N$4,'4. Billing Determinants'!$B$19:$N$41,4,0)/'4. Billing Determinants'!$E$41*$D18,IF($E18="kW",VLOOKUP(N$4,'4. Billing Determinants'!$B$19:$N$41,5,0)/'4. Billing Determinants'!$F$41*$D18,IF($E18="Non-RPP kWh",VLOOKUP(N$4,'4. Billing Determinants'!$B$19:$N$41,6,0)/'4. Billing Determinants'!$G$41*$D18,IF($E18="Distribution Rev.",VLOOKUP(N$4,'4. Billing Determinants'!$B$19:$N$41,8,0)/'4. Billing Determinants'!$I$41*$D18, VLOOKUP(N$4,'4. Billing Determinants'!$B$19:$N$41,3,0)/'4. Billing Determinants'!$D$41*$D18))))) -> 0 | O18: =IF(O$4="",0,IF($E18="kWh",VLOOKUP(O$4,'4. Billing Determinants'!$B$19:$N$41,4,0)/'4. Billing Determinants'!$E$41*$D18,IF($E18="kW",VLOOKUP(O$4,'4. Billing Determinants'!$B$19:$N$41,5,0)/'4. Billing Determinants'!$F$41*$D18,IF($E18="Non-RPP kWh",VLOOKUP(O$4,'4. Billing Determinants'!$B$19:$N$41,6,0)/'4. Billing Determinants'!$G$41*$D18,IF($E18="Distribution Rev.",VLOOKUP(O$4,'4. Billing Determinants'!$B$19:$N$41,8,0)/'4. Billing Determinants'!$I$41*$D18, VLOOKUP(O$4,'4. Billing Determinants'!$B$19:$N$41,3,0)/'4. Billing Determinants'!$D$41*$D18))))) -> 0 | P18: =IF(P$4="",0,IF($E18="kWh",VLOOKUP(P$4,'4. Billing Determinants'!$B$19:$N$41,4,0)/'4. Billing Determinants'!$E$41*$D18,IF($E18="kW",VLOOKUP(P$4,'4. Billing Determinants'!$B$19:$N$41,5,0)/'4. Billing Determinants'!$F$41*$D18,IF($E18="Non-RPP kWh",VLOOKUP(P$4,'4. Billing Determinants'!$B$19:$N$41,6,0)/'4. Billing Determinants'!$G$41*$D18,IF($E18="Distribution Rev.",VLOOKUP(P$4,'4. Billing Determinants'!$B$19:$N$41,8,0)/'4. Billing Determinants'!$I$41*$D18, VLOOKUP(P$4,'4. Billing Determinants'!$B$19:$N$41,3,0)/'4. Billing Determinants'!$D$41*$D18))))) -> 0 | Q18: =IF(Q$4="",0,IF($E18="kWh",VLOOKUP(Q$4,'4. Billing Determinants'!$B$19:$N$41,4,0)/'4. Billing Determinants'!$E$41*$D18,IF($E18="kW",VLOOKUP(Q$4,'4. Billing Determinants'!$B$19:$N$41,5,0)/'4. Billing Determinants'!$F$41*$D18,IF($E18="Non-RPP kWh",VLOOKUP(Q$4,'4. Billing Determinants'!$B$19:$N$41,6,0)/'4. Billing Determinants'!$G$41*$D18,IF($E18="Distribution Rev.",VLOOKUP(Q$4,'4. Billing Determinants'!$B$19:$N$41,8,0)/'4. Billing Determinants'!$I$41*$D18, VLOOKUP(Q$4,'4. Billing Determinants'!$B$19:$N$41,3,0)/'4. Billing Determinants'!$D$41*$D18))))) -> 0 | R18: =IF(R$4="",0,IF($E18="kWh",VLOOKUP(R$4,'4. Billing Determinants'!$B$19:$N$41,4,0)/'4. Billing Determinants'!$E$41*$D18,IF($E18="kW",VLOOKUP(R$4,'4. Billing Determinants'!$B$19:$N$41,5,0)/'4. Billing Determinants'!$F$41*$D18,IF($E18="Non-RPP kWh",VLOOKUP(R$4,'4. Billing Determinants'!$B$19:$N$41,6,0)/'4. Billing Determinants'!$G$41*$D18,IF($E18="Distribution Rev.",VLOOKUP(R$4,'4. Billing Determinants'!$B$19:$N$41,8,0)/'4. Billing Determinants'!$I$41*$D18, VLOOKUP(R$4,'4. Billing Determinants'!$B$19:$N$41,3,0)/'4. Billing Determinants'!$D$41*$D18))))) -> 0 | S18: =IF(S$4="",0,IF($E18="kWh",VLOOKUP(S$4,'4. Billing Determinants'!$B$19:$N$41,4,0)/'4. Billing Determinants'!$E$41*$D18,IF($E18="kW",VLOOKUP(S$4,'4. Billing Determinants'!$B$19:$N$41,5,0)/'4. Billing Determinants'!$F$41*$D18,IF($E18="Non-RPP kWh",VLOOKUP(S$4,'4. Billing Determinants'!$B$19:$N$41,6,0)/'4. Billing Determinants'!$G$41*$D18,IF($E18="Distribution Rev.",VLOOKUP(S$4,'4. Billing Determinants'!$B$19:$N$41,8,0)/'4. Billing Determinants'!$I$41*$D18, VLOOKUP(S$4,'4. Billing Determinants'!$B$19:$N$41,3,0)/'4. Billing Determinants'!$D$41*$D18))))) -> 0 | T18: =IF(T$4="",0,IF($E18="kWh",VLOOKUP(T$4,'4. Billing Determinants'!$B$19:$N$41,4,0)/'4. Billing Determinants'!$E$41*$D18,IF($E18="kW",VLOOKUP(T$4,'4. Billing Determinants'!$B$19:$N$41,5,0)/'4. Billing Determinants'!$F$41*$D18,IF($E18="Non-RPP kWh",VLOOKUP(T$4,'4. Billing Determinants'!$B$19:$N$41,6,0)/'4. Billing Determinants'!$G$41*$D18,IF($E18="Distribution Rev.",VLOOKUP(T$4,'4. Billing Determinants'!$B$19:$N$41,8,0)/'4. Billing Determinants'!$I$41*$D18, VLOOKUP(T$4,'4. Billing Determinants'!$B$19:$N$41,3,0)/'4. Billing Determinants'!$D$41*$D18))))) -> 0 | U18: =IF(U$4="",0,IF($E18="kWh",VLOOKUP(U$4,'4. Billing Determinants'!$B$19:$N$41,4,0)/'4. Billing Determinants'!$E$41*$D18,IF($E18="kW",VLOOKUP(U$4,'4. Billing Determinants'!$B$19:$N$41,5,0)/'4. Billing Determinants'!$F$41*$D18,IF($E18="Non-RPP kWh",VLOOKUP(U$4,'4. Billing Determinants'!$B$19:$N$41,6,0)/'4. Billing Determinants'!$G$41*$D18,IF($E18="Distribution Rev.",VLOOKUP(U$4,'4. Billing Determinants'!$B$19:$N$41,8,0)/'4. Billing Determinants'!$I$41*$D18, VLOOKUP(U$4,'4. Billing Determinants'!$B$19:$N$41,3,0)/'4. Billing Determinants'!$D$41*$D18))))) -> 0 | V18: =IF(V$4="",0,IF($E18="kWh",VLOOKUP(V$4,'4. Billing Determinants'!$B$19:$N$41,4,0)/'4. Billing Determinants'!$E$41*$D18,IF($E18="kW",VLOOKUP(V$4,'4. Billing Determinants'!$B$19:$N$41,5,0)/'4. Billing Determinants'!$F$41*$D18,IF($E18="Non-RPP kWh",VLOOKUP(V$4,'4. Billing Determinants'!$B$19:$N$41,6,0)/'4. Billing Determinants'!$G$41*$D18,IF($E18="Distribution Rev.",VLOOKUP(V$4,'4. Billing Determinants'!$B$19:$N$41,8,0)/'4. Billing Determinants'!$I$41*$D18, VLOOKUP(V$4,'4. Billing Determinants'!$B$19:$N$41,3,0)/'4. Billing Determinants'!$D$41*$D18))))) -> 0 | W18: =IF(W$4="",0,IF($E18="kWh",VLOOKUP(W$4,'4. Billing Determinants'!$B$19:$N$41,4,0)/'4. Billing Determinants'!$E$41*$D18,IF($E18="kW",VLOOKUP(W$4,'4. Billing Determinants'!$B$19:$N$41,5,0)/'4. Billing Determinants'!$F$41*$D18,IF($E18="Non-RPP kWh",VLOOKUP(W$4,'4. Billing Determinants'!$B$19:$N$41,6,0)/'4. Billing Determinants'!$G$41*$D18,IF($E18="Distribution Rev.",VLOOKUP(W$4,'4. Billing Determinants'!$B$19:$N$41,8,0)/'4. Billing Determinants'!$I$41*$D18, VLOOKUP(W$4,'4. Billing Determinants'!$B$19:$N$41,3,0)/'4. Billing Determinants'!$D$41*$D18))))) -> 0 | X18: =IF(X$4="",0,IF($E18="kWh",VLOOKUP(X$4,'4. Billing Determinants'!$B$19:$N$41,4,0)/'4. Billing Determinants'!$E$41*$D18,IF($E18="kW",VLOOKUP(X$4,'4. Billing Determinants'!$B$19:$N$41,5,0)/'4. Billing Determinants'!$F$41*$D18,IF($E18="Non-RPP kWh",VLOOKUP(X$4,'4. Billing Determinants'!$B$19:$N$41,6,0)/'4. Billing Determinants'!$G$41*$D18,IF($E18="Distribution Rev.",VLOOKUP(X$4,'4. Billing Determinants'!$B$19:$N$41,8,0)/'4. Billing Determinants'!$I$41*$D18, VLOOKUP(X$4,'4. Billing Determinants'!$B$19:$N$41,3,0)/'4. Billing Determinants'!$D$41*$D18))))) -> 0 | Y18: =IF(Y$4="",0,IF($E18="kWh",VLOOKUP(Y$4,'4. Billing Determinants'!$B$19:$N$41,4,0)/'4. Billing Determinants'!$E$41*$D18,IF($E18="kW",VLOOKUP(Y$4,'4. Billing Determinants'!$B$19:$N$41,5,0)/'4. Billing Determinants'!$F$41*$D18,IF($E18="Non-RPP kWh",VLOOKUP(Y$4,'4. Billing Determinants'!$B$19:$N$41,6,0)/'4. Billing Determinants'!$G$41*$D18,IF($E18="Distribution Rev.",VLOOKUP(Y$4,'4. Billing Determinants'!$B$19:$N$41,8,0)/'4. Billing Determinants'!$I$41*$D18, VLOOKUP(Y$4,'4. Billing Determinants'!$B$19:$N$41,3,0)/'4. Billing Determinants'!$D$41*$D18))))) -> 0
B19: Other Regulatory Assets - Sub-Account - Deferred IFRS Transition Costs | C19: 1508 | D19: 197646.0839 | F19: 173931.3341 | G19: 16492.27201 | H19: 1990.446622 | I19: 1874.600523 | J19: 2.106292722 | K19: 3353.218014 | L19: 2.106292722 | M19: =IF(M$4="",0,IF($E19="kWh",VLOOKUP(M$4,'4. Billing Determinants'!$B$19:$N$41,4,0)/'4. Billing Determinants'!$E$41*$D19,IF($E19="kW",VLOOKUP(M$4,'4. Billing Determinants'!$B$19:$N$41,5,0)/'4. Billing Determinants'!$F$41*$D19,IF($E19="Non-RPP kWh",VLOOKUP(M$4,'4. Billing Determinants'!$B$19:$N$41,6,0)/'4. Billing Determinants'!$G$41*$D19,IF($E19="Distribution Rev.",VLOOKUP(M$4,'4. Billing Determinants'!$B$19:$N$41,8,0)/'4. Billing Determinants'!$I$41*$D19, VLOOKUP(M$4,'4. Billing Determinants'!$B$19:$N$41,3,0)/'4. Billing Determinants'!$D$41*$D19))))) -> 0 | N19: =IF(N$4="",0,IF($E19="kWh",VLOOKUP(N$4,'4. Billing Determinants'!$B$19:$N$41,4,0)/'4. Billing Determinants'!$E$41*$D19,IF($E19="kW",VLOOKUP(N$4,'4. Billing Determinants'!$B$19:$N$41,5,0)/'4. Billing Determinants'!$F$41*$D19,IF($E19="Non-RPP kWh",VLOOKUP(N$4,'4. Billing Determinants'!$B$19:$N$41,6,0)/'4. Billing Determinants'!$G$41*$D19,IF($E19="Distribution Rev.",VLOOKUP(N$4,'4. Billing Determinants'!$B$19:$N$41,8,0)/'4. Billing Determinants'!$I$41*$D19, VLOOKUP(N$4,'4. Billing Determinants'!$B$19:$N$41,3,0)/'4. Billing Determinants'!$D$41*$D19))))) -> 0 | O19: =IF(O$4="",0,IF($E19="kWh",VLOOKUP(O$4,'4. Billing Determinants'!$B$19:$N$41,4,0)/'4. Billing Determinants'!$E$41*$D19,IF($E19="kW",VLOOKUP(O$4,'4. Billing Determinants'!$B$19:$N$41,5,0)/'4. Billing Determinants'!$F$41*$D19,IF($E19="Non-RPP kWh",VLOOKUP(O$4,'4. Billing Determinants'!$B$19:$N$41,6,0)/'4. Billing Determinants'!$G$41*$D19,IF($E19="Distribution Rev.",VLOOKUP(O$4,'4. Billing Determinants'!$B$19:$N$41,8,0)/'4. Billing Determinants'!$I$41*$D19, VLOOKUP(O$4,'4. Billing Determinants'!$B$19:$N$41,3,0)/'4. Billing Determinants'!$D$41*$D19))))) -> 0 | P19: =IF(P$4="",0,IF($E19="kWh",VLOOKUP(P$4,'4. Billing Determinants'!$B$19:$N$41,4,0)/'4. Billing Determinants'!$E$41*$D19,IF($E19="kW",VLOOKUP(P$4,'4. Billing Determinants'!$B$19:$N$41,5,0)/'4. Billing Determinants'!$F$41*$D19,IF($E19="Non-RPP kWh",VLOOKUP(P$4,'4. Billing Determinants'!$B$19:$N$41,6,0)/'4. Billing Determinants'!$G$41*$D19,IF($E19="Distribution Rev.",VLOOKUP(P$4,'4. Billing Determinants'!$B$19:$N$41,8,0)/'4. Billing Determinants'!$I$41*$D19, VLOOKUP(P$4,'4. Billing Determinants'!$B$19:$N$41,3,0)/'4. Billing Determinants'!$D$41*$D19))))) -> 0 | Q19: =IF(Q$4="",0,IF($E19="kWh",VLOOKUP(Q$4,'4. Billing Determinants'!$B$19:$N$41,4,0)/'4. Billing Determinants'!$E$41*$D19,IF($E19="kW",VLOOKUP(Q$4,'4. Billing Determinants'!$B$19:$N$41,5,0)/'4. Billing Determinants'!$F$41*$D19,IF($E19="Non-RPP kWh",VLOOKUP(Q$4,'4. Billing Determinants'!$B$19:$N$41,6,0)/'4. Billing Determinants'!$G$41*$D19,IF($E19="Distribution Rev.",VLOOKUP(Q$4,'4. Billing Determinants'!$B$19:$N$41,8,0)/'4. Billing Determinants'!$I$41*$D19, VLOOKUP(Q$4,'4. Billing Determinants'!$B$19:$N$41,3,0)/'4. Billing Determinants'!$D$41*$D19))))) -> 0 | R19: =IF(R$4="",0,IF($E19="kWh",VLOOKUP(R$4,'4. Billing Determinants'!$B$19:$N$41,4,0)/'4. Billing Determinants'!$E$41*$D19,IF($E19="kW",VLOOKUP(R$4,'4. Billing Determinants'!$B$19:$N$41,5,0)/'4. Billing Determinants'!$F$41*$D19,IF($E19="Non-RPP kWh",VLOOKUP(R$4,'4. Billing Determinants'!$B$19:$N$41,6,0)/'4. Billing Determinants'!$G$41*$D19,IF($E19="Distribution Rev.",VLOOKUP(R$4,'4. Billing Determinants'!$B$19:$N$41,8,0)/'4. Billing Determinants'!$I$41*$D19, VLOOKUP(R$4,'4. Billing Determinants'!$B$19:$N$41,3,0)/'4. Billing Determinants'!$D$41*$D19))))) -> 0 | S19: =IF(S$4="",0,IF($E19="kWh",VLOOKUP(S$4,'4. Billing Determinants'!$B$19:$N$41,4,0)/'4. Billing Determinants'!$E$41*$D19,IF($E19="kW",VLOOKUP(S$4,'4. Billing Determinants'!$B$19:$N$41,5,0)/'4. Billing Determinants'!$F$41*$D19,IF($E19="Non-RPP kWh",VLOOKUP(S$4,'4. Billing Determinants'!$B$19:$N$41,6,0)/'4. Billing Determinants'!$G$41*$D19,IF($E19="Distribution Rev.",VLOOKUP(S$4,'4. Billing Determinants'!$B$19:$N$41,8,0)/'4. Billing Determinants'!$I$41*$D19, VLOOKUP(S$4,'4. Billing Determinants'!$B$19:$N$41,3,0)/'4. Billing Determinants'!$D$41*$D19))))) -> 0 | T19: =IF(T$4="",0,IF($E19="kWh",VLOOKUP(T$4,'4. Billing Determinants'!$B$19:$N$41,4,0)/'4. Billing Determinants'!$E$41*$D19,IF($E19="kW",VLOOKUP(T$4,'4. Billing Determinants'!$B$19:$N$41,5,0)/'4. Billing Determinants'!$F$41*$D19,IF($E19="Non-RPP kWh",VLOOKUP(T$4,'4. Billing Determinants'!$B$19:$N$41,6,0)/'4. Billing Determinants'!$G$41*$D19,IF($E19="Distribution Rev.",VLOOKUP(T$4,'4. Billing Determinants'!$B$19:$N$41,8,0)/'4. Billing Determinants'!$I$41*$D19, VLOOKUP(T$4,'4. Billing Determinants'!$B$19:$N$41,3,0)/'4. Billing Determinants'!$D$41*$D19))))) -> 0 | U19: =IF(U$4="",0,IF($E19="kWh",VLOOKUP(U$4,'4. Billing Determinants'!$B$19:$N$41,4,0)/'4. Billing Determinants'!$E$41*$D19,IF($E19="kW",VLOOKUP(U$4,'4. Billing Determinants'!$B$19:$N$41,5,0)/'4. Billing Determinants'!$F$41*$D19,IF($E19="Non-RPP kWh",VLOOKUP(U$4,'4. Billing Determinants'!$B$19:$N$41,6,0)/'4. Billing Determinants'!$G$41*$D19,IF($E19="Distribution Rev.",VLOOKUP(U$4,'4. Billing Determinants'!$B$19:$N$41,8,0)/'4. Billing Determinants'!$I$41*$D19, VLOOKUP(U$4,'4. Billing Determinants'!$B$19:$N$41,3,0)/'4. Billing Determinants'!$D$41*$D19))))) -> 0 | V19: =IF(V$4="",0,IF($E19="kWh",VLOOKUP(V$4,'4. Billing Determinants'!$B$19:$N$41,4,0)/'4. Billing Determinants'!$E$41*$D19,IF($E19="kW",VLOOKUP(V$4,'4. Billing Determinants'!$B$19:$N$41,5,0)/'4. Billing Determinants'!$F$41*$D19,IF($E19="Non-RPP kWh",VLOOKUP(V$4,'4. Billing Determinants'!$B$19:$N$41,6,0)/'4. Billing Determinants'!$G$41*$D19,IF($E19="Distribution Rev.",VLOOKUP(V$4,'4. Billing Determinants'!$B$19:$N$41,8,0)/'4. Billing Determinants'!$I$41*$D19, VLOOKUP(V$4,'4. Billing Determinants'!$B$19:$N$41,3,0)/'4. Billing Determinants'!$D$41*$D19))))) -> 0 | W19: =IF(W$4="",0,IF($E19="kWh",VLOOKUP(W$4,'4. Billing Determinants'!$B$19:$N$41,4,0)/'4. Billing Determinants'!$E$41*$D19,IF($E19="kW",VLOOKUP(W$4,'4. Billing Determinants'!$B$19:$N$41,5,0)/'4. Billing Determinants'!$F$41*$D19,IF($E19="Non-RPP kWh",VLOOKUP(W$4,'4. Billing Determinants'!$B$19:$N$41,6,0)/'4. Billing Determinants'!$G$41*$D19,IF($E19="Distribution Rev.",VLOOKUP(W$4,'4. Billing Determinants'!$B$19:$N$41,8,0)/'4. Billing Determinants'!$I$41*$D19, VLOOKUP(W$4,'4. Billing Determinants'!$B$19:$N$41,3,0)/'4. Billing Determinants'!$D$41*$D19))))) -> 0 | X19: =IF(X$4="",0,IF($E19="kWh",VLOOKUP(X$4,'4. Billing Determinants'!$B$19:$N$41,4,0)/'4. Billing Determinants'!$E$41*$D19,IF($E19="kW",VLOOKUP(X$4,'4. Billing Determinants'!$B$19:$N$41,5,0)/'4. Billing Determinants'!$F$41*$D19,IF($E19="Non-RPP kWh",VLOOKUP(X$4,'4. Billing Determinants'!$B$19:$N$41,6,0)/'4. Billing Determinants'!$G$41*$D19,IF($E19="Distribution Rev.",VLOOKUP(X$4,'4. Billing Determinants'!$B$19:$N$41,8,0)/'4. Billing Determinants'!$I$41*$D19, VLOOKUP(X$4,'4. Billing Determinants'!$B$19:$N$41,3,0)/'4. Billing Determinants'!$D$41*$D19))))) -> 0 | Y19: =IF(Y$4="",0,IF($E19="kWh",VLOOKUP(Y$4,'4. Billing Determinants'!$B$19:$N$41,4,0)/'4. Billing Determinants'!$E$41*$D19,IF($E19="kW",VLOOKUP(Y$4,'4. Billing Determinants'!$B$19:$N$41,5,0)/'4. Billing Determinants'!$F$41*$D19,IF($E19="Non-RPP kWh",VLOOKUP(Y$4,'4. Billing Determinants'!$B$19:$N$41,6,0)/'4. Billing Determinants'!$G$41*$D19,IF($E19="Distribution Rev.",VLOOKUP(Y$4,'4. Billing Determinants'!$B$19:$N$41,8,0)/'4. Billing Determinants'!$I$41*$D19, VLOOKUP(Y$4,'4. Billing Determinants'!$B$19:$N$41,3,0)/'4. Billing Determinants'!$D$41*$D19))))) -> 0
B20: Other Regulatory Assets - Sub-Account - Incremental Capital Charges | C20: 1508 | D20: 0 | F20: 0 | G20: 0 | H20: 0 | I20: 0 | J20: 0 | K20: 0 | L20: 0 | M20: =IF(M$4="",0,IF($E20="kWh",VLOOKUP(M$4,'4. Billing Determinants'!$B$19:$N$41,4,0)/'4. Billing Determinants'!$E$41*$D20,IF($E20="kW",VLOOKUP(M$4,'4. Billing Determinants'!$B$19:$N$41,5,0)/'4. Billing Determinants'!$F$41*$D20,IF($E20="Non-RPP kWh",VLOOKUP(M$4,'4. Billing Determinants'!$B$19:$N$41,6,0)/'4. Billing Determinants'!$G$41*$D20,IF($E20="Distribution Rev.",VLOOKUP(M$4,'4. Billing Determinants'!$B$19:$N$41,8,0)/'4. Billing Determinants'!$I$41*$D20, VLOOKUP(M$4,'4. Billing Determinants'!$B$19:$N$41,3,0)/'4. Billing Determinants'!$D$41*$D20))))) -> 0 | N20: =IF(N$4="",0,IF($E20="kWh",VLOOKUP(N$4,'4. Billing Determinants'!$B$19:$N$41,4,0)/'4. Billing Determinants'!$E$41*$D20,IF($E20="kW",VLOOKUP(N$4,'4. Billing Determinants'!$B$19:$N$41,5,0)/'4. Billing Determinants'!$F$41*$D20,IF($E20="Non-RPP kWh",VLOOKUP(N$4,'4. Billing Determinants'!$B$19:$N$41,6,0)/'4. Billing Determinants'!$G$41*$D20,IF($E20="Distribution Rev.",VLOOKUP(N$4,'4. Billing Determinants'!$B$19:$N$41,8,0)/'4. Billing Determinants'!$I$41*$D20, VLOOKUP(N$4,'4. Billing Determinants'!$B$19:$N$41,3,0)/'4. Billing Determinants'!$D$41*$D20))))) -> 0 | O20: =IF(O$4="",0,IF($E20="kWh",VLOOKUP(O$4,'4. Billing Determinants'!$B$19:$N$41,4,0)/'4. Billing Determinants'!$E$41*$D20,IF($E20="kW",VLOOKUP(O$4,'4. Billing Determinants'!$B$19:$N$41,5,0)/'4. Billing Determinants'!$F$41*$D20,IF($E20="Non-RPP kWh",VLOOKUP(O$4,'4. Billing Determinants'!$B$19:$N$41,6,0)/'4. Billing Determinants'!$G$41*$D20,IF($E20="Distribution Rev.",VLOOKUP(O$4,'4. Billing Determinants'!$B$19:$N$41,8,0)/'4. Billing Determinants'!$I$41*$D20, VLOOKUP(O$4,'4. Billing Determinants'!$B$19:$N$41,3,0)/'4. Billing Determinants'!$D$41*$D20))))) -> 0 | P20: =IF(P$4="",0,IF($E20="kWh",VLOOKUP(P$4,'4. Billing Determinants'!$B$19:$N$41,4,0)/'4. Billing Determinants'!$E$41*$D20,IF($E20="kW",VLOOKUP(P$4,'4. Billing Determinants'!$B$19:$N$41,5,0)/'4. Billing Determinants'!$F$41*$D20,IF($E20="Non-RPP kWh",VLOOKUP(P$4,'4. Billing Determinants'!$B$19:$N$41,6,0)/'4. Billing Determinants'!$G$41*$D20,IF($E20="Distribution Rev.",VLOOKUP(P$4,'4. Billing Determinants'!$B$19:$N$41,8,0)/'4. Billing Determinants'!$I$41*$D20, VLOOKUP(P$4,'4. Billing Determinants'!$B$19:$N$41,3,0)/'4. Billing Determinants'!$D$41*$D20))))) -> 0 | Q20: =IF(Q$4="",0,IF($E20="kWh",VLOOKUP(Q$4,'4. Billing Determinants'!$B$19:$N$41,4,0)/'4. Billing Determinants'!$E$41*$D20,IF($E20="kW",VLOOKUP(Q$4,'4. Billing Determinants'!$B$19:$N$41,5,0)/'4. Billing Determinants'!$F$41*$D20,IF($E20="Non-RPP kWh",VLOOKUP(Q$4,'4. Billing Determinants'!$B$19:$N$41,6,0)/'4. Billing Determinants'!$G$41*$D20,IF($E20="Distribution Rev.",VLOOKUP(Q$4,'4. Billing Determinants'!$B$19:$N$41,8,0)/'4. Billing Determinants'!$I$41*$D20, VLOOKUP(Q$4,'4. Billing Determinants'!$B$19:$N$41,3,0)/'4. Billing Determinants'!$D$41*$D20))))) -> 0 | R20: =IF(R$4="",0,IF($E20="kWh",VLOOKUP(R$4,'4. Billing Determinants'!$B$19:$N$41,4,0)/'4. Billing Determinants'!$E$41*$D20,IF($E20="kW",VLOOKUP(R$4,'4. Billing Determinants'!$B$19:$N$41,5,0)/'4. Billing Determinants'!$F$41*$D20,IF($E20="Non-RPP kWh",VLOOKUP(R$4,'4. Billing Determinants'!$B$19:$N$41,6,0)/'4. Billing Determinants'!$G$41*$D20,IF($E20="Distribution Rev.",VLOOKUP(R$4,'4. Billing Determinants'!$B$19:$N$41,8,0)/'4. Billing Determinants'!$I$41*$D20, VLOOKUP(R$4,'4. Billing Determinants'!$B$19:$N$41,3,0)/'4. Billing Determinants'!$D$41*$D20))))) -> 0 | S20: =IF(S$4="",0,IF($E20="kWh",VLOOKUP(S$4,'4. Billing Determinants'!$B$19:$N$41,4,0)/'4. Billing Determinants'!$E$41*$D20,IF($E20="kW",VLOOKUP(S$4,'4. Billing Determinants'!$B$19:$N$41,5,0)/'4. Billing Determinants'!$F$41*$D20,IF($E20="Non-RPP kWh",VLOOKUP(S$4,'4. Billing Determinants'!$B$19:$N$41,6,0)/'4. Billing Determinants'!$G$41*$D20,IF($E20="Distribution Rev.",VLOOKUP(S$4,'4. Billing Determinants'!$B$19:$N$41,8,0)/'4. Billing Determinants'!$I$41*$D20, VLOOKUP(S$4,'4. Billing Determinants'!$B$19:$N$41,3,0)/'4. Billing Determinants'!$D$41*$D20))))) -> 0 | T20: =IF(T$4="",0,IF($E20="kWh",VLOOKUP(T$4,'4. Billing Determinants'!$B$19:$N$41,4,0)/'4. Billing Determinants'!$E$41*$D20,IF($E20="kW",VLOOKUP(T$4,'4. Billing Determinants'!$B$19:$N$41,5,0)/'4. Billing Determinants'!$F$41*$D20,IF($E20="Non-RPP kWh",VLOOKUP(T$4,'4. Billing Determinants'!$B$19:$N$41,6,0)/'4. Billing Determinants'!$G$41*$D20,IF($E20="Distribution Rev.",VLOOKUP(T$4,'4. Billing Determinants'!$B$19:$N$41,8,0)/'4. Billing Determinants'!$I$41*$D20, VLOOKUP(T$4,'4. Billing Determinants'!$B$19:$N$41,3,0)/'4. Billing Determinants'!$D$41*$D20))))) -> 0 | U20: =IF(U$4="",0,IF($E20="kWh",VLOOKUP(U$4,'4. Billing Determinants'!$B$19:$N$41,4,0)/'4. Billing Determinants'!$E$41*$D20,IF($E20="kW",VLOOKUP(U$4,'4. Billing Determinants'!$B$19:$N$41,5,0)/'4. Billing Determinants'!$F$41*$D20,IF($E20="Non-RPP kWh",VLOOKUP(U$4,'4. Billing Determinants'!$B$19:$N$41,6,0)/'4. Billing Determinants'!$G$41*$D20,IF($E20="Distribution Rev.",VLOOKUP(U$4,'4. Billing Determinants'!$B$19:$N$41,8,0)/'4. Billing Determinants'!$I$41*$D20, VLOOKUP(U$4,'4. Billing Determinants'!$B$19:$N$41,3,0)/'4. Billing Determinants'!$D$41*$D20))))) -> 0 | V20: =IF(V$4="",0,IF($E20="kWh",VLOOKUP(V$4,'4. Billing Determinants'!$B$19:$N$41,4,0)/'4. Billing Determinants'!$E$41*$D20,IF($E20="kW",VLOOKUP(V$4,'4. Billing Determinants'!$B$19:$N$41,5,0)/'4. Billing Determinants'!$F$41*$D20,IF($E20="Non-RPP kWh",VLOOKUP(V$4,'4. Billing Determinants'!$B$19:$N$41,6,0)/'4. Billing Determinants'!$G$41*$D20,IF($E20="Distribution Rev.",VLOOKUP(V$4,'4. Billing Determinants'!$B$19:$N$41,8,0)/'4. Billing Determinants'!$I$41*$D20, VLOOKUP(V$4,'4. Billing Determinants'!$B$19:$N$41,3,0)/'4. Billing Determinants'!$D$41*$D20))))) -> 0 | W20: =IF(W$4="",0,IF($E20="kWh",VLOOKUP(W$4,'4. Billing Determinants'!$B$19:$N$41,4,0)/'4. Billing Determinants'!$E$41*$D20,IF($E20="kW",VLOOKUP(W$4,'4. Billing Determinants'!$B$19:$N$41,5,0)/'4. Billing Determinants'!$F$41*$D20,IF($E20="Non-RPP kWh",VLOOKUP(W$4,'4. Billing Determinants'!$B$19:$N$41,6,0)/'4. Billing Determinants'!$G$41*$D20,IF($E20="Distribution Rev.",VLOOKUP(W$4,'4. Billing Determinants'!$B$19:$N$41,8,0)/'4. Billing Determinants'!$I$41*$D20, VLOOKUP(W$4,'4. Billing Determinants'!$B$19:$N$41,3,0)/'4. Billing Determinants'!$D$41*$D20))))) -> 0 | X20: =IF(X$4="",0,IF($E20="kWh",VLOOKUP(X$4,'4. Billing Determinants'!$B$19:$N$41,4,0)/'4. Billing Determinants'!$E$41*$D20,IF($E20="kW",VLOOKUP(X$4,'4. Billing Determinants'!$B$19:$N$41,5,0)/'4. Billing Determinants'!$F$41*$D20,IF($E20="Non-RPP kWh",VLOOKUP(X$4,'4. Billing Determinants'!$B$19:$N$41,6,0)/'4. Billing Determinants'!$G$41*$D20,IF($E20="Distribution Rev.",VLOOKUP(X$4,'4. Billing Determinants'!$B$19:$N$41,8,0)/'4. Billing Determinants'!$I$41*$D20, VLOOKUP(X$4,'4. Billing Determinants'!$B$19:$N$41,3,0)/'4. Billing Determinants'!$D$41*$D20))))) -> 0 | Y20: =IF(Y$4="",0,IF($E20="kWh",VLOOKUP(Y$4,'4. Billing Determinants'!$B$19:$N$41,4,0)/'4. Billing Determinants'!$E$41*$D20,IF($E20="kW",VLOOKUP(Y$4,'4. Billing Determinants'!$B$19:$N$41,5,0)/'4. Billing Determinants'!$F$41*$D20,IF($E20="Non-RPP kWh",VLOOKUP(Y$4,'4. Billing Determinants'!$B$19:$N$41,6,0)/'4. Billing Determinants'!$G$41*$D20,IF($E20="Distribution Rev.",VLOOKUP(Y$4,'4. Billing Determinants'!$B$19:$N$41,8,0)/'4. Billing Determinants'!$I$41*$D20, VLOOKUP(Y$4,'4. Billing Determinants'!$B$19:$N$41,3,0)/'4. Billing Determinants'!$D$41*$D20))))) -> 0
B21: Other Regulatory Assets - Sub-Account - Financial Assistance Payment and Recovery Variance - Ontario Clean Energy Benefit Act | C21: 1508 | D21: 0 | F21: 0 | G21: 0 | H21: 0 | I21: 0 | J21: 0 | K21: 0 | L21: 0 | M21: =IF(M$4="",0,IF($E21="kWh",VLOOKUP(M$4,'4. Billing Determinants'!$B$19:$N$41,4,0)/'4. Billing Determinants'!$E$41*$D21,IF($E21="kW",VLOOKUP(M$4,'4. Billing Determinants'!$B$19:$N$41,5,0)/'4. Billing Determinants'!$F$41*$D21,IF($E21="Non-RPP kWh",VLOOKUP(M$4,'4. Billing Determinants'!$B$19:$N$41,6,0)/'4. Billing Determinants'!$G$41*$D21,IF($E21="Distribution Rev.",VLOOKUP(M$4,'4. Billing Determinants'!$B$19:$N$41,8,0)/'4. Billing Determinants'!$I$41*$D21, VLOOKUP(M$4,'4. Billing Determinants'!$B$19:$N$41,3,0)/'4. Billing Determinants'!$D$41*$D21))))) -> 0 | N21: =IF(N$4="",0,IF($E21="kWh",VLOOKUP(N$4,'4. Billing Determinants'!$B$19:$N$41,4,0)/'4. Billing Determinants'!$E$41*$D21,IF($E21="kW",VLOOKUP(N$4,'4. Billing Determinants'!$B$19:$N$41,5,0)/'4. Billing Determinants'!$F$41*$D21,IF($E21="Non-RPP kWh",VLOOKUP(N$4,'4. Billing Determinants'!$B$19:$N$41,6,0)/'4. Billing Determinants'!$G$41*$D21,IF($E21="Distribution Rev.",VLOOKUP(N$4,'4. Billing Determinants'!$B$19:$N$41,8,0)/'4. Billing Determinants'!$I$41*$D21, VLOOKUP(N$4,'4. Billing Determinants'!$B$19:$N$41,3,0)/'4. Billing Determinants'!$D$41*$D21))))) -> 0 | O21: =IF(O$4="",0,IF($E21="kWh",VLOOKUP(O$4,'4. Billing Determinants'!$B$19:$N$41,4,0)/'4. Billing Determinants'!$E$41*$D21,IF($E21="kW",VLOOKUP(O$4,'4. Billing Determinants'!$B$19:$N$41,5,0)/'4. Billing Determinants'!$F$41*$D21,IF($E21="Non-RPP kWh",VLOOKUP(O$4,'4. Billing Determinants'!$B$19:$N$41,6,0)/'4. Billing Determinants'!$G$41*$D21,IF($E21="Distribution Rev.",VLOOKUP(O$4,'4. Billing Determinants'!$B$19:$N$41,8,0)/'4. Billing Determinants'!$I$41*$D21, VLOOKUP(O$4,'4. Billing Determinants'!$B$19:$N$41,3,0)/'4. Billing Determinants'!$D$41*$D21))))) -> 0 | P21: =IF(P$4="",0,IF($E21="kWh",VLOOKUP(P$4,'4. Billing Determinants'!$B$19:$N$41,4,0)/'4. Billing Determinants'!$E$41*$D21,IF($E21="kW",VLOOKUP(P$4,'4. Billing Determinants'!$B$19:$N$41,5,0)/'4. Billing Determinants'!$F$41*$D21,IF($E21="Non-RPP kWh",VLOOKUP(P$4,'4. Billing Determinants'!$B$19:$N$41,6,0)/'4. Billing Determinants'!$G$41*$D21,IF($E21="Distribution Rev.",VLOOKUP(P$4,'4. Billing Determinants'!$B$19:$N$41,8,0)/'4. Billing Determinants'!$I$41*$D21, VLOOKUP(P$4,'4. Billing Determinants'!$B$19:$N$41,3,0)/'4. Billing Determinants'!$D$41*$D21))))) -> 0 | Q21: =IF(Q$4="",0,IF($E21="kWh",VLOOKUP(Q$4,'4. Billing Determinants'!$B$19:$N$41,4,0)/'4. Billing Determinants'!$E$41*$D21,IF($E21="kW",VLOOKUP(Q$4,'4. Billing Determinants'!$B$19:$N$41,5,0)/'4. Billing Determinants'!$F$41*$D21,IF($E21="Non-RPP kWh",VLOOKUP(Q$4,'4. Billing Determinants'!$B$19:$N$41,6,0)/'4. Billing Determinants'!$G$41*$D21,IF($E21="Distribution Rev.",VLOOKUP(Q$4,'4. Billing Determinants'!$B$19:$N$41,8,0)/'4. Billing Determinants'!$I$41*$D21, VLOOKUP(Q$4,'4. Billing Determinants'!$B$19:$N$41,3,0)/'4. Billing Determinants'!$D$41*$D21))))) -> 0 | R21: =IF(R$4="",0,IF($E21="kWh",VLOOKUP(R$4,'4. Billing Determinants'!$B$19:$N$41,4,0)/'4. Billing Determinants'!$E$41*$D21,IF($E21="kW",VLOOKUP(R$4,'4. Billing Determinants'!$B$19:$N$41,5,0)/'4. Billing Determinants'!$F$41*$D21,IF($E21="Non-RPP kWh",VLOOKUP(R$4,'4. Billing Determinants'!$B$19:$N$41,6,0)/'4. Billing Determinants'!$G$41*$D21,IF($E21="Distribution Rev.",VLOOKUP(R$4,'4. Billing Determinants'!$B$19:$N$41,8,0)/'4. Billing Determinants'!$I$41*$D21, VLOOKUP(R$4,'4. Billing Determinants'!$B$19:$N$41,3,0)/'4. Billing Determinants'!$D$41*$D21))))) -> 0 | S21: =IF(S$4="",0,IF($E21="kWh",VLOOKUP(S$4,'4. Billing Determinants'!$B$19:$N$41,4,0)/'4. Billing Determinants'!$E$41*$D21,IF($E21="kW",VLOOKUP(S$4,'4. Billing Determinants'!$B$19:$N$41,5,0)/'4. Billing Determinants'!$F$41*$D21,IF($E21="Non-RPP kWh",VLOOKUP(S$4,'4. Billing Determinants'!$B$19:$N$41,6,0)/'4. Billing Determinants'!$G$41*$D21,IF($E21="Distribution Rev.",VLOOKUP(S$4,'4. Billing Determinants'!$B$19:$N$41,8,0)/'4. Billing Determinants'!$I$41*$D21, VLOOKUP(S$4,'4. Billing Determinants'!$B$19:$N$41,3,0)/'4. Billing Determinants'!$D$41*$D21))))) -> 0 | T21: =IF(T$4="",0,IF($E21="kWh",VLOOKUP(T$4,'4. Billing Determinants'!$B$19:$N$41,4,0)/'4. Billing Determinants'!$E$41*$D21,IF($E21="kW",VLOOKUP(T$4,'4. Billing Determinants'!$B$19:$N$41,5,0)/'4. Billing Determinants'!$F$41*$D21,IF($E21="Non-RPP kWh",VLOOKUP(T$4,'4. Billing Determinants'!$B$19:$N$41,6,0)/'4. Billing Determinants'!$G$41*$D21,IF($E21="Distribution Rev.",VLOOKUP(T$4,'4. Billing Determinants'!$B$19:$N$41,8,0)/'4. Billing Determinants'!$I$41*$D21, VLOOKUP(T$4,'4. Billing Determinants'!$B$19:$N$41,3,0)/'4. Billing Determinants'!$D$41*$D21))))) -> 0 | U21: =IF(U$4="",0,IF($E21="kWh",VLOOKUP(U$4,'4. Billing Determinants'!$B$19:$N$41,4,0)/'4. Billing Determinants'!$E$41*$D21,IF($E21="kW",VLOOKUP(U$4,'4. Billing Determinants'!$B$19:$N$41,5,0)/'4. Billing Determinants'!$F$41*$D21,IF($E21="Non-RPP kWh",VLOOKUP(U$4,'4. Billing Determinants'!$B$19:$N$41,6,0)/'4. Billing Determinants'!$G$41*$D21,IF($E21="Distribution Rev.",VLOOKUP(U$4,'4. Billing Determinants'!$B$19:$N$41,8,0)/'4. Billing Determinants'!$I$41*$D21, VLOOKUP(U$4,'4. Billing Determinants'!$B$19:$N$41,3,0)/'4. Billing Determinants'!$D$41*$D21))))) -> 0 | V21: =IF(V$4="",0,IF($E21="kWh",VLOOKUP(V$4,'4. Billing Determinants'!$B$19:$N$41,4,0)/'4. Billing Determinants'!$E$41*$D21,IF($E21="kW",VLOOKUP(V$4,'4. Billing Determinants'!$B$19:$N$41,5,0)/'4. Billing Determinants'!$F$41*$D21,IF($E21="Non-RPP kWh",VLOOKUP(V$4,'4. Billing Determinants'!$B$19:$N$41,6,0)/'4. Billing Determinants'!$G$41*$D21,IF($E21="Distribution Rev.",VLOOKUP(V$4,'4. Billing Determinants'!$B$19:$N$41,8,0)/'4. Billing Determinants'!$I$41*$D21, VLOOKUP(V$4,'4. Billing Determinants'!$B$19:$N$41,3,0)/'4. Billing Determinants'!$D$41*$D21))))) -> 0 | W21: =IF(W$4="",0,IF($E21="kWh",VLOOKUP(W$4,'4. Billing Determinants'!$B$19:$N$41,4,0)/'4. Billing Determinants'!$E$41*$D21,IF($E21="kW",VLOOKUP(W$4,'4. Billing Determinants'!$B$19:$N$41,5,0)/'4. Billing Determinants'!$F$41*$D21,IF($E21="Non-RPP kWh",VLOOKUP(W$4,'4. Billing Determinants'!$B$19:$N$41,6,0)/'4. Billing Determinants'!$G$41*$D21,IF($E21="Distribution Rev.",VLOOKUP(W$4,'4. Billing Determinants'!$B$19:$N$41,8,0)/'4. Billing Determinants'!$I$41*$D21, VLOOKUP(W$4,'4. Billing Determinants'!$B$19:$N$41,3,0)/'4. Billing Determinants'!$D$41*$D21))))) -> 0 | X21: =IF(X$4="",0,IF($E21="kWh",VLOOKUP(X$4,'4. Billing Determinants'!$B$19:$N$41,4,0)/'4. Billing Determinants'!$E$41*$D21,IF($E21="kW",VLOOKUP(X$4,'4. Billing Determinants'!$B$19:$N$41,5,0)/'4. Billing Determinants'!$F$41*$D21,IF($E21="Non-RPP kWh",VLOOKUP(X$4,'4. Billing Determinants'!$B$19:$N$41,6,0)/'4. Billing Determinants'!$G$41*$D21,IF($E21="Distribution Rev.",VLOOKUP(X$4,'4. Billing Determinants'!$B$19:$N$41,8,0)/'4. Billing Determinants'!$I$41*$D21, VLOOKUP(X$4,'4. Billing Determinants'!$B$19:$N$41,3,0)/'4. Billing Determinants'!$D$41*$D21))))) -> 0 | Y21: =IF(Y$4="",0,IF($E21="kWh",VLOOKUP(Y$4,'4. Billing Determinants'!$B$19:$N$41,4,0)/'4. Billing Determinants'!$E$41*$D21,IF($E21="kW",VLOOKUP(Y$4,'4. Billing Determinants'!$B$19:$N$41,5,0)/'4. Billing Determinants'!$F$41*$D21,IF($E21="Non-RPP kWh",VLOOKUP(Y$4,'4. Billing Determinants'!$B$19:$N$41,6,0)/'4. Billing Determinants'!$G$41*$D21,IF($E21="Distribution Rev.",VLOOKUP(Y$4,'4. Billing Determinants'!$B$19:$N$41,8,0)/'4. Billing Determinants'!$I$41*$D21, VLOOKUP(Y$4,'4. Billing Determinants'!$B$19:$N$41,3,0)/'4. Billing Determinants'!$D$41*$D21))))) -> 0
B22: Other Regulatory Assets - Sub-Account - Financial Assistance Payment and Recovery Carrying Charges | C22: 1508 | D22: 0 | F22: 0 | G22: 0 | H22: 0 | I22: 0 | J22: 0 | K22: 0 | L22: 0 | M22: =IF(M$4="",0,IF($E22="kWh",VLOOKUP(M$4,'4. Billing Determinants'!$B$19:$N$41,4,0)/'4. Billing Determinants'!$E$41*$D22,IF($E22="kW",VLOOKUP(M$4,'4. Billing Determinants'!$B$19:$N$41,5,0)/'4. Billing Determinants'!$F$41*$D22,IF($E22="Non-RPP kWh",VLOOKUP(M$4,'4. Billing Determinants'!$B$19:$N$41,6,0)/'4. Billing Determinants'!$G$41*$D22,IF($E22="Distribution Rev.",VLOOKUP(M$4,'4. Billing Determinants'!$B$19:$N$41,8,0)/'4. Billing Determinants'!$I$41*$D22, VLOOKUP(M$4,'4. Billing Determinants'!$B$19:$N$41,3,0)/'4. Billing Determinants'!$D$41*$D22))))) -> 0 | N22: =IF(N$4="",0,IF($E22="kWh",VLOOKUP(N$4,'4. Billing Determinants'!$B$19:$N$41,4,0)/'4. Billing Determinants'!$E$41*$D22,IF($E22="kW",VLOOKUP(N$4,'4. Billing Determinants'!$B$19:$N$41,5,0)/'4. Billing Determinants'!$F$41*$D22,IF($E22="Non-RPP kWh",VLOOKUP(N$4,'4. Billing Determinants'!$B$19:$N$41,6,0)/'4. Billing Determinants'!$G$41*$D22,IF($E22="Distribution Rev.",VLOOKUP(N$4,'4. Billing Determinants'!$B$19:$N$41,8,0)/'4. Billing Determinants'!$I$41*$D22, VLOOKUP(N$4,'4. Billing Determinants'!$B$19:$N$41,3,0)/'4. Billing Determinants'!$D$41*$D22))))) -> 0 | O22: =IF(O$4="",0,IF($E22="kWh",VLOOKUP(O$4,'4. Billing Determinants'!$B$19:$N$41,4,0)/'4. Billing Determinants'!$E$41*$D22,IF($E22="kW",VLOOKUP(O$4,'4. Billing Determinants'!$B$19:$N$41,5,0)/'4. Billing Determinants'!$F$41*$D22,IF($E22="Non-RPP kWh",VLOOKUP(O$4,'4. Billing Determinants'!$B$19:$N$41,6,0)/'4. Billing Determinants'!$G$41*$D22,IF($E22="Distribution Rev.",VLOOKUP(O$4,'4. Billing Determinants'!$B$19:$N$41,8,0)/'4. Billing Determinants'!$I$41*$D22, VLOOKUP(O$4,'4. Billing Determinants'!$B$19:$N$41,3,0)/'4. Billing Determinants'!$D$41*$D22))))) -> 0 | P22: =IF(P$4="",0,IF($E22="kWh",VLOOKUP(P$4,'4. Billing Determinants'!$B$19:$N$41,4,0)/'4. Billing Determinants'!$E$41*$D22,IF($E22="kW",VLOOKUP(P$4,'4. Billing Determinants'!$B$19:$N$41,5,0)/'4. Billing Determinants'!$F$41*$D22,IF($E22="Non-RPP kWh",VLOOKUP(P$4,'4. Billing Determinants'!$B$19:$N$41,6,0)/'4. Billing Determinants'!$G$41*$D22,IF($E22="Distribution Rev.",VLOOKUP(P$4,'4. Billing Determinants'!$B$19:$N$41,8,0)/'4. Billing Determinants'!$I$41*$D22, VLOOKUP(P$4,'4. Billing Determinants'!$B$19:$N$41,3,0)/'4. Billing Determinants'!$D$41*$D22))))) -> 0 | Q22: =IF(Q$4="",0,IF($E22="kWh",VLOOKUP(Q$4,'4. Billing Determinants'!$B$19:$N$41,4,0)/'4. Billing Determinants'!$E$41*$D22,IF($E22="kW",VLOOKUP(Q$4,'4. Billing Determinants'!$B$19:$N$41,5,0)/'4. Billing Determinants'!$F$41*$D22,IF($E22="Non-RPP kWh",VLOOKUP(Q$4,'4. Billing Determinants'!$B$19:$N$41,6,0)/'4. Billing Determinants'!$G$41*$D22,IF($E22="Distribution Rev.",VLOOKUP(Q$4,'4. Billing Determinants'!$B$19:$N$41,8,0)/'4. Billing Determinants'!$I$41*$D22, VLOOKUP(Q$4,'4. Billing Determinants'!$B$19:$N$41,3,0)/'4. Billing Determinants'!$D$41*$D22))))) -> 0 | R22: =IF(R$4="",0,IF($E22="kWh",VLOOKUP(R$4,'4. Billing Determinants'!$B$19:$N$41,4,0)/'4. Billing Determinants'!$E$41*$D22,IF($E22="kW",VLOOKUP(R$4,'4. Billing Determinants'!$B$19:$N$41,5,0)/'4. Billing Determinants'!$F$41*$D22,IF($E22="Non-RPP kWh",VLOOKUP(R$4,'4. Billing Determinants'!$B$19:$N$41,6,0)/'4. Billing Determinants'!$G$41*$D22,IF($E22="Distribution Rev.",VLOOKUP(R$4,'4. Billing Determinants'!$B$19:$N$41,8,0)/'4. Billing Determinants'!$I$41*$D22, VLOOKUP(R$4,'4. Billing Determinants'!$B$19:$N$41,3,0)/'4. Billing Determinants'!$D$41*$D22))))) -> 0 | S22: =IF(S$4="",0,IF($E22="kWh",VLOOKUP(S$4,'4. Billing Determinants'!$B$19:$N$41,4,0)/'4. Billing Determinants'!$E$41*$D22,IF($E22="kW",VLOOKUP(S$4,'4. Billing Determinants'!$B$19:$N$41,5,0)/'4. Billing Determinants'!$F$41*$D22,IF($E22="Non-RPP kWh",VLOOKUP(S$4,'4. Billing Determinants'!$B$19:$N$41,6,0)/'4. Billing Determinants'!$G$41*$D22,IF($E22="Distribution Rev.",VLOOKUP(S$4,'4. Billing Determinants'!$B$19:$N$41,8,0)/'4. Billing Determinants'!$I$41*$D22, VLOOKUP(S$4,'4. Billing Determinants'!$B$19:$N$41,3,0)/'4. Billing Determinants'!$D$41*$D22))))) -> 0 | T22: =IF(T$4="",0,IF($E22="kWh",VLOOKUP(T$4,'4. Billing Determinants'!$B$19:$N$41,4,0)/'4. Billing Determinants'!$E$41*$D22,IF($E22="kW",VLOOKUP(T$4,'4. Billing Determinants'!$B$19:$N$41,5,0)/'4. Billing Determinants'!$F$41*$D22,IF($E22="Non-RPP kWh",VLOOKUP(T$4,'4. Billing Determinants'!$B$19:$N$41,6,0)/'4. Billing Determinants'!$G$41*$D22,IF($E22="Distribution Rev.",VLOOKUP(T$4,'4. Billing Determinants'!$B$19:$N$41,8,0)/'4. Billing Determinants'!$I$41*$D22, VLOOKUP(T$4,'4. Billing Determinants'!$B$19:$N$41,3,0)/'4. Billing Determinants'!$D$41*$D22))))) -> 0 | U22: =IF(U$4="",0,IF($E22="kWh",VLOOKUP(U$4,'4. Billing Determinants'!$B$19:$N$41,4,0)/'4. Billing Determinants'!$E$41*$D22,IF($E22="kW",VLOOKUP(U$4,'4. Billing Determinants'!$B$19:$N$41,5,0)/'4. Billing Determinants'!$F$41*$D22,IF($E22="Non-RPP kWh",VLOOKUP(U$4,'4. Billing Determinants'!$B$19:$N$41,6,0)/'4. Billing Determinants'!$G$41*$D22,IF($E22="Distribution Rev.",VLOOKUP(U$4,'4. Billing Determinants'!$B$19:$N$41,8,0)/'4. Billing Determinants'!$I$41*$D22, VLOOKUP(U$4,'4. Billing Determinants'!$B$19:$N$41,3,0)/'4. Billing Determinants'!$D$41*$D22))))) -> 0 | V22: =IF(V$4="",0,IF($E22="kWh",VLOOKUP(V$4,'4. Billing Determinants'!$B$19:$N$41,4,0)/'4. Billing Determinants'!$E$41*$D22,IF($E22="kW",VLOOKUP(V$4,'4. Billing Determinants'!$B$19:$N$41,5,0)/'4. Billing Determinants'!$F$41*$D22,IF($E22="Non-RPP kWh",VLOOKUP(V$4,'4. Billing Determinants'!$B$19:$N$41,6,0)/'4. Billing Determinants'!$G$41*$D22,IF($E22="Distribution Rev.",VLOOKUP(V$4,'4. Billing Determinants'!$B$19:$N$41,8,0)/'4. Billing Determinants'!$I$41*$D22, VLOOKUP(V$4,'4. Billing Determinants'!$B$19:$N$41,3,0)/'4. Billing Determinants'!$D$41*$D22))))) -> 0 | W22: =IF(W$4="",0,IF($E22="kWh",VLOOKUP(W$4,'4. Billing Determinants'!$B$19:$N$41,4,0)/'4. Billing Determinants'!$E$41*$D22,IF($E22="kW",VLOOKUP(W$4,'4. Billing Determinants'!$B$19:$N$41,5,0)/'4. Billing Determinants'!$F$41*$D22,IF($E22="Non-RPP kWh",VLOOKUP(W$4,'4. Billing Determinants'!$B$19:$N$41,6,0)/'4. Billing Determinants'!$G$41*$D22,IF($E22="Distribution Rev.",VLOOKUP(W$4,'4. Billing Determinants'!$B$19:$N$41,8,0)/'4. Billing Determinants'!$I$41*$D22, VLOOKUP(W$4,'4. Billing Determinants'!$B$19:$N$41,3,0)/'4. Billing Determinants'!$D$41*$D22))))) -> 0 | X22: =IF(X$4="",0,IF($E22="kWh",VLOOKUP(X$4,'4. Billing Determinants'!$B$19:$N$41,4,0)/'4. Billing Determinants'!$E$41*$D22,IF($E22="kW",VLOOKUP(X$4,'4. Billing Determinants'!$B$19:$N$41,5,0)/'4. Billing Determinants'!$F$41*$D22,IF($E22="Non-RPP kWh",VLOOKUP(X$4,'4. Billing Determinants'!$B$19:$N$41,6,0)/'4. Billing Determinants'!$G$41*$D22,IF($E22="Distribution Rev.",VLOOKUP(X$4,'4. Billing Determinants'!$B$19:$N$41,8,0)/'4. Billing Determinants'!$I$41*$D22, VLOOKUP(X$4,'4. Billing Determinants'!$B$19:$N$41,3,0)/'4. Billing Determinants'!$D$41*$D22))))) -> 0 | Y22: =IF(Y$4="",0,IF($E22="kWh",VLOOKUP(Y$4,'4. Billing Determinants'!$B$19:$N$41,4,0)/'4. Billing Determinants'!$E$41*$D22,IF($E22="kW",VLOOKUP(Y$4,'4. Billing Determinants'!$B$19:$N$41,5,0)/'4. Billing Determinants'!$F$41*$D22,IF($E22="Non-RPP kWh",VLOOKUP(Y$4,'4. Billing Determinants'!$B$19:$N$41,6,0)/'4. Billing Determinants'!$G$41*$D22,IF($E22="Distribution Rev.",VLOOKUP(Y$4,'4. Billing Determinants'!$B$19:$N$41,8,0)/'4. Billing Determinants'!$I$41*$D22, VLOOKUP(Y$4,'4. Billing Determinants'!$B$19:$N$41,3,0)/'4. Billing Determinants'!$D$41*$D22))))) -> 0
B23: Other Regulatory Assets - Sub-Account - Other | C23: 1508 | D23: 0 | F23: 0 | G23: 0 | H23: 0 | I23: 0 | J23: 0 | K23: 0 | L23: 0 | M23: =IF(M$4="",0,IF($E23="kWh",VLOOKUP(M$4,'4. Billing Determinants'!$B$19:$N$41,4,0)/'4. Billing Determinants'!$E$41*$D23,IF($E23="kW",VLOOKUP(M$4,'4. Billing Determinants'!$B$19:$N$41,5,0)/'4. Billing Determinants'!$F$41*$D23,IF($E23="Non-RPP kWh",VLOOKUP(M$4,'4. Billing Determinants'!$B$19:$N$41,6,0)/'4. Billing Determinants'!$G$41*$D23,IF($E23="Distribution Rev.",VLOOKUP(M$4,'4. Billing Determinants'!$B$19:$N$41,8,0)/'4. Billing Determinants'!$I$41*$D23, VLOOKUP(M$4,'4. Billing Determinants'!$B$19:$N$41,3,0)/'4. Billing Determinants'!$D$41*$D23))))) -> 0 | N23: =IF(N$4="",0,IF($E23="kWh",VLOOKUP(N$4,'4. Billing Determinants'!$B$19:$N$41,4,0)/'4. Billing Determinants'!$E$41*$D23,IF($E23="kW",VLOOKUP(N$4,'4. Billing Determinants'!$B$19:$N$41,5,0)/'4. Billing Determinants'!$F$41*$D23,IF($E23="Non-RPP kWh",VLOOKUP(N$4,'4. Billing Determinants'!$B$19:$N$41,6,0)/'4. Billing Determinants'!$G$41*$D23,IF($E23="Distribution Rev.",VLOOKUP(N$4,'4. Billing Determinants'!$B$19:$N$41,8,0)/'4. Billing Determinants'!$I$41*$D23, VLOOKUP(N$4,'4. Billing Determinants'!$B$19:$N$41,3,0)/'4. Billing Determinants'!$D$41*$D23))))) -> 0 | O23: =IF(O$4="",0,IF($E23="kWh",VLOOKUP(O$4,'4. Billing Determinants'!$B$19:$N$41,4,0)/'4. Billing Determinants'!$E$41*$D23,IF($E23="kW",VLOOKUP(O$4,'4. Billing Determinants'!$B$19:$N$41,5,0)/'4. Billing Determinants'!$F$41*$D23,IF($E23="Non-RPP kWh",VLOOKUP(O$4,'4. Billing Determinants'!$B$19:$N$41,6,0)/'4. Billing Determinants'!$G$41*$D23,IF($E23="Distribution Rev.",VLOOKUP(O$4,'4. Billing Determinants'!$B$19:$N$41,8,0)/'4. Billing Determinants'!$I$41*$D23, VLOOKUP(O$4,'4. Billing Determinants'!$B$19:$N$41,3,0)/'4. Billing Determinants'!$D$41*$D23))))) -> 0 | P23: =IF(P$4="",0,IF($E23="kWh",VLOOKUP(P$4,'4. Billing Determinants'!$B$19:$N$41,4,0)/'4. Billing Determinants'!$E$41*$D23,IF($E23="kW",VLOOKUP(P$4,'4. Billing Determinants'!$B$19:$N$41,5,0)/'4. Billing Determinants'!$F$41*$D23,IF($E23="Non-RPP kWh",VLOOKUP(P$4,'4. Billing Determinants'!$B$19:$N$41,6,0)/'4. Billing Determinants'!$G$41*$D23,IF($E23="Distribution Rev.",VLOOKUP(P$4,'4. Billing Determinants'!$B$19:$N$41,8,0)/'4. Billing Determinants'!$I$41*$D23, VLOOKUP(P$4,'4. Billing Determinants'!$B$19:$N$41,3,0)/'4. Billing Determinants'!$D$41*$D23))))) -> 0 | Q23: =IF(Q$4="",0,IF($E23="kWh",VLOOKUP(Q$4,'4. Billing Determinants'!$B$19:$N$41,4,0)/'4. Billing Determinants'!$E$41*$D23,IF($E23="kW",VLOOKUP(Q$4,'4. Billing Determinants'!$B$19:$N$41,5,0)/'4. Billing Determinants'!$F$41*$D23,IF($E23="Non-RPP kWh",VLOOKUP(Q$4,'4. Billing Determinants'!$B$19:$N$41,6,0)/'4. Billing Determinants'!$G$41*$D23,IF($E23="Distribution Rev.",VLOOKUP(Q$4,'4. Billing Determinants'!$B$19:$N$41,8,0)/'4. Billing Determinants'!$I$41*$D23, VLOOKUP(Q$4,'4. Billing Determinants'!$B$19:$N$41,3,0)/'4. Billing Determinants'!$D$41*$D23))))) -> 0 | R23: =IF(R$4="",0,IF($E23="kWh",VLOOKUP(R$4,'4. Billing Determinants'!$B$19:$N$41,4,0)/'4. Billing Determinants'!$E$41*$D23,IF($E23="kW",VLOOKUP(R$4,'4. Billing Determinants'!$B$19:$N$41,5,0)/'4. Billing Determinants'!$F$41*$D23,IF($E23="Non-RPP kWh",VLOOKUP(R$4,'4. Billing Determinants'!$B$19:$N$41,6,0)/'4. Billing Determinants'!$G$41*$D23,IF($E23="Distribution Rev.",VLOOKUP(R$4,'4. Billing Determinants'!$B$19:$N$41,8,0)/'4. Billing Determinants'!$I$41*$D23, VLOOKUP(R$4,'4. Billing Determinants'!$B$19:$N$41,3,0)/'4. Billing Determinants'!$D$41*$D23))))) -> 0 | S23: =IF(S$4="",0,IF($E23="kWh",VLOOKUP(S$4,'4. Billing Determinants'!$B$19:$N$41,4,0)/'4. Billing Determinants'!$E$41*$D23,IF($E23="kW",VLOOKUP(S$4,'4. Billing Determinants'!$B$19:$N$41,5,0)/'4. Billing Determinants'!$F$41*$D23,IF($E23="Non-RPP kWh",VLOOKUP(S$4,'4. Billing Determinants'!$B$19:$N$41,6,0)/'4. Billing Determinants'!$G$41*$D23,IF($E23="Distribution Rev.",VLOOKUP(S$4,'4. Billing Determinants'!$B$19:$N$41,8,0)/'4. Billing Determinants'!$I$41*$D23, VLOOKUP(S$4,'4. Billing Determinants'!$B$19:$N$41,3,0)/'4. Billing Determinants'!$D$41*$D23))))) -> 0 | T23: =IF(T$4="",0,IF($E23="kWh",VLOOKUP(T$4,'4. Billing Determinants'!$B$19:$N$41,4,0)/'4. Billing Determinants'!$E$41*$D23,IF($E23="kW",VLOOKUP(T$4,'4. Billing Determinants'!$B$19:$N$41,5,0)/'4. Billing Determinants'!$F$41*$D23,IF($E23="Non-RPP kWh",VLOOKUP(T$4,'4. Billing Determinants'!$B$19:$N$41,6,0)/'4. Billing Determinants'!$G$41*$D23,IF($E23="Distribution Rev.",VLOOKUP(T$4,'4. Billing Determinants'!$B$19:$N$41,8,0)/'4. Billing Determinants'!$I$41*$D23, VLOOKUP(T$4,'4. Billing Determinants'!$B$19:$N$41,3,0)/'4. Billing Determinants'!$D$41*$D23))))) -> 0 | U23: =IF(U$4="",0,IF($E23="kWh",VLOOKUP(U$4,'4. Billing Determinants'!$B$19:$N$41,4,0)/'4. Billing Determinants'!$E$41*$D23,IF($E23="kW",VLOOKUP(U$4,'4. Billing Determinants'!$B$19:$N$41,5,0)/'4. Billing Determinants'!$F$41*$D23,IF($E23="Non-RPP kWh",VLOOKUP(U$4,'4. Billing Determinants'!$B$19:$N$41,6,0)/'4. Billing Determinants'!$G$41*$D23,IF($E23="Distribution Rev.",VLOOKUP(U$4,'4. Billing Determinants'!$B$19:$N$41,8,0)/'4. Billing Determinants'!$I$41*$D23, VLOOKUP(U$4,'4. Billing Determinants'!$B$19:$N$41,3,0)/'4. Billing Determinants'!$D$41*$D23))))) -> 0 | V23: =IF(V$4="",0,IF($E23="kWh",VLOOKUP(V$4,'4. Billing Determinants'!$B$19:$N$41,4,0)/'4. Billing Determinants'!$E$41*$D23,IF($E23="kW",VLOOKUP(V$4,'4. Billing Determinants'!$B$19:$N$41,5,0)/'4. Billing Determinants'!$F$41*$D23,IF($E23="Non-RPP kWh",VLOOKUP(V$4,'4. Billing Determinants'!$B$19:$N$41,6,0)/'4. Billing Determinants'!$G$41*$D23,IF($E23="Distribution Rev.",VLOOKUP(V$4,'4. Billing Determinants'!$B$19:$N$41,8,0)/'4. Billing Determinants'!$I$41*$D23, VLOOKUP(V$4,'4. Billing Determinants'!$B$19:$N$41,3,0)/'4. Billing Determinants'!$D$41*$D23))))) -> 0 | W23: =IF(W$4="",0,IF($E23="kWh",VLOOKUP(W$4,'4. Billing Determinants'!$B$19:$N$41,4,0)/'4. Billing Determinants'!$E$41*$D23,IF($E23="kW",VLOOKUP(W$4,'4. Billing Determinants'!$B$19:$N$41,5,0)/'4. Billing Determinants'!$F$41*$D23,IF($E23="Non-RPP kWh",VLOOKUP(W$4,'4. Billing Determinants'!$B$19:$N$41,6,0)/'4. Billing Determinants'!$G$41*$D23,IF($E23="Distribution Rev.",VLOOKUP(W$4,'4. Billing Determinants'!$B$19:$N$41,8,0)/'4. Billing Determinants'!$I$41*$D23, VLOOKUP(W$4,'4. Billing Determinants'!$B$19:$N$41,3,0)/'4. Billing Determinants'!$D$41*$D23))))) -> 0 | X23: =IF(X$4="",0,IF($E23="kWh",VLOOKUP(X$4,'4. Billing Determinants'!$B$19:$N$41,4,0)/'4. Billing Determinants'!$E$41*$D23,IF($E23="kW",VLOOKUP(X$4,'4. Billing Determinants'!$B$19:$N$41,5,0)/'4. Billing Determinants'!$F$41*$D23,IF($E23="Non-RPP kWh",VLOOKUP(X$4,'4. Billing Determinants'!$B$19:$N$41,6,0)/'4. Billing Determinants'!$G$41*$D23,IF($E23="Distribution Rev.",VLOOKUP(X$4,'4. Billing Determinants'!$B$19:$N$41,8,0)/'4. Billing Determinants'!$I$41*$D23, VLOOKUP(X$4,'4. Billing Determinants'!$B$19:$N$41,3,0)/'4. Billing Determinants'!$D$41*$D23))))) -> 0 | Y23: =IF(Y$4="",0,IF($E23="kWh",VLOOKUP(Y$4,'4. Billing Determinants'!$B$19:$N$41,4,0)/'4. Billing Determinants'!$E$41*$D23,IF($E23="kW",VLOOKUP(Y$4,'4. Billing Determinants'!$B$19:$N$41,5,0)/'4. Billing Determinants'!$F$41*$D23,IF($E23="Non-RPP kWh",VLOOKUP(Y$4,'4. Billing Determinants'!$B$19:$N$41,6,0)/'4. Billing Determinants'!$G$41*$D23,IF($E23="Distribution Rev.",VLOOKUP(Y$4,'4. Billing Determinants'!$B$19:$N$41,8,0)/'4. Billing Determinants'!$I$41*$D23, VLOOKUP(Y$4,'4. Billing Determinants'!$B$19:$N$41,3,0)/'4. Billing Determinants'!$D$41*$D23))))) -> 0
B24: Retail Cost Variance Account - Retail | C24: 1518 | D24: -71406.69956 | F24: -62838.9001 | G24: -5958.421688 | H24: -719.1198589 | I24: -677.2663222 | J24: -0.7609733957 | K24: -1211.469646 | L24: -0.7609733957 | M24: =IF(M$4="",0,IF($E24="kWh",VLOOKUP(M$4,'4. Billing Determinants'!$B$19:$N$41,4,0)/'4. Billing Determinants'!$E$41*$D24,IF($E24="kW",VLOOKUP(M$4,'4. Billing Determinants'!$B$19:$N$41,5,0)/'4. Billing Determinants'!$F$41*$D24,IF($E24="Non-RPP kWh",VLOOKUP(M$4,'4. Billing Determinants'!$B$19:$N$41,6,0)/'4. Billing Determinants'!$G$41*$D24,IF($E24="Distribution Rev.",VLOOKUP(M$4,'4. Billing Determinants'!$B$19:$N$41,8,0)/'4. Billing Determinants'!$I$41*$D24, VLOOKUP(M$4,'4. Billing Determinants'!$B$19:$N$41,3,0)/'4. Billing Determinants'!$D$41*$D24))))) -> 0 | N24: =IF(N$4="",0,IF($E24="kWh",VLOOKUP(N$4,'4. Billing Determinants'!$B$19:$N$41,4,0)/'4. Billing Determinants'!$E$41*$D24,IF($E24="kW",VLOOKUP(N$4,'4. Billing Determinants'!$B$19:$N$41,5,0)/'4. Billing Determinants'!$F$41*$D24,IF($E24="Non-RPP kWh",VLOOKUP(N$4,'4. Billing Determinants'!$B$19:$N$41,6,0)/'4. Billing Determinants'!$G$41*$D24,IF($E24="Distribution Rev.",VLOOKUP(N$4,'4. Billing Determinants'!$B$19:$N$41,8,0)/'4. Billing Determinants'!$I$41*$D24, VLOOKUP(N$4,'4. Billing Determinants'!$B$19:$N$41,3,0)/'4. Billing Determinants'!$D$41*$D24))))) -> 0 | O24: =IF(O$4="",0,IF($E24="kWh",VLOOKUP(O$4,'4. Billing Determinants'!$B$19:$N$41,4,0)/'4. Billing Determinants'!$E$41*$D24,IF($E24="kW",VLOOKUP(O$4,'4. Billing Determinants'!$B$19:$N$41,5,0)/'4. Billing Determinants'!$F$41*$D24,IF($E24="Non-RPP kWh",VLOOKUP(O$4,'4. Billing Determinants'!$B$19:$N$41,6,0)/'4. Billing Determinants'!$G$41*$D24,IF($E24="Distribution Rev.",VLOOKUP(O$4,'4. Billing Determinants'!$B$19:$N$41,8,0)/'4. Billing Determinants'!$I$41*$D24, VLOOKUP(O$4,'4. Billing Determinants'!$B$19:$N$41,3,0)/'4. Billing Determinants'!$D$41*$D24))))) -> 0 | P24: =IF(P$4="",0,IF($E24="kWh",VLOOKUP(P$4,'4. Billing Determinants'!$B$19:$N$41,4,0)/'4. Billing Determinants'!$E$41*$D24,IF($E24="kW",VLOOKUP(P$4,'4. Billing Determinants'!$B$19:$N$41,5,0)/'4. Billing Determinants'!$F$41*$D24,IF($E24="Non-RPP kWh",VLOOKUP(P$4,'4. Billing Determinants'!$B$19:$N$41,6,0)/'4. Billing Determinants'!$G$41*$D24,IF($E24="Distribution Rev.",VLOOKUP(P$4,'4. Billing Determinants'!$B$19:$N$41,8,0)/'4. Billing Determinants'!$I$41*$D24, VLOOKUP(P$4,'4. Billing Determinants'!$B$19:$N$41,3,0)/'4. Billing Determinants'!$D$41*$D24))))) -> 0 | Q24: =IF(Q$4="",0,IF($E24="kWh",VLOOKUP(Q$4,'4. Billing Determinants'!$B$19:$N$41,4,0)/'4. Billing Determinants'!$E$41*$D24,IF($E24="kW",VLOOKUP(Q$4,'4. Billing Determinants'!$B$19:$N$41,5,0)/'4. Billing Determinants'!$F$41*$D24,IF($E24="Non-RPP kWh",VLOOKUP(Q$4,'4. Billing Determinants'!$B$19:$N$41,6,0)/'4. Billing Determinants'!$G$41*$D24,IF($E24="Distribution Rev.",VLOOKUP(Q$4,'4. Billing Determinants'!$B$19:$N$41,8,0)/'4. Billing Determinants'!$I$41*$D24, VLOOKUP(Q$4,'4. Billing Determinants'!$B$19:$N$41,3,0)/'4. Billing Determinants'!$D$41*$D24))))) -> 0 | R24: =IF(R$4="",0,IF($E24="kWh",VLOOKUP(R$4,'4. Billing Determinants'!$B$19:$N$41,4,0)/'4. Billing Determinants'!$E$41*$D24,IF($E24="kW",VLOOKUP(R$4,'4. Billing Determinants'!$B$19:$N$41,5,0)/'4. Billing Determinants'!$F$41*$D24,IF($E24="Non-RPP kWh",VLOOKUP(R$4,'4. Billing Determinants'!$B$19:$N$41,6,0)/'4. Billing Determinants'!$G$41*$D24,IF($E24="Distribution Rev.",VLOOKUP(R$4,'4. Billing Determinants'!$B$19:$N$41,8,0)/'4. Billing Determinants'!$I$41*$D24, VLOOKUP(R$4,'4. Billing Determinants'!$B$19:$N$41,3,0)/'4. Billing Determinants'!$D$41*$D24))))) -> 0 | S24: =IF(S$4="",0,IF($E24="kWh",VLOOKUP(S$4,'4. Billing Determinants'!$B$19:$N$41,4,0)/'4. Billing Determinants'!$E$41*$D24,IF($E24="kW",VLOOKUP(S$4,'4. Billing Determinants'!$B$19:$N$41,5,0)/'4. Billing Determinants'!$F$41*$D24,IF($E24="Non-RPP kWh",VLOOKUP(S$4,'4. Billing Determinants'!$B$19:$N$41,6,0)/'4. Billing Determinants'!$G$41*$D24,IF($E24="Distribution Rev.",VLOOKUP(S$4,'4. Billing Determinants'!$B$19:$N$41,8,0)/'4. Billing Determinants'!$I$41*$D24, VLOOKUP(S$4,'4. Billing Determinants'!$B$19:$N$41,3,0)/'4. Billing Determinants'!$D$41*$D24))))) -> 0 | T24: =IF(T$4="",0,IF($E24="kWh",VLOOKUP(T$4,'4. Billing Determinants'!$B$19:$N$41,4,0)/'4. Billing Determinants'!$E$41*$D24,IF($E24="kW",VLOOKUP(T$4,'4. Billing Determinants'!$B$19:$N$41,5,0)/'4. Billing Determinants'!$F$41*$D24,IF($E24="Non-RPP kWh",VLOOKUP(T$4,'4. Billing Determinants'!$B$19:$N$41,6,0)/'4. Billing Determinants'!$G$41*$D24,IF($E24="Distribution Rev.",VLOOKUP(T$4,'4. Billing Determinants'!$B$19:$N$41,8,0)/'4. Billing Determinants'!$I$41*$D24, VLOOKUP(T$4,'4. Billing Determinants'!$B$19:$N$41,3,0)/'4. Billing Determinants'!$D$41*$D24))))) -> 0 | U24: =IF(U$4="",0,IF($E24="kWh",VLOOKUP(U$4,'4. Billing Determinants'!$B$19:$N$41,4,0)/'4. Billing Determinants'!$E$41*$D24,IF($E24="kW",VLOOKUP(U$4,'4. Billing Determinants'!$B$19:$N$41,5,0)/'4. Billing Determinants'!$F$41*$D24,IF($E24="Non-RPP kWh",VLOOKUP(U$4,'4. Billing Determinants'!$B$19:$N$41,6,0)/'4. Billing Determinants'!$G$41*$D24,IF($E24="Distribution Rev.",VLOOKUP(U$4,'4. Billing Determinants'!$B$19:$N$41,8,0)/'4. Billing Determinants'!$I$41*$D24, VLOOKUP(U$4,'4. Billing Determinants'!$B$19:$N$41,3,0)/'4. Billing Determinants'!$D$41*$D24))))) -> 0 | V24: =IF(V$4="",0,IF($E24="kWh",VLOOKUP(V$4,'4. Billing Determinants'!$B$19:$N$41,4,0)/'4. Billing Determinants'!$E$41*$D24,IF($E24="kW",VLOOKUP(V$4,'4. Billing Determinants'!$B$19:$N$41,5,0)/'4. Billing Determinants'!$F$41*$D24,IF($E24="Non-RPP kWh",VLOOKUP(V$4,'4. Billing Determinants'!$B$19:$N$41,6,0)/'4. Billing Determinants'!$G$41*$D24,IF($E24="Distribution Rev.",VLOOKUP(V$4,'4. Billing Determinants'!$B$19:$N$41,8,0)/'4. Billing Determinants'!$I$41*$D24, VLOOKUP(V$4,'4. Billing Determinants'!$B$19:$N$41,3,0)/'4. Billing Determinants'!$D$41*$D24))))) -> 0 | W24: =IF(W$4="",0,IF($E24="kWh",VLOOKUP(W$4,'4. Billing Determinants'!$B$19:$N$41,4,0)/'4. Billing Determinants'!$E$41*$D24,IF($E24="kW",VLOOKUP(W$4,'4. Billing Determinants'!$B$19:$N$41,5,0)/'4. Billing Determinants'!$F$41*$D24,IF($E24="Non-RPP kWh",VLOOKUP(W$4,'4. Billing Determinants'!$B$19:$N$41,6,0)/'4. Billing Determinants'!$G$41*$D24,IF($E24="Distribution Rev.",VLOOKUP(W$4,'4. Billing Determinants'!$B$19:$N$41,8,0)/'4. Billing Determinants'!$I$41*$D24, VLOOKUP(W$4,'4. Billing Determinants'!$B$19:$N$41,3,0)/'4. Billing Determinants'!$D$41*$D24))))) -> 0 | X24: =IF(X$4="",0,IF($E24="kWh",VLOOKUP(X$4,'4. Billing Determinants'!$B$19:$N$41,4,0)/'4. Billing Determinants'!$E$41*$D24,IF($E24="kW",VLOOKUP(X$4,'4. Billing Determinants'!$B$19:$N$41,5,0)/'4. Billing Determinants'!$F$41*$D24,IF($E24="Non-RPP kWh",VLOOKUP(X$4,'4. Billing Determinants'!$B$19:$N$41,6,0)/'4. Billing Determinants'!$G$41*$D24,IF($E24="Distribution Rev.",VLOOKUP(X$4,'4. Billing Determinants'!$B$19:$N$41,8,0)/'4. Billing Determinants'!$I$41*$D24, VLOOKUP(X$4,'4. Billing Determinants'!$B$19:$N$41,3,0)/'4. Billing Determinants'!$D$41*$D24))))) -> 0 | Y24: =IF(Y$4="",0,IF($E24="kWh",VLOOKUP(Y$4,'4. Billing Determinants'!$B$19:$N$41,4,0)/'4. Billing Determinants'!$E$41*$D24,IF($E24="kW",VLOOKUP(Y$4,'4. Billing Determinants'!$B$19:$N$41,5,0)/'4. Billing Determinants'!$F$41*$D24,IF($E24="Non-RPP kWh",VLOOKUP(Y$4,'4. Billing Determinants'!$B$19:$N$41,6,0)/'4. Billing Determinants'!$G$41*$D24,IF($E24="Distribution Rev.",VLOOKUP(Y$4,'4. Billing Determinants'!$B$19:$N$41,8,0)/'4. Billing Determinants'!$I$41*$D24, VLOOKUP(Y$4,'4. Billing Determinants'!$B$19:$N$41,3,0)/'4. Billing Determinants'!$D$41*$D24))))) -> 0
B25: Misc. Deferred Debits | C25: 1525 | D25: 0 | F25: 0 | G25: 0 | H25: 0 | I25: 0 | J25: 0 | K25: 0 | L25: 0 | M25: =IF(M$4="",0,IF($E25="kWh",VLOOKUP(M$4,'4. Billing Determinants'!$B$19:$N$41,4,0)/'4. Billing Determinants'!$E$41*$D25,IF($E25="kW",VLOOKUP(M$4,'4. Billing Determinants'!$B$19:$N$41,5,0)/'4. Billing Determinants'!$F$41*$D25,IF($E25="Non-RPP kWh",VLOOKUP(M$4,'4. Billing Determinants'!$B$19:$N$41,6,0)/'4. Billing Determinants'!$G$41*$D25,IF($E25="Distribution Rev.",VLOOKUP(M$4,'4. Billing Determinants'!$B$19:$N$41,8,0)/'4. Billing Determinants'!$I$41*$D25, VLOOKUP(M$4,'4. Billing Determinants'!$B$19:$N$41,3,0)/'4. Billing Determinants'!$D$41*$D25))))) -> 0 | N25: =IF(N$4="",0,IF($E25="kWh",VLOOKUP(N$4,'4. Billing Determinants'!$B$19:$N$41,4,0)/'4. Billing Determinants'!$E$41*$D25,IF($E25="kW",VLOOKUP(N$4,'4. Billing Determinants'!$B$19:$N$41,5,0)/'4. Billing Determinants'!$F$41*$D25,IF($E25="Non-RPP kWh",VLOOKUP(N$4,'4. Billing Determinants'!$B$19:$N$41,6,0)/'4. Billing Determinants'!$G$41*$D25,IF($E25="Distribution Rev.",VLOOKUP(N$4,'4. Billing Determinants'!$B$19:$N$41,8,0)/'4. Billing Determinants'!$I$41*$D25, VLOOKUP(N$4,'4. Billing Determinants'!$B$19:$N$41,3,0)/'4. Billing Determinants'!$D$41*$D25))))) -> 0 | O25: =IF(O$4="",0,IF($E25="kWh",VLOOKUP(O$4,'4. Billing Determinants'!$B$19:$N$41,4,0)/'4. Billing Determinants'!$E$41*$D25,IF($E25="kW",VLOOKUP(O$4,'4. Billing Determinants'!$B$19:$N$41,5,0)/'4. Billing Determinants'!$F$41*$D25,IF($E25="Non-RPP kWh",VLOOKUP(O$4,'4. Billing Determinants'!$B$19:$N$41,6,0)/'4. Billing Determinants'!$G$41*$D25,IF($E25="Distribution Rev.",VLOOKUP(O$4,'4. Billing Determinants'!$B$19:$N$41,8,0)/'4. Billing Determinants'!$I$41*$D25, VLOOKUP(O$4,'4. Billing Determinants'!$B$19:$N$41,3,0)/'4. Billing Determinants'!$D$41*$D25))))) -> 0 | P25: =IF(P$4="",0,IF($E25="kWh",VLOOKUP(P$4,'4. Billing Determinants'!$B$19:$N$41,4,0)/'4. Billing Determinants'!$E$41*$D25,IF($E25="kW",VLOOKUP(P$4,'4. Billing Determinants'!$B$19:$N$41,5,0)/'4. Billing Determinants'!$F$41*$D25,IF($E25="Non-RPP kWh",VLOOKUP(P$4,'4. Billing Determinants'!$B$19:$N$41,6,0)/'4. Billing Determinants'!$G$41*$D25,IF($E25="Distribution Rev.",VLOOKUP(P$4,'4. Billing Determinants'!$B$19:$N$41,8,0)/'4. Billing Determinants'!$I$41*$D25, VLOOKUP(P$4,'4. Billing Determinants'!$B$19:$N$41,3,0)/'4. Billing Determinants'!$D$41*$D25))))) -> 0 | Q25: =IF(Q$4="",0,IF($E25="kWh",VLOOKUP(Q$4,'4. Billing Determinants'!$B$19:$N$41,4,0)/'4. Billing Determinants'!$E$41*$D25,IF($E25="kW",VLOOKUP(Q$4,'4. Billing Determinants'!$B$19:$N$41,5,0)/'4. Billing Determinants'!$F$41*$D25,IF($E25="Non-RPP kWh",VLOOKUP(Q$4,'4. Billing Determinants'!$B$19:$N$41,6,0)/'4. Billing Determinants'!$G$41*$D25,IF($E25="Distribution Rev.",VLOOKUP(Q$4,'4. Billing Determinants'!$B$19:$N$41,8,0)/'4. Billing Determinants'!$I$41*$D25, VLOOKUP(Q$4,'4. Billing Determinants'!$B$19:$N$41,3,0)/'4. Billing Determinants'!$D$41*$D25))))) -> 0 | R25: =IF(R$4="",0,IF($E25="kWh",VLOOKUP(R$4,'4. Billing Determinants'!$B$19:$N$41,4,0)/'4. Billing Determinants'!$E$41*$D25,IF($E25="kW",VLOOKUP(R$4,'4. Billing Determinants'!$B$19:$N$41,5,0)/'4. Billing Determinants'!$F$41*$D25,IF($E25="Non-RPP kWh",VLOOKUP(R$4,'4. Billing Determinants'!$B$19:$N$41,6,0)/'4. Billing Determinants'!$G$41*$D25,IF($E25="Distribution Rev.",VLOOKUP(R$4,'4. Billing Determinants'!$B$19:$N$41,8,0)/'4. Billing Determinants'!$I$41*$D25, VLOOKUP(R$4,'4. Billing Determinants'!$B$19:$N$41,3,0)/'4. Billing Determinants'!$D$41*$D25))))) -> 0 | S25: =IF(S$4="",0,IF($E25="kWh",VLOOKUP(S$4,'4. Billing Determinants'!$B$19:$N$41,4,0)/'4. Billing Determinants'!$E$41*$D25,IF($E25="kW",VLOOKUP(S$4,'4. Billing Determinants'!$B$19:$N$41,5,0)/'4. Billing Determinants'!$F$41*$D25,IF($E25="Non-RPP kWh",VLOOKUP(S$4,'4. Billing Determinants'!$B$19:$N$41,6,0)/'4. Billing Determinants'!$G$41*$D25,IF($E25="Distribution Rev.",VLOOKUP(S$4,'4. Billing Determinants'!$B$19:$N$41,8,0)/'4. Billing Determinants'!$I$41*$D25, VLOOKUP(S$4,'4. Billing Determinants'!$B$19:$N$41,3,0)/'4. Billing Determinants'!$D$41*$D25))))) -> 0 | T25: =IF(T$4="",0,IF($E25="kWh",VLOOKUP(T$4,'4. Billing Determinants'!$B$19:$N$41,4,0)/'4. Billing Determinants'!$E$41*$D25,IF($E25="kW",VLOOKUP(T$4,'4. Billing Determinants'!$B$19:$N$41,5,0)/'4. Billing Determinants'!$F$41*$D25,IF($E25="Non-RPP kWh",VLOOKUP(T$4,'4. Billing Determinants'!$B$19:$N$41,6,0)/'4. Billing Determinants'!$G$41*$D25,IF($E25="Distribution Rev.",VLOOKUP(T$4,'4. Billing Determinants'!$B$19:$N$41,8,0)/'4. Billing Determinants'!$I$41*$D25, VLOOKUP(T$4,'4. Billing Determinants'!$B$19:$N$41,3,0)/'4. Billing Determinants'!$D$41*$D25))))) -> 0 | U25: =IF(U$4="",0,IF($E25="kWh",VLOOKUP(U$4,'4. Billing Determinants'!$B$19:$N$41,4,0)/'4. Billing Determinants'!$E$41*$D25,IF($E25="kW",VLOOKUP(U$4,'4. Billing Determinants'!$B$19:$N$41,5,0)/'4. Billing Determinants'!$F$41*$D25,IF($E25="Non-RPP kWh",VLOOKUP(U$4,'4. Billing Determinants'!$B$19:$N$41,6,0)/'4. Billing Determinants'!$G$41*$D25,IF($E25="Distribution Rev.",VLOOKUP(U$4,'4. Billing Determinants'!$B$19:$N$41,8,0)/'4. Billing Determinants'!$I$41*$D25, VLOOKUP(U$4,'4. Billing Determinants'!$B$19:$N$41,3,0)/'4. Billing Determinants'!$D$41*$D25))))) -> 0 | V25: =IF(V$4="",0,IF($E25="kWh",VLOOKUP(V$4,'4. Billing Determinants'!$B$19:$N$41,4,0)/'4. Billing Determinants'!$E$41*$D25,IF($E25="kW",VLOOKUP(V$4,'4. Billing Determinants'!$B$19:$N$41,5,0)/'4. Billing Determinants'!$F$41*$D25,IF($E25="Non-RPP kWh",VLOOKUP(V$4,'4. Billing Determinants'!$B$19:$N$41,6,0)/'4. Billing Determinants'!$G$41*$D25,IF($E25="Distribution Rev.",VLOOKUP(V$4,'4. Billing Determinants'!$B$19:$N$41,8,0)/'4. Billing Determinants'!$I$41*$D25, VLOOKUP(V$4,'4. Billing Determinants'!$B$19:$N$41,3,0)/'4. Billing Determinants'!$D$41*$D25))))) -> 0 | W25: =IF(W$4="",0,IF($E25="kWh",VLOOKUP(W$4,'4. Billing Determinants'!$B$19:$N$41,4,0)/'4. Billing Determinants'!$E$41*$D25,IF($E25="kW",VLOOKUP(W$4,'4. Billing Determinants'!$B$19:$N$41,5,0)/'4. Billing Determinants'!$F$41*$D25,IF($E25="Non-RPP kWh",VLOOKUP(W$4,'4. Billing Determinants'!$B$19:$N$41,6,0)/'4. Billing Determinants'!$G$41*$D25,IF($E25="Distribution Rev.",VLOOKUP(W$4,'4. Billing Determinants'!$B$19:$N$41,8,0)/'4. Billing Determinants'!$I$41*$D25, VLOOKUP(W$4,'4. Billing Determinants'!$B$19:$N$41,3,0)/'4. Billing Determinants'!$D$41*$D25))))) -> 0 | X25: =IF(X$4="",0,IF($E25="kWh",VLOOKUP(X$4,'4. Billing Determinants'!$B$19:$N$41,4,0)/'4. Billing Determinants'!$E$41*$D25,IF($E25="kW",VLOOKUP(X$4,'4. Billing Determinants'!$B$19:$N$41,5,0)/'4. Billing Determinants'!$F$41*$D25,IF($E25="Non-RPP kWh",VLOOKUP(X$4,'4. Billing Determinants'!$B$19:$N$41,6,0)/'4. Billing Determinants'!$G$41*$D25,IF($E25="Distribution Rev.",VLOOKUP(X$4,'4. Billing Determinants'!$B$19:$N$41,8,0)/'4. Billing Determinants'!$I$41*$D25, VLOOKUP(X$4,'4. Billing Determinants'!$B$19:$N$41,3,0)/'4. Billing Determinants'!$D$41*$D25))))) -> 0 | Y25: =IF(Y$4="",0,IF($E25="kWh",VLOOKUP(Y$4,'4. Billing Determinants'!$B$19:$N$41,4,0)/'4. Billing Determinants'!$E$41*$D25,IF($E25="kW",VLOOKUP(Y$4,'4. Billing Determinants'!$B$19:$N$41,5,0)/'4. Billing Determinants'!$F$41*$D25,IF($E25="Non-RPP kWh",VLOOKUP(Y$4,'4. Billing Determinants'!$B$19:$N$41,6,0)/'4. Billing Determinants'!$G$41*$D25,IF($E25="Distribution Rev.",VLOOKUP(Y$4,'4. Billing Determinants'!$B$19:$N$41,8,0)/'4. Billing Determinants'!$I$41*$D25, VLOOKUP(Y$4,'4. Billing Determinants'!$B$19:$N$41,3,0)/'4. Billing Determinants'!$D$41*$D25))))) -> 0
B26: Renewable Generation Connection Capital Deferral Account | C26: 1531 | D26: 117986.0493 | F26: 103829.3831 | G26: 9845.163539 | H26: 1188.209393 | I26: 1119.054349 | J26: 1.257364437 | K26: 2001.724183 | L26: 1.257364437 | M26: =IF(M$4="",0,IF($E26="kWh",VLOOKUP(M$4,'4. Billing Determinants'!$B$19:$N$41,4,0)/'4. Billing Determinants'!$E$41*$D26,IF($E26="kW",VLOOKUP(M$4,'4. Billing Determinants'!$B$19:$N$41,5,0)/'4. Billing Determinants'!$F$41*$D26,IF($E26="Non-RPP kWh",VLOOKUP(M$4,'4. Billing Determinants'!$B$19:$N$41,6,0)/'4. Billing Determinants'!$G$41*$D26,IF($E26="Distribution Rev.",VLOOKUP(M$4,'4. Billing Determinants'!$B$19:$N$41,8,0)/'4. Billing Determinants'!$I$41*$D26, VLOOKUP(M$4,'4. Billing Determinants'!$B$19:$N$41,3,0)/'4. Billing Determinants'!$D$41*$D26))))) -> 0 | N26: =IF(N$4="",0,IF($E26="kWh",VLOOKUP(N$4,'4. Billing Determinants'!$B$19:$N$41,4,0)/'4. Billing Determinants'!$E$41*$D26,IF($E26="kW",VLOOKUP(N$4,'4. Billing Determinants'!$B$19:$N$41,5,0)/'4. Billing Determinants'!$F$41*$D26,IF($E26="Non-RPP kWh",VLOOKUP(N$4,'4. Billing Determinants'!$B$19:$N$41,6,0)/'4. Billing Determinants'!$G$41*$D26,IF($E26="Distribution Rev.",VLOOKUP(N$4,'4. Billing Determinants'!$B$19:$N$41,8,0)/'4. Billing Determinants'!$I$41*$D26, VLOOKUP(N$4,'4. Billing Determinants'!$B$19:$N$41,3,0)/'4. Billing Determinants'!$D$41*$D26))))) -> 0 | O26: =IF(O$4="",0,IF($E26="kWh",VLOOKUP(O$4,'4. Billing Determinants'!$B$19:$N$41,4,0)/'4. Billing Determinants'!$E$41*$D26,IF($E26="kW",VLOOKUP(O$4,'4. Billing Determinants'!$B$19:$N$41,5,0)/'4. Billing Determinants'!$F$41*$D26,IF($E26="Non-RPP kWh",VLOOKUP(O$4,'4. Billing Determinants'!$B$19:$N$41,6,0)/'4. Billing Determinants'!$G$41*$D26,IF($E26="Distribution Rev.",VLOOKUP(O$4,'4. Billing Determinants'!$B$19:$N$41,8,0)/'4. Billing Determinants'!$I$41*$D26, VLOOKUP(O$4,'4. Billing Determinants'!$B$19:$N$41,3,0)/'4. Billing Determinants'!$D$41*$D26))))) -> 0 | P26: =IF(P$4="",0,IF($E26="kWh",VLOOKUP(P$4,'4. Billing Determinants'!$B$19:$N$41,4,0)/'4. Billing Determinants'!$E$41*$D26,IF($E26="kW",VLOOKUP(P$4,'4. Billing Determinants'!$B$19:$N$41,5,0)/'4. Billing Determinants'!$F$41*$D26,IF($E26="Non-RPP kWh",VLOOKUP(P$4,'4. Billing Determinants'!$B$19:$N$41,6,0)/'4. Billing Determinants'!$G$41*$D26,IF($E26="Distribution Rev.",VLOOKUP(P$4,'4. Billing Determinants'!$B$19:$N$41,8,0)/'4. Billing Determinants'!$I$41*$D26, VLOOKUP(P$4,'4. Billing Determinants'!$B$19:$N$41,3,0)/'4. Billing Determinants'!$D$41*$D26))))) -> 0 | Q26: =IF(Q$4="",0,IF($E26="kWh",VLOOKUP(Q$4,'4. Billing Determinants'!$B$19:$N$41,4,0)/'4. Billing Determinants'!$E$41*$D26,IF($E26="kW",VLOOKUP(Q$4,'4. Billing Determinants'!$B$19:$N$41,5,0)/'4. Billing Determinants'!$F$41*$D26,IF($E26="Non-RPP kWh",VLOOKUP(Q$4,'4. Billing Determinants'!$B$19:$N$41,6,0)/'4. Billing Determinants'!$G$41*$D26,IF($E26="Distribution Rev.",VLOOKUP(Q$4,'4. Billing Determinants'!$B$19:$N$41,8,0)/'4. Billing Determinants'!$I$41*$D26, VLOOKUP(Q$4,'4. Billing Determinants'!$B$19:$N$41,3,0)/'4. Billing Determinants'!$D$41*$D26))))) -> 0 | R26: =IF(R$4="",0,IF($E26="kWh",VLOOKUP(R$4,'4. Billing Determinants'!$B$19:$N$41,4,0)/'4. Billing Determinants'!$E$41*$D26,IF($E26="kW",VLOOKUP(R$4,'4. Billing Determinants'!$B$19:$N$41,5,0)/'4. Billing Determinants'!$F$41*$D26,IF($E26="Non-RPP kWh",VLOOKUP(R$4,'4. Billing Determinants'!$B$19:$N$41,6,0)/'4. Billing Determinants'!$G$41*$D26,IF($E26="Distribution Rev.",VLOOKUP(R$4,'4. Billing Determinants'!$B$19:$N$41,8,0)/'4. Billing Determinants'!$I$41*$D26, VLOOKUP(R$4,'4. Billing Determinants'!$B$19:$N$41,3,0)/'4. Billing Determinants'!$D$41*$D26))))) -> 0 | S26: =IF(S$4="",0,IF($E26="kWh",VLOOKUP(S$4,'4. Billing Determinants'!$B$19:$N$41,4,0)/'4. Billing Determinants'!$E$41*$D26,IF($E26="kW",VLOOKUP(S$4,'4. Billing Determinants'!$B$19:$N$41,5,0)/'4. Billing Determinants'!$F$41*$D26,IF($E26="Non-RPP kWh",VLOOKUP(S$4,'4. Billing Determinants'!$B$19:$N$41,6,0)/'4. Billing Determinants'!$G$41*$D26,IF($E26="Distribution Rev.",VLOOKUP(S$4,'4. Billing Determinants'!$B$19:$N$41,8,0)/'4. Billing Determinants'!$I$41*$D26, VLOOKUP(S$4,'4. Billing Determinants'!$B$19:$N$41,3,0)/'4. Billing Determinants'!$D$41*$D26))))) -> 0 | T26: =IF(T$4="",0,IF($E26="kWh",VLOOKUP(T$4,'4. Billing Determinants'!$B$19:$N$41,4,0)/'4. Billing Determinants'!$E$41*$D26,IF($E26="kW",VLOOKUP(T$4,'4. Billing Determinants'!$B$19:$N$41,5,0)/'4. Billing Determinants'!$F$41*$D26,IF($E26="Non-RPP kWh",VLOOKUP(T$4,'4. Billing Determinants'!$B$19:$N$41,6,0)/'4. Billing Determinants'!$G$41*$D26,IF($E26="Distribution Rev.",VLOOKUP(T$4,'4. Billing Determinants'!$B$19:$N$41,8,0)/'4. Billing Determinants'!$I$41*$D26, VLOOKUP(T$4,'4. Billing Determinants'!$B$19:$N$41,3,0)/'4. Billing Determinants'!$D$41*$D26))))) -> 0 | U26: =IF(U$4="",0,IF($E26="kWh",VLOOKUP(U$4,'4. Billing Determinants'!$B$19:$N$41,4,0)/'4. Billing Determinants'!$E$41*$D26,IF($E26="kW",VLOOKUP(U$4,'4. Billing Determinants'!$B$19:$N$41,5,0)/'4. Billing Determinants'!$F$41*$D26,IF($E26="Non-RPP kWh",VLOOKUP(U$4,'4. Billing Determinants'!$B$19:$N$41,6,0)/'4. Billing Determinants'!$G$41*$D26,IF($E26="Distribution Rev.",VLOOKUP(U$4,'4. Billing Determinants'!$B$19:$N$41,8,0)/'4. Billing Determinants'!$I$41*$D26, VLOOKUP(U$4,'4. Billing Determinants'!$B$19:$N$41,3,0)/'4. Billing Determinants'!$D$41*$D26))))) -> 0 | V26: =IF(V$4="",0,IF($E26="kWh",VLOOKUP(V$4,'4. Billing Determinants'!$B$19:$N$41,4,0)/'4. Billing Determinants'!$E$41*$D26,IF($E26="kW",VLOOKUP(V$4,'4. Billing Determinants'!$B$19:$N$41,5,0)/'4. Billing Determinants'!$F$41*$D26,IF($E26="Non-RPP kWh",VLOOKUP(V$4,'4. Billing Determinants'!$B$19:$N$41,6,0)/'4. Billing Determinants'!$G$41*$D26,IF($E26="Distribution Rev.",VLOOKUP(V$4,'4. Billing Determinants'!$B$19:$N$41,8,0)/'4. Billing Determinants'!$I$41*$D26, VLOOKUP(V$4,'4. Billing Determinants'!$B$19:$N$41,3,0)/'4. Billing Determinants'!$D$41*$D26))))) -> 0 | W26: =IF(W$4="",0,IF($E26="kWh",VLOOKUP(W$4,'4. Billing Determinants'!$B$19:$N$41,4,0)/'4. Billing Determinants'!$E$41*$D26,IF($E26="kW",VLOOKUP(W$4,'4. Billing Determinants'!$B$19:$N$41,5,0)/'4. Billing Determinants'!$F$41*$D26,IF($E26="Non-RPP kWh",VLOOKUP(W$4,'4. Billing Determinants'!$B$19:$N$41,6,0)/'4. Billing Determinants'!$G$41*$D26,IF($E26="Distribution Rev.",VLOOKUP(W$4,'4. Billing Determinants'!$B$19:$N$41,8,0)/'4. Billing Determinants'!$I$41*$D26, VLOOKUP(W$4,'4. Billing Determinants'!$B$19:$N$41,3,0)/'4. Billing Determinants'!$D$41*$D26))))) -> 0 | X26: =IF(X$4="",0,IF($E26="kWh",VLOOKUP(X$4,'4. Billing Determinants'!$B$19:$N$41,4,0)/'4. Billing Determinants'!$E$41*$D26,IF($E26="kW",VLOOKUP(X$4,'4. Billing Determinants'!$B$19:$N$41,5,0)/'4. Billing Determinants'!$F$41*$D26,IF($E26="Non-RPP kWh",VLOOKUP(X$4,'4. Billing Determinants'!$B$19:$N$41,6,0)/'4. Billing Determinants'!$G$41*$D26,IF($E26="Distribution Rev.",VLOOKUP(X$4,'4. Billing Determinants'!$B$19:$N$41,8,0)/'4. Billing Determinants'!$I$41*$D26, VLOOKUP(X$4,'4. Billing Determinants'!$B$19:$N$41,3,0)/'4. Billing Determinants'!$D$41*$D26))))) -> 0 | Y26: =IF(Y$4="",0,IF($E26="kWh",VLOOKUP(Y$4,'4. Billing Determinants'!$B$19:$N$41,4,0)/'4. Billing Determinants'!$E$41*$D26,IF($E26="kW",VLOOKUP(Y$4,'4. Billing Determinants'!$B$19:$N$41,5,0)/'4. Billing Determinants'!$F$41*$D26,IF($E26="Non-RPP kWh",VLOOKUP(Y$4,'4. Billing Determinants'!$B$19:$N$41,6,0)/'4. Billing Determinants'!$G$41*$D26,IF($E26="Distribution Rev.",VLOOKUP(Y$4,'4. Billing Determinants'!$B$19:$N$41,8,0)/'4. Billing Determinants'!$I$41*$D26, VLOOKUP(Y$4,'4. Billing Determinants'!$B$19:$N$41,3,0)/'4. Billing Determinants'!$D$41*$D26))))) -> 0
B27: Renewable Generation Connection OM&A Deferral Account | C27: 1532 | D27: 37404.73171 | F27: 32916.69008 | G27: 3121.18003 | H27: 376.6941415 | I27: 354.7701439 | J27: 0.3986181392 | K27: 634.6000776 | L27: 0.3986181392 | M27: =IF(M$4="",0,IF($E27="kWh",VLOOKUP(M$4,'4. Billing Determinants'!$B$19:$N$41,4,0)/'4. Billing Determinants'!$E$41*$D27,IF($E27="kW",VLOOKUP(M$4,'4. Billing Determinants'!$B$19:$N$41,5,0)/'4. Billing Determinants'!$F$41*$D27,IF($E27="Non-RPP kWh",VLOOKUP(M$4,'4. Billing Determinants'!$B$19:$N$41,6,0)/'4. Billing Determinants'!$G$41*$D27,IF($E27="Distribution Rev.",VLOOKUP(M$4,'4. Billing Determinants'!$B$19:$N$41,8,0)/'4. Billing Determinants'!$I$41*$D27, VLOOKUP(M$4,'4. Billing Determinants'!$B$19:$N$41,3,0)/'4. Billing Determinants'!$D$41*$D27))))) -> 0 | N27: =IF(N$4="",0,IF($E27="kWh",VLOOKUP(N$4,'4. Billing Determinants'!$B$19:$N$41,4,0)/'4. Billing Determinants'!$E$41*$D27,IF($E27="kW",VLOOKUP(N$4,'4. Billing Determinants'!$B$19:$N$41,5,0)/'4. Billing Determinants'!$F$41*$D27,IF($E27="Non-RPP kWh",VLOOKUP(N$4,'4. Billing Determinants'!$B$19:$N$41,6,0)/'4. Billing Determinants'!$G$41*$D27,IF($E27="Distribution Rev.",VLOOKUP(N$4,'4. Billing Determinants'!$B$19:$N$41,8,0)/'4. Billing Determinants'!$I$41*$D27, VLOOKUP(N$4,'4. Billing Determinants'!$B$19:$N$41,3,0)/'4. Billing Determinants'!$D$41*$D27))))) -> 0 | O27: =IF(O$4="",0,IF($E27="kWh",VLOOKUP(O$4,'4. Billing Determinants'!$B$19:$N$41,4,0)/'4. Billing Determinants'!$E$41*$D27,IF($E27="kW",VLOOKUP(O$4,'4. Billing Determinants'!$B$19:$N$41,5,0)/'4. Billing Determinants'!$F$41*$D27,IF($E27="Non-RPP kWh",VLOOKUP(O$4,'4. Billing Determinants'!$B$19:$N$41,6,0)/'4. Billing Determinants'!$G$41*$D27,IF($E27="Distribution Rev.",VLOOKUP(O$4,'4. Billing Determinants'!$B$19:$N$41,8,0)/'4. Billing Determinants'!$I$41*$D27, VLOOKUP(O$4,'4. Billing Determinants'!$B$19:$N$41,3,0)/'4. Billing Determinants'!$D$41*$D27))))) -> 0 | P27: =IF(P$4="",0,IF($E27="kWh",VLOOKUP(P$4,'4. Billing Determinants'!$B$19:$N$41,4,0)/'4. Billing Determinants'!$E$41*$D27,IF($E27="kW",VLOOKUP(P$4,'4. Billing Determinants'!$B$19:$N$41,5,0)/'4. Billing Determinants'!$F$41*$D27,IF($E27="Non-RPP kWh",VLOOKUP(P$4,'4. Billing Determinants'!$B$19:$N$41,6,0)/'4. Billing Determinants'!$G$41*$D27,IF($E27="Distribution Rev.",VLOOKUP(P$4,'4. Billing Determinants'!$B$19:$N$41,8,0)/'4. Billing Determinants'!$I$41*$D27, VLOOKUP(P$4,'4. Billing Determinants'!$B$19:$N$41,3,0)/'4. Billing Determinants'!$D$41*$D27))))) -> 0 | Q27: =IF(Q$4="",0,IF($E27="kWh",VLOOKUP(Q$4,'4. Billing Determinants'!$B$19:$N$41,4,0)/'4. Billing Determinants'!$E$41*$D27,IF($E27="kW",VLOOKUP(Q$4,'4. Billing Determinants'!$B$19:$N$41,5,0)/'4. Billing Determinants'!$F$41*$D27,IF($E27="Non-RPP kWh",VLOOKUP(Q$4,'4. Billing Determinants'!$B$19:$N$41,6,0)/'4. Billing Determinants'!$G$41*$D27,IF($E27="Distribution Rev.",VLOOKUP(Q$4,'4. Billing Determinants'!$B$19:$N$41,8,0)/'4. Billing Determinants'!$I$41*$D27, VLOOKUP(Q$4,'4. Billing Determinants'!$B$19:$N$41,3,0)/'4. Billing Determinants'!$D$41*$D27))))) -> 0 | R27: =IF(R$4="",0,IF($E27="kWh",VLOOKUP(R$4,'4. Billing Determinants'!$B$19:$N$41,4,0)/'4. Billing Determinants'!$E$41*$D27,IF($E27="kW",VLOOKUP(R$4,'4. Billing Determinants'!$B$19:$N$41,5,0)/'4. Billing Determinants'!$F$41*$D27,IF($E27="Non-RPP kWh",VLOOKUP(R$4,'4. Billing Determinants'!$B$19:$N$41,6,0)/'4. Billing Determinants'!$G$41*$D27,IF($E27="Distribution Rev.",VLOOKUP(R$4,'4. Billing Determinants'!$B$19:$N$41,8,0)/'4. Billing Determinants'!$I$41*$D27, VLOOKUP(R$4,'4. Billing Determinants'!$B$19:$N$41,3,0)/'4. Billing Determinants'!$D$41*$D27))))) -> 0 | S27: =IF(S$4="",0,IF($E27="kWh",VLOOKUP(S$4,'4. Billing Determinants'!$B$19:$N$41,4,0)/'4. Billing Determinants'!$E$41*$D27,IF($E27="kW",VLOOKUP(S$4,'4. Billing Determinants'!$B$19:$N$41,5,0)/'4. Billing Determinants'!$F$41*$D27,IF($E27="Non-RPP kWh",VLOOKUP(S$4,'4. Billing Determinants'!$B$19:$N$41,6,0)/'4. Billing Determinants'!$G$41*$D27,IF($E27="Distribution Rev.",VLOOKUP(S$4,'4. Billing Determinants'!$B$19:$N$41,8,0)/'4. Billing Determinants'!$I$41*$D27, VLOOKUP(S$4,'4. Billing Determinants'!$B$19:$N$41,3,0)/'4. Billing Determinants'!$D$41*$D27))))) -> 0 | T27: =IF(T$4="",0,IF($E27="kWh",VLOOKUP(T$4,'4. Billing Determinants'!$B$19:$N$41,4,0)/'4. Billing Determinants'!$E$41*$D27,IF($E27="kW",VLOOKUP(T$4,'4. Billing Determinants'!$B$19:$N$41,5,0)/'4. Billing Determinants'!$F$41*$D27,IF($E27="Non-RPP kWh",VLOOKUP(T$4,'4. Billing Determinants'!$B$19:$N$41,6,0)/'4. Billing Determinants'!$G$41*$D27,IF($E27="Distribution Rev.",VLOOKUP(T$4,'4. Billing Determinants'!$B$19:$N$41,8,0)/'4. Billing Determinants'!$I$41*$D27, VLOOKUP(T$4,'4. Billing Determinants'!$B$19:$N$41,3,0)/'4. Billing Determinants'!$D$41*$D27))))) -> 0 | U27: =IF(U$4="",0,IF($E27="kWh",VLOOKUP(U$4,'4. Billing Determinants'!$B$19:$N$41,4,0)/'4. Billing Determinants'!$E$41*$D27,IF($E27="kW",VLOOKUP(U$4,'4. Billing Determinants'!$B$19:$N$41,5,0)/'4. Billing Determinants'!$F$41*$D27,IF($E27="Non-RPP kWh",VLOOKUP(U$4,'4. Billing Determinants'!$B$19:$N$41,6,0)/'4. Billing Determinants'!$G$41*$D27,IF($E27="Distribution Rev.",VLOOKUP(U$4,'4. Billing Determinants'!$B$19:$N$41,8,0)/'4. Billing Determinants'!$I$41*$D27, VLOOKUP(U$4,'4. Billing Determinants'!$B$19:$N$41,3,0)/'4. Billing Determinants'!$D$41*$D27))))) -> 0 | V27: =IF(V$4="",0,IF($E27="kWh",VLOOKUP(V$4,'4. Billing Determinants'!$B$19:$N$41,4,0)/'4. Billing Determinants'!$E$41*$D27,IF($E27="kW",VLOOKUP(V$4,'4. Billing Determinants'!$B$19:$N$41,5,0)/'4. Billing Determinants'!$F$41*$D27,IF($E27="Non-RPP kWh",VLOOKUP(V$4,'4. Billing Determinants'!$B$19:$N$41,6,0)/'4. Billing Determinants'!$G$41*$D27,IF($E27="Distribution Rev.",VLOOKUP(V$4,'4. Billing Determinants'!$B$19:$N$41,8,0)/'4. Billing Determinants'!$I$41*$D27, VLOOKUP(V$4,'4. Billing Determinants'!$B$19:$N$41,3,0)/'4. Billing Determinants'!$D$41*$D27))))) -> 0 | W27: =IF(W$4="",0,IF($E27="kWh",VLOOKUP(W$4,'4. Billing Determinants'!$B$19:$N$41,4,0)/'4. Billing Determinants'!$E$41*$D27,IF($E27="kW",VLOOKUP(W$4,'4. Billing Determinants'!$B$19:$N$41,5,0)/'4. Billing Determinants'!$F$41*$D27,IF($E27="Non-RPP kWh",VLOOKUP(W$4,'4. Billing Determinants'!$B$19:$N$41,6,0)/'4. Billing Determinants'!$G$41*$D27,IF($E27="Distribution Rev.",VLOOKUP(W$4,'4. Billing Determinants'!$B$19:$N$41,8,0)/'4. Billing Determinants'!$I$41*$D27, VLOOKUP(W$4,'4. Billing Determinants'!$B$19:$N$41,3,0)/'4. Billing Determinants'!$D$41*$D27))))) -> 0 | X27: =IF(X$4="",0,IF($E27="kWh",VLOOKUP(X$4,'4. Billing Determinants'!$B$19:$N$41,4,0)/'4. Billing Determinants'!$E$41*$D27,IF($E27="kW",VLOOKUP(X$4,'4. Billing Determinants'!$B$19:$N$41,5,0)/'4. Billing Determinants'!$F$41*$D27,IF($E27="Non-RPP kWh",VLOOKUP(X$4,'4. Billing Determinants'!$B$19:$N$41,6,0)/'4. Billing Determinants'!$G$41*$D27,IF($E27="Distribution Rev.",VLOOKUP(X$4,'4. Billing Determinants'!$B$19:$N$41,8,0)/'4. Billing Determinants'!$I$41*$D27, VLOOKUP(X$4,'4. Billing Determinants'!$B$19:$N$41,3,0)/'4. Billing Determinants'!$D$41*$D27))))) -> 0 | Y27: =IF(Y$4="",0,IF($E27="kWh",VLOOKUP(Y$4,'4. Billing Determinants'!$B$19:$N$41,4,0)/'4. Billing Determinants'!$E$41*$D27,IF($E27="kW",VLOOKUP(Y$4,'4. Billing Determinants'!$B$19:$N$41,5,0)/'4. Billing Determinants'!$F$41*$D27,IF($E27="Non-RPP kWh",VLOOKUP(Y$4,'4. Billing Determinants'!$B$19:$N$41,6,0)/'4. Billing Determinants'!$G$41*$D27,IF($E27="Distribution Rev.",VLOOKUP(Y$4,'4. Billing Determinants'!$B$19:$N$41,8,0)/'4. Billing Determinants'!$I$41*$D27, VLOOKUP(Y$4,'4. Billing Determinants'!$B$19:$N$41,3,0)/'4. Billing Determinants'!$D$41*$D27))))) -> 0
B28: Renewable Generation Connection Funding Adder Deferral Account | C28: 1533 | D28: 0 | F28: 0 | G28: 0 | H28: 0 | I28: 0 | J28: 0 | K28: 0 | L28: 0 | M28: =IF(M$4="",0,IF($E28="kWh",VLOOKUP(M$4,'4. Billing Determinants'!$B$19:$N$41,4,0)/'4. Billing Determinants'!$E$41*$D28,IF($E28="kW",VLOOKUP(M$4,'4. Billing Determinants'!$B$19:$N$41,5,0)/'4. Billing Determinants'!$F$41*$D28,IF($E28="Non-RPP kWh",VLOOKUP(M$4,'4. Billing Determinants'!$B$19:$N$41,6,0)/'4. Billing Determinants'!$G$41*$D28,IF($E28="Distribution Rev.",VLOOKUP(M$4,'4. Billing Determinants'!$B$19:$N$41,8,0)/'4. Billing Determinants'!$I$41*$D28, VLOOKUP(M$4,'4. Billing Determinants'!$B$19:$N$41,3,0)/'4. Billing Determinants'!$D$41*$D28))))) -> 0 | N28: =IF(N$4="",0,IF($E28="kWh",VLOOKUP(N$4,'4. Billing Determinants'!$B$19:$N$41,4,0)/'4. Billing Determinants'!$E$41*$D28,IF($E28="kW",VLOOKUP(N$4,'4. Billing Determinants'!$B$19:$N$41,5,0)/'4. Billing Determinants'!$F$41*$D28,IF($E28="Non-RPP kWh",VLOOKUP(N$4,'4. Billing Determinants'!$B$19:$N$41,6,0)/'4. Billing Determinants'!$G$41*$D28,IF($E28="Distribution Rev.",VLOOKUP(N$4,'4. Billing Determinants'!$B$19:$N$41,8,0)/'4. Billing Determinants'!$I$41*$D28, VLOOKUP(N$4,'4. Billing Determinants'!$B$19:$N$41,3,0)/'4. Billing Determinants'!$D$41*$D28))))) -> 0 | O28: =IF(O$4="",0,IF($E28="kWh",VLOOKUP(O$4,'4. Billing Determinants'!$B$19:$N$41,4,0)/'4. Billing Determinants'!$E$41*$D28,IF($E28="kW",VLOOKUP(O$4,'4. Billing Determinants'!$B$19:$N$41,5,0)/'4. Billing Determinants'!$F$41*$D28,IF($E28="Non-RPP kWh",VLOOKUP(O$4,'4. Billing Determinants'!$B$19:$N$41,6,0)/'4. Billing Determinants'!$G$41*$D28,IF($E28="Distribution Rev.",VLOOKUP(O$4,'4. Billing Determinants'!$B$19:$N$41,8,0)/'4. Billing Determinants'!$I$41*$D28, VLOOKUP(O$4,'4. Billing Determinants'!$B$19:$N$41,3,0)/'4. Billing Determinants'!$D$41*$D28))))) -> 0 | P28: =IF(P$4="",0,IF($E28="kWh",VLOOKUP(P$4,'4. Billing Determinants'!$B$19:$N$41,4,0)/'4. Billing Determinants'!$E$41*$D28,IF($E28="kW",VLOOKUP(P$4,'4. Billing Determinants'!$B$19:$N$41,5,0)/'4. Billing Determinants'!$F$41*$D28,IF($E28="Non-RPP kWh",VLOOKUP(P$4,'4. Billing Determinants'!$B$19:$N$41,6,0)/'4. Billing Determinants'!$G$41*$D28,IF($E28="Distribution Rev.",VLOOKUP(P$4,'4. Billing Determinants'!$B$19:$N$41,8,0)/'4. Billing Determinants'!$I$41*$D28, VLOOKUP(P$4,'4. Billing Determinants'!$B$19:$N$41,3,0)/'4. Billing Determinants'!$D$41*$D28))))) -> 0 | Q28: =IF(Q$4="",0,IF($E28="kWh",VLOOKUP(Q$4,'4. Billing Determinants'!$B$19:$N$41,4,0)/'4. Billing Determinants'!$E$41*$D28,IF($E28="kW",VLOOKUP(Q$4,'4. Billing Determinants'!$B$19:$N$41,5,0)/'4. Billing Determinants'!$F$41*$D28,IF($E28="Non-RPP kWh",VLOOKUP(Q$4,'4. Billing Determinants'!$B$19:$N$41,6,0)/'4. Billing Determinants'!$G$41*$D28,IF($E28="Distribution Rev.",VLOOKUP(Q$4,'4. Billing Determinants'!$B$19:$N$41,8,0)/'4. Billing Determinants'!$I$41*$D28, VLOOKUP(Q$4,'4. Billing Determinants'!$B$19:$N$41,3,0)/'4. Billing Determinants'!$D$41*$D28))))) -> 0 | R28: =IF(R$4="",0,IF($E28="kWh",VLOOKUP(R$4,'4. Billing Determinants'!$B$19:$N$41,4,0)/'4. Billing Determinants'!$E$41*$D28,IF($E28="kW",VLOOKUP(R$4,'4. Billing Determinants'!$B$19:$N$41,5,0)/'4. Billing Determinants'!$F$41*$D28,IF($E28="Non-RPP kWh",VLOOKUP(R$4,'4. Billing Determinants'!$B$19:$N$41,6,0)/'4. Billing Determinants'!$G$41*$D28,IF($E28="Distribution Rev.",VLOOKUP(R$4,'4. Billing Determinants'!$B$19:$N$41,8,0)/'4. Billing Determinants'!$I$41*$D28, VLOOKUP(R$4,'4. Billing Determinants'!$B$19:$N$41,3,0)/'4. Billing Determinants'!$D$41*$D28))))) -> 0 | S28: =IF(S$4="",0,IF($E28="kWh",VLOOKUP(S$4,'4. Billing Determinants'!$B$19:$N$41,4,0)/'4. Billing Determinants'!$E$41*$D28,IF($E28="kW",VLOOKUP(S$4,'4. Billing Determinants'!$B$19:$N$41,5,0)/'4. Billing Determinants'!$F$41*$D28,IF($E28="Non-RPP kWh",VLOOKUP(S$4,'4. Billing Determinants'!$B$19:$N$41,6,0)/'4. Billing Determinants'!$G$41*$D28,IF($E28="Distribution Rev.",VLOOKUP(S$4,'4. Billing Determinants'!$B$19:$N$41,8,0)/'4. Billing Determinants'!$I$41*$D28, VLOOKUP(S$4,'4. Billing Determinants'!$B$19:$N$41,3,0)/'4. Billing Determinants'!$D$41*$D28))))) -> 0 | T28: =IF(T$4="",0,IF($E28="kWh",VLOOKUP(T$4,'4. Billing Determinants'!$B$19:$N$41,4,0)/'4. Billing Determinants'!$E$41*$D28,IF($E28="kW",VLOOKUP(T$4,'4. Billing Determinants'!$B$19:$N$41,5,0)/'4. Billing Determinants'!$F$41*$D28,IF($E28="Non-RPP kWh",VLOOKUP(T$4,'4. Billing Determinants'!$B$19:$N$41,6,0)/'4. Billing Determinants'!$G$41*$D28,IF($E28="Distribution Rev.",VLOOKUP(T$4,'4. Billing Determinants'!$B$19:$N$41,8,0)/'4. Billing Determinants'!$I$41*$D28, VLOOKUP(T$4,'4. Billing Determinants'!$B$19:$N$41,3,0)/'4. Billing Determinants'!$D$41*$D28))))) -> 0 | U28: =IF(U$4="",0,IF($E28="kWh",VLOOKUP(U$4,'4. Billing Determinants'!$B$19:$N$41,4,0)/'4. Billing Determinants'!$E$41*$D28,IF($E28="kW",VLOOKUP(U$4,'4. Billing Determinants'!$B$19:$N$41,5,0)/'4. Billing Determinants'!$F$41*$D28,IF($E28="Non-RPP kWh",VLOOKUP(U$4,'4. Billing Determinants'!$B$19:$N$41,6,0)/'4. Billing Determinants'!$G$41*$D28,IF($E28="Distribution Rev.",VLOOKUP(U$4,'4. Billing Determinants'!$B$19:$N$41,8,0)/'4. Billing Determinants'!$I$41*$D28, VLOOKUP(U$4,'4. Billing Determinants'!$B$19:$N$41,3,0)/'4. Billing Determinants'!$D$41*$D28))))) -> 0 | V28: =IF(V$4="",0,IF($E28="kWh",VLOOKUP(V$4,'4. Billing Determinants'!$B$19:$N$41,4,0)/'4. Billing Determinants'!$E$41*$D28,IF($E28="kW",VLOOKUP(V$4,'4. Billing Determinants'!$B$19:$N$41,5,0)/'4. Billing Determinants'!$F$41*$D28,IF($E28="Non-RPP kWh",VLOOKUP(V$4,'4. Billing Determinants'!$B$19:$N$41,6,0)/'4. Billing Determinants'!$G$41*$D28,IF($E28="Distribution Rev.",VLOOKUP(V$4,'4. Billing Determinants'!$B$19:$N$41,8,0)/'4. Billing Determinants'!$I$41*$D28, VLOOKUP(V$4,'4. Billing Determinants'!$B$19:$N$41,3,0)/'4. Billing Determinants'!$D$41*$D28))))) -> 0 | W28: =IF(W$4="",0,IF($E28="kWh",VLOOKUP(W$4,'4. Billing Determinants'!$B$19:$N$41,4,0)/'4. Billing Determinants'!$E$41*$D28,IF($E28="kW",VLOOKUP(W$4,'4. Billing Determinants'!$B$19:$N$41,5,0)/'4. Billing Determinants'!$F$41*$D28,IF($E28="Non-RPP kWh",VLOOKUP(W$4,'4. Billing Determinants'!$B$19:$N$41,6,0)/'4. Billing Determinants'!$G$41*$D28,IF($E28="Distribution Rev.",VLOOKUP(W$4,'4. Billing Determinants'!$B$19:$N$41,8,0)/'4. Billing Determinants'!$I$41*$D28, VLOOKUP(W$4,'4. Billing Determinants'!$B$19:$N$41,3,0)/'4. Billing Determinants'!$D$41*$D28))))) -> 0 | X28: =IF(X$4="",0,IF($E28="kWh",VLOOKUP(X$4,'4. Billing Determinants'!$B$19:$N$41,4,0)/'4. Billing Determinants'!$E$41*$D28,IF($E28="kW",VLOOKUP(X$4,'4. Billing Determinants'!$B$19:$N$41,5,0)/'4. Billing Determinants'!$F$41*$D28,IF($E28="Non-RPP kWh",VLOOKUP(X$4,'4. Billing Determinants'!$B$19:$N$41,6,0)/'4. Billing Determinants'!$G$41*$D28,IF($E28="Distribution Rev.",VLOOKUP(X$4,'4. Billing Determinants'!$B$19:$N$41,8,0)/'4. Billing Determinants'!$I$41*$D28, VLOOKUP(X$4,'4. Billing Determinants'!$B$19:$N$41,3,0)/'4. Billing Determinants'!$D$41*$D28))))) -> 0 | Y28: =IF(Y$4="",0,IF($E28="kWh",VLOOKUP(Y$4,'4. Billing Determinants'!$B$19:$N$41,4,0)/'4. Billing Determinants'!$E$41*$D28,IF($E28="kW",VLOOKUP(Y$4,'4. Billing Determinants'!$B$19:$N$41,5,0)/'4. Billing Determinants'!$F$41*$D28,IF($E28="Non-RPP kWh",VLOOKUP(Y$4,'4. Billing Determinants'!$B$19:$N$41,6,0)/'4. Billing Determinants'!$G$41*$D28,IF($E28="Distribution Rev.",VLOOKUP(Y$4,'4. Billing Determinants'!$B$19:$N$41,8,0)/'4. Billing Determinants'!$I$41*$D28, VLOOKUP(Y$4,'4. Billing Determinants'!$B$19:$N$41,3,0)/'4. Billing Determinants'!$D$41*$D28))))) -> 0
B29: Smart Grid Capital Deferral Account | C29: 1534 | D29: 0 | F29: 0 | G29: 0 | H29: 0 | I29: 0 | J29: 0 | K29: 0 | L29: 0 | M29: =IF(M$4="",0,IF($E29="kWh",VLOOKUP(M$4,'4. Billing Determinants'!$B$19:$N$41,4,0)/'4. Billing Determinants'!$E$41*$D29,IF($E29="kW",VLOOKUP(M$4,'4. Billing Determinants'!$B$19:$N$41,5,0)/'4. Billing Determinants'!$F$41*$D29,IF($E29="Non-RPP kWh",VLOOKUP(M$4,'4. Billing Determinants'!$B$19:$N$41,6,0)/'4. Billing Determinants'!$G$41*$D29,IF($E29="Distribution Rev.",VLOOKUP(M$4,'4. Billing Determinants'!$B$19:$N$41,8,0)/'4. Billing Determinants'!$I$41*$D29, VLOOKUP(M$4,'4. Billing Determinants'!$B$19:$N$41,3,0)/'4. Billing Determinants'!$D$41*$D29))))) -> 0 | N29: =IF(N$4="",0,IF($E29="kWh",VLOOKUP(N$4,'4. Billing Determinants'!$B$19:$N$41,4,0)/'4. Billing Determinants'!$E$41*$D29,IF($E29="kW",VLOOKUP(N$4,'4. Billing Determinants'!$B$19:$N$41,5,0)/'4. Billing Determinants'!$F$41*$D29,IF($E29="Non-RPP kWh",VLOOKUP(N$4,'4. Billing Determinants'!$B$19:$N$41,6,0)/'4. Billing Determinants'!$G$41*$D29,IF($E29="Distribution Rev.",VLOOKUP(N$4,'4. Billing Determinants'!$B$19:$N$41,8,0)/'4. Billing Determinants'!$I$41*$D29, VLOOKUP(N$4,'4. Billing Determinants'!$B$19:$N$41,3,0)/'4. Billing Determinants'!$D$41*$D29))))) -> 0 | O29: =IF(O$4="",0,IF($E29="kWh",VLOOKUP(O$4,'4. Billing Determinants'!$B$19:$N$41,4,0)/'4. Billing Determinants'!$E$41*$D29,IF($E29="kW",VLOOKUP(O$4,'4. Billing Determinants'!$B$19:$N$41,5,0)/'4. Billing Determinants'!$F$41*$D29,IF($E29="Non-RPP kWh",VLOOKUP(O$4,'4. Billing Determinants'!$B$19:$N$41,6,0)/'4. Billing Determinants'!$G$41*$D29,IF($E29="Distribution Rev.",VLOOKUP(O$4,'4. Billing Determinants'!$B$19:$N$41,8,0)/'4. Billing Determinants'!$I$41*$D29, VLOOKUP(O$4,'4. Billing Determinants'!$B$19:$N$41,3,0)/'4. Billing Determinants'!$D$41*$D29))))) -> 0 | P29: =IF(P$4="",0,IF($E29="kWh",VLOOKUP(P$4,'4. Billing Determinants'!$B$19:$N$41,4,0)/'4. Billing Determinants'!$E$41*$D29,IF($E29="kW",VLOOKUP(P$4,'4. Billing Determinants'!$B$19:$N$41,5,0)/'4. Billing Determinants'!$F$41*$D29,IF($E29="Non-RPP kWh",VLOOKUP(P$4,'4. Billing Determinants'!$B$19:$N$41,6,0)/'4. Billing Determinants'!$G$41*$D29,IF($E29="Distribution Rev.",VLOOKUP(P$4,'4. Billing Determinants'!$B$19:$N$41,8,0)/'4. Billing Determinants'!$I$41*$D29, VLOOKUP(P$4,'4. Billing Determinants'!$B$19:$N$41,3,0)/'4. Billing Determinants'!$D$41*$D29))))) -> 0 | Q29: =IF(Q$4="",0,IF($E29="kWh",VLOOKUP(Q$4,'4. Billing Determinants'!$B$19:$N$41,4,0)/'4. Billing Determinants'!$E$41*$D29,IF($E29="kW",VLOOKUP(Q$4,'4. Billing Determinants'!$B$19:$N$41,5,0)/'4. Billing Determinants'!$F$41*$D29,IF($E29="Non-RPP kWh",VLOOKUP(Q$4,'4. Billing Determinants'!$B$19:$N$41,6,0)/'4. Billing Determinants'!$G$41*$D29,IF($E29="Distribution Rev.",VLOOKUP(Q$4,'4. Billing Determinants'!$B$19:$N$41,8,0)/'4. Billing Determinants'!$I$41*$D29, VLOOKUP(Q$4,'4. Billing Determinants'!$B$19:$N$41,3,0)/'4. Billing Determinants'!$D$41*$D29))))) -> 0 | R29: =IF(R$4="",0,IF($E29="kWh",VLOOKUP(R$4,'4. Billing Determinants'!$B$19:$N$41,4,0)/'4. Billing Determinants'!$E$41*$D29,IF($E29="kW",VLOOKUP(R$4,'4. Billing Determinants'!$B$19:$N$41,5,0)/'4. Billing Determinants'!$F$41*$D29,IF($E29="Non-RPP kWh",VLOOKUP(R$4,'4. Billing Determinants'!$B$19:$N$41,6,0)/'4. Billing Determinants'!$G$41*$D29,IF($E29="Distribution Rev.",VLOOKUP(R$4,'4. Billing Determinants'!$B$19:$N$41,8,0)/'4. Billing Determinants'!$I$41*$D29, VLOOKUP(R$4,'4. Billing Determinants'!$B$19:$N$41,3,0)/'4. Billing Determinants'!$D$41*$D29))))) -> 0 | S29: =IF(S$4="",0,IF($E29="kWh",VLOOKUP(S$4,'4. Billing Determinants'!$B$19:$N$41,4,0)/'4. Billing Determinants'!$E$41*$D29,IF($E29="kW",VLOOKUP(S$4,'4. Billing Determinants'!$B$19:$N$41,5,0)/'4. Billing Determinants'!$F$41*$D29,IF($E29="Non-RPP kWh",VLOOKUP(S$4,'4. Billing Determinants'!$B$19:$N$41,6,0)/'4. Billing Determinants'!$G$41*$D29,IF($E29="Distribution Rev.",VLOOKUP(S$4,'4. Billing Determinants'!$B$19:$N$41,8,0)/'4. Billing Determinants'!$I$41*$D29, VLOOKUP(S$4,'4. Billing Determinants'!$B$19:$N$41,3,0)/'4. Billing Determinants'!$D$41*$D29))))) -> 0 | T29: =IF(T$4="",0,IF($E29="kWh",VLOOKUP(T$4,'4. Billing Determinants'!$B$19:$N$41,4,0)/'4. Billing Determinants'!$E$41*$D29,IF($E29="kW",VLOOKUP(T$4,'4. Billing Determinants'!$B$19:$N$41,5,0)/'4. Billing Determinants'!$F$41*$D29,IF($E29="Non-RPP kWh",VLOOKUP(T$4,'4. Billing Determinants'!$B$19:$N$41,6,0)/'4. Billing Determinants'!$G$41*$D29,IF($E29="Distribution Rev.",VLOOKUP(T$4,'4. Billing Determinants'!$B$19:$N$41,8,0)/'4. Billing Determinants'!$I$41*$D29, VLOOKUP(T$4,'4. Billing Determinants'!$B$19:$N$41,3,0)/'4. Billing Determinants'!$D$41*$D29))))) -> 0 | U29: =IF(U$4="",0,IF($E29="kWh",VLOOKUP(U$4,'4. Billing Determinants'!$B$19:$N$41,4,0)/'4. Billing Determinants'!$E$41*$D29,IF($E29="kW",VLOOKUP(U$4,'4. Billing Determinants'!$B$19:$N$41,5,0)/'4. Billing Determinants'!$F$41*$D29,IF($E29="Non-RPP kWh",VLOOKUP(U$4,'4. Billing Determinants'!$B$19:$N$41,6,0)/'4. Billing Determinants'!$G$41*$D29,IF($E29="Distribution Rev.",VLOOKUP(U$4,'4. Billing Determinants'!$B$19:$N$41,8,0)/'4. Billing Determinants'!$I$41*$D29, VLOOKUP(U$4,'4. Billing Determinants'!$B$19:$N$41,3,0)/'4. Billing Determinants'!$D$41*$D29))))) -> 0 | V29: =IF(V$4="",0,IF($E29="kWh",VLOOKUP(V$4,'4. Billing Determinants'!$B$19:$N$41,4,0)/'4. Billing Determinants'!$E$41*$D29,IF($E29="kW",VLOOKUP(V$4,'4. Billing Determinants'!$B$19:$N$41,5,0)/'4. Billing Determinants'!$F$41*$D29,IF($E29="Non-RPP kWh",VLOOKUP(V$4,'4. Billing Determinants'!$B$19:$N$41,6,0)/'4. Billing Determinants'!$G$41*$D29,IF($E29="Distribution Rev.",VLOOKUP(V$4,'4. Billing Determinants'!$B$19:$N$41,8,0)/'4. Billing Determinants'!$I$41*$D29, VLOOKUP(V$4,'4. Billing Determinants'!$B$19:$N$41,3,0)/'4. Billing Determinants'!$D$41*$D29))))) -> 0 | W29: =IF(W$4="",0,IF($E29="kWh",VLOOKUP(W$4,'4. Billing Determinants'!$B$19:$N$41,4,0)/'4. Billing Determinants'!$E$41*$D29,IF($E29="kW",VLOOKUP(W$4,'4. Billing Determinants'!$B$19:$N$41,5,0)/'4. Billing Determinants'!$F$41*$D29,IF($E29="Non-RPP kWh",VLOOKUP(W$4,'4. Billing Determinants'!$B$19:$N$41,6,0)/'4. Billing Determinants'!$G$41*$D29,IF($E29="Distribution Rev.",VLOOKUP(W$4,'4. Billing Determinants'!$B$19:$N$41,8,0)/'4. Billing Determinants'!$I$41*$D29, VLOOKUP(W$4,'4. Billing Determinants'!$B$19:$N$41,3,0)/'4. Billing Determinants'!$D$41*$D29))))) -> 0 | X29: =IF(X$4="",0,IF($E29="kWh",VLOOKUP(X$4,'4. Billing Determinants'!$B$19:$N$41,4,0)/'4. Billing Determinants'!$E$41*$D29,IF($E29="kW",VLOOKUP(X$4,'4. Billing Determinants'!$B$19:$N$41,5,0)/'4. Billing Determinants'!$F$41*$D29,IF($E29="Non-RPP kWh",VLOOKUP(X$4,'4. Billing Determinants'!$B$19:$N$41,6,0)/'4. Billing Determinants'!$G$41*$D29,IF($E29="Distribution Rev.",VLOOKUP(X$4,'4. Billing Determinants'!$B$19:$N$41,8,0)/'4. Billing Determinants'!$I$41*$D29, VLOOKUP(X$4,'4. Billing Determinants'!$B$19:$N$41,3,0)/'4. Billing Determinants'!$D$41*$D29))))) -> 0 | Y29: =IF(Y$4="",0,IF($E29="kWh",VLOOKUP(Y$4,'4. Billing Determinants'!$B$19:$N$41,4,0)/'4. Billing Determinants'!$E$41*$D29,IF($E29="kW",VLOOKUP(Y$4,'4. Billing Determinants'!$B$19:$N$41,5,0)/'4. Billing Determinants'!$F$41*$D29,IF($E29="Non-RPP kWh",VLOOKUP(Y$4,'4. Billing Determinants'!$B$19:$N$41,6,0)/'4. Billing Determinants'!$G$41*$D29,IF($E29="Distribution Rev.",VLOOKUP(Y$4,'4. Billing Determinants'!$B$19:$N$41,8,0)/'4. Billing Determinants'!$I$41*$D29, VLOOKUP(Y$4,'4. Billing Determinants'!$B$19:$N$41,3,0)/'4. Billing Determinants'!$D$41*$D29))))) -> 0
B30: Smart Grid OM&A Deferral Account | C30: 1535 | D30: 20233.53 | F30: 17805.79103 | G30: 1688.355641 | H30: 203.7670601 | I30: 191.9076016 | J30: 0.2156265186 | K30: 343.2774176 | L30: 0.2156265186 | M30: =IF(M$4="",0,IF($E30="kWh",VLOOKUP(M$4,'4. Billing Determinants'!$B$19:$N$41,4,0)/'4. Billing Determinants'!$E$41*$D30,IF($E30="kW",VLOOKUP(M$4,'4. Billing Determinants'!$B$19:$N$41,5,0)/'4. Billing Determinants'!$F$41*$D30,IF($E30="Non-RPP kWh",VLOOKUP(M$4,'4. Billing Determinants'!$B$19:$N$41,6,0)/'4. Billing Determinants'!$G$41*$D30,IF($E30="Distribution Rev.",VLOOKUP(M$4,'4. Billing Determinants'!$B$19:$N$41,8,0)/'4. Billing Determinants'!$I$41*$D30, VLOOKUP(M$4,'4. Billing Determinants'!$B$19:$N$41,3,0)/'4. Billing Determinants'!$D$41*$D30))))) -> 0 | N30: =IF(N$4="",0,IF($E30="kWh",VLOOKUP(N$4,'4. Billing Determinants'!$B$19:$N$41,4,0)/'4. Billing Determinants'!$E$41*$D30,IF($E30="kW",VLOOKUP(N$4,'4. Billing Determinants'!$B$19:$N$41,5,0)/'4. Billing Determinants'!$F$41*$D30,IF($E30="Non-RPP kWh",VLOOKUP(N$4,'4. Billing Determinants'!$B$19:$N$41,6,0)/'4. Billing Determinants'!$G$41*$D30,IF($E30="Distribution Rev.",VLOOKUP(N$4,'4. Billing Determinants'!$B$19:$N$41,8,0)/'4. Billing Determinants'!$I$41*$D30, VLOOKUP(N$4,'4. Billing Determinants'!$B$19:$N$41,3,0)/'4. Billing Determinants'!$D$41*$D30))))) -> 0 | O30: =IF(O$4="",0,IF($E30="kWh",VLOOKUP(O$4,'4. Billing Determinants'!$B$19:$N$41,4,0)/'4. Billing Determinants'!$E$41*$D30,IF($E30="kW",VLOOKUP(O$4,'4. Billing Determinants'!$B$19:$N$41,5,0)/'4. Billing Determinants'!$F$41*$D30,IF($E30="Non-RPP kWh",VLOOKUP(O$4,'4. Billing Determinants'!$B$19:$N$41,6,0)/'4. Billing Determinants'!$G$41*$D30,IF($E30="Distribution Rev.",VLOOKUP(O$4,'4. Billing Determinants'!$B$19:$N$41,8,0)/'4. Billing Determinants'!$I$41*$D30, VLOOKUP(O$4,'4. Billing Determinants'!$B$19:$N$41,3,0)/'4. Billing Determinants'!$D$41*$D30))))) -> 0 | P30: =IF(P$4="",0,IF($E30="kWh",VLOOKUP(P$4,'4. Billing Determinants'!$B$19:$N$41,4,0)/'4. Billing Determinants'!$E$41*$D30,IF($E30="kW",VLOOKUP(P$4,'4. Billing Determinants'!$B$19:$N$41,5,0)/'4. Billing Determinants'!$F$41*$D30,IF($E30="Non-RPP kWh",VLOOKUP(P$4,'4. Billing Determinants'!$B$19:$N$41,6,0)/'4. Billing Determinants'!$G$41*$D30,IF($E30="Distribution Rev.",VLOOKUP(P$4,'4. Billing Determinants'!$B$19:$N$41,8,0)/'4. Billing Determinants'!$I$41*$D30, VLOOKUP(P$4,'4. Billing Determinants'!$B$19:$N$41,3,0)/'4. Billing Determinants'!$D$41*$D30))))) -> 0 | Q30: =IF(Q$4="",0,IF($E30="kWh",VLOOKUP(Q$4,'4. Billing Determinants'!$B$19:$N$41,4,0)/'4. Billing Determinants'!$E$41*$D30,IF($E30="kW",VLOOKUP(Q$4,'4. Billing Determinants'!$B$19:$N$41,5,0)/'4. Billing Determinants'!$F$41*$D30,IF($E30="Non-RPP kWh",VLOOKUP(Q$4,'4. Billing Determinants'!$B$19:$N$41,6,0)/'4. Billing Determinants'!$G$41*$D30,IF($E30="Distribution Rev.",VLOOKUP(Q$4,'4. Billing Determinants'!$B$19:$N$41,8,0)/'4. Billing Determinants'!$I$41*$D30, VLOOKUP(Q$4,'4. Billing Determinants'!$B$19:$N$41,3,0)/'4. Billing Determinants'!$D$41*$D30))))) -> 0 | R30: =IF(R$4="",0,IF($E30="kWh",VLOOKUP(R$4,'4. Billing Determinants'!$B$19:$N$41,4,0)/'4. Billing Determinants'!$E$41*$D30,IF($E30="kW",VLOOKUP(R$4,'4. Billing Determinants'!$B$19:$N$41,5,0)/'4. Billing Determinants'!$F$41*$D30,IF($E30="Non-RPP kWh",VLOOKUP(R$4,'4. Billing Determinants'!$B$19:$N$41,6,0)/'4. Billing Determinants'!$G$41*$D30,IF($E30="Distribution Rev.",VLOOKUP(R$4,'4. Billing Determinants'!$B$19:$N$41,8,0)/'4. Billing Determinants'!$I$41*$D30, VLOOKUP(R$4,'4. Billing Determinants'!$B$19:$N$41,3,0)/'4. Billing Determinants'!$D$41*$D30))))) -> 0 | S30: =IF(S$4="",0,IF($E30="kWh",VLOOKUP(S$4,'4. Billing Determinants'!$B$19:$N$41,4,0)/'4. Billing Determinants'!$E$41*$D30,IF($E30="kW",VLOOKUP(S$4,'4. Billing Determinants'!$B$19:$N$41,5,0)/'4. Billing Determinants'!$F$41*$D30,IF($E30="Non-RPP kWh",VLOOKUP(S$4,'4. Billing Determinants'!$B$19:$N$41,6,0)/'4. Billing Determinants'!$G$41*$D30,IF($E30="Distribution Rev.",VLOOKUP(S$4,'4. Billing Determinants'!$B$19:$N$41,8,0)/'4. Billing Determinants'!$I$41*$D30, VLOOKUP(S$4,'4. Billing Determinants'!$B$19:$N$41,3,0)/'4. Billing Determinants'!$D$41*$D30))))) -> 0 | T30: =IF(T$4="",0,IF($E30="kWh",VLOOKUP(T$4,'4. Billing Determinants'!$B$19:$N$41,4,0)/'4. Billing Determinants'!$E$41*$D30,IF($E30="kW",VLOOKUP(T$4,'4. Billing Determinants'!$B$19:$N$41,5,0)/'4. Billing Determinants'!$F$41*$D30,IF($E30="Non-RPP kWh",VLOOKUP(T$4,'4. Billing Determinants'!$B$19:$N$41,6,0)/'4. Billing Determinants'!$G$41*$D30,IF($E30="Distribution Rev.",VLOOKUP(T$4,'4. Billing Determinants'!$B$19:$N$41,8,0)/'4. Billing Determinants'!$I$41*$D30, VLOOKUP(T$4,'4. Billing Determinants'!$B$19:$N$41,3,0)/'4. Billing Determinants'!$D$41*$D30))))) -> 0 | U30: =IF(U$4="",0,IF($E30="kWh",VLOOKUP(U$4,'4. Billing Determinants'!$B$19:$N$41,4,0)/'4. Billing Determinants'!$E$41*$D30,IF($E30="kW",VLOOKUP(U$4,'4. Billing Determinants'!$B$19:$N$41,5,0)/'4. Billing Determinants'!$F$41*$D30,IF($E30="Non-RPP kWh",VLOOKUP(U$4,'4. Billing Determinants'!$B$19:$N$41,6,0)/'4. Billing Determinants'!$G$41*$D30,IF($E30="Distribution Rev.",VLOOKUP(U$4,'4. Billing Determinants'!$B$19:$N$41,8,0)/'4. Billing Determinants'!$I$41*$D30, VLOOKUP(U$4,'4. Billing Determinants'!$B$19:$N$41,3,0)/'4. Billing Determinants'!$D$41*$D30))))) -> 0 | V30: =IF(V$4="",0,IF($E30="kWh",VLOOKUP(V$4,'4. Billing Determinants'!$B$19:$N$41,4,0)/'4. Billing Determinants'!$E$41*$D30,IF($E30="kW",VLOOKUP(V$4,'4. Billing Determinants'!$B$19:$N$41,5,0)/'4. Billing Determinants'!$F$41*$D30,IF($E30="Non-RPP kWh",VLOOKUP(V$4,'4. Billing Determinants'!$B$19:$N$41,6,0)/'4. Billing Determinants'!$G$41*$D30,IF($E30="Distribution Rev.",VLOOKUP(V$4,'4. Billing Determinants'!$B$19:$N$41,8,0)/'4. Billing Determinants'!$I$41*$D30, VLOOKUP(V$4,'4. Billing Determinants'!$B$19:$N$41,3,0)/'4. Billing Determinants'!$D$41*$D30))))) -> 0 | W30: =IF(W$4="",0,IF($E30="kWh",VLOOKUP(W$4,'4. Billing Determinants'!$B$19:$N$41,4,0)/'4. Billing Determinants'!$E$41*$D30,IF($E30="kW",VLOOKUP(W$4,'4. Billing Determinants'!$B$19:$N$41,5,0)/'4. Billing Determinants'!$F$41*$D30,IF($E30="Non-RPP kWh",VLOOKUP(W$4,'4. Billing Determinants'!$B$19:$N$41,6,0)/'4. Billing Determinants'!$G$41*$D30,IF($E30="Distribution Rev.",VLOOKUP(W$4,'4. Billing Determinants'!$B$19:$N$41,8,0)/'4. Billing Determinants'!$I$41*$D30, VLOOKUP(W$4,'4. Billing Determinants'!$B$19:$N$41,3,0)/'4. Billing Determinants'!$D$41*$D30))))) -> 0 | X30: =IF(X$4="",0,IF($E30="kWh",VLOOKUP(X$4,'4. Billing Determinants'!$B$19:$N$41,4,0)/'4. Billing Determinants'!$E$41*$D30,IF($E30="kW",VLOOKUP(X$4,'4. Billing Determinants'!$B$19:$N$41,5,0)/'4. Billing Determinants'!$F$41*$D30,IF($E30="Non-RPP kWh",VLOOKUP(X$4,'4. Billing Determinants'!$B$19:$N$41,6,0)/'4. Billing Determinants'!$G$41*$D30,IF($E30="Distribution Rev.",VLOOKUP(X$4,'4. Billing Determinants'!$B$19:$N$41,8,0)/'4. Billing Determinants'!$I$41*$D30, VLOOKUP(X$4,'4. Billing Determinants'!$B$19:$N$41,3,0)/'4. Billing Determinants'!$D$41*$D30))))) -> 0 | Y30: =IF(Y$4="",0,IF($E30="kWh",VLOOKUP(Y$4,'4. Billing Determinants'!$B$19:$N$41,4,0)/'4. Billing Determinants'!$E$41*$D30,IF($E30="kW",VLOOKUP(Y$4,'4. Billing Determinants'!$B$19:$N$41,5,0)/'4. Billing Determinants'!$F$41*$D30,IF($E30="Non-RPP kWh",VLOOKUP(Y$4,'4. Billing Determinants'!$B$19:$N$41,6,0)/'4. Billing Determinants'!$G$41*$D30,IF($E30="Distribution Rev.",VLOOKUP(Y$4,'4. Billing Determinants'!$B$19:$N$41,8,0)/'4. Billing Determinants'!$I$41*$D30, VLOOKUP(Y$4,'4. Billing Determinants'!$B$19:$N$41,3,0)/'4. Billing Determinants'!$D$41*$D30))))) -> 0
B31: Smart Grid Funding Adder Deferral Account | C31: 1536 | D31: 0 | F31: 0 | G31: 0 | H31: 0 | I31: 0 | J31: 0 | K31: 0 | L31: 0 | M31: =IF(M$4="",0,IF($E31="kWh",VLOOKUP(M$4,'4. Billing Determinants'!$B$19:$N$41,4,0)/'4. Billing Determinants'!$E$41*$D31,IF($E31="kW",VLOOKUP(M$4,'4. Billing Determinants'!$B$19:$N$41,5,0)/'4. Billing Determinants'!$F$41*$D31,IF($E31="Non-RPP kWh",VLOOKUP(M$4,'4. Billing Determinants'!$B$19:$N$41,6,0)/'4. Billing Determinants'!$G$41*$D31,IF($E31="Distribution Rev.",VLOOKUP(M$4,'4. Billing Determinants'!$B$19:$N$41,8,0)/'4. Billing Determinants'!$I$41*$D31, VLOOKUP(M$4,'4. Billing Determinants'!$B$19:$N$41,3,0)/'4. Billing Determinants'!$D$41*$D31))))) -> 0 | N31: =IF(N$4="",0,IF($E31="kWh",VLOOKUP(N$4,'4. Billing Determinants'!$B$19:$N$41,4,0)/'4. Billing Determinants'!$E$41*$D31,IF($E31="kW",VLOOKUP(N$4,'4. Billing Determinants'!$B$19:$N$41,5,0)/'4. Billing Determinants'!$F$41*$D31,IF($E31="Non-RPP kWh",VLOOKUP(N$4,'4. Billing Determinants'!$B$19:$N$41,6,0)/'4. Billing Determinants'!$G$41*$D31,IF($E31="Distribution Rev.",VLOOKUP(N$4,'4. Billing Determinants'!$B$19:$N$41,8,0)/'4. Billing Determinants'!$I$41*$D31, VLOOKUP(N$4,'4. Billing Determinants'!$B$19:$N$41,3,0)/'4. Billing Determinants'!$D$41*$D31))))) -> 0 | O31: =IF(O$4="",0,IF($E31="kWh",VLOOKUP(O$4,'4. Billing Determinants'!$B$19:$N$41,4,0)/'4. Billing Determinants'!$E$41*$D31,IF($E31="kW",VLOOKUP(O$4,'4. Billing Determinants'!$B$19:$N$41,5,0)/'4. Billing Determinants'!$F$41*$D31,IF($E31="Non-RPP kWh",VLOOKUP(O$4,'4. Billing Determinants'!$B$19:$N$41,6,0)/'4. Billing Determinants'!$G$41*$D31,IF($E31="Distribution Rev.",VLOOKUP(O$4,'4. Billing Determinants'!$B$19:$N$41,8,0)/'4. Billing Determinants'!$I$41*$D31, VLOOKUP(O$4,'4. Billing Determinants'!$B$19:$N$41,3,0)/'4. Billing Determinants'!$D$41*$D31))))) -> 0 | P31: =IF(P$4="",0,IF($E31="kWh",VLOOKUP(P$4,'4. Billing Determinants'!$B$19:$N$41,4,0)/'4. Billing Determinants'!$E$41*$D31,IF($E31="kW",VLOOKUP(P$4,'4. Billing Determinants'!$B$19:$N$41,5,0)/'4. Billing Determinants'!$F$41*$D31,IF($E31="Non-RPP kWh",VLOOKUP(P$4,'4. Billing Determinants'!$B$19:$N$41,6,0)/'4. Billing Determinants'!$G$41*$D31,IF($E31="Distribution Rev.",VLOOKUP(P$4,'4. Billing Determinants'!$B$19:$N$41,8,0)/'4. Billing Determinants'!$I$41*$D31, VLOOKUP(P$4,'4. Billing Determinants'!$B$19:$N$41,3,0)/'4. Billing Determinants'!$D$41*$D31))))) -> 0 | Q31: =IF(Q$4="",0,IF($E31="kWh",VLOOKUP(Q$4,'4. Billing Determinants'!$B$19:$N$41,4,0)/'4. Billing Determinants'!$E$41*$D31,IF($E31="kW",VLOOKUP(Q$4,'4. Billing Determinants'!$B$19:$N$41,5,0)/'4. Billing Determinants'!$F$41*$D31,IF($E31="Non-RPP kWh",VLOOKUP(Q$4,'4. Billing Determinants'!$B$19:$N$41,6,0)/'4. Billing Determinants'!$G$41*$D31,IF($E31="Distribution Rev.",VLOOKUP(Q$4,'4. Billing Determinants'!$B$19:$N$41,8,0)/'4. Billing Determinants'!$I$41*$D31, VLOOKUP(Q$4,'4. Billing Determinants'!$B$19:$N$41,3,0)/'4. Billing Determinants'!$D$41*$D31))))) -> 0 | R31: =IF(R$4="",0,IF($E31="kWh",VLOOKUP(R$4,'4. Billing Determinants'!$B$19:$N$41,4,0)/'4. Billing Determinants'!$E$41*$D31,IF($E31="kW",VLOOKUP(R$4,'4. Billing Determinants'!$B$19:$N$41,5,0)/'4. Billing Determinants'!$F$41*$D31,IF($E31="Non-RPP kWh",VLOOKUP(R$4,'4. Billing Determinants'!$B$19:$N$41,6,0)/'4. Billing Determinants'!$G$41*$D31,IF($E31="Distribution Rev.",VLOOKUP(R$4,'4. Billing Determinants'!$B$19:$N$41,8,0)/'4. Billing Determinants'!$I$41*$D31, VLOOKUP(R$4,'4. Billing Determinants'!$B$19:$N$41,3,0)/'4. Billing Determinants'!$D$41*$D31))))) -> 0 | S31: =IF(S$4="",0,IF($E31="kWh",VLOOKUP(S$4,'4. Billing Determinants'!$B$19:$N$41,4,0)/'4. Billing Determinants'!$E$41*$D31,IF($E31="kW",VLOOKUP(S$4,'4. Billing Determinants'!$B$19:$N$41,5,0)/'4. Billing Determinants'!$F$41*$D31,IF($E31="Non-RPP kWh",VLOOKUP(S$4,'4. Billing Determinants'!$B$19:$N$41,6,0)/'4. Billing Determinants'!$G$41*$D31,IF($E31="Distribution Rev.",VLOOKUP(S$4,'4. Billing Determinants'!$B$19:$N$41,8,0)/'4. Billing Determinants'!$I$41*$D31, VLOOKUP(S$4,'4. Billing Determinants'!$B$19:$N$41,3,0)/'4. Billing Determinants'!$D$41*$D31))))) -> 0 | T31: =IF(T$4="",0,IF($E31="kWh",VLOOKUP(T$4,'4. Billing Determinants'!$B$19:$N$41,4,0)/'4. Billing Determinants'!$E$41*$D31,IF($E31="kW",VLOOKUP(T$4,'4. Billing Determinants'!$B$19:$N$41,5,0)/'4. Billing Determinants'!$F$41*$D31,IF($E31="Non-RPP kWh",VLOOKUP(T$4,'4. Billing Determinants'!$B$19:$N$41,6,0)/'4. Billing Determinants'!$G$41*$D31,IF($E31="Distribution Rev.",VLOOKUP(T$4,'4. Billing Determinants'!$B$19:$N$41,8,0)/'4. Billing Determinants'!$I$41*$D31, VLOOKUP(T$4,'4. Billing Determinants'!$B$19:$N$41,3,0)/'4. Billing Determinants'!$D$41*$D31))))) -> 0 | U31: =IF(U$4="",0,IF($E31="kWh",VLOOKUP(U$4,'4. Billing Determinants'!$B$19:$N$41,4,0)/'4. Billing Determinants'!$E$41*$D31,IF($E31="kW",VLOOKUP(U$4,'4. Billing Determinants'!$B$19:$N$41,5,0)/'4. Billing Determinants'!$F$41*$D31,IF($E31="Non-RPP kWh",VLOOKUP(U$4,'4. Billing Determinants'!$B$19:$N$41,6,0)/'4. Billing Determinants'!$G$41*$D31,IF($E31="Distribution Rev.",VLOOKUP(U$4,'4. Billing Determinants'!$B$19:$N$41,8,0)/'4. Billing Determinants'!$I$41*$D31, VLOOKUP(U$4,'4. Billing Determinants'!$B$19:$N$41,3,0)/'4. Billing Determinants'!$D$41*$D31))))) -> 0 | V31: =IF(V$4="",0,IF($E31="kWh",VLOOKUP(V$4,'4. Billing Determinants'!$B$19:$N$41,4,0)/'4. Billing Determinants'!$E$41*$D31,IF($E31="kW",VLOOKUP(V$4,'4. Billing Determinants'!$B$19:$N$41,5,0)/'4. Billing Determinants'!$F$41*$D31,IF($E31="Non-RPP kWh",VLOOKUP(V$4,'4. Billing Determinants'!$B$19:$N$41,6,0)/'4. Billing Determinants'!$G$41*$D31,IF($E31="Distribution Rev.",VLOOKUP(V$4,'4. Billing Determinants'!$B$19:$N$41,8,0)/'4. Billing Determinants'!$I$41*$D31, VLOOKUP(V$4,'4. Billing Determinants'!$B$19:$N$41,3,0)/'4. Billing Determinants'!$D$41*$D31))))) -> 0 | W31: =IF(W$4="",0,IF($E31="kWh",VLOOKUP(W$4,'4. Billing Determinants'!$B$19:$N$41,4,0)/'4. Billing Determinants'!$E$41*$D31,IF($E31="kW",VLOOKUP(W$4,'4. Billing Determinants'!$B$19:$N$41,5,0)/'4. Billing Determinants'!$F$41*$D31,IF($E31="Non-RPP kWh",VLOOKUP(W$4,'4. Billing Determinants'!$B$19:$N$41,6,0)/'4. Billing Determinants'!$G$41*$D31,IF($E31="Distribution Rev.",VLOOKUP(W$4,'4. Billing Determinants'!$B$19:$N$41,8,0)/'4. Billing Determinants'!$I$41*$D31, VLOOKUP(W$4,'4. Billing Determinants'!$B$19:$N$41,3,0)/'4. Billing Determinants'!$D$41*$D31))))) -> 0 | X31: =IF(X$4="",0,IF($E31="kWh",VLOOKUP(X$4,'4. Billing Determinants'!$B$19:$N$41,4,0)/'4. Billing Determinants'!$E$41*$D31,IF($E31="kW",VLOOKUP(X$4,'4. Billing Determinants'!$B$19:$N$41,5,0)/'4. Billing Determinants'!$F$41*$D31,IF($E31="Non-RPP kWh",VLOOKUP(X$4,'4. Billing Determinants'!$B$19:$N$41,6,0)/'4. Billing Determinants'!$G$41*$D31,IF($E31="Distribution Rev.",VLOOKUP(X$4,'4. Billing Determinants'!$B$19:$N$41,8,0)/'4. Billing Determinants'!$I$41*$D31, VLOOKUP(X$4,'4. Billing Determinants'!$B$19:$N$41,3,0)/'4. Billing Determinants'!$D$41*$D31))))) -> 0 | Y31: =IF(Y$4="",0,IF($E31="kWh",VLOOKUP(Y$4,'4. Billing Determinants'!$B$19:$N$41,4,0)/'4. Billing Determinants'!$E$41*$D31,IF($E31="kW",VLOOKUP(Y$4,'4. Billing Determinants'!$B$19:$N$41,5,0)/'4. Billing Determinants'!$F$41*$D31,IF($E31="Non-RPP kWh",VLOOKUP(Y$4,'4. Billing Determinants'!$B$19:$N$41,6,0)/'4. Billing Determinants'!$G$41*$D31,IF($E31="Distribution Rev.",VLOOKUP(Y$4,'4. Billing Determinants'!$B$19:$N$41,8,0)/'4. Billing Determinants'!$I$41*$D31, VLOOKUP(Y$4,'4. Billing Determinants'!$B$19:$N$41,3,0)/'4. Billing Determinants'!$D$41*$D31))))) -> 0
B32: Retail Cost Variance Account - STR | C32: 1548 | D32: 40051.75491 | F32: 35246.10773 | G32: 3342.05679 | H32: 403.3516816 | I32: 379.8761869 | J32: 0.4268271763 | K32: 679.5088646 | L32: 0.4268271763 | M32: =IF(M$4="",0,IF($E32="kWh",VLOOKUP(M$4,'4. Billing Determinants'!$B$19:$N$41,4,0)/'4. Billing Determinants'!$E$41*$D32,IF($E32="kW",VLOOKUP(M$4,'4. Billing Determinants'!$B$19:$N$41,5,0)/'4. Billing Determinants'!$F$41*$D32,IF($E32="Non-RPP kWh",VLOOKUP(M$4,'4. Billing Determinants'!$B$19:$N$41,6,0)/'4. Billing Determinants'!$G$41*$D32,IF($E32="Distribution Rev.",VLOOKUP(M$4,'4. Billing Determinants'!$B$19:$N$41,8,0)/'4. Billing Determinants'!$I$41*$D32, VLOOKUP(M$4,'4. Billing Determinants'!$B$19:$N$41,3,0)/'4. Billing Determinants'!$D$41*$D32))))) -> 0 | N32: =IF(N$4="",0,IF($E32="kWh",VLOOKUP(N$4,'4. Billing Determinants'!$B$19:$N$41,4,0)/'4. Billing Determinants'!$E$41*$D32,IF($E32="kW",VLOOKUP(N$4,'4. Billing Determinants'!$B$19:$N$41,5,0)/'4. Billing Determinants'!$F$41*$D32,IF($E32="Non-RPP kWh",VLOOKUP(N$4,'4. Billing Determinants'!$B$19:$N$41,6,0)/'4. Billing Determinants'!$G$41*$D32,IF($E32="Distribution Rev.",VLOOKUP(N$4,'4. Billing Determinants'!$B$19:$N$41,8,0)/'4. Billing Determinants'!$I$41*$D32, VLOOKUP(N$4,'4. Billing Determinants'!$B$19:$N$41,3,0)/'4. Billing Determinants'!$D$41*$D32))))) -> 0 | O32: =IF(O$4="",0,IF($E32="kWh",VLOOKUP(O$4,'4. Billing Determinants'!$B$19:$N$41,4,0)/'4. Billing Determinants'!$E$41*$D32,IF($E32="kW",VLOOKUP(O$4,'4. Billing Determinants'!$B$19:$N$41,5,0)/'4. Billing Determinants'!$F$41*$D32,IF($E32="Non-RPP kWh",VLOOKUP(O$4,'4. Billing Determinants'!$B$19:$N$41,6,0)/'4. Billing Determinants'!$G$41*$D32,IF($E32="Distribution Rev.",VLOOKUP(O$4,'4. Billing Determinants'!$B$19:$N$41,8,0)/'4. Billing Determinants'!$I$41*$D32, VLOOKUP(O$4,'4. Billing Determinants'!$B$19:$N$41,3,0)/'4. Billing Determinants'!$D$41*$D32))))) -> 0 | P32: =IF(P$4="",0,IF($E32="kWh",VLOOKUP(P$4,'4. Billing Determinants'!$B$19:$N$41,4,0)/'4. Billing Determinants'!$E$41*$D32,IF($E32="kW",VLOOKUP(P$4,'4. Billing Determinants'!$B$19:$N$41,5,0)/'4. Billing Determinants'!$F$41*$D32,IF($E32="Non-RPP kWh",VLOOKUP(P$4,'4. Billing Determinants'!$B$19:$N$41,6,0)/'4. Billing Determinants'!$G$41*$D32,IF($E32="Distribution Rev.",VLOOKUP(P$4,'4. Billing Determinants'!$B$19:$N$41,8,0)/'4. Billing Determinants'!$I$41*$D32, VLOOKUP(P$4,'4. Billing Determinants'!$B$19:$N$41,3,0)/'4. Billing Determinants'!$D$41*$D32))))) -> 0 | Q32: =IF(Q$4="",0,IF($E32="kWh",VLOOKUP(Q$4,'4. Billing Determinants'!$B$19:$N$41,4,0)/'4. Billing Determinants'!$E$41*$D32,IF($E32="kW",VLOOKUP(Q$4,'4. Billing Determinants'!$B$19:$N$41,5,0)/'4. Billing Determinants'!$F$41*$D32,IF($E32="Non-RPP kWh",VLOOKUP(Q$4,'4. Billing Determinants'!$B$19:$N$41,6,0)/'4. Billing Determinants'!$G$41*$D32,IF($E32="Distribution Rev.",VLOOKUP(Q$4,'4. Billing Determinants'!$B$19:$N$41,8,0)/'4. Billing Determinants'!$I$41*$D32, VLOOKUP(Q$4,'4. Billing Determinants'!$B$19:$N$41,3,0)/'4. Billing Determinants'!$D$41*$D32))))) -> 0 | R32: =IF(R$4="",0,IF($E32="kWh",VLOOKUP(R$4,'4. Billing Determinants'!$B$19:$N$41,4,0)/'4. Billing Determinants'!$E$41*$D32,IF($E32="kW",VLOOKUP(R$4,'4. Billing Determinants'!$B$19:$N$41,5,0)/'4. Billing Determinants'!$F$41*$D32,IF($E32="Non-RPP kWh",VLOOKUP(R$4,'4. Billing Determinants'!$B$19:$N$41,6,0)/'4. Billing Determinants'!$G$41*$D32,IF($E32="Distribution Rev.",VLOOKUP(R$4,'4. Billing Determinants'!$B$19:$N$41,8,0)/'4. Billing Determinants'!$I$41*$D32, VLOOKUP(R$4,'4. Billing Determinants'!$B$19:$N$41,3,0)/'4. Billing Determinants'!$D$41*$D32))))) -> 0 | S32: =IF(S$4="",0,IF($E32="kWh",VLOOKUP(S$4,'4. Billing Determinants'!$B$19:$N$41,4,0)/'4. Billing Determinants'!$E$41*$D32,IF($E32="kW",VLOOKUP(S$4,'4. Billing Determinants'!$B$19:$N$41,5,0)/'4. Billing Determinants'!$F$41*$D32,IF($E32="Non-RPP kWh",VLOOKUP(S$4,'4. Billing Determinants'!$B$19:$N$41,6,0)/'4. Billing Determinants'!$G$41*$D32,IF($E32="Distribution Rev.",VLOOKUP(S$4,'4. Billing Determinants'!$B$19:$N$41,8,0)/'4. Billing Determinants'!$I$41*$D32, VLOOKUP(S$4,'4. Billing Determinants'!$B$19:$N$41,3,0)/'4. Billing Determinants'!$D$41*$D32))))) -> 0 | T32: =IF(T$4="",0,IF($E32="kWh",VLOOKUP(T$4,'4. Billing Determinants'!$B$19:$N$41,4,0)/'4. Billing Determinants'!$E$41*$D32,IF($E32="kW",VLOOKUP(T$4,'4. Billing Determinants'!$B$19:$N$41,5,0)/'4. Billing Determinants'!$F$41*$D32,IF($E32="Non-RPP kWh",VLOOKUP(T$4,'4. Billing Determinants'!$B$19:$N$41,6,0)/'4. Billing Determinants'!$G$41*$D32,IF($E32="Distribution Rev.",VLOOKUP(T$4,'4. Billing Determinants'!$B$19:$N$41,8,0)/'4. Billing Determinants'!$I$41*$D32, VLOOKUP(T$4,'4. Billing Determinants'!$B$19:$N$41,3,0)/'4. Billing Determinants'!$D$41*$D32))))) -> 0 | U32: =IF(U$4="",0,IF($E32="kWh",VLOOKUP(U$4,'4. Billing Determinants'!$B$19:$N$41,4,0)/'4. Billing Determinants'!$E$41*$D32,IF($E32="kW",VLOOKUP(U$4,'4. Billing Determinants'!$B$19:$N$41,5,0)/'4. Billing Determinants'!$F$41*$D32,IF($E32="Non-RPP kWh",VLOOKUP(U$4,'4. Billing Determinants'!$B$19:$N$41,6,0)/'4. Billing Determinants'!$G$41*$D32,IF($E32="Distribution Rev.",VLOOKUP(U$4,'4. Billing Determinants'!$B$19:$N$41,8,0)/'4. Billing Determinants'!$I$41*$D32, VLOOKUP(U$4,'4. Billing Determinants'!$B$19:$N$41,3,0)/'4. Billing Determinants'!$D$41*$D32))))) -> 0 | V32: =IF(V$4="",0,IF($E32="kWh",VLOOKUP(V$4,'4. Billing Determinants'!$B$19:$N$41,4,0)/'4. Billing Determinants'!$E$41*$D32,IF($E32="kW",VLOOKUP(V$4,'4. Billing Determinants'!$B$19:$N$41,5,0)/'4. Billing Determinants'!$F$41*$D32,IF($E32="Non-RPP kWh",VLOOKUP(V$4,'4. Billing Determinants'!$B$19:$N$41,6,0)/'4. Billing Determinants'!$G$41*$D32,IF($E32="Distribution Rev.",VLOOKUP(V$4,'4. Billing Determinants'!$B$19:$N$41,8,0)/'4. Billing Determinants'!$I$41*$D32, VLOOKUP(V$4,'4. Billing Determinants'!$B$19:$N$41,3,0)/'4. Billing Determinants'!$D$41*$D32))))) -> 0 | W32: =IF(W$4="",0,IF($E32="kWh",VLOOKUP(W$4,'4. Billing Determinants'!$B$19:$N$41,4,0)/'4. Billing Determinants'!$E$41*$D32,IF($E32="kW",VLOOKUP(W$4,'4. Billing Determinants'!$B$19:$N$41,5,0)/'4. Billing Determinants'!$F$41*$D32,IF($E32="Non-RPP kWh",VLOOKUP(W$4,'4. Billing Determinants'!$B$19:$N$41,6,0)/'4. Billing Determinants'!$G$41*$D32,IF($E32="Distribution Rev.",VLOOKUP(W$4,'4. Billing Determinants'!$B$19:$N$41,8,0)/'4. Billing Determinants'!$I$41*$D32, VLOOKUP(W$4,'4. Billing Determinants'!$B$19:$N$41,3,0)/'4. Billing Determinants'!$D$41*$D32))))) -> 0 | X32: =IF(X$4="",0,IF($E32="kWh",VLOOKUP(X$4,'4. Billing Determinants'!$B$19:$N$41,4,0)/'4. Billing Determinants'!$E$41*$D32,IF($E32="kW",VLOOKUP(X$4,'4. Billing Determinants'!$B$19:$N$41,5,0)/'4. Billing Determinants'!$F$41*$D32,IF($E32="Non-RPP kWh",VLOOKUP(X$4,'4. Billing Determinants'!$B$19:$N$41,6,0)/'4. Billing Determinants'!$G$41*$D32,IF($E32="Distribution Rev.",VLOOKUP(X$4,'4. Billing Determinants'!$B$19:$N$41,8,0)/'4. Billing Determinants'!$I$41*$D32, VLOOKUP(X$4,'4. Billing Determinants'!$B$19:$N$41,3,0)/'4. Billing Determinants'!$D$41*$D32))))) -> 0 | Y32: =IF(Y$4="",0,IF($E32="kWh",VLOOKUP(Y$4,'4. Billing Determinants'!$B$19:$N$41,4,0)/'4. Billing Determinants'!$E$41*$D32,IF($E32="kW",VLOOKUP(Y$4,'4. Billing Determinants'!$B$19:$N$41,5,0)/'4. Billing Determinants'!$F$41*$D32,IF($E32="Non-RPP kWh",VLOOKUP(Y$4,'4. Billing Determinants'!$B$19:$N$41,6,0)/'4. Billing Determinants'!$G$41*$D32,IF($E32="Distribution Rev.",VLOOKUP(Y$4,'4. Billing Determinants'!$B$19:$N$41,8,0)/'4. Billing Determinants'!$I$41*$D32, VLOOKUP(Y$4,'4. Billing Determinants'!$B$19:$N$41,3,0)/'4. Billing Determinants'!$D$41*$D32))))) -> 0
B33: Board-Approved CDM Variance Account | C33: 1567 | D33: 0 | F33: 0 | G33: 0 | H33: 0 | I33: 0 | J33: 0 | K33: 0 | L33: 0 | M33: =IF(M$4="",0,IF($E33="kWh",VLOOKUP(M$4,'4. Billing Determinants'!$B$19:$N$41,4,0)/'4. Billing Determinants'!$E$41*$D33,IF($E33="kW",VLOOKUP(M$4,'4. Billing Determinants'!$B$19:$N$41,5,0)/'4. Billing Determinants'!$F$41*$D33,IF($E33="Non-RPP kWh",VLOOKUP(M$4,'4. Billing Determinants'!$B$19:$N$41,6,0)/'4. Billing Determinants'!$G$41*$D33,IF($E33="Distribution Rev.",VLOOKUP(M$4,'4. Billing Determinants'!$B$19:$N$41,8,0)/'4. Billing Determinants'!$I$41*$D33, VLOOKUP(M$4,'4. Billing Determinants'!$B$19:$N$41,3,0)/'4. Billing Determinants'!$D$41*$D33))))) -> 0 | N33: =IF(N$4="",0,IF($E33="kWh",VLOOKUP(N$4,'4. Billing Determinants'!$B$19:$N$41,4,0)/'4. Billing Determinants'!$E$41*$D33,IF($E33="kW",VLOOKUP(N$4,'4. Billing Determinants'!$B$19:$N$41,5,0)/'4. Billing Determinants'!$F$41*$D33,IF($E33="Non-RPP kWh",VLOOKUP(N$4,'4. Billing Determinants'!$B$19:$N$41,6,0)/'4. Billing Determinants'!$G$41*$D33,IF($E33="Distribution Rev.",VLOOKUP(N$4,'4. Billing Determinants'!$B$19:$N$41,8,0)/'4. Billing Determinants'!$I$41*$D33, VLOOKUP(N$4,'4. Billing Determinants'!$B$19:$N$41,3,0)/'4. Billing Determinants'!$D$41*$D33))))) -> 0 | O33: =IF(O$4="",0,IF($E33="kWh",VLOOKUP(O$4,'4. Billing Determinants'!$B$19:$N$41,4,0)/'4. Billing Determinants'!$E$41*$D33,IF($E33="kW",VLOOKUP(O$4,'4. Billing Determinants'!$B$19:$N$41,5,0)/'4. Billing Determinants'!$F$41*$D33,IF($E33="Non-RPP kWh",VLOOKUP(O$4,'4. Billing Determinants'!$B$19:$N$41,6,0)/'4. Billing Determinants'!$G$41*$D33,IF($E33="Distribution Rev.",VLOOKUP(O$4,'4. Billing Determinants'!$B$19:$N$41,8,0)/'4. Billing Determinants'!$I$41*$D33, VLOOKUP(O$4,'4. Billing Determinants'!$B$19:$N$41,3,0)/'4. Billing Determinants'!$D$41*$D33))))) -> 0 | P33: =IF(P$4="",0,IF($E33="kWh",VLOOKUP(P$4,'4. Billing Determinants'!$B$19:$N$41,4,0)/'4. Billing Determinants'!$E$41*$D33,IF($E33="kW",VLOOKUP(P$4,'4. Billing Determinants'!$B$19:$N$41,5,0)/'4. Billing Determinants'!$F$41*$D33,IF($E33="Non-RPP kWh",VLOOKUP(P$4,'4. Billing Determinants'!$B$19:$N$41,6,0)/'4. Billing Determinants'!$G$41*$D33,IF($E33="Distribution Rev.",VLOOKUP(P$4,'4. Billing Determinants'!$B$19:$N$41,8,0)/'4. Billing Determinants'!$I$41*$D33, VLOOKUP(P$4,'4. Billing Determinants'!$B$19:$N$41,3,0)/'4. Billing Determinants'!$D$41*$D33))))) -> 0 | Q33: =IF(Q$4="",0,IF($E33="kWh",VLOOKUP(Q$4,'4. Billing Determinants'!$B$19:$N$41,4,0)/'4. Billing Determinants'!$E$41*$D33,IF($E33="kW",VLOOKUP(Q$4,'4. Billing Determinants'!$B$19:$N$41,5,0)/'4. Billing Determinants'!$F$41*$D33,IF($E33="Non-RPP kWh",VLOOKUP(Q$4,'4. Billing Determinants'!$B$19:$N$41,6,0)/'4. Billing Determinants'!$G$41*$D33,IF($E33="Distribution Rev.",VLOOKUP(Q$4,'4. Billing Determinants'!$B$19:$N$41,8,0)/'4. Billing Determinants'!$I$41*$D33, VLOOKUP(Q$4,'4. Billing Determinants'!$B$19:$N$41,3,0)/'4. Billing Determinants'!$D$41*$D33))))) -> 0 | R33: =IF(R$4="",0,IF($E33="kWh",VLOOKUP(R$4,'4. Billing Determinants'!$B$19:$N$41,4,0)/'4. Billing Determinants'!$E$41*$D33,IF($E33="kW",VLOOKUP(R$4,'4. Billing Determinants'!$B$19:$N$41,5,0)/'4. Billing Determinants'!$F$41*$D33,IF($E33="Non-RPP kWh",VLOOKUP(R$4,'4. Billing Determinants'!$B$19:$N$41,6,0)/'4. Billing Determinants'!$G$41*$D33,IF($E33="Distribution Rev.",VLOOKUP(R$4,'4. Billing Determinants'!$B$19:$N$41,8,0)/'4. Billing Determinants'!$I$41*$D33, VLOOKUP(R$4,'4. Billing Determinants'!$B$19:$N$41,3,0)/'4. Billing Determinants'!$D$41*$D33))))) -> 0 | S33: =IF(S$4="",0,IF($E33="kWh",VLOOKUP(S$4,'4. Billing Determinants'!$B$19:$N$41,4,0)/'4. Billing Determinants'!$E$41*$D33,IF($E33="kW",VLOOKUP(S$4,'4. Billing Determinants'!$B$19:$N$41,5,0)/'4. Billing Determinants'!$F$41*$D33,IF($E33="Non-RPP kWh",VLOOKUP(S$4,'4. Billing Determinants'!$B$19:$N$41,6,0)/'4. Billing Determinants'!$G$41*$D33,IF($E33="Distribution Rev.",VLOOKUP(S$4,'4. Billing Determinants'!$B$19:$N$41,8,0)/'4. Billing Determinants'!$I$41*$D33, VLOOKUP(S$4,'4. Billing Determinants'!$B$19:$N$41,3,0)/'4. Billing Determinants'!$D$41*$D33))))) -> 0 | T33: =IF(T$4="",0,IF($E33="kWh",VLOOKUP(T$4,'4. Billing Determinants'!$B$19:$N$41,4,0)/'4. Billing Determinants'!$E$41*$D33,IF($E33="kW",VLOOKUP(T$4,'4. Billing Determinants'!$B$19:$N$41,5,0)/'4. Billing Determinants'!$F$41*$D33,IF($E33="Non-RPP kWh",VLOOKUP(T$4,'4. Billing Determinants'!$B$19:$N$41,6,0)/'4. Billing Determinants'!$G$41*$D33,IF($E33="Distribution Rev.",VLOOKUP(T$4,'4. Billing Determinants'!$B$19:$N$41,8,0)/'4. Billing Determinants'!$I$41*$D33, VLOOKUP(T$4,'4. Billing Determinants'!$B$19:$N$41,3,0)/'4. Billing Determinants'!$D$41*$D33))))) -> 0 | U33: =IF(U$4="",0,IF($E33="kWh",VLOOKUP(U$4,'4. Billing Determinants'!$B$19:$N$41,4,0)/'4. Billing Determinants'!$E$41*$D33,IF($E33="kW",VLOOKUP(U$4,'4. Billing Determinants'!$B$19:$N$41,5,0)/'4. Billing Determinants'!$F$41*$D33,IF($E33="Non-RPP kWh",VLOOKUP(U$4,'4. Billing Determinants'!$B$19:$N$41,6,0)/'4. Billing Determinants'!$G$41*$D33,IF($E33="Distribution Rev.",VLOOKUP(U$4,'4. Billing Determinants'!$B$19:$N$41,8,0)/'4. Billing Determinants'!$I$41*$D33, VLOOKUP(U$4,'4. Billing Determinants'!$B$19:$N$41,3,0)/'4. Billing Determinants'!$D$41*$D33))))) -> 0 | V33: =IF(V$4="",0,IF($E33="kWh",VLOOKUP(V$4,'4. Billing Determinants'!$B$19:$N$41,4,0)/'4. Billing Determinants'!$E$41*$D33,IF($E33="kW",VLOOKUP(V$4,'4. Billing Determinants'!$B$19:$N$41,5,0)/'4. Billing Determinants'!$F$41*$D33,IF($E33="Non-RPP kWh",VLOOKUP(V$4,'4. Billing Determinants'!$B$19:$N$41,6,0)/'4. Billing Determinants'!$G$41*$D33,IF($E33="Distribution Rev.",VLOOKUP(V$4,'4. Billing Determinants'!$B$19:$N$41,8,0)/'4. Billing Determinants'!$I$41*$D33, VLOOKUP(V$4,'4. Billing Determinants'!$B$19:$N$41,3,0)/'4. Billing Determinants'!$D$41*$D33))))) -> 0 | W33: =IF(W$4="",0,IF($E33="kWh",VLOOKUP(W$4,'4. Billing Determinants'!$B$19:$N$41,4,0)/'4. Billing Determinants'!$E$41*$D33,IF($E33="kW",VLOOKUP(W$4,'4. Billing Determinants'!$B$19:$N$41,5,0)/'4. Billing Determinants'!$F$41*$D33,IF($E33="Non-RPP kWh",VLOOKUP(W$4,'4. Billing Determinants'!$B$19:$N$41,6,0)/'4. Billing Determinants'!$G$41*$D33,IF($E33="Distribution Rev.",VLOOKUP(W$4,'4. Billing Determinants'!$B$19:$N$41,8,0)/'4. Billing Determinants'!$I$41*$D33, VLOOKUP(W$4,'4. Billing Determinants'!$B$19:$N$41,3,0)/'4. Billing Determinants'!$D$41*$D33))))) -> 0 | X33: =IF(X$4="",0,IF($E33="kWh",VLOOKUP(X$4,'4. Billing Determinants'!$B$19:$N$41,4,0)/'4. Billing Determinants'!$E$41*$D33,IF($E33="kW",VLOOKUP(X$4,'4. Billing Determinants'!$B$19:$N$41,5,0)/'4. Billing Determinants'!$F$41*$D33,IF($E33="Non-RPP kWh",VLOOKUP(X$4,'4. Billing Determinants'!$B$19:$N$41,6,0)/'4. Billing Determinants'!$G$41*$D33,IF($E33="Distribution Rev.",VLOOKUP(X$4,'4. Billing Determinants'!$B$19:$N$41,8,0)/'4. Billing Determinants'!$I$41*$D33, VLOOKUP(X$4,'4. Billing Determinants'!$B$19:$N$41,3,0)/'4. Billing Determinants'!$D$41*$D33))))) -> 0 | Y33: =IF(Y$4="",0,IF($E33="kWh",VLOOKUP(Y$4,'4. Billing Determinants'!$B$19:$N$41,4,0)/'4. Billing Determinants'!$E$41*$D33,IF($E33="kW",VLOOKUP(Y$4,'4. Billing Determinants'!$B$19:$N$41,5,0)/'4. Billing Determinants'!$F$41*$D33,IF($E33="Non-RPP kWh",VLOOKUP(Y$4,'4. Billing Determinants'!$B$19:$N$41,6,0)/'4. Billing Determinants'!$G$41*$D33,IF($E33="Distribution Rev.",VLOOKUP(Y$4,'4. Billing Determinants'!$B$19:$N$41,8,0)/'4. Billing Determinants'!$I$41*$D33, VLOOKUP(Y$4,'4. Billing Determinants'!$B$19:$N$41,3,0)/'4. Billing Determinants'!$D$41*$D33))))) -> 0
B34: Extra-Ordinary Event Costs | C34: 1572 | D34: 0 | F34: 0 | G34: 0 | H34: 0 | I34: 0 | J34: 0 | K34: 0 | L34: 0 | M34: =IF(M$4="",0,IF($E34="kWh",VLOOKUP(M$4,'4. Billing Determinants'!$B$19:$N$41,4,0)/'4. Billing Determinants'!$E$41*$D34,IF($E34="kW",VLOOKUP(M$4,'4. Billing Determinants'!$B$19:$N$41,5,0)/'4. Billing Determinants'!$F$41*$D34,IF($E34="Non-RPP kWh",VLOOKUP(M$4,'4. Billing Determinants'!$B$19:$N$41,6,0)/'4. Billing Determinants'!$G$41*$D34,IF($E34="Distribution Rev.",VLOOKUP(M$4,'4. Billing Determinants'!$B$19:$N$41,8,0)/'4. Billing Determinants'!$I$41*$D34, VLOOKUP(M$4,'4. Billing Determinants'!$B$19:$N$41,3,0)/'4. Billing Determinants'!$D$41*$D34))))) -> 0 | N34: =IF(N$4="",0,IF($E34="kWh",VLOOKUP(N$4,'4. Billing Determinants'!$B$19:$N$41,4,0)/'4. Billing Determinants'!$E$41*$D34,IF($E34="kW",VLOOKUP(N$4,'4. Billing Determinants'!$B$19:$N$41,5,0)/'4. Billing Determinants'!$F$41*$D34,IF($E34="Non-RPP kWh",VLOOKUP(N$4,'4. Billing Determinants'!$B$19:$N$41,6,0)/'4. Billing Determinants'!$G$41*$D34,IF($E34="Distribution Rev.",VLOOKUP(N$4,'4. Billing Determinants'!$B$19:$N$41,8,0)/'4. Billing Determinants'!$I$41*$D34, VLOOKUP(N$4,'4. Billing Determinants'!$B$19:$N$41,3,0)/'4. Billing Determinants'!$D$41*$D34))))) -> 0 | O34: =IF(O$4="",0,IF($E34="kWh",VLOOKUP(O$4,'4. Billing Determinants'!$B$19:$N$41,4,0)/'4. Billing Determinants'!$E$41*$D34,IF($E34="kW",VLOOKUP(O$4,'4. Billing Determinants'!$B$19:$N$41,5,0)/'4. Billing Determinants'!$F$41*$D34,IF($E34="Non-RPP kWh",VLOOKUP(O$4,'4. Billing Determinants'!$B$19:$N$41,6,0)/'4. Billing Determinants'!$G$41*$D34,IF($E34="Distribution Rev.",VLOOKUP(O$4,'4. Billing Determinants'!$B$19:$N$41,8,0)/'4. Billing Determinants'!$I$41*$D34, VLOOKUP(O$4,'4. Billing Determinants'!$B$19:$N$41,3,0)/'4. Billing Determinants'!$D$41*$D34))))) -> 0 | P34: =IF(P$4="",0,IF($E34="kWh",VLOOKUP(P$4,'4. Billing Determinants'!$B$19:$N$41,4,0)/'4. Billing Determinants'!$E$41*$D34,IF($E34="kW",VLOOKUP(P$4,'4. Billing Determinants'!$B$19:$N$41,5,0)/'4. Billing Determinants'!$F$41*$D34,IF($E34="Non-RPP kWh",VLOOKUP(P$4,'4. Billing Determinants'!$B$19:$N$41,6,0)/'4. Billing Determinants'!$G$41*$D34,IF($E34="Distribution Rev.",VLOOKUP(P$4,'4. Billing Determinants'!$B$19:$N$41,8,0)/'4. Billing Determinants'!$I$41*$D34, VLOOKUP(P$4,'4. Billing Determinants'!$B$19:$N$41,3,0)/'4. Billing Determinants'!$D$41*$D34))))) -> 0 | Q34: =IF(Q$4="",0,IF($E34="kWh",VLOOKUP(Q$4,'4. Billing Determinants'!$B$19:$N$41,4,0)/'4. Billing Determinants'!$E$41*$D34,IF($E34="kW",VLOOKUP(Q$4,'4. Billing Determinants'!$B$19:$N$41,5,0)/'4. Billing Determinants'!$F$41*$D34,IF($E34="Non-RPP kWh",VLOOKUP(Q$4,'4. Billing Determinants'!$B$19:$N$41,6,0)/'4. Billing Determinants'!$G$41*$D34,IF($E34="Distribution Rev.",VLOOKUP(Q$4,'4. Billing Determinants'!$B$19:$N$41,8,0)/'4. Billing Determinants'!$I$41*$D34, VLOOKUP(Q$4,'4. Billing Determinants'!$B$19:$N$41,3,0)/'4. Billing Determinants'!$D$41*$D34))))) -> 0 | R34: =IF(R$4="",0,IF($E34="kWh",VLOOKUP(R$4,'4. Billing Determinants'!$B$19:$N$41,4,0)/'4. Billing Determinants'!$E$41*$D34,IF($E34="kW",VLOOKUP(R$4,'4. Billing Determinants'!$B$19:$N$41,5,0)/'4. Billing Determinants'!$F$41*$D34,IF($E34="Non-RPP kWh",VLOOKUP(R$4,'4. Billing Determinants'!$B$19:$N$41,6,0)/'4. Billing Determinants'!$G$41*$D34,IF($E34="Distribution Rev.",VLOOKUP(R$4,'4. Billing Determinants'!$B$19:$N$41,8,0)/'4. Billing Determinants'!$I$41*$D34, VLOOKUP(R$4,'4. Billing Determinants'!$B$19:$N$41,3,0)/'4. Billing Determinants'!$D$41*$D34))))) -> 0 | S34: =IF(S$4="",0,IF($E34="kWh",VLOOKUP(S$4,'4. Billing Determinants'!$B$19:$N$41,4,0)/'4. Billing Determinants'!$E$41*$D34,IF($E34="kW",VLOOKUP(S$4,'4. Billing Determinants'!$B$19:$N$41,5,0)/'4. Billing Determinants'!$F$41*$D34,IF($E34="Non-RPP kWh",VLOOKUP(S$4,'4. Billing Determinants'!$B$19:$N$41,6,0)/'4. Billing Determinants'!$G$41*$D34,IF($E34="Distribution Rev.",VLOOKUP(S$4,'4. Billing Determinants'!$B$19:$N$41,8,0)/'4. Billing Determinants'!$I$41*$D34, VLOOKUP(S$4,'4. Billing Determinants'!$B$19:$N$41,3,0)/'4. Billing Determinants'!$D$41*$D34))))) -> 0 | T34: =IF(T$4="",0,IF($E34="kWh",VLOOKUP(T$4,'4. Billing Determinants'!$B$19:$N$41,4,0)/'4. Billing Determinants'!$E$41*$D34,IF($E34="kW",VLOOKUP(T$4,'4. Billing Determinants'!$B$19:$N$41,5,0)/'4. Billing Determinants'!$F$41*$D34,IF($E34="Non-RPP kWh",VLOOKUP(T$4,'4. Billing Determinants'!$B$19:$N$41,6,0)/'4. Billing Determinants'!$G$41*$D34,IF($E34="Distribution Rev.",VLOOKUP(T$4,'4. Billing Determinants'!$B$19:$N$41,8,0)/'4. Billing Determinants'!$I$41*$D34, VLOOKUP(T$4,'4. Billing Determinants'!$B$19:$N$41,3,0)/'4. Billing Determinants'!$D$41*$D34))))) -> 0 | U34: =IF(U$4="",0,IF($E34="kWh",VLOOKUP(U$4,'4. Billing Determinants'!$B$19:$N$41,4,0)/'4. Billing Determinants'!$E$41*$D34,IF($E34="kW",VLOOKUP(U$4,'4. Billing Determinants'!$B$19:$N$41,5,0)/'4. Billing Determinants'!$F$41*$D34,IF($E34="Non-RPP kWh",VLOOKUP(U$4,'4. Billing Determinants'!$B$19:$N$41,6,0)/'4. Billing Determinants'!$G$41*$D34,IF($E34="Distribution Rev.",VLOOKUP(U$4,'4. Billing Determinants'!$B$19:$N$41,8,0)/'4. Billing Determinants'!$I$41*$D34, VLOOKUP(U$4,'4. Billing Determinants'!$B$19:$N$41,3,0)/'4. Billing Determinants'!$D$41*$D34))))) -> 0 | V34: =IF(V$4="",0,IF($E34="kWh",VLOOKUP(V$4,'4. Billing Determinants'!$B$19:$N$41,4,0)/'4. Billing Determinants'!$E$41*$D34,IF($E34="kW",VLOOKUP(V$4,'4. Billing Determinants'!$B$19:$N$41,5,0)/'4. Billing Determinants'!$F$41*$D34,IF($E34="Non-RPP kWh",VLOOKUP(V$4,'4. Billing Determinants'!$B$19:$N$41,6,0)/'4. Billing Determinants'!$G$41*$D34,IF($E34="Distribution Rev.",VLOOKUP(V$4,'4. Billing Determinants'!$B$19:$N$41,8,0)/'4. Billing Determinants'!$I$41*$D34, VLOOKUP(V$4,'4. Billing Determinants'!$B$19:$N$41,3,0)/'4. Billing Determinants'!$D$41*$D34))))) -> 0 | W34: =IF(W$4="",0,IF($E34="kWh",VLOOKUP(W$4,'4. Billing Determinants'!$B$19:$N$41,4,0)/'4. Billing Determinants'!$E$41*$D34,IF($E34="kW",VLOOKUP(W$4,'4. Billing Determinants'!$B$19:$N$41,5,0)/'4. Billing Determinants'!$F$41*$D34,IF($E34="Non-RPP kWh",VLOOKUP(W$4,'4. Billing Determinants'!$B$19:$N$41,6,0)/'4. Billing Determinants'!$G$41*$D34,IF($E34="Distribution Rev.",VLOOKUP(W$4,'4. Billing Determinants'!$B$19:$N$41,8,0)/'4. Billing Determinants'!$I$41*$D34, VLOOKUP(W$4,'4. Billing Determinants'!$B$19:$N$41,3,0)/'4. Billing Determinants'!$D$41*$D34))))) -> 0 | X34: =IF(X$4="",0,IF($E34="kWh",VLOOKUP(X$4,'4. Billing Determinants'!$B$19:$N$41,4,0)/'4. Billing Determinants'!$E$41*$D34,IF($E34="kW",VLOOKUP(X$4,'4. Billing Determinants'!$B$19:$N$41,5,0)/'4. Billing Determinants'!$F$41*$D34,IF($E34="Non-RPP kWh",VLOOKUP(X$4,'4. Billing Determinants'!$B$19:$N$41,6,0)/'4. Billing Determinants'!$G$41*$D34,IF($E34="Distribution Rev.",VLOOKUP(X$4,'4. Billing Determinants'!$B$19:$N$41,8,0)/'4. Billing Determinants'!$I$41*$D34, VLOOKUP(X$4,'4. Billing Determinants'!$B$19:$N$41,3,0)/'4. Billing Determinants'!$D$41*$D34))))) -> 0 | Y34: =IF(Y$4="",0,IF($E34="kWh",VLOOKUP(Y$4,'4. Billing Determinants'!$B$19:$N$41,4,0)/'4. Billing Determinants'!$E$41*$D34,IF($E34="kW",VLOOKUP(Y$4,'4. Billing Determinants'!$B$19:$N$41,5,0)/'4. Billing Determinants'!$F$41*$D34,IF($E34="Non-RPP kWh",VLOOKUP(Y$4,'4. Billing Determinants'!$B$19:$N$41,6,0)/'4. Billing Determinants'!$G$41*$D34,IF($E34="Distribution Rev.",VLOOKUP(Y$4,'4. Billing Determinants'!$B$19:$N$41,8,0)/'4. Billing Determinants'!$I$41*$D34, VLOOKUP(Y$4,'4. Billing Determinants'!$B$19:$N$41,3,0)/'4. Billing Determinants'!$D$41*$D34))))) -> 0
B35: Deferred Rate Impact Amounts | C35: 1574 | D35: 0 | F35: 0 | G35: 0 | H35: 0 | I35: 0 | J35: 0 | K35: 0 | L35: 0 | M35: =IF(M$4="",0,IF($E35="kWh",VLOOKUP(M$4,'4. Billing Determinants'!$B$19:$N$41,4,0)/'4. Billing Determinants'!$E$41*$D35,IF($E35="kW",VLOOKUP(M$4,'4. Billing Determinants'!$B$19:$N$41,5,0)/'4. Billing Determinants'!$F$41*$D35,IF($E35="Non-RPP kWh",VLOOKUP(M$4,'4. Billing Determinants'!$B$19:$N$41,6,0)/'4. Billing Determinants'!$G$41*$D35,IF($E35="Distribution Rev.",VLOOKUP(M$4,'4. Billing Determinants'!$B$19:$N$41,8,0)/'4. Billing Determinants'!$I$41*$D35, VLOOKUP(M$4,'4. Billing Determinants'!$B$19:$N$41,3,0)/'4. Billing Determinants'!$D$41*$D35))))) -> 0 | N35: =IF(N$4="",0,IF($E35="kWh",VLOOKUP(N$4,'4. Billing Determinants'!$B$19:$N$41,4,0)/'4. Billing Determinants'!$E$41*$D35,IF($E35="kW",VLOOKUP(N$4,'4. Billing Determinants'!$B$19:$N$41,5,0)/'4. Billing Determinants'!$F$41*$D35,IF($E35="Non-RPP kWh",VLOOKUP(N$4,'4. Billing Determinants'!$B$19:$N$41,6,0)/'4. Billing Determinants'!$G$41*$D35,IF($E35="Distribution Rev.",VLOOKUP(N$4,'4. Billing Determinants'!$B$19:$N$41,8,0)/'4. Billing Determinants'!$I$41*$D35, VLOOKUP(N$4,'4. Billing Determinants'!$B$19:$N$41,3,0)/'4. Billing Determinants'!$D$41*$D35))))) -> 0 | O35: =IF(O$4="",0,IF($E35="kWh",VLOOKUP(O$4,'4. Billing Determinants'!$B$19:$N$41,4,0)/'4. Billing Determinants'!$E$41*$D35,IF($E35="kW",VLOOKUP(O$4,'4. Billing Determinants'!$B$19:$N$41,5,0)/'4. Billing Determinants'!$F$41*$D35,IF($E35="Non-RPP kWh",VLOOKUP(O$4,'4. Billing Determinants'!$B$19:$N$41,6,0)/'4. Billing Determinants'!$G$41*$D35,IF($E35="Distribution Rev.",VLOOKUP(O$4,'4. Billing Determinants'!$B$19:$N$41,8,0)/'4. Billing Determinants'!$I$41*$D35, VLOOKUP(O$4,'4. Billing Determinants'!$B$19:$N$41,3,0)/'4. Billing Determinants'!$D$41*$D35))))) -> 0 | P35: =IF(P$4="",0,IF($E35="kWh",VLOOKUP(P$4,'4. Billing Determinants'!$B$19:$N$41,4,0)/'4. Billing Determinants'!$E$41*$D35,IF($E35="kW",VLOOKUP(P$4,'4. Billing Determinants'!$B$19:$N$41,5,0)/'4. Billing Determinants'!$F$41*$D35,IF($E35="Non-RPP kWh",VLOOKUP(P$4,'4. Billing Determinants'!$B$19:$N$41,6,0)/'4. Billing Determinants'!$G$41*$D35,IF($E35="Distribution Rev.",VLOOKUP(P$4,'4. Billing Determinants'!$B$19:$N$41,8,0)/'4. Billing Determinants'!$I$41*$D35, VLOOKUP(P$4,'4. Billing Determinants'!$B$19:$N$41,3,0)/'4. Billing Determinants'!$D$41*$D35))))) -> 0 | Q35: =IF(Q$4="",0,IF($E35="kWh",VLOOKUP(Q$4,'4. Billing Determinants'!$B$19:$N$41,4,0)/'4. Billing Determinants'!$E$41*$D35,IF($E35="kW",VLOOKUP(Q$4,'4. Billing Determinants'!$B$19:$N$41,5,0)/'4. Billing Determinants'!$F$41*$D35,IF($E35="Non-RPP kWh",VLOOKUP(Q$4,'4. Billing Determinants'!$B$19:$N$41,6,0)/'4. Billing Determinants'!$G$41*$D35,IF($E35="Distribution Rev.",VLOOKUP(Q$4,'4. Billing Determinants'!$B$19:$N$41,8,0)/'4. Billing Determinants'!$I$41*$D35, VLOOKUP(Q$4,'4. Billing Determinants'!$B$19:$N$41,3,0)/'4. Billing Determinants'!$D$41*$D35))))) -> 0 | R35: =IF(R$4="",0,IF($E35="kWh",VLOOKUP(R$4,'4. Billing Determinants'!$B$19:$N$41,4,0)/'4. Billing Determinants'!$E$41*$D35,IF($E35="kW",VLOOKUP(R$4,'4. Billing Determinants'!$B$19:$N$41,5,0)/'4. Billing Determinants'!$F$41*$D35,IF($E35="Non-RPP kWh",VLOOKUP(R$4,'4. Billing Determinants'!$B$19:$N$41,6,0)/'4. Billing Determinants'!$G$41*$D35,IF($E35="Distribution Rev.",VLOOKUP(R$4,'4. Billing Determinants'!$B$19:$N$41,8,0)/'4. Billing Determinants'!$I$41*$D35, VLOOKUP(R$4,'4. Billing Determinants'!$B$19:$N$41,3,0)/'4. Billing Determinants'!$D$41*$D35))))) -> 0 | S35: =IF(S$4="",0,IF($E35="kWh",VLOOKUP(S$4,'4. Billing Determinants'!$B$19:$N$41,4,0)/'4. Billing Determinants'!$E$41*$D35,IF($E35="kW",VLOOKUP(S$4,'4. Billing Determinants'!$B$19:$N$41,5,0)/'4. Billing Determinants'!$F$41*$D35,IF($E35="Non-RPP kWh",VLOOKUP(S$4,'4. Billing Determinants'!$B$19:$N$41,6,0)/'4. Billing Determinants'!$G$41*$D35,IF($E35="Distribution Rev.",VLOOKUP(S$4,'4. Billing Determinants'!$B$19:$N$41,8,0)/'4. Billing Determinants'!$I$41*$D35, VLOOKUP(S$4,'4. Billing Determinants'!$B$19:$N$41,3,0)/'4. Billing Determinants'!$D$41*$D35))))) -> 0 | T35: =IF(T$4="",0,IF($E35="kWh",VLOOKUP(T$4,'4. Billing Determinants'!$B$19:$N$41,4,0)/'4. Billing Determinants'!$E$41*$D35,IF($E35="kW",VLOOKUP(T$4,'4. Billing Determinants'!$B$19:$N$41,5,0)/'4. Billing Determinants'!$F$41*$D35,IF($E35="Non-RPP kWh",VLOOKUP(T$4,'4. Billing Determinants'!$B$19:$N$41,6,0)/'4. Billing Determinants'!$G$41*$D35,IF($E35="Distribution Rev.",VLOOKUP(T$4,'4. Billing Determinants'!$B$19:$N$41,8,0)/'4. Billing Determinants'!$I$41*$D35, VLOOKUP(T$4,'4. Billing Determinants'!$B$19:$N$41,3,0)/'4. Billing Determinants'!$D$41*$D35))))) -> 0 | U35: =IF(U$4="",0,IF($E35="kWh",VLOOKUP(U$4,'4. Billing Determinants'!$B$19:$N$41,4,0)/'4. Billing Determinants'!$E$41*$D35,IF($E35="kW",VLOOKUP(U$4,'4. Billing Determinants'!$B$19:$N$41,5,0)/'4. Billing Determinants'!$F$41*$D35,IF($E35="Non-RPP kWh",VLOOKUP(U$4,'4. Billing Determinants'!$B$19:$N$41,6,0)/'4. Billing Determinants'!$G$41*$D35,IF($E35="Distribution Rev.",VLOOKUP(U$4,'4. Billing Determinants'!$B$19:$N$41,8,0)/'4. Billing Determinants'!$I$41*$D35, VLOOKUP(U$4,'4. Billing Determinants'!$B$19:$N$41,3,0)/'4. Billing Determinants'!$D$41*$D35))))) -> 0 | V35: =IF(V$4="",0,IF($E35="kWh",VLOOKUP(V$4,'4. Billing Determinants'!$B$19:$N$41,4,0)/'4. Billing Determinants'!$E$41*$D35,IF($E35="kW",VLOOKUP(V$4,'4. Billing Determinants'!$B$19:$N$41,5,0)/'4. Billing Determinants'!$F$41*$D35,IF($E35="Non-RPP kWh",VLOOKUP(V$4,'4. Billing Determinants'!$B$19:$N$41,6,0)/'4. Billing Determinants'!$G$41*$D35,IF($E35="Distribution Rev.",VLOOKUP(V$4,'4. Billing Determinants'!$B$19:$N$41,8,0)/'4. Billing Determinants'!$I$41*$D35, VLOOKUP(V$4,'4. Billing Determinants'!$B$19:$N$41,3,0)/'4. Billing Determinants'!$D$41*$D35))))) -> 0 | W35: =IF(W$4="",0,IF($E35="kWh",VLOOKUP(W$4,'4. Billing Determinants'!$B$19:$N$41,4,0)/'4. Billing Determinants'!$E$41*$D35,IF($E35="kW",VLOOKUP(W$4,'4. Billing Determinants'!$B$19:$N$41,5,0)/'4. Billing Determinants'!$F$41*$D35,IF($E35="Non-RPP kWh",VLOOKUP(W$4,'4. Billing Determinants'!$B$19:$N$41,6,0)/'4. Billing Determinants'!$G$41*$D35,IF($E35="Distribution Rev.",VLOOKUP(W$4,'4. Billing Determinants'!$B$19:$N$41,8,0)/'4. Billing Determinants'!$I$41*$D35, VLOOKUP(W$4,'4. Billing Determinants'!$B$19:$N$41,3,0)/'4. Billing Determinants'!$D$41*$D35))))) -> 0 | X35: =IF(X$4="",0,IF($E35="kWh",VLOOKUP(X$4,'4. Billing Determinants'!$B$19:$N$41,4,0)/'4. Billing Determinants'!$E$41*$D35,IF($E35="kW",VLOOKUP(X$4,'4. Billing Determinants'!$B$19:$N$41,5,0)/'4. Billing Determinants'!$F$41*$D35,IF($E35="Non-RPP kWh",VLOOKUP(X$4,'4. Billing Determinants'!$B$19:$N$41,6,0)/'4. Billing Determinants'!$G$41*$D35,IF($E35="Distribution Rev.",VLOOKUP(X$4,'4. Billing Determinants'!$B$19:$N$41,8,0)/'4. Billing Determinants'!$I$41*$D35, VLOOKUP(X$4,'4. Billing Determinants'!$B$19:$N$41,3,0)/'4. Billing Determinants'!$D$41*$D35))))) -> 0 | Y35: =IF(Y$4="",0,IF($E35="kWh",VLOOKUP(Y$4,'4. Billing Determinants'!$B$19:$N$41,4,0)/'4. Billing Determinants'!$E$41*$D35,IF($E35="kW",VLOOKUP(Y$4,'4. Billing Determinants'!$B$19:$N$41,5,0)/'4. Billing Determinants'!$F$41*$D35,IF($E35="Non-RPP kWh",VLOOKUP(Y$4,'4. Billing Determinants'!$B$19:$N$41,6,0)/'4. Billing Determinants'!$G$41*$D35,IF($E35="Distribution Rev.",VLOOKUP(Y$4,'4. Billing Determinants'!$B$19:$N$41,8,0)/'4. Billing Determinants'!$I$41*$D35, VLOOKUP(Y$4,'4. Billing Determinants'!$B$19:$N$41,3,0)/'4. Billing Determinants'!$D$41*$D35))))) -> 0
